{"text_format":"1","workbook":"xlsx","n_sheets":8,"sheets":["包含字符筛选","明细","基础资料","广州锦盛10月份包材仓电子帐 (2)","Sheet1","问题记录","统计","Sheet2"],"not_rendered":{"charts":0,"images":0,"macros":1,"external_links":0,"defined_names":7,"comments":1,"pivot_tables":1},"unopened":[],"bounds":{"document_bytes":16777216,"sheet_cells":100000,"rows_first":2000,"rows_last":500,"rows_between":2000,"halvings":0,"cell_chars":16384,"cell_head_chars":4096},"cells_cut":0,"cells_raw":0,"read":"whole","date_system":"1900"}

{"sheet":"包含字符筛选","index":0,"n_rows":3,"n_cols":6,"rows_kept":3,"cut":false,"hidden":false,"merged":[]}
[null,"物料名称"]
[null,{"$f":"\"*\"&C2&\"*\"","v":"*盒*"},"盒",null,null,"托"]
[null,null,null,null,null,"盒"]

{"sheet":"明细","index":1,"n_rows":24,"n_cols":16,"rows_kept":24,"cut":false,"hidden":false,"merged":[]}
["日期","日期","订单号","单号","物料内部编号","客户名称","产品名称","物料名称","物料规格","单位","供应商名称","期初数量","收入数量","发出数量","备 注","公式结存"]
["2017-08-17",{"$f":"TEXT(A2,\"yyyymmdd\")","v":"20170817"},"D001",345,1,"洁士宝","纳米超浓缩洗衣片","白色内托","30片","PCS",null,{"$f":"VLOOKUP(E:E,基础资料!B:M,12,0)","v":202},null,null,null,{"$f":"SUMIF(E:E,E2,L:L)+SUMIF(E:E,E2,M:M)-SUMIF(E:E,E2,N:N)","v":502}]
["2017-08-17",{"$f":"TEXT(A3,\"yyyymmdd\")","v":"20170817"},"D001",345,2,"洁士宝","纳米超浓缩洗衣片","彩盒","50片","PCS",null,{"$f":"VLOOKUP(E:E,基础资料!B:M,12,0)","v":150},null,null,null,{"$f":"SUMIF(E:E,E3,L:L)+SUMIF(E:E,E3,M:M)-SUMIF(E:E,E3,N:N)","v":450}]
["2017-08-17","20170817","D001",345,3,"洁士宝","纳米超浓缩洗衣片","粉色封套","30片","PCS",null,{"$f":"VLOOKUP(E:E,基础资料!B:M,12,0)","v":230},null,null,null,{"$f":"SUMIF(E:E,E4,L:L)+SUMIF(E:E,E4,M:M)-SUMIF(E:E,E4,N:N)","v":530}]
["2017-08-17","20170817","D001",345,4,"洁士宝","纳米超浓缩洗衣片","粉色内托","30片","PCS",null,{"$f":"VLOOKUP(E:E,基础资料!B:M,12,0)","v":195},null,null,null,{"$f":"SUMIF(E:E,E5,L:L)+SUMIF(E:E,E5,M:M)-SUMIF(E:E,E5,N:N)","v":495}]
["2017-08-17","20170817","D001",345,5,"洁士宝","纳米超浓缩洗衣片","红色封套","30片","PCS",null,{"$f":"VLOOKUP(E:E,基础资料!B:M,12,0)","v":224},null,null,null,{"$f":"SUMIF(E:E,E6,L:L)+SUMIF(E:E,E6,M:M)-SUMIF(E:E,E6,N:N)","v":524}]
["2017-10-17","20171017","D003",346,1,"洁士宝","纳米超浓缩洗衣片","白色内托","30片","PCS",null,null,500,null,null,{"$f":"SUMIF(E:E,E7,L:L)+SUMIF(E:E,E7,M:M)-SUMIF(E:E,E7,N:N)","v":502}]
["2017-10-17","20171017","D003",345,2,"洁士宝","纳米超浓缩洗衣片","彩盒","50片","PCS",null,null,500,null,null,{"$f":"SUMIF(E:E,E8,L:L)+SUMIF(E:E,E8,M:M)-SUMIF(E:E,E8,N:N)","v":450}]
["2017-10-17","20171017","D003",345,3,"洁士宝","纳米超浓缩洗衣片","粉色封套","30片","PCS",null,null,500,null,null,{"$f":"SUMIF(E:E,E9,L:L)+SUMIF(E:E,E9,M:M)-SUMIF(E:E,E9,N:N)","v":530}]
["2017-10-17","20171017","D003",345,4,"洁士宝","纳米超浓缩洗衣片","粉色内托","30片","PCS",null,null,500,null,null,{"$f":"SUMIF(E:E,E10,L:L)+SUMIF(E:E,E10,M:M)-SUMIF(E:E,E10,N:N)","v":495}]
["2017-10-17","20171017","D003",345,5,"洁士宝","纳米超浓缩洗衣片","红色封套","30片","PCS",null,null,500,null,null,{"$f":"SUMIF(E:E,E11,L:L)+SUMIF(E:E,E11,M:M)-SUMIF(E:E,E11,N:N)","v":524}]
["2017-10-17","20171017","D003",346,1,"洁士宝","纳米超浓缩洗衣片","白色内托","30片","PCS",null,null,null,200,null,{"$f":"SUMIF(E:E,E12,L:L)+SUMIF(E:E,E12,M:M)-SUMIF(E:E,E12,N:N)","v":502}]
["2017-10-17","20171017","D003",345,2,"洁士宝","纳米超浓缩洗衣片","彩盒","50片","PCS",null,null,null,200,null,{"$f":"SUMIF(E:E,E13,L:L)+SUMIF(E:E,E13,M:M)-SUMIF(E:E,E13,N:N)","v":450}]
["2017-10-17","20171017","D003",345,3,"洁士宝","纳米超浓缩洗衣片","粉色封套","30片","PCS",null,null,null,200,null,{"$f":"SUMIF(E:E,E14,L:L)+SUMIF(E:E,E14,M:M)-SUMIF(E:E,E14,N:N)","v":530}]
["2017-10-17","20171017","D003",345,4,"洁士宝","纳米超浓缩洗衣片","粉色内托","30片","PCS",null,null,null,200,null,{"$f":"SUMIF(E:E,E15,L:L)+SUMIF(E:E,E15,M:M)-SUMIF(E:E,E15,N:N)","v":495}]
["2017-10-17","20171017","D003",345,5,"洁士宝","纳米超浓缩洗衣片","红色封套","30片","PCS",null,null,null,200,null,{"$f":"SUMIF(E:E,E16,L:L)+SUMIF(E:E,E16,M:M)-SUMIF(E:E,E16,N:N)","v":524}]
["2017-08-17","20170817","D001",345,6,"洁士宝","纳米超浓缩洗衣片","红色封套次品","20片","PCS",null,{"$f":"VLOOKUP(E:E,基础资料!B:M,12,0)","v":0},null,null,null,{"$f":"SUMIF(E:E,E17,L:L)+SUMIF(E:E,E17,M:M)-SUMIF(E:E,E17,N:N)","v":0}]
["2017-08-17","20170817","D001",345,7,"洁士宝","纳米超浓缩洗衣片","红色封套次品","50片","PCS",null,{"$f":"VLOOKUP(E:E,基础资料!B:M,12,0)","v":0},null,null,null,{"$f":"SUMIF(E:E,E18,L:L)+SUMIF(E:E,E18,M:M)-SUMIF(E:E,E18,N:N)","v":0}]
["2017-08-17","20170817","D001",345,8,"洁士宝","纳米超浓缩洗衣片","红色内托","30片","PCS",null,{"$f":"VLOOKUP(E:E,基础资料!B:M,12,0)","v":208},null,null,null,{"$f":"SUMIF(E:E,E19,L:L)+SUMIF(E:E,E19,M:M)-SUMIF(E:E,E19,N:N)","v":208}]
["2017-08-17","20170817","D001",345,9,"洁士宝","纳米超浓缩洗衣片","蓝色封套","30片","PCS",null,{"$f":"VLOOKUP(E:E,基础资料!B:M,12,0)","v":225},null,null,null,{"$f":"SUMIF(E:E,E20,L:L)+SUMIF(E:E,E20,M:M)-SUMIF(E:E,E20,N:N)","v":225}]
["2017-08-17","20170817","D001",345,10,"洁士宝","纳米超浓缩洗衣片","铝袋","3片","PCS",null,{"$f":"VLOOKUP(E:E,基础资料!B:M,12,0)","v":2000},null,null,null,{"$f":"SUMIF(E:E,E21,L:L)+SUMIF(E:E,E21,M:M)-SUMIF(E:E,E21,N:N)","v":2000}]
[null,null,null,null,11,"洁士宝","纳米超浓缩洗衣片","吸塑盖","30片","PCS",null,{"$f":"VLOOKUP(E:E,基础资料!B:M,12,0)","v":280},null,null,null,{"$f":"SUMIF(E:E,E22,L:L)+SUMIF(E:E,E22,M:M)-SUMIF(E:E,E22,N:N)","v":280}]
[null,null,null,null,12,"洁士宝","纳米超浓缩洗衣片","吸塑盖","50片","PCS",null,{"$f":"VLOOKUP(E:E,基础资料!B:M,12,0)","v":160},null,null,null,{"$f":"SUMIF(E:E,E23,L:L)+SUMIF(E:E,E23,M:M)-SUMIF(E:E,E23,N:N)","v":160}]
[null,null,null,null,13,"洁士宝","纳米超浓缩洗衣片","吸塑盒","50片","PCS",null,{"$f":"VLOOKUP(E:E,基础资料!B:M,12,0)","v":169},null,null,null,{"$f":"SUMIF(E:E,E24,L:L)+SUMIF(E:E,E24,M:M)-SUMIF(E:E,E24,N:N)","v":169}]

{"sheet":"基础资料","index":2,"n_rows":504,"n_cols":19,"rows_kept":504,"cut":false,"hidden":false,"merged":[]}
["原始顺序","物料内部编号","客户名称","产品名称","物料名称","物料规格","单位","本月结存","本月入库","本月出库","备 注","上月结存","盘点数据","差异","单据编号","入库数量","单据编号","出库数量"]
[1,241,"田惠","轻盈紧实精华油","瓶子","5ml","PCS",9855,0,0,null,9855,9855,{"$f":"+M2-H2","v":0}]
[2,238,"田惠","轻盈紧实精华油","内塞","5ml","PCS",19572,0,0,null,19572,19530,-42]
[3,239,"田惠","轻盈紧实精华霜","瓶子","10ml","PCS",9772,0,0,null,9772,9810,38]
[4,240,"田惠","魅之秀葫芦瓶","瓶子","50ml","PCS",844,0,0,null,844,924,80]
[5,245,"田惠","魅之秀垫片",null,"50ml","PCS",844,0,0,null,844,844,0]
[6,246,"田惠","魅之秀内塞",null,"50ml","PCS",844,0,0,null,844,860,16]
[7,247,"田惠","魅之秀盖子",null,"50ml","PCS",844,0,0,null,844,844,0]
[8,236,"田惠","轻盈紧实精华油","盖子","5ml","PCS",23800,0,0,null,23800,23800,0]
[9,244,"田惠","轻盈紧实精华油","亚金盖","10ml","PCS",null,0,0,null,null,19530,19530]
[10,243,"田惠","魅立秀轻盈紧致套盒","套盒",null,"PCS",352,0,0,null,352,352,0]
[11,237,"田惠","魅立秀轻盈紧致","海棉",null,"PCS",350,0,0,null,350,436,86]
[12,242,"田惠","魅立秀轻盈紧致","收缩膜",null,null,530,null,null,null,530,210,-320]
[13,13,"洁士宝","纳米超浓缩洗衣片","吸塑盒","50片","PCS",169,169,0,null,null,169,null,null,169]
[14,12,"洁士宝","纳米超浓缩洗衣片","吸塑盖","50片","PCS",160,160,0,null,null,160,null,null,160]
[15,15,"洁士宝","纳米超浓缩洗衣片","专用纸箱",null,"PCS",0,0,0,null,null,0]
[16,2,"洁士宝","纳米超浓缩洗衣片","彩盒","50片","PCS",150,150,0,null,null,150,null,null,150]
[17,4,"洁士宝","纳米超浓缩洗衣片","粉色内托","30片","PCS",195,195,0,null,null,195,null,null,195]
[18,8,"洁士宝","纳米超浓缩洗衣片","红色内托","30片","PCS",208,208,0,null,null,208,null,null,208]
[19,1,"洁士宝","纳米超浓缩洗衣片","白色内托","30片","PCS",202,202,0,null,null,202,null,null,202]
[20,3,"洁士宝","纳米超浓缩洗衣片","粉色封套","30片","PCS",230,230,0,null,null,230,null,null,230]
[21,5,"洁士宝","纳米超浓缩洗衣片","红色封套","30片","PCS",224,224,0,null,null,224,null,null,224]
[22,9,"洁士宝","纳米超浓缩洗衣片","蓝色封套","30片","PCS",225,225,0,null,null,225,null,null,225]
[23,10,"洁士宝","纳米超浓缩洗衣片","铝袋","3片","PCS",2000,2000,0,null,null,2000,null,null,2000]
[24,14,"洁士宝","纳米超浓缩洗衣片","中盒",null,"PCS",0,0,0,null,null,0]
[25,6,"洁士宝","纳米超浓缩洗衣片","红色封套次品","20片","PCS",0,0,0,null,null,0]
[26,7,"洁士宝","纳米超浓缩洗衣片","红色封套次品","50片","PCS",0,0,0,null,null,0]
[27,11,"洁士宝","纳米超浓缩洗衣片","吸塑盖","30片","PCS",280,280,0,null,null,280,null,null,280]
[28,65,"郎顿","幻彩活力素","折断瓶","2ml","PCS",70,0,0,null,70]
[29,66,"郎顿","维斯润泽乳","折断瓶","2ml","PCS",0,0,0]
[30,69,"郎顿","内塞",null,"2ml","PCS",0,0,0]
[31,70,"郎顿","顶针",null,"2ml","PCS",0,0,0]
[32,63,"郎顿","幻彩按摩霜","折断瓶","10g","PCS",140,0,0,null,140]
[33,31,"郎顿","幻彩按摩霜","内塞","10g","PCS",0,0,0]
[34,26,"郎顿","幻彩按摩霜","顶针","10g","PCS",0,0,0]
[35,41,"郎顿","幻彩爽柔露","喷雾瓶","5ml","PCS",0,0,0]
[36,40,"郎顿","幻彩爽柔露","喷雾泵头","5ml","PCS",0,0,0]
[37,48,"郎顿","风华绝代","套盒",null,"PCS",15,0,0,"盘点",15]
[38,23,"郎顿","风华绝代","标签",null,"PCS",950,0,0,"盘点",950]
[39,45,"郎顿","风华绝代","收缩膜",null,"PCS",500,0,0,"盘点",500]
[40,32,"郎顿","风华绝代","牛油纸",null,"PCS",550,0,0,"盘点",550]
[41,49,"郎顿","性香元液","套盒",null,"PCS",12,0,0,"次品",12]
[42,24,"郎顿","性香元液","标签",null,"PCS",500,0,0,"盘点",500]
[43,33,"郎顿","性香元液","牛油纸",null,"PCS",500,0,0,"盘点",500]
[44,46,"郎顿","性香元液","收缩膜",null,"PCS",600,0,0,"盘点",600]
[45,25,"郎顿","性香元液","玻璃瓶","10ml",null,260,0,0,"盘点",260]
[46,27,"郎顿","性香元液","金色喷头","10ml",null,0,0,0,"盘点"]
[47,28,"郎顿","性香元液","金色外罩","10ml",null,0,0,0,"盘点"]
[48,61,"郎顿","维斯蜜语","印花","13分","PCS",467,0,0,"盘点",467]
[49,64,"郎顿","爱慕柔情霜","折断瓶","2g","PCS",0,0,0]
[50,43,"郎顿","维斯蜜语凝香露","瓶子","30ml","PCS",498,0,0]
[51,21,"郎顿","维斯蜜语凝香露","泵头","30ml","PCS",1325,0,0,null,825]
[52,20,"郎顿","维斯蜜语凝香露","白色外罩","30ml","PCS",500,0,0]
[53,50,"郎顿","维斯润泽乳","套盒",null,"PCS",1400,0,0,null,1400]
[54,51,"郎顿","凝香露","套盒",null,"PCS",0,0,0]
[55,62,"郎顿","维斯蜜语","印花","500分","PCS",800,0,0,null,800]
[56,67,"郎顿","维斯润泽乳","纸箱",null,"PCS",100,0,0,null,100]
[57,52,"郎顿","维斯蜜语醉红颜","套盒",null,"PCS",535,0,0,null,535]
[58,53,"郎顿","春之恋（次品）","套盒",null,"PCS",4,0,0,null,4]
[59,44,"郎顿","维斯润泽乳","瓶子","50ml","PCS",null,0,0]
[60,22,"郎顿","维斯润泽乳","泵头","50ml","PCS",2994,0,0,null,980]
[61,29,"郎顿","幻彩柔丝秘贴","铝袋",null,"PCS",3150,0,0,null,3150]
[62,68,"郎顿","幻彩柔丝秘贴","珠光膜",null,"PCS",0,0,0,null,13400]
[63,30,"郎顿","幻彩柔丝秘贴","膜布",null,"PCS",4500,0,0,null,19100]
[64,72,"郎顿","保险单",null,null,"PCS",2536,0,0,null,2536]
[65,73,"郎顿","素女经",null,null,"PCS",30,0,0,null,30]
[66,54,"郎顿","紧致如初","套盒标",null,"PCS",1040,0,0,null,1040]
[67,55,"郎顿","贵妃醉","套盒标",null,"PCS",340,0,0,null,340]
[68,56,"郎顿","维斯润泽乳","套盒标",null,"PCS",870,0,0,null,870]
[69,57,"郎顿","醉红颜","套盒标",null,"PCS",419,0,0,null,419]
[70,58,"郎顿","凝香露","套盒标",null,"PCS",1300,0,0,null,1300]
[71,59,"郎顿","维纳斯之吻","套盒标",null,"PCS",1100,0,0,null,1100]
[72,60,"郎顿","春之恋","套盒标",null,"PCS",443,0,0,null,443]
[73,42,"郎顿","梦幻爱洛蒙霜","瓶","30g","套",36,0,0,null,36]
[74,34,"郎顿","贵妃醉","牛油纸",null,"PCS",18,0,0,null,18]
[75,35,"郎顿","醉红颜","牛油纸",null,"PCS",610,0,0,null,610]
[76,36,"郎顿","春之恋","牛油纸",null,"PCS",20,0,0,null,20]
[77,17,"郎顿","印花","175分",null,"PCS",1000,0,0,null,1000]
[78,18,"郎顿","印花","800分",null,"PCS",800,0,0,null,800]
[79,37,"郎顿","维纳斯之吻","牛油纸",null,"PCS",1000,0,0,null,1000]
[80,19,"郎顿","唤醒精华肽","安瓶",null,"PCS",35,0,0,null,35]
[81,38,"郎顿","凝香露","牛油纸",null,"PCS",110,0,0,null,110]
[82,39,"郎顿","维斯润泽乳","牛油纸",null,"PCS",100,0,0,null,100]
[83,16,"郎顿","维斯蜜语","10印花",null,"PCS",86,0,0,null,86]
[84,71,"郎顿","皇冠瓶",null,"30ml","PCS",0,0,0]
[85,47,"郎顿","维斯润泽乳","收缩膜",null,"PCS",0,0,0]
[86,85,"刘海平","圣菲锐新收缩膜",null,null,"PCS",11000,32000,21000,null,0]
[87,86,"刘海平","空白铝袋",null,null,"PCS",14400,0,0,null,0]
[88,74,"刘海平","珠光膜+面膜",null,"1+1","PCS",0,100500,100500,null,0]
[89,87,"刘海平","锐新能量面膜铝袋",null,null,"PCS",104050,205305,101255,null,0]
[90,76,"刘海平"," 锐新能量面膜彩盒",null,"彩盒","PCS",1650,41559,19150,null,0]
[91,84,"刘海平","锐新能量",null,"纸箱","PCS",33,353,333,null,0]
[92,80,"刘海平","锐新能量",null,"刀卡","PCS",100,706,653,null,0]
[93,83,"刘海平","圣菲隔离乳40ml",null,"内托","PCS",10110,0,0,null,10110]
[94,77,"刘海平","圣菲逆生原生液100ml（老款）",null,"彩盒","PCS",880,0,0,null,880]
[95,78,"刘海平","圣菲隔离乳40ml",null,"彩盒","PCS",11170,0,0,null,11170]
[96,75,"刘海平","圣菲时光逆转玻璃瓶100ml",null,"玻璃瓶","PCS",53,0,0,null,53]
[97,79,"刘海平","锐新能量面膜彩盒次品",null,"彩盒",null,93]
[98,82,"刘海平","锐新能量面膜+铝袋",null,"面膜+铝袋",null,1168]
[99,81,"刘海平","锐新能量铝袋次品",null,"铝袋",null,253]
[100,115,"马文英","通用内托","内托","230ml","PCS",7250,0,0,null,7250,{"$f":"+H101","v":7250},{"$f":"+M101-H101","v":0}]
[101,114,"马文英","逆时空面膜","盖子","200g","PCS",3570,0,0,null,3570,3570,0]
[102,117,"马文英","逆时空面膜","手拉垫片","200g","PCS",3678,0,0,null,3678,3678,0]
[103,91,"马文英","逆时空面膜","1号瓶","200g","PCS",888,0,0,null,888,888,0]
[104,95,"马文英","逆时空面膜","2号瓶","200g","PCS",888,0,0,null,888,888,0]
[105,99,"马文英","逆时空面膜","3号瓶","200g","PCS",745,0,0,null,745,745,0]
[106,102,"马文英","逆时空面膜","4号瓶","200g","PCS",750,0,0,null,750,750,0]
[107,118,"马文英","椰子洗面剂","塑瓶","230ml","PCS",988,0,0,null,988,988,0]
[108,119,"马文英","逆时空面胶","塑瓶","230ml","PCS",786,0,0,null,786,786,0]
[109,120,"马文英","富氧离子水","塑瓶","230ml","PCS",1249,0,0,null,1249,1249,0]
[110,121,"马文英","逆时空面霜","塑瓶","230ml","PCS",979,0,0,null,979,979,0]
[111,122,"马文英","快速卸妆精华","塑瓶","230ml","PCS",270,0,0,null,270,270,0]
[112,133,"马文英","通用泵头",null,"230ml","PCS",4719,0,0,null,4719,4719,0]
[113,134,"马文英","通用外罩",null,"230ml","PCS",4120,0,0,null,4120,4120,0]
[114,135,"马文英","通用泵头",null,"30ml","PCS",1200,0,0,null,1200,1200,0]
[115,136,"马文英","通用外罩",null,"30ml","PCS",2280,0,0,null,2280,2280,0]
[116,123,"马文英","椰子洗面剂","塑瓶","30ml","PCS",630,0,0,null,630,630,0]
[117,124,"马文英","快速卸妆精华","塑瓶","30ml","PCS",700,0,0,null,700,700,0]
[118,125,"马文英","逆时空面胶","塑瓶","30ml","PCS",95,0,0,null,95,95,0]
[119,126,"马文英","逆时空面霜","塑瓶","30ml","PCS",230,0,420,null,650,230,0,null,null,null,420]
[120,109,"马文英","椰子洗面剂","彩盒","230ml","PCS",800,0,0,null,800,800,0]
[121,110,"马文英","快速卸妆精华","彩盒","230ml","PCS",1585,0,0,null,1585,1585,0]
[122,111,"马文英","逆时空面胶","彩盒","230ml","PCS",805,0,0,null,805,805,0]
[123,112,"马文英","逆时空面霜","彩盒","230ml","PCS",772,0,0,null,772,772,0]
[124,113,"马文英","富氧离子水","彩盒","230ml","PCS",1200,0,0,null,1200,1200,0]
[125,129,"马文英","青春原液（烫银）","折断瓶","5ml","PCS",1238,0,0,null,1238,1238,0]
[126,130,"马文英","青春原液（烫金）","折断瓶","5ml","PCS",2560,0,0,null,2560,2560,0]
[127,128,"马文英","魅力调理霜（烫银）","折断瓶","5g","PCS",4460,0,0,null,4460,4460,0]
[128,107,"马文英","体雕精油（烫金）","玻璃瓶","8ml","PCS",2480,0,0,null,2480,2480,0]
[129,108,"马文英","体雕精油（烫银）","玻璃瓶","8ml","PCS",1500,0,0,null,1500,1500,0]
[130,139,"马文英","通用折断瓶内塞",null,"5ml","PCS",8000,0,0,null,8000,8000,0]
[131,137,"马文英","白桶",null,"500g","PCS",347,0,0,null,347,326,-21]
[132,104,"马文英","微小分子玻尿酸","玻璃瓶","5ml","PCS",3620,0,0,null,3620,2998,{"$f":"+M133-H133","v":-622}]
[133,105,"马文英","EGF修复因子","玻璃瓶","5ml","PCS",1500,0,0,null,1500,{"$f":"+H134","v":1500},0]
[134,92,"马文英","逆时空面膜","1号瓶","200g","PCS",58,0,0,"已打码",58,58,0]
[135,96,"马文英","逆时空面膜","2号瓶","200g","PCS",46,0,0,"已打码",46,46,0]
[136,100,"马文英","逆时空面膜","3号瓶","200g","PCS",56,0,0,"已打码",56,56,0]
[137,141,"马文英","230ml说明书",null,null,"PCS",7500,0,0,null,7500,7500,0]
[138,142,"马文英","魅惑套说明书",null,null,"PCS",700,0,0,null,700,700,0]
[139,143,"马文英","水润滋养眼部套盒标（新）",null,null,"PCS",570,0,0,null,570,570,0]
[140,144,"马文英","水润滋养眼部套盒标（旧）",null,null,"PCS",320,0,0,null,320,320,0]
[141,145,"马文英","水玲珑媚眼套盒标（新）",null,null,"PCS",380,0,0,null,380,380,0]
[142,146,"马文英","水玲珑媚眼套盒标（旧）",null,null,"PCS",333,0,0,null,333,333,0]
[143,90,"马文英","逆时空面膜","1号标签",null,"PCS",840,0,0,null,840,840,0]
[144,94,"马文英","逆时空面膜","2号标签",null,"PCS",660,0,0,null,660,660,0]
[145,98,"马文英","逆时空面膜","3号标签",null,"PCS",540,0,0,null,540,540,0]
[146,101,"马文英","逆时空面膜","4号标签",null,"PCS",545,0,0,null,545,545,0]
[147,147,"马文英","EGF修复因子套盒标",null,null,"PCS",1043,0,0,null,1043,1043,0]
[148,148,"马文英","干细胞原液套盒标",null,null,"PCS",963,0,0,null,963,963,0]
[149,149,"马文英","熊果苷肽套盒标",null,null,"PCS",959,0,0,null,959,959,0]
[150,150,"马文英","微小分子玻尿酸套盒标",null,null,"PCS",920,0,0,null,920,920,0]
[151,88,"马文英","水玲珑媚眼膜","10标签",null,"PCS",210,0,0,null,210,210,0]
[152,89,"马文英","水润滋养眼膜","10标签",null,"PCS",188,0,0,null,188,188,0]
[153,151,"马文英","魅力丰韵套名称标",null,null,"PCS",1000,0,0,null,1000,1000,0]
[154,152,"马文英","魅力纤腿套名称标",null,null,"PCS",1000,0,0,null,1000,1000,0]
[155,153,"马文英","蕴能姜油小标",null,null,"PCS",1200,0,0,null,1200,1200,0]
[156,154,"马文英","玫瑰精油小标",null,null,"PCS",1030,0,0,null,1030,1030,0]
[157,155,"马文英","蕴能精油小标",null,null,"PCS",1030,0,0,null,1030,1030,0]
[158,156,"马文英","魅力套说明书",null,null,"PCS",540,0,0,null,540,540,0]
[159,157,"马文英","眼部套说明书",null,null,"PCS",798,0,0,null,798,798,0]
[160,158,"马文英","魅力纤背套名称标",null,null,"PCS",945,0,0,null,945,945,0]
[161,159,"马文英","魅力提臀套名称标",null,null,"PCS",1000,0,0,null,1000,1000,0]
[162,160,"马文英","魅惑丰韵套名称标",null,null,"PCS",960,0,0,null,960,960,0]
[163,161,"马文英","魅惑纤腿套名称标",null,null,"PCS",1000,0,0,null,1000,1000,0]
[164,162,"马文英","水玲珑媚眼套名称标",null,null,"PCS",910,0,0,null,910,910,{"$f":"+M165-H165","v":0}]
[165,163,"马文英","水润滋养眼部套名称标",null,null,"PCS",910,0,0,null,910,{"$f":"+H166","v":910},0]
[166,164,"马文英","水润滋养眼精华小标",null,null,"PCS",1218,0,0,null,1218,1218,0]
[167,165,"马文英","水润滋养舒缓水小标",null,null,"PCS",1218,0,0,null,1218,1218,0]
[168,166,"马文英","水润滋养卸妆液小标",null,null,"PCS",1200,0,0,null,1200,1200,0]
[169,167,"马文英","水润滋养眼霜小标",null,null,"PCS",1260,0,0,null,1260,1260,0]
[170,168,"马文英","魅力纤腰套名称标",null,null,"PCS",800,0,0,null,800,800,0]
[171,169,"马文英","魅力纤臂套名称标",null,null,"PCS",1000,0,0,null,1000,1000,0]
[172,170,"马文英","魅惑提臀套名称标",null,null,"PCS",980,0,0,null,980,980,0]
[173,171,"马文英","魅惑纤臂套名称标",null,null,"PCS",975,0,0,null,975,975,0]
[174,172,"马文英","魅惑纤腰套名称标",null,null,"PCS",900,0,0,null,900,900,0]
[175,173,"马文英","魅惑纤背套名称标",null,null,"PCS",980,0,0,null,980,980,0]
[176,174,"马文英","魅力纤腿套套盒标",null,null,"PCS",1020,0,0,null,1020,1020,0]
[177,175,"马文英","魅惑提臀套盒标",null,null,"PCS",970,0,0,null,970,970,0]
[178,176,"马文英","魅惑丰韵套盒标",null,null,"PCS",945,0,0,null,945,945,0]
[179,177,"马文英","魅惑纤臂套盒标",null,null,"PCS",975,0,0,null,975,975,0]
[180,178,"马文英","魅惑纤腿套盒标",null,null,"PCS",1000,0,0,null,1000,1000,0]
[181,179,"马文英","魅惑纤腰套盒标",null,null,"PCS",900,0,0,null,900,900,0]
[182,180,"马文英","魅力纤腰套盒标",null,null,"PCS",805,0,0,null,805,805,0]
[183,181,"马文英","魅力提臀套盒标",null,null,"PCS",1000,0,0,null,1000,1000,0]
[184,182,"马文英","魅惑纤背套盒标",null,null,"PCS",975,0,0,null,975,975,0]
[185,183,"马文英","魅力丰韵套盒标",null,null,"PCS",870,0,0,null,870,870,0]
[186,184,"马文英","魅力纤背套盒标",null,null,"PCS",975,0,0,null,975,975,0]
[187,185,"马文英","魅力纤臂套盒标",null,null,"PCS",1000,0,0,null,1000,1000,0]
[188,93,"马文英","蕴能膜","20标签",null,"PCS",250,0,0,null,250,250,0]
[189,97,"马文英","蕴能膜","30标签",null,"PCS",665,0,0,null,665,665,0]
[190,140,"马文英","银色铝盖",null,"5ml","PCS",6000,0,0,null,6000,6000,0]
[191,106,"马文英","干细胞原液","玻璃瓶","5ml","PCS",3000,0,0,null,3000,3000,0]
[192,131,"马文英","精油瓶(新）",null,"10ml","PCS",224,0,0,null,224,220,-4]
[193,132,"马文英","精油瓶（旧）",null,"10ml","PCS",150,0,0,null,150,142,-8]
[194,138,"马文英","精油瓶",null,"50Ml","PCS",350,0,0,null,350,{"$f":"+H195","v":350},0]
[195,103,"马文英","玫瑰精油","安瓶","5g","PCS",760,0,0,null,760,640,-120]
[196,127,"马文英","塑型燃脂膏","圆桶","5kg","PCS",0,0,0,null,0,{"$f":"+H197","v":0},{"$f":"+M197-H197","v":0}]
[197,116,"马文英","塑型燃脂膏","收缩膜","5kg","PCS",1000,0,0,null,1000,{"$f":"+H198","v":1000},0]
[198,190,"昇凰","泌爱梦幻源液","瓶子","10ml",null,0,0,500,null,500,0,0]
[199,189,"昇凰","泌爱梦幻源液","盖子","10ml",null,0,0,500,null,500,0,0]
[200,186,"昇凰","泌爱梦幻源液瓶子","泵头","10ml",null,0,0,500,null,500,0,0]
[201,191,"昇凰","泌爱凝香滋润","套盒",null,null,1,92,92,null,null,1,0]
[202,194,"昇凰","泌爱凝香滋润不干胶",null,null,null,100,600,500,null,null,100,0]
[203,195,"昇凰","泌爱凝香滋润2维码",null,null,null,null,null,null,null,null,0,0]
[204,196,"昇凰","2维码",null,null,null,50,572,489,null,null,50,0,null,null,null,33]
[205,187,"昇凰","积分贴10分","标贴",null,null,0,500,500,null,null,0,0]
[206,188,"昇凰","积分贴13分","标贴",null,null,11,500,489,null,null,11,0]
[207,193,"昇凰","通用收缩膜","通用收缩膜",null,null,100,1100,1000,null,null,100,0]
[208,192,"昇凰","泌爱梦幻源液","套盒",null,null,1,1,null,null,null,1,0]
[209,197,"苏眉","轻悦活氧美肤精华套装","彩盒",null,"PCS",3100,0,0,"盘点",3100]
[210,201,"苏眉","轻悦活氧美肤精华套装","内卡",null,"PCS",3100,0,0,"盘点",3100]
[211,207,"苏眉","轻悦卡纸",null,null,"PCS",3100,0,0,"盘点",3100]
[212,208,"苏眉","轻悦活氧美肤精华A铝袋",null,null,"PCS",33300,0,0,"盘点",33300]
[213,209,"苏眉","轻悦活氧美肤精华B铝袋",null,null,"PCS",33100,0,0,"盘点",33100]
[214,205,"苏眉","卷标",null,"60ml","PCS",67200,0,0,"盘点",67200]
[215,206,"苏眉","试用装卷膜",null,"卷","卷",8,0,0,"盘点",8]
[216,210,"苏眉","轻悦手提盒",null,null,"PCS",20,0,0,"盘点",20]
[217,203,"苏眉","透明瓶",null,"500ml","PCS",43300,0,0,"盘点",43300]
[218,204,"苏眉","千秋盖",null,"500ml","PCS",49000,0,0,"盘点",49000]
[219,198,"苏眉","轻悦手工皂","彩盒",null,"PCS",5030,0,0,"盘点",5030]
[220,200,"苏眉","轻悦手工皂","垫片",null,"PCS",2300,0,0,"盘点",2300]
[221,202,"苏眉","轻悦手工皂","圆形内托",null,"PCS",850,0,0,"盘点",850]
[222,199,"苏眉","轻悦手工皂","大内托",null,"PCS",5800,0,0,"盘点",5800]
[223,214,"隋新城","舒畅调理艾草1号","茶色瓶","10ml","PCS",20,2040,2020,null,null,20]
[224,215,"隋新城","舒畅调理艾草2号","茶色瓶","10ml","PCS",0,2040,2040,null,null,0,null,null,null,null,20]
[225,216,"隋新城","舒畅调理艾草3号","茶色瓶","10ml","PCS",40,2060,2020,null,null,40,null,null,20]
[226,217,"隋新城","舒畅调理艾草4号","茶色瓶","10ml","PCS",20,2040,2020,null,null,20]
[227,218,"隋新城","舒畅调理艾草5号","茶色瓶","10ml","PCS",33,2053,2020,null,null,33,null,null,13]
[228,229,"隋新城","舒畅调理艾草","内塞","10ml","PCS",100,10200,10100,null,null,100]
[229,235,"隋新城","舒畅调理艾草","亚金盖","10ml","PCS",100,10200,10100,null,null,100]
[230,230,"隋新城","通用收缩膜","收缩膜",null,"PCS",0,1200,1200,null,null,0]
[231,211,"隋新城","养护艾草膜","标签",null,"PCS",100,6100,6000,null,null,100]
[232,212,"隋新城","舒畅艾草膜","标签",null,"PCS",0,4000,4000,null,null,0]
[233,213,"隋新城","温控贴膜","标签",null,"PCS",100,6100,6000,null,null,100]
[234,224,"隋新城","胸部舒畅调理","焊金标5款",null,"PCS",300,500,200,null,null,300]
[235,225,"隋新城","腹部舒畅调理","焊金标5款",null,"PCS",495,695,200,null,null,495,null,null,195]
[236,226,"隋新城","肩颈舒畅调理","焊金标5款",null,"PCS",400,600,200,null,null,400,null,null,100]
[237,227,"隋新城","双风舒畅调理","焊金标5款",null,"PCS",400,600,200,null,null,400,null,null,100]
[238,228,"隋新城","腰部舒畅调理","焊金标5款",null,"PCS",325,525,200,null,null,325,null,null,25]
[239,219,"隋新城","胸部舒畅调理套","低标",null,"PCS",0,500,500,null,null,0,null,null,null,null,300]
[240,220,"隋新城","腹部舒畅调理套","低标",null,"PCS",0,500,500,null,null,0,null,null,null,null,300]
[241,221,"隋新城","肩颈舒畅调理套","低标",null,"PCS",0,500,500,null,null,0,null,null,null,null,300]
[242,222,"隋新城","双风舒畅调理套","低标",null,"PCS",0,500,500,null,null,0,null,null,null,null,300]
[243,223,"隋新城","腰部舒畅调理套","低标",null,"PCS",0,500,500,null,null,0,null,null,null,null,300]
[244,231,"隋新城","健乐通套盒回款内托1号","套盒",null,"PCS",0,200,200,null,null,0]
[245,232,"隋新城","健乐通套盒回款内托2号","套盒",null,"PCS",0,200,200,null,null,0]
[246,233,"隋新城","健乐通套盒回款内托3号","套盒",null,"PCS",0,200,200,null,null,0]
[247,234,"隋新城","健乐通套盒回款内托4号","套盒",null,"PCS",0,400,400,null,null,0]
[248,322,"王琦","私密珠帘香","套盒",null,"PCS",539,0,0,null,539]
[249,281,"王琦","私密珠帘香","次品套盒",null,"PCS",11,0,0,null,11]
[250,323,"王琦","艾舒养正","套盒",null,"PCS",499,0,0,null,499]
[251,324,"王琦","艾润养护","套盒",null,"PCS",0,0,0,null,0]
[252,325,"王琦","五脏顺相生（旧）","套盒",null,"PCS",240,0,0,null,240]
[253,326,"王琦","五脏顺相生（新）","套盒",null,"PCS",3,0,0,null,3]
[254,327,"王琦","灸润五脏","套盒",null,"PCS",506,0,0,null,506]
[255,328,"王琦","私密艾香A","套盒",null,"PCS",490,0,0,null,490]
[256,329,"王琦","私密艾香B(新）双凤","套盒",null,"PCS",188,0,0,null,188]
[257,342,"王琦","纸筒",null,"100ml","PCS",1450,0,0,null,1450]
[258,291,"王琦","艾润养护套","封口标金",null,"PCS",700,0,0,null,700]
[259,292,"王琦","艾润养护套","封口标木",null,"PCS",100,0,0,null,100]
[260,293,"王琦","艾润养护套","封口标水",null,"PCS",400,0,0,null,400]
[261,290,"王琦","艾润养护套","封口标火",null,"PCS",700,0,0,null,700]
[262,294,"王琦","艾润养护套","封口标土",null,"PCS",100,0,0,null,100]
[263,309,"王琦","按摩蜡","铝盒",null,"PCS",325,0,0,null,325]
[264,295,"王琦","按摩蜡","盖标",null,"PCS",325,0,0,null,325]
[265,283,"王琦","按摩蜡","底标",null,"PCS",325,0,0,null,325]
[266,264,"王琦","舒筋活络油阴脉","茶色瓶","100ml","PCS",932,0,0,null,932]
[267,306,"王琦","舒筋活络油","金盖","100ml","PCS",2648,0,0,null,2648]
[268,312,"王琦","舒筋活络油","内塞","100ml","PCS",3987,0,0,null,3987]
[269,302,"王琦","舒筋活络油","灰色垫片","100ml","PCS",11600,0,0,null,11600]
[270,340,"王琦","舒筋活络油阴脉","正标",null,null,3230,0,0,null,3230]
[271,284,"王琦","舒筋活络油阴脉","底标",null,null,3045,0,0,null,3045]
[272,272,"王琦","健脾祛黄油","茶色瓶","5ml","PCS",168,0,0,null,168]
[273,303,"王琦","5ml/10ml通用内塞","灰色内塞","5ml/10ml","PCS",14420,0,0,null,14420]
[274,338,"王琦","5ml/10ml通用铝盖","哑金盖","5ml/10ml","PCS",16270,0,0,null,16270]
[275,308,"王琦","5ml/11ml通用内塞","亮金盖","5ml/10ml","PCS",582,0,0,null,582]
[276,267,"王琦","艾护赋活油","茶色瓶","10ml","PCS",1300,0,0,null,1300]
[277,273,"王琦","私密温煦液","茶色瓶","5ml","PCS",80,0,0,null,80]
[278,320,"王琦","私密艾香双凤1号","套盒","/","PCS",0,0,0,null,0]
[279,321,"王琦","私密艾香消炎2号","套盒","/","PCS",0,0,0,null,0]
[280,260,"王琦","私密艾香双凤1号","标签","/","PCS",0,0,0,null,0]
[281,261,"王琦","私密艾香消炎2号","标签","/","PCS",0,0,0,null,0]
[282,344,"王琦","锦囊袋",null,null,"PCS",0,0,0,null,0]
[283,345,"王琦","茶包",null,null,"PCS",0,0,0,null,0]
[284,339,"王琦","君竹丽人","腰带",null,"PCS",10,0,0,null,10]
[285,301,"王琦","君竹丽人","护膝",null,"PCS",40,0,0,null,40]
[286,314,"王琦","君竹丽人","披肩",null,"PCS",90,0,0,null,90]
[287,286,"王琦","君竹丽人","肚兜",null,"PCS",0,0,0,null,0]
[288,311,"王琦","君竹丽人","内裤",null,"PCS",0,0,0,null,0]
[289,346,"王琦","自封袋",null,null,"PCS",400,0,0,null,400]
[290,347,"王琦","灸丸",null,null,"PCS",0,0,0,null,0]
[291,288,"王琦","私密珠帘香净润","封口标",null,"PCS",0,0,0,null,0]
[292,299,"王琦","艾润养护套","黑色套盒标（水）",null,"PCS",0,0,0,null,0]
[293,297,"王琦","艾润养护套","黑色套盒标（金）",null,"PCS",0,0,0,null,0]
[294,298,"王琦","艾润养护套","黑色套盒标（木）",null,"PCS",0,0,0,null,0]
[295,296,"王琦","艾润养护套","黑色套盒标（火）",null,"PCS",0,0,0,null,0]
[296,300,"王琦","艾润养护套","黑色套盒标（土）",null,"PCS",0,0,0,null,0]
[297,250,"王琦","养元油","安瓶","5ml","PCS",369,0,0,null,369]
[298,251,"王琦","松筋疗痛油","安瓶","5ml","PCS",242,0,0,null,242]
[299,252,"王琦","三九活络油","安瓶","5ml","PCS",2195,0,0,null,2195]
[300,253,"王琦","花雨草本油","安瓶","5ml","PCS",255,0,0,null,255]
[301,254,"王琦","活肾动力活络油","安瓶","5ml","PCS",370,0,0,null,370]
[302,255,"王琦","驱寒活络油","安瓶","5ml","PCS",190,0,0,null,190]
[303,256,"王琦","养肾活络油","安瓶","5ml","PCS",70,0,0,null,70]
[304,257,"王琦","活力草本油","安瓶","5ml","PCS",571,0,0,null,571]
[305,258,"王琦","私密律动液","安瓶","5ml","PCS",2670,0,0,null,2670]
[306,259,"王琦","私密当归液","安瓶","5ml","PCS",2630,0,0,null,2630]
[307,248,"王琦","双峰回春液","安瓶","10ml","PCS",4040,0,0,null,4040]
[308,249,"王琦","宣肺活络油","安瓶","10ml","PCS",225,0,0,null,225]
[309,263,"王琦","五脏顺相生","彩盒（新）",null,"PCS",1255,0,0,null,1255]
[310,262,"王琦","五脏顺相生","彩盒（大）",null,"PCS",195,0,0,null,195]
[311,307,"王琦","带脉围腰宝","卡纸",null,"PCS",90,0,0,null,90]
[312,317,"王琦","五脏顺相生","说明书",null,"PCS",480,0,0,null,480]
[313,318,"王琦","私密珠帘香","说明书",null,"PCS",1565,0,0,null,1565]
[314,319,"王琦","艾护五行","说明书",null,null,800,0,0,null,800]
[315,341,"王琦","任脉养血油","正面标",null,"PCS",800,0,0,null,800]
[316,287,"王琦","任脉养血油","反面标",null,"PCS",870,0,0,null,870]
[317,278,"王琦","国灸小标签","春",null,"PCS",470,0,0,null,470]
[318,336,"王琦","国灸小标签","夏",null,"PCS",740,0,0,null,740]
[319,315,"王琦","国灸小标签","秋",null,"PCS",650,0,0,null,650]
[320,285,"王琦","国灸小标签","冬",null,"PCS",360,0,0,null,360]
[321,348,"王琦","双凤艾粉",null,null,"PCS",3600,0,0,null,3600]
[322,265,"王琦","督脉养骨油","茶色瓶","100ml","PCS",760,0,0,null,760]
[323,274,"王琦","舒筋理脊活络油","茶色瓶","5ml","PCS",4980,0,0,null,4980]
[324,268,"王琦","五脏疏肝活络油","茶色瓶","10ml","PCS",970,0,0,null,970]
[325,266,"王琦","任脉养血油","茶色瓶","100ml","PCS",560,0,0,null,560]
[326,289,"王琦","私密珠帘香净润","封口标",null,"PCS",1000,0,0,null,1000]
[327,269,"王琦","静心活络油","茶色瓶","10ml","PCS",1680,0,0,null,1680]
[328,270,"王琦","健脾活络油","茶色瓶","10ml","PCS",1100,0,0,null,1100]
[329,331,"王琦","艾润养护","透明套盒标",null,"PCS",1000,0,0,null,1000]
[330,305,"王琦","小圆标","金",null,"PCS",500,0,0,null,500]
[331,310,"王琦","小圆标","木",null,"PCS",2980,0,0,null,2980]
[332,316,"王琦","小圆标","水",null,"PCS",1760,0,0,null,1760]
[333,304,"王琦","小圆标","火",null,"PCS",500,0,0,null,500]
[334,332,"王琦","小圆标","土",null,"PCS",500,0,0,null,500]
[335,333,"王琦","五脏顺相生","五脏收缩膜",null,"PCS",0,0,0,null,0]
[336,335,"王琦","五脏顺相生","五脏折盒",null,"PCS",154,0,0,null,154]
[337,279,"王琦","五脏顺相生","磁铁",null,"PCS",2446,0,0,null,2446]
[338,282,"王琦","按摩蜡","袋子",null,"PCS",{"$error":"#VALUE!"},0,0,null,{"$error":"#VALUE!"}]
[339,330,"王琦","五脏顺相生（新）","套盒次品",null,"PCS",2,0,0,null,2]
[340,275,"王琦","暖阳草本油","茶色瓶","5ml","PCS",4000,0,0,null,4000]
[341,276,"王琦","健脾祛黄油","茶色瓶","5ml","PCS",0,0,0,null,0]
[342,277,"王琦","阳光草本油","茶色瓶","5ml","PCS",0,0,0,null,0]
[343,334,"王琦","琰阮壳","五脏顺相生",null,"PCS",0,0,0,null,0]
[344,343,"王琦","茶包袋",null,"包","PCS",0,0,0,null,0]
[345,280,"王琦","五脏顺相生","磁铁次品","包","PCS",107,0,0,null,107]
[346,271,"王琦","暖宫培元","茶色瓶","10ml","PCS",95,1095,1000]
[347,313,"王琦","暖宫培元","内塞","10ml","PCS",100,1100,1000]
[348,337,"王琦","暖宫培元","哑金盖","10ml","PCS",100,1100,1000]
[349,358,"文奇嘉美","阳光安康-怡爽套","套盒",null,"PCS",500,0,0,null,500]
[350,354,"文奇嘉美","阳光安康-怡爽套","名称标",null,"PCS",660,0,0,null,660]
[351,359,"文奇嘉美","阳光安康-怡爽套","套盒标",null,"PCS",600,0,0,null,600]
[352,355,"文奇嘉美","阳光安康-怡情套","名称标",null,"PCS",880,0,0,null,880]
[353,360,"文奇嘉美","阳光安康-怡情套","套盒标",null,"PCS",630,0,0,null,630]
[354,356,"文奇嘉美","阳光安康-怡净套","名称标",null,"PCS",800,0,0,null,800]
[355,361,"文奇嘉美","阳光安康-怡净套","套盒标",null,"PCS",680,0,0,null,680]
[356,349,"文奇嘉美","怡爽霜","茶色瓶","15ml","PCS",75,0,0,null,75]
[357,350,"文奇嘉美","怡情霜","茶色瓶","15ml","PCS",90,0,0,null,90]
[358,351,"文奇嘉美","怡净霜","茶色瓶","15ml","PCS",125,0,0,null,125]
[359,362,"文奇嘉美","奶嘴",null,"30ml","PCS",1320,0,0,null,1320]
[360,363,"文奇嘉美","金色肩圈",null,"30ml","PCS",1280,0,0,null,1280]
[361,364,"文奇嘉美","滴管",null,"30ml","PCS",1300,0,0,null,1300]
[362,352,"文奇嘉美","平衡调理1号","茶色瓶","30ml","PCS",595,0,0,null,595]
[363,353,"文奇嘉美","平衡调理2号","茶色瓶","30ml","PCS",625,0,0,null,625]
[364,357,"文奇嘉美","阳光安康","说明书",null,"PCS",778,0,0,null,778]
[365,365,"吴斌","森迪睫毛增长液","彩盒",null,"PCS",33100,0,0,null,33100,33100]
[366,372,"吴斌","森迪睫毛增长液","瓶子",null,"PCS",4260,0,0,null,4260,4260]
[367,370,"吴斌","森迪睫毛增长液","内塞",null,"PCS",6000,0,0,null,6000,6000]
[368,368,"吴斌","森迪睫毛增长液","盖子",null,"PCS",4260,0,0,null,4260,4260]
[369,367,"吴斌","森迪睫毛增长液","大纸箱",null,"PCS",25,0,0,null,25,25]
[370,375,"吴斌","森迪睫毛增长液","小纸箱",null,"PCS",325,0,0,null,325,325]
[371,374,"吴斌","森迪睫毛增长液","外箱标",null,"PCS",9950,0,0,null,9950,9950]
[372,373,"吴斌","森迪睫毛增长液（次品）","瓶子",null,"PCS",649,0,0,"次品",649,649]
[373,369,"吴斌","森迪睫毛增长液（次品）","盖子",null,"PCS",356,0,0,"次品",356,356]
[374,366,"吴斌","森迪睫毛增长液（次品）","彩盒",null,"PCS",135,0,0,"次品",135,135]
[375,371,"吴斌","森迪睫毛增长液（次品）","内塞",null,"PCS",121,0,0,null,121,121]
[376,379,"吴彩霞","维多利亚","瓶子","30ml","PCS",7500,0,0,null,7500]
[377,378,"吴彩霞","维多利亚","盖子","30ml","PCS",7500,0,0,null,7500]
[378,376,"吴彩霞","维多利亚","大瓶子","300ml","PCS",8150,0,0,null,8150]
[379,377,"吴彩霞","维多利亚","盖子","300ml","PCS",8250,0,0,null,8250]
[380,380,"吴刚","舒畅调理精油","安瓶","8ml","PCS",3148,0,0,null,3148]
[381,381,"吴刚","养护液","安瓶","8ml","PCS",3128,0,0,null,3128]
[382,384,"吴刚","亮金盖",null,null,"PCS",1776,0,0,null,1776]
[383,385,"吴刚","灰内塞",null,null,"PCS",4976,0,0,null,4976]
[384,383,"吴刚","天地道神泥","套盒",null,"PCS",759,0,0,null,759]
[385,382,"吴刚","天地道神泥","勺子",null,"PCS",295,0,0,null,295]
[386,387,"吴龙因","30g清源平衡霜","瓶子","30g","PCS",0,1010,1010,null,null,0]
[387,389,"吴龙因","30g清源平衡霜","套盒","30g","PCS",0,125,125,null,null,0]
[388,386,"吴龙因","30g清源平衡霜","不干胶",null,"PCS",375,500,125,null,null,375]
[389,388,"吴龙因","30g清源平衡霜","收缩膜",null,"PCS",425,550,125,null,null,425]
[390,399,"云南翘楚","美丝柔肤贴膜","铝袋",null,"PCS",39445,0,300,null,39745,21360,{"$f":"M391-H391","v":-18085}]
[391,416,"云南翘楚","娇颜凝香露","泡沫瓶","50ml","PCS",0,0,0,null,0,2765,2765]
[392,392,"云南翘楚","娇颜凝香露","泵头","50ml","PCS",0,0,0,null,0,2360,2360]
[393,454,"云南翘楚","娇颜凝香露","外罩","50ml","PCS",0,0,0,null,0,2360,2360]
[394,456,"云南翘楚","娇颜凝香霜","折断瓶",null,"PCS",3900,4200,300,null,4114,3900,0,null,4200,null,300]
[395,403,"云南翘楚","娇颜凝香霜","内塞",null,"PCS",3900,4200,300,null,0,3900,0,null,4200,null,300]
[396,394,"云南翘楚","娇颜凝香霜","钉子",null,"PCS",3900,4200,300,null,0,3900,0,null,4200,null,300]
[397,417,"云南翘楚","臻爱慕斯乳","泡沫瓶","60ml","PCS",2900,0,1100,null,4000,2900,0]
[398,415,"云南翘楚","臻爱慕斯乳","泡沫喷头","60ml","PCS",2900,0,1100,null,4000,2900,0]
[399,455,"云南翘楚","臻爱慕斯乳","外罩","60ml","PCS",2900,0,1100,null,4000,2900,0]
[400,393,"云南翘楚","秘境私语秘境仰菌凝胶","彩盒",null,"PCS",1660,1500,193,"19号的单是发了500",353,1660,0]
[401,443,"云南翘楚","                               ","套盒",null,"PCS",0,0,0,null,0,0,0]
[402,418,"云南翘楚","秘境私语工具勺子","配件",null,"PCS",145,0,258,null,403,145,0,null,null,null,{"$f":"403-145","v":258}]
[403,430,"云南翘楚","秘境私语抚眉性香原液","瓶子",null,"PCS",0,0,1200,null,1200,0,0]
[404,423,"云南翘楚","秘境私语娇嫣红素","瓶子","2ml","PCS",0,2624,2624,null,null,0,0,null,null,null,2624]
[405,424,"云南翘楚","秘境私语爱慕柔情霜","瓶子","2ml","PCS",0,0,2628,null,2628,0,0,null,null,null,228]
[406,396,"云南翘楚","秘境私语娇嫣红素+爱慕柔情霜","盖子","2ml","PCS",0,0,5300,null,5300,0,0,null,null,null,2900]
[407,401,"云南翘楚","秘境私语娇嫣红素+爱慕柔情霜","内塞","2ml","PCS",0,5300,5300,null,null,0,0,null,null,null,2900]
[408,426,"云南翘楚","秘境私语源生素","瓶子","5ml","PCS",0,2260,2260,null,null,0,0]
[409,427,"云南翘楚","秘境私语源合素","瓶子","5ml","PCS",0,2263,2263,null,null,0,0]
[410,428,"云南翘楚","秘境私语精纯精华素","瓶子","5ml","PCS",0,0,936,null,936,0,0,null,null,null,136]
[411,397,"云南翘楚","秘境私语源生素+源合素+精纯精华素","盖子","5ml","PCS",0,0,5500,null,5500,0,0,null,null,null,500]
[412,402,"云南翘楚","秘境私语源生素+源合素+精纯精华素","内塞","5ml","PCS",0,0,5500,null,5500,0,0,null,null,null,500]
[413,425,"云南翘楚","秘境私语金纯精华肽","瓶子","2ml","PCS",278,13,112,null,377,273,-5,null,13]
[414,420,"云南翘楚","秘境私语源能量精华","瓶子","10ml","PCS",278,0,2101,null,2379,{"$f":"+H415","v":278},0,null,null,null,1]
[415,398,"云南翘楚","秘境私语金纯精华肽+源能量精华","金色盖","10ml","PCS",500,0,2295,null,2795,500,0,null,null,null,140]
[416,404,"云南翘楚","秘境私语金纯精华肽+源能量精华","内塞",null,"PCS",500,500,2795,null,2795,500,0,null,500,"2017.7.14盘",640]
[417,421,"云南翘楚","秘境私语娇颜凝香霜","瓶子","10ml","PCS",3922,4200,4500,null,4222,3922,0]
[418,422,"云南翘楚","秘境私语娇媚爱洛蒙霜","瓶子","10ml","PCS",1758,0,0,null,1758,1758,0]
[419,395,"云南翘楚","秘境私语娇颜凝香霜+娇媚爱洛蒙霜","盖子","10ml","PCS",1800,0,4200,null,6000,1800,0]
[420,400,"云南翘楚","秘境私语娇颜凝香霜+娇媚爱洛蒙霜","内塞","10ml","PCS",6000,0,0,null,6000,6000,0]
[421,444,"云南翘楚","秘境私语生命能量启动","套盒",null,"PCS",300,0,0,null,300,298,-2]
[422,445,"云南翘楚","秘境私语粉红佳人","套盒",null,"PCS",0,0,200,null,200,{"$f":"+H423","v":0},{"$f":"M423-H423","v":0},null,null,null,2]
[423,446,"云南翘楚","秘境私语天资国色","套盒",null,"PCS",0,0,200,null,200,0,0,null,null,null,2]
[424,447,"云南翘楚","秘境私语倾国倾城","套盒",null,"PCS",0,0,100,null,100,0,0,null,null,null,2]
[425,448,"云南翘楚","秘境私语秘境凝香露","套盒",null,"PCS",26,0,502,null,528,26,0,null,null,null,2]
[426,449,"云南翘楚","秘境私语臻爱慕思乳","套盒",null,"PCS",26,0,502,null,528,26,0]
[427,450,"云南翘楚","秘境私语妩媚性香原液","套盒",null,"PCS",26,0,502,null,528,26,0]
[428,451,"云南翘楚","秘境私语焕彩柔肤贴膜","套盒",null,"PCS",528,0,0,null,528,528,0]
[429,431,"云南翘楚","秘境私语凝香露","瓶子",null,"PCS",3478,0,1546,null,5024,3478,0,null,null,null,496]
[430,390,"云南翘楚","秘境私语凝香露","白色小花罩",null,"PCS",3620,0,1404,null,5024,3620,0,null,null,null,354]
[431,419,"云南翘楚","秘境私语凝香露","喷雾头",null,"PCS",3500,0,1524,null,5024,3500,0,null,null,null,474]
[432,452,"云南翘楚","秘境私语爱之初唤醒组1号","套盒",null,"PCS",243,0,258,null,501,243,0]
[433,453,"云南翘楚","秘境私语爱之初唤醒组2号","套盒",null,"PCS",470,0,50,null,520,470,0]
[434,391,"云南翘楚","素女经","本子",null,"PCS",1,0,99,null,100,1,0,null,null,null,1]
[435,438,"云南翘楚","生命能源启动套","收缩膜",null,"PCS",600,0,0,null,600,600,0]
[436,439,"云南翘楚","红粉佳人套","收缩膜",null,"PCS",400,0,200,null,600,400,0]
[437,440,"云南翘楚","天资国色套","收缩膜",null,"PCS",400,0,200,null,600,400,0]
[438,441,"云南翘楚","爱之初唤醒组合","收缩膜",null,"PCS",942,600,258,null,600,942,0]
[439,442,"云南翘楚","通用收缩膜","收缩膜",null,"PCS",1000,0,1500,null,2500,1000,0]
[440,432,"云南翘楚","爱洛蒙修护霜","瓶子",null,"PCS",341,1181,840,null,null,341,0]
[441,405,"云南翘楚","爱洛蒙修护霜","内塞+盖子",null,"PCS",341,1181,840,null,null,341,0]
[442,433,"云南翘楚","逆龄紧致太","瓶子",null,"PCS",740,1200,460,null,null,341,-399]
[443,406,"云南翘楚","逆龄紧致太","内塞+盖子",null,"PCS",740,1200,460,null,null,341,-399]
[444,434,"云南翘楚","逆龄修护原液 ","瓶子",null,"PCS",358,1198,840,null,null,0,-358,null,null,null,null,"确认一下，是否有358"]
[445,407,"云南翘楚","逆龄修护原液 ","内塞+盖子",null,"PCS",358,1198,840,null,null,0,-358,null,null,null,null,"确认一下，是否有358"]
[446,435,"云南翘楚","秦雅修护液","瓶子",null,"PCS",386,1226,840,null,null,{"$f":"+H447","v":386},0]
[447,408,"云南翘楚","秦雅修护液","内塞+盖子",null,"PCS",386,1226,840,null,null,{"$f":"+H448","v":386},0]
[448,436,"云南翘楚","青春舒暖霜","瓶子",null,"PCS",302,1142,840,null,null,{"$f":"+H449","v":302},0]
[449,409,"云南翘楚","青春舒暖霜","内塞+盖子",null,"PCS",302,1142,840,null,null,{"$f":"+H450","v":302},0]
[450,437,"云南翘楚","活能紧致霜","瓶子",null,"PCS",352,1192,840,null,null,362,10]
[451,410,"云南翘楚","活能紧致霜","内塞+盖子",null,"PCS",352,1192,840,null,null,362,10]
[452,429,"云南翘楚","5ml娇颜凝香露","瓶子","5ml","PCS",4022,4022,0,null,null,{"$f":"+H453","v":4022},0]
[453,411,"云南翘楚","生命能源启动套","牛油纸",null,"PCS",300,300,0,null,null,{"$f":"+H454","v":300},0]
[454,412,"云南翘楚","红粉佳人","牛油纸",null,"PCS",0,200,200,null,null,{"$f":"+H455","v":0},{"$f":"M455-H455","v":0}]
[455,413,"云南翘楚","天资国色","牛油纸",null,"PCS",0,200,200,null,null,{"$f":"+H456","v":0},{"$f":"M456-H456","v":0}]
[456,414,"云南翘楚","倾国倾城","牛油纸",null,"PCS",0,100,100,null,null,{"$f":"+H457","v":0},{"$f":"M457-H457","v":0}]
[457,484,"张俊江","俊皙系列","软管","100ml","PCS",10300,0,0,null,10300]
[458,476,"张俊江","俊皙系列","盖子","100ml","PCS",9890,0,0,null,9890]
[459,486,"张俊江","肌肤护理专家","手挽瓶","500ml","PCS",3520,0,0,null,3520]
[460,489,"张俊江","肌肤护理专家","小白桶","500g",null,4000,0,0,null,4000]
[461,477,"张俊江","肌肤护理专家","盖子","500g",null,4000,0,0,null,4000]
[462,471,"张俊江","膏霜瓶","彩盒","30g","PCS",330,0,0,null,330]
[463,470,"张俊江","膏霜瓶","彩盒","20g","PCS",200,0,0,null,200]
[464,472,"张俊江","乳液瓶","彩盒","30g","PCS",500,0,0,null,500]
[465,469,"张俊江",null,"彩盒","100ml","PCS",250,0,0,null,250]
[466,473,"张俊江",null,"彩盒","30ml","PCS",200,0,0,null,200]
[467,460,"张俊江",null,"白银盖","3ml","PCS",570,0,0,null,570]
[468,463,"张俊江","人参祛角质啫喱","标签","500g","PCS",850,0,0,null,850]
[469,464,"张俊江","舒缓保湿面膜","标签","500g","PCS",920,0,0,null,920]
[470,465,"张俊江","弹力蛋白保湿霜","标签","500g","PCS",950,0,0,null,950]
[471,466,"张俊江","甘菊润肤凝露","标签","500g","PCS",970,0,0,null,970]
[472,467,"张俊江","活力按摩膏","标签","500g","PCS",800,0,0,null,800]
[473,499,"张俊江","喇叭头",null,null,"PCS",400,0,0,null,400]
[474,496,"张俊江","灰内塞",null,"3ml","PCS",820,0,0,null,820]
[475,468,"张俊江","赋活美目蚕丝膜","标签",null,"PCS",600,0,0,null,600]
[476,487,"张俊江","赋活明眸素","塑瓶","4ml","PCS",450,0,0,null,450]
[477,488,"张俊江","赋活明眸素","外罩","4ml","PCS",450,0,0,null,450]
[478,480,"张俊江","赋活明眸素","内塞","4ml","PCS",350,0,0,null,350]
[479,483,"张俊江","润白清透防护日霜","瓶子","30g","PCS",225,0,0,null,225]
[480,461,"张俊江","纳米隔离乳","泵头",null,"PCS",175,0,0,null,175]
[481,462,"张俊江","洗发水","泵头",null,"PCS",280,0,0,null,280]
[482,482,"张俊江","深层补水抗衰眼霜","瓶子","20g","PCS",450,0,0,null,450]
[483,457,"张俊江","赋活魅眼乳A剂","安瓶","1ml","PCS",100,0,0,null,100]
[484,458,"张俊江","赋活魅眼乳B剂","安瓶","2ml","PCS",100,0,0,null,100]
[485,459,"张俊江","赋活细胞再生精华","安瓶","3ml","PCS",4700,0,0,null,4700]
[486,493,"张俊江","内托",null,"20ml","PCS",100,0,0,null,100]
[487,495,"张俊江","内托",null,"30ml","PCS",110,0,0,null,110]
[488,491,"张俊江","内托",null,"100ml","PCS",150,0,0,null,150]
[489,492,"张俊江","内托",null,"20g","PCS",80,0,0,null,80]
[490,494,"张俊江","内托",null,"30g","PCS",450,0,0,null,450]
[491,490,"张俊江","赋活滋养眼霜","折断瓶","1ml","PCS",300,0,0,null,300]
[492,497,"张俊江","灰内塞",null,"3ml","PCS",2200,0,0,null,2200]
[493,498,"张俊江","亮金盖",null,"3ml","PCS",2200,0,0,null,2200]
[494,474,"张俊江","赋活美目蚕丝膜","彩盒",null,"PCS",1000,0,0,null,1000]
[495,475,"张俊江","备长炭净颜焕彩黑面膜","彩盒",null,"PCS",4400,0,0,null,4400]
[496,481,"张俊江","备长炭净颜焕彩黑面膜","内托",null,"PCS",4230,0,0,null,4230]
[497,479,"张俊江","备长炭净颜焕彩黑面膜","铝袋",null,"PCS",28200,0,0,null,28200]
[498,478,"张俊江","备长炭净颜焕彩黑面膜","黑色膜布",null,"PCS",4000,0,0,null,4000]
[499,485,"张俊江","备长炭净颜焕彩黑面膜","收缩膜",null,"PCS",4400,0,0,null,4400]
[500,503,"赵国民",null,"软管",null,"PCS",0,2000,2000,null,0]
[501,501,"赵国民",null,"盖子",null,"PCS",0,2000,2000,null,0]
[502,502,"赵国民",null,"内塞",null,"PCS",0,2000,2000,null,0]
[503,500,"赵国民",null,"彩盒",null,"PCS",0,2095,2095,null,0]

{"sheet":"广州锦盛10月份包材仓电子帐 (2)","index":3,"n_rows":1716,"n_cols":114,"rows_kept":1716,"cut":false,"hidden":true,"merged":[[1,131,1,134],[1,135,1,138],[1,139,1,140],[1,0,2,0],[1,1,2,1],[1,2,2,2],[1,3,2,3],[1,4,2,4],[1,5,2,5],[1,6,2,6],[1,7,2,7],[1,8,2,8],[1,9,2,9],[1,10,2,10],[1,11,2,11],[1,12,2,12],[1,111,1,114],[1,115,1,118],[1,119,1,122],[1,123,1,126],[1,127,1,130],[1,91,1,94],[1,95,1,98],[1,99,1,102],[1,103,1,106],[1,107,1,110],[1,71,1,74],[1,75,1,78],[1,79,1,82],[1,83,1,86],[1,87,1,90],[1,51,1,54],[1,55,1,58],[1,59,1,62],[1,63,1,66],[1,67,1,70],[1,31,1,34],[1,35,1,38],[1,39,1,42],[1,43,1,46],[1,47,1,50],[0,0,0,13],[1,15,1,18],[1,19,1,22],[1,23,1,26],[1,27,1,30],[1,13,2,13],[1,14,2,14]]}
[]
[null,null,null,null,null,null,null,"物料编号","存储位置"]
[]
["苏杜全",null,"敖家睿","EGF多肽修护原液套","3件套","套盒","3件套",null,null,{"$f":"O4+K4-L4","v":0},{"$f":"Q4+U4+Y4+AC4+AG4+AK4+AO4+AS4+AW4+BA4+BE4+BI4+BM4+BQ4+BU4+BY4+CC4+CG4+CK4+CO4+CS4+CW4+DA4+DE4+DI4+DM4+DQ4+DU4+DY4+EC4+EG4","v":0},{"$f":"S4+W4+AA4+AE4+AI4+AM4+AQ4+AU4+AY4+BC4+BG4+BK4+BO4+BS4+BW4+CA4+CE4+CI4+CM4+CQ4+CU4+CY4+DC4+DG4+DK4+DO4+DS4+DW4+EA4+EE4+EI4","v":0},"PCS"]
["苏杜全",null,"敖家睿","EGF多肽修护原液套","3ml","支","3ml",null,null,0,0,0,"PCS"]
["苏杜全",null,"敖家睿","EGF多肽修护原液套","3ml","喇叭头","3ml",null,null,0,0,0,"PCS"]
["苏杜全",null,"敖家睿","EGF多肽修护原液套","3ml","白色植绒吸塑","3ml",null,null,0,0,0,"PCS"]
["苏杜全",null,"敖家睿","EGF多肽修护原液套","3ml","内托","3ml",null,null,0,0,0,"PCS"]
["苏杜全",null,"敖家睿","EGF多肽修护原液套","3ml","彩盒","3ml",null,null,0,0,0,"PCS"]
["苏杜全",null,"敖家睿","多肽修护原液","3ml","安瓶","3ml",null,null,0,0,0,"PCS"]
["苏杜全",null,"敖家睿","多肽修护原液","3ml","白色内盖","3ml",null,null,0,0,0,"PCS"]
["苏杜全",null,"敖家睿","多肽修护原液","3ml","白色铝盖","3ml",null,null,0,0,0,"PCS"]
["杨克江",null,"宝相花","77号空白纸箱","77#","专用纸箱","77#",null,null,0,0,0,"PCS",null,0]
["杨克江",null,"宝相花","78号空白纸箱","78#","专用纸箱","78#",null,null,0,0,0,"PCS",null,0]
["杨克江",null,"宝相花","魅力女人套","24件/套","套盒","24件/套",null,null,0,0,0,"PCS"]
["杨克江",null,"宝相花","魅力女人套","24件/套","说明书",null,null,null,0,0,0,"PCS",null,0]
["杨克江",null,"宝相花","魅力女人套","24件/套","收缩膜",null,null,null,0,0,0,"PCS",null,0]
["杨克江",null,"宝相花","明媚亮眼套","41件/套","套盒","41件/套",null,null,0,0,0,"PCS"]
["杨克江",null,"宝相花","明媚亮眼套","41件/套","说明书",null,null,null,0,0,0,"PCS",null,0]
["杨克江",null,"宝相花","明媚亮眼套","41件/套","收缩膜",null,null,null,0,0,0,"PCS",null,0]
["杨克江",null,"宝相花","柔肤按摩膏","50ML","红色玻璃瓶","50ML",null,null,0,0,0,"PCS",null,0]
["杨克江",null,"宝相花","柔肤按摩膏、柔肤水洗膜、柔肤精华霜、舒活多肽眼霜","50ML","手拉垫片","50ML",null,null,0,0,0,"PCS",null,0]
["杨克江",null,"宝相花","柔肤按摩膏、柔肤水洗膜、柔肤精华霜、舒活多肽眼霜","50ML","金色外盖","50ML",null,null,0,0,0,"PCS",null,0]
["杨克江",null,"宝相花","柔肤精华乳","3ML","折断瓶","3ML",null,null,0,0,0,"PCS",null,0]
["杨克江",null,"宝相花","柔肤精华霜","30G","红色玻璃瓶","30G",null,null,0,0,0,"PCS",null,0]
["杨克江",null,"宝相花","柔肤精华素","3ML","折断瓶","3ML",null,null,0,0,0,"PCS",null,0]
["杨克江",null,"宝相花","柔肤精华素、柔肤精华乳、舒活按摩精华、舒活滋养啫喱、舒活多肽精华","3ML","内塞","3ML",null,null,22850,0,0,"PCS",null,22850]
["杨克江",null,"宝相花","柔肤精华素、柔肤精华乳、舒活按摩精华、舒活滋养啫喱、舒活多肽精华","3ML","塞钉","3ML",null,null,22850,0,0,"PCS",null,22850]
["杨克江",null,"宝相花","柔肤爽肤水","100ML","红色玻璃瓶","100ML",null,null,0,0,0,"PCS",null,0]
["杨克江",null,"宝相花","柔肤爽肤水","100ML","喷雾头","100ML",null,null,0,0,0,"PCS",null,0]
["杨克江",null,"宝相花","柔肤爽肤水","100ML","金色外盖","100ML",null,null,0,0,0,"PCS",null,0]
["杨克江",null,"宝相花","柔肤水洗膜","50G","红色玻璃瓶","50G",null,null,0,0,0,"PCS",null,0]
["杨克江",null,"宝相花","舒活按摩精华","3ML","折断瓶","3ML",null,null,0,0,0,"PCS",null,0]
["杨克江",null,"宝相花","舒活多肽精华","3ML","折断瓶","3ML",null,null,0,0,0,"PCS",null,0]
["杨克江",null,"宝相花","舒活多肽眼膜","12ML*10片/盒","两层眼膜贴","12ML*10片/盒",null,null,0,0,0,"PCS",null,0]
["杨克江",null,"宝相花","舒活多肽眼膜","12ML*10片/盒","银色铝箔袋","12ML*10片/盒",null,null,5000,0,0,"PCS",null,5000]
["杨克江",null,"宝相花","舒活多肽眼膜","12ML*10片/盒","彩盒","12ML*10片/盒",null,null,0,0,0,"PCS",null,0]
["杨克江",null,"宝相花","舒活多肽眼霜","30G","红色玻璃瓶","30G",null,null,0,0,0,"PCS",null,0]
["杨克江",null,"宝相花","舒活滋养啫喱","3ML","折断瓶","3ML",null,null,0,0,0,"PCS",null,0]
["黄细娇",null,"本厂"," ","500ML","外罩","500ML",null,null,-252,0,0,"PCS",null,-252]
[]
[]
[]
[]
["黄细娇",null,"本厂","白色塑瓶","500ML","塑封膜","500ML",null,null,10000,0,0,"PCS",null,10000]
["黄细娇",null,"本厂","共用透明胶","1KG","透明胶","1kg",null,null,-330,0,330,"PCS",null,null,null,null,null,null,null,null,null,null,null,null,null,null,null,null,null,null,null,null,null,null,null,null,null,null,null,null,null,null,null,null,null,null,null,null,null,null,null,null,null,null,null,null,null,null,null,null,null,null,null,null,null,null,null,null,null,null,null,null,"0002969",300,null,null,null,null,null,null,"0003634",30]
["黄细娇",null,"本厂","泥 灸","100g","PP圆形塑料盒子","100g",null,null,-300,0,0,"PCS",null,-300]
["黄细娇",null,"本厂","透明塑瓶","500ML","塑封膜","500ML",null,null,9400,0,0,"PCS",null,9400]
["黄细娇",null,"本厂","香芬洋甘菊静肤冰晶","/","共用标签","/",null,null,-500,0,500,"PCS",null,null,null,null,null,null,null,null,null,null,null,null,null,null,null,null,null,null,null,null,null,null,null,null,null,null,null,null,null,null,null,null,null,null,null,null,null,null,null,null,null,null,null,null,null,null,null,null,null,null,null,null,null,null,null,null,null,null,null,null,"0002964",500]
["黄细娇",null,"本厂","新维素洋甘菊静肤花水","/","共用标签","/",null,null,-740,0,740,"PCS",null,null,null,null,null,null,null,null,null,null,null,null,null,null,null,null,null,null,null,null,null,null,null,null,null,null,null,null,null,null,null,null,null,null,null,null,null,null,null,null,null,null,null,null,null,null,null,null,null,null,null,null,null,null,null,null,null,null,null,null,"0002969",500,null,null,null,null,null,null,null,null,null,null,"0003005",200,null,null,"0003009",40]
["黄细娇",null,"本厂","香芬-玫瑰活颜洗面奶","1kg","透明袋","1kg",null,null,7100,0,800,"PCS",null,7900,null,null,null,null,null,null,null,null,null,null,null,null,null,null,null,null,null,null,null,null,null,null,null,null,null,null,null,null,null,null,null,null,null,null,null,null,null,null,null,null,null,null,null,null,null,null,null,null,null,null,null,null,null,null,null,null,null,null,"0002969",{"$f":"300+500","v":800}]
["黄细娇",null,"本厂","香芬-玫瑰活颜纯露","/","共用标签","/",null,null,0,0,0,"PCS"]
["黄细娇",null,"本厂","香芬-玫瑰活颜水洗膜","/","共用标签","/",null,null,0,0,0,"PCS"]
["黄细娇",null,"本厂","香芬-玫瑰活颜按摩膏","/","共用标签","/",null,null,0,0,0,"PCS"]
["黄细娇",null,"本厂","香芬-玫瑰活颜冰晶","/","共用标签","/",null,null,0,0,0,"PCS"]
["黄细娇",null,"本厂","香芬-玫瑰活颜乳液","/","共用标签","/",null,null,0,0,0,"PCS"]
["黄细娇",null,"本厂","香芬-玫瑰活颜霜","/","共用标签","/",null,null,0,0,0,"PCS"]
["黄细娇",null,"本厂","香芬-洋甘菊静肤洗面奶","/","共用标签","/",null,null,0,0,0,"PCS"]
["黄细娇",null,"本厂","香芬-洋甘菊静肤纯露","/","共用标签","/",null,null,0,0,0,"PCS"]
["黄细娇",null,"本厂","香芬-洋甘菊静肤水洗膜","/","共用标签","/",null,null,0,0,0,"PCS"]
["黄细娇",null,"本厂","香芬-洋甘菊静肤按摩膏","/","共用标签","/",null,null,0,0,0,"PCS"]
["黄细娇",null,"本厂","香芬-洋甘菊静肤冰晶","/","共用标签","/",null,null,0,0,0,"PCS"]
["黄细娇",null,"本厂","香芬-洋甘菊静肤乳液","/","共用标签","/",null,null,0,0,0,"PCS"]
["黄细娇",null,"本厂","香芬-洋甘菊静肤霜","/","共用标签","/",null,null,0,0,0,"PCS"]
["黄细娇",null,"本厂","维他命-补水保湿洗面奶","/","共用标签","/",null,null,0,0,0,"PCS"]
["黄细娇",null,"本厂","维他命-VC营养水","/","共用标签","/",null,null,0,0,0,"PCS"]
["黄细娇",null,"本厂","维他命-去角质啫喱","/","共用标签","/",null,null,0,0,0,"PCS"]
["黄细娇",null,"本厂","维他命-柔滑按摩膏","/","共用标签","/",null,null,{"$f":"O68+K68-L68","v":0},{"$f":"Q68+U68+Y68+AC68+AG68+AK68+AO68+AS68+AW68+BA68+BE68+BI68+BM68+BQ68+BU68+BY68+CC68+CG68+CK68+CO68+CS68+CW68+DA68+DE68+DI68+DM68+DQ68+DU68+DY68+EC68+EG68","v":0},{"$f":"S68+W68+AA68+AE68+AI68+AM68+AQ68+AU68+AY68+BC68+BG68+BK68+BO68+BS68+BW68+CA68+CE68+CI68+CM68+CQ68+CU68+CY68+DC68+DG68+DK68+DO68+DS68+DW68+EA68+EE68+EI68","v":0},"PCS"]
["黄细娇",null,"本厂","维他命-冰泉水洗膜","/","共用标签","/",null,null,0,0,0,"PCS"]
["黄细娇",null,"本厂","维他命-补水保湿精华素","/","共用标签","/",null,null,0,0,0,"PCS"]
["黄细娇",null,"本厂","维他命-补水保湿精华乳","/","共用标签","/",null,null,0,0,0,"PCS"]
[]
["黄细娇",null,"本厂","维他命-补水保湿按摩膏","/","共用标签","/",null,null,0,0,0,"PCS"]
["黄细娇",null,"本厂","新维素-清爽洁面露","/","共用标签","/",null,null,0,0,0,"PCS"]
["黄细娇",null,"本厂","新维素-玫瑰营养水","/","共用标签","/",null,null,0,0,0,"PCS"]
["黄细娇",null,"本厂","新维素洋-甘菊静肤花水","/","共用标签","/",null,null,0,0,0,"PCS"]
["黄细娇",null,"本厂","新维素-莹润水洗膜","/","共用标签","/",null,null,0,0,0,"PCS"]
["黄细娇",null,"本厂","新维素-水润按摩膏","/","共用标签","/",null,null,0,0,0,"PCS"]
["黄细娇",null,"本厂","新维素-柔滑按摩膏啫喱","/","共用标签","/",null,null,0,0,0,"PCS"]
["黄细娇",null,"本厂","新维素-润肤水晶面膜","/","共用标签","/",null,null,0,0,0,"PCS"]
["黄细娇",null,"本厂","新维素-莹润滋养霜","/","共用标签","/",null,null,0,0,0,"PCS"]
[]
["黄细娇",null,"本厂","功效-眼霜","/","共用标签","/",null,null,0,0,0,"PCS"]
["黄细娇",null,"本厂","功效-眼啫喱","/","共用标签","/",null,null,0,0,0,"PCS"]
["黄细娇",null,"本厂","功效-出水霜","/","共用标签","/",null,null,0,0,0,"PCS"]
["黄细娇",null,"本厂","功效-隔离粉底乳","/","共用标签","/",null,null,0,0,0,"PCS"]
["黄细娇",null,null,"功效-补水霜","/","共用标签","/",null,null,0,0,0,"PCS"]
["黄细娇",null,"本厂","特效-金粉眼霜","/","共用标签",null,null,null,0,0,0,"PCS"]
["黄细娇",null,"本厂",null,null,"透明袋","5KG",null,null,5000,0,0,"PCS",null,5000]
["黄细娇",null,"本厂",null,null,"半透明袋（乳化）","110*110",null,null,1070,0,0,"PCS",null,1070]
["黄细娇",null,"本厂",null,null,"半透明袋（乳化）","70*110",null,null,1050,0,0,"PCS",null,1050]
["黄细娇",null,"本厂",null,"500ML","白色塑瓶","500ML",null,null,-552,0,0,"PCS",null,-552]
["黄细娇",null,"本厂",null,"500ML","压嘴泵头","500ML",null,null,2908,0,0,"PCS",null,2908]
["黄细娇",null,"本厂",null,"500ML","透明塑瓶","500ML",null,null,2886,0,0,"PCS",null,2886]
["黄细娇",null,"本厂",null,null,"空白小纸箱",null,null,null,0,0,0,"PCS",null,0]
["黄细娇",null,"本厂",null,null,"纸箱","24#",null,null,0,0,0,"PCS",null,0]
["黄细娇",null,"本厂",null,null,"装箱单",null,null,null,5000,0,0,"PCS",null,5000]
["黄细娇",null,"本厂",null,null,"装箱标签",null,null,null,5000,0,0,"PCS",null,5000]
["杨克江",null,"陈义繁","涂抹式玻尿酸水乳精华","10ML","试管","10ML",null,null,0,0,0,"PCS","已盘点",0]
["杨克江",null,"陈义繁","涂抹式玻尿酸水乳精华","10ML","推杆","10ML",null,null,0,0,0,"PCS","已盘点",0]
["杨克江",null,"陈义繁","涂抹式玻尿酸水乳精华","10ML","内塞","10ML",null,null,0,0,77,"PCS","已盘点",77,null,null,null,77]
["杨克江",null,"陈义繁","涂抹式玻尿酸水乳精华","10ML","银色铝箔袋","10ML",null,null,40100,40100,382,"PCS","已盘点",382,null,40100,null,382]
["杨克江",null,"陈义繁","涂抹式玻尿酸水乳精华","10ML","花盒","10ML",null,null,41300,41300,627,"PCS","已盘点",627,null,41300,null,627]
["杨克江",null,"陈义繁","涂抹式玻尿酸水乳精华","10ML","塑封膜（全封的）",null,null,null,0,0,0,"PCS","已盘点",0]
["林静",null,"创美","冰晶面膜","25G","A384面膜纸","25G",null,null,0,0,0,"PCS",null,0]
["林静",null,"创美","冰晶面膜","25G","印刷铝箔袋","25G",null,null,0,0,0,"PCS",null,0]
["林静",null,"创美","冰晶面膜","25G","彩盒","10片/盒",null,null,0,0,0,"PCS",null,0]
["林静",null,"创美","拉皮粉","5ml","安瓶","3G",null,null,10000,0,0,"PCS",null,10000]
["林静",null,"创美","拉皮粉、拉皮水","5ml","白色内塞","3G",null,null,15000,0,0,"PCS",null,15000]
["林静",null,"创美","拉皮粉、拉皮水","5ml","白色铝盖","3G",null,null,15000,0,0,"PCS",null,15000]
["林静",null,"创美","拉皮水","10ML","安瓶","10ML",null,null,5000,0,0,"PCS",null,5000]
[]
["林静",null,"创美","媚眼蚕丝眼膜","10G","3层剪刀手眼膜纸","左右1片/对",null,null,0,0,0,"PCS",null,0]
[]
["林静",null,"创美","疏经亮眼功效套","38件/套","套盒","38件/套",null,null,0,0,0,"PCS",null,0]
[]
["林静",null,"创美","疏经亮眼功效套","38件/套","塑封膜",null,null,null,0,0,0,"PCS",null,0]
["林静",null,"创美","疏经亮眼功效套","38件/套","专用纸箱",null,null,null,100,0,0,"PCS",null,100]
["林静",null,"创美","眼部紧致舒缓精华","30ml","塑瓶","30ml",null,null,0,0,0,"PCS",null,0]
["林静",null,"创美","眼部紧致舒缓精华","30ml","白色压咀","30ml",null,null,0,0,0,"PCS",null,0]
["林静",null,"创美","眼部紧致舒缓精华","30ml","透明外盖","30ml",null,null,0,0,0,"PCS",null,0]
["林静",null,"创美","眼部紧致舒缓精华","3ml","折断瓶","3ml",null,null,0,0,0,"PCS",null,0]
["林静",null,"创美","眼部紧致舒缓精华、眼部水亮明眸精华乳","3ml","内塞","3ml",null,null,0,0,0,"PCS",null,0]
["林静",null,"创美","眼部紧致舒缓精华、眼部水亮明眸精华乳","3ml","塞钉","3ml",null,null,0,0,0,"PCS",null,0]
["林静",null,"创美","眼部水亮明眸精华乳","3ml","折断瓶","3ml",null,null,0,0,0,"PCS",null,0]
["林静",null,"创美","眼部提升紧致凝胶","30ml","塑瓶","30ml",null,null,0,0,0,"PCS",null,0]
["林静",null,"创美","眼部提升紧致凝胶","30ml","亮银压咀","30ml",null,null,0,0,0,"PCS",null,0]
["林静",null,"创美","眼部提升紧致凝胶","30ml","透明外盖","30ml",null,null,0,0,0,"PCS",null,0]
["林静",null,"创美","钻石面膜套","25件/套","套盒","25件/套",null,null,0,0,0,"PCS",null,0]
["林静",null,"创美","钻石面膜套","25件/套","说明书","25件/套",null,null,0,0,0,"PCS",null,0]
["林静",null,"创美","钻石面膜套","25件/套","塑封膜",null,null,null,0,0,0,"PCS",null,0]
["林静",null,"创美","钻石面膜套","25件/套","纸箱",null,null,null,{"$f":"O132+K132-L132","v":0},{"$f":"Q132+U132+Y132+AC132+AG132+AK132+AO132+AS132+AW132+BA132+BE132+BI132+BM132+BQ132+BU132+BY132+CC132+CG132+CK132+CO132+CS132+CW132+DA132+DE132+DI132+DM132+DQ132+DU132+DY132+EC132+EG132","v":0},{"$f":"S132+W132+AA132+AE132+AI132+AM132+AQ132+AU132+AY132+BC132+BG132+BK132+BO132+BS132+BW132+CA132+CE132+CI132+CM132+CQ132+CU132+CY132+DC132+DG132+DK132+DO132+DS132+DW132+EA132+EE132+EI132","v":0},"PCS",null,0]
["曾小根",null,"高礼宾"," 花库-卿本佳人","61件/套","套盒","26件/套",null,null,{"$f":"O133+K133-L133","v":0},{"$f":"Q133+U133+Y133+AC133+AG133+AK133+AO133+AS133+AW133+BA133+BE133+BI133+BM133+BQ133+BU133+BY133+CC133+CG133+CK133+CO133+CS133+CW133+DA133+DE133+DI133+DM133+DQ133+DU133+DY133+EC133+EG133","v":0},{"$f":"S133+W133+AA133+AE133+AI133+AM133+AQ133+AU133+AY133+BC133+BG133+BK133+BO133+BS133+BW133+CA133+CE133+CI133+CM133+CQ133+CU133+CY133+DC133+DG133+DK133+DO133+DS133+DW133+EA133+EE133+EI133","v":0},"PCS"]
["曾小根",null,"高礼宾"," 花库-卿本佳人","61件/套","套盒标","26件/套",null,null,{"$f":"O134+K134-L134","v":0},{"$f":"Q134+U134+Y134+AC134+AG134+AK134+AO134+AS134+AW134+BA134+BE134+BI134+BM134+BQ134+BU134+BY134+CC134+CG134+CK134+CO134+CS134+CW134+DA134+DE134+DI134+DM134+DQ134+DU134+DY134+EC134+EG134","v":0},{"$f":"S134+W134+AA134+AE134+AI134+AM134+AQ134+AU134+AY134+BC134+BG134+BK134+BO134+BS134+BW134+CA134+CE134+CI134+CM134+CQ134+CU134+CY134+DC134+DG134+DK134+DO134+DS134+DW134+EA134+EE134+EI134","v":0},"PCS"]
["曾小根",null,"高礼宾"," 花库-卿本佳人","61件/套","塑封膜",null,null,null,{"$f":"O135+K135-L135","v":0},{"$f":"Q135+U135+Y135+AC135+AG135+AK135+AO135+AS135+AW135+BA135+BE135+BI135+BM135+BQ135+BU135+BY135+CC135+CG135+CK135+CO135+CS135+CW135+DA135+DE135+DI135+DM135+DQ135+DU135+DY135+EC135+EG135","v":0},{"$f":"S135+W135+AA135+AE135+AI135+AM135+AQ135+AU135+AY135+BC135+BG135+BK135+BO135+BS135+BW135+CA135+CE135+CI135+CM135+CQ135+CU135+CY135+DC135+DG135+DK135+DO135+DS135+DW135+EA135+EE135+EI135","v":0},"PCS"]
["曾小根",null,"高礼宾","10ml钉子",null,"胶钉子"]
["曾小根",null,"高礼宾","10ml钉子","10ml","胶钉子","10ml",null,null,{"$f":"O137+K137-L137","v":-2420},{"$f":"Q137+U137+Y137+AC137+AG137+AK137+AO137+AS137+AW137+BA137+BE137+BI137+BM137+BQ137+BU137+BY137+CC137+CG137+CK137+CO137+CS137+CW137+DA137+DE137+DI137+DM137+DQ137+DU137+DY137+EC137+EG137","v":0},{"$f":"S137+W137+AA137+AE137+AI137+AM137+AQ137+AU137+AY137+BC137+BG137+BK137+BO137+BS137+BW137+CA137+CE137+CI137+CM137+CQ137+CU137+CY137+DC137+DG137+DK137+DO137+DS137+DW137+EA137+EE137+EI137","v":2420},"PCS",null,null,null,null,null,null,null,null,null,null,null,null,null,null,null,null,null,null,null,null,null,null,null,null,null,null,null,null,null,null,null,null,null,null,null,null,null,null,null,null,null,null,null,null,null,null,null,null,null,null,null,null,null,null,null,null,null,null,null,null,null,null,null,null,null,null,null,null,null,null,null,null,"0003007",2420]
["曾小根",null,"高礼宾","10mL内塞","10ml","胶钉子","10ml",null,null,-2420,0,2420,"PCS",null,null,null,null,null,null,null,null,null,null,null,null,null,null,null,null,null,null,null,null,null,null,null,null,null,null,null,null,null,null,null,null,null,null,null,null,null,null,null,null,null,null,null,null,null,null,null,null,null,null,null,null,null,null,null,null,null,null,null,null,null,null,null,null,null,null,null,null,null,null,null,null,"0003007",2420]
["曾小根",null,"高礼宾","2ml钉子","2ml","钉子","2ml",null,null,0,0,0,"PCS"]
["曾小根",null,"高礼宾","2ml钉子","2ml","胶钉子","2ml",null,null,-2420,0,2420,"PCS",null,null,null,null,null,null,null,null,null,null,null,null,null,null,null,null,null,null,null,null,null,null,null,null,null,null,null,null,null,null,null,null,null,null,null,null,null,null,null,null,null,null,null,null,null,null,null,null,null,null,null,null,null,null,null,null,null,null,null,null,null,null,null,null,null,null,null,null,null,null,null,null,"0003007",2420]
[]
[]
["曾小根",null,"高礼宾","38.5*52cm",null,"38.5*52cm",null,null,null,0,0,0,"PCS"]
["曾小根",null,"高礼宾","5ml内塞","5ml","胶内塞","5ml",null,null,-1640,0,1640,"PCS",null,null,null,null,null,null,null,null,null,null,null,null,null,null,null,null,null,null,null,null,null,null,null,null,null,null,null,null,null,null,null,null,null,null,null,null,null,null,null,null,null,null,null,null,null,null,null,null,null,null,null,null,null,null,null,null,null,null,null,null,null,null,null,null,null,null,null,null,null,null,null,null,"0003007",1640]
["曾小根",null,"高礼宾","5ml内塞","5ml","胶内塞","5ml",null,null,-1640,0,1640,"PCS",null,null,null,null,null,null,null,null,null,null,null,null,null,null,null,null,null,null,null,null,null,null,null,null,null,null,null,null,null,null,null,null,null,null,null,null,null,null,null,null,null,null,null,null,null,null,null,null,null,null,null,null,null,null,null,null,null,null,null,null,null,null,null,null,null,null,null,null,null,null,null,null,"0003007",1640]
["曾小根",null,"高礼宾","爱意情迷套盒","36件/套","套盒","36件/套",null,null,0,0,0,"PCS"]
["曾小根",null,"高礼宾","爱意情迷套盒","36件/套","套盒标","36件/套",null,null,0,0,0,"PCS"]
["曾小根",null,"高礼宾","爱意情迷套盒","36件/套","塑封膜",null,null,null,0,0,0,"PCS"]
["曾小根",null,"高礼宾","花度-爱慕情缘套","58件/套","套盒","58件/套",null,null,0,0,0,"PCS"]
["曾小根",null,"高礼宾","花度-爱慕情缘套","58件/套","套盒名称标","58件/套",null,null,0,0,0,"PCS"]
["曾小根",null,"高礼宾","花度-爱慕情缘套","58件/套","素女经","58件/套",null,null,0,0,0,"PCS"]
["曾小根",null,"高礼宾","花度-爱慕情缘套","58件/套","助推棒","58件/套",null,null,0,0,0,"PCS"]
["曾小根",null,"高礼宾","花度-爱慕情缘套","58件/套","塑封膜","51.5*66cm",null,null,0,0,0,"PCS"]
["曾小根",null,"高礼宾","花度-爱慕情缘套、花库-卿本佳人","58件/套","500分印花","58件/套",null,null,0,0,0,"PCS"]
["曾小根",null,"高礼宾","花度-爱慕柔情霜","2g","折断瓶","2g",null,null,0,0,0,"PCS"]
["曾小根",null,"高礼宾","花度-爱慕柔情霜","2g","胶塞","2g",null,null,0,0,0,"PCS"]
["曾小根",null,"高礼宾","花度-爱慕柔情霜","2g","塞钉","2g",null,null,0,0,0,"PCS"]
["曾小根",null,"高礼宾","花度-粉嫩娇颜","/","不干胶","/",null,null,100,100,0,"PCS",null,null,null,null,null,null,null,null,null,null,null,null,null,null,null,null,null,null,null,null,null,null,null,null,null,null,null,null,null,null,null,null,null,null,null,null,null,null,null,null,null,null,null,null,null,null,null,null,null,null,null,null,null,null,null,null,null,null,null,null,null,null,null,null,null,null,"0002938",100]
[]
[]
[]
["曾小根",null,"高礼宾","花度-粉嫩娇颜套、花度-爱慕情缘套、花度-腹活能量SPA、花度-蒙娜丽莎之吻套、花度-紧致如初套、花库-欢沁花语、花库-花韵红颜、花库-凤御媚妍、花库-卿本佳人、花库-紧致如初套、花库-蒙娜丽莎之吻套","24件/套","空白牛油纸","24件/套",null,null,0,0,0,"PCS"]
[]
[]
["曾小根",null,"高礼宾","花度-腹活能量SPA","21件/套","套盒","21件/套",null,null,{"$f":"O165+K165-L165","v":0},{"$f":"Q165+U165+Y165+AC165+AG165+AK165+AO165+AS165+AW165+BA165+BE165+BI165+BM165+BQ165+BU165+BY165+CC165+CG165+CK165+CO165+CS165+CW165+DA165+DE165+DI165+DM165+DQ165+DU165+DY165+EC165+EG165","v":0},{"$f":"S165+W165+AA165+AE165+AI165+AM165+AQ165+AU165+AY165+BC165+BG165+BK165+BO165+BS165+BW165+CA165+CE165+CI165+CM165+CQ165+CU165+CY165+DC165+DG165+DK165+DO165+DS165+DW165+EA165+EE165+EI165","v":0},"PCS"]
["曾小根",null,"高礼宾","花度-腹活能量SPA","21件/套","套盒名称标","21件/套",null,null,0,0,0,"PCS"]
["曾小根",null,"高礼宾","花度-腹活能量SPA","21件/套","塑封膜","34*59cm",null,null,0,0,0,"PCS"]
["曾小根",null,"高礼宾","花度-腹活能量SPA、花度-紧致如初套、花库-紧致如初套","21件/套","75分印花","21件/套",null,null,0,0,0,"PCS"]
["曾小根",null,"高礼宾","花度-腹活能量精华","10ml","白色安瓶","10ml",null,null,0,0,0,"PCS"]
["曾小根",null,"高礼宾","花度-腹活能量精华","10ml","白胶塞","10ml",null,null,0,0,0,"PCS"]
["曾小根",null,"高礼宾","花度-腹活能量精华","10ml","金色铝盖","10ml",null,null,0,0,0,"PCS"]
["曾小根",null,"高礼宾","花度-腹活能量膜","30g","铝箔袋（花度-腹活能量膜）","30g",null,null,0,0,0,"PCS"]
["曾小根",null,"高礼宾","花度-腹活能量膜","30g","A384膜布","30g",null,null,0,0,0,"PCS"]
["曾小根",null,"高礼宾","花度-腹活能量膜","30g","丝带",null,null,null,0,0,0,"PCS"]
["曾小根",null,"高礼宾","花度-腹活元素","10ml","透明塑瓶","10ml",null,null,0,0,0,"PCS"]
["曾小根",null,"高礼宾","花度-腹活元素","10ml","喷雾泵头","10ml",null,null,0,0,0,"PCS"]
["曾小根",null,"高礼宾","花度-腹活元素","10ml","透明外罩","10ml",null,null,0,0,0,"PCS"]
["曾小根",null,"高礼宾","花度-腹活元素","5ml","玻璃瓶","5ml",null,null,0,0,0,"PCS"]
["曾小根",null,"高礼宾","花度-娇媚爱洛蒙霜","30g","亚克力瓶","30g",null,null,0,0,0,"PCS"]
["曾小根",null,"高礼宾","花度-娇媚爱洛蒙霜","30g","手拉内垫","30g",null,null,0,0,0,"PCS"]
["曾小根",null,"高礼宾","花度-娇媚爱洛蒙霜","30g","外盖","30g",null,null,0,0,0,"PCS"]
["曾小根",null,"高礼宾","花度-娇媚爱洛蒙霜","30g","亚克力瓶","30g",null,null,0,0,0,"PCS"]
["曾小根",null,"高礼宾","花度-娇俏凝香露","5ml","透明塑瓶","5ml",null,null,0,0,0,"PCS"]
["曾小根",null,"高礼宾","花度-娇俏凝香露","5ml","喷雾泵头","5ml",null,null,0,0,0,"PCS"]
["曾小根",null,"高礼宾","花度-娇俏凝香露","5ml","外罩","5ml",null,null,0,0,0,"PCS"]
["曾小根",null,"高礼宾","花度-娇俏凝香露","5ml","玻璃瓶","5ml"," ",null,-820,0,820,"PCS",null,null,null,null,null,null,null,null,null,null,null,null,null,null,null,null,null,null,null,null,null,null,null,null,null,null,null,null,null,null,null,null,null,null,null,null,null,null,null,null,null,null,null,null,null,null,null,null,null,null,null,null,null,null,null,null,null,null,null,null,null,null,null,null,null,null,null,null,null,null,null,null,null,null,null,null,"0003649",820]
["曾小根",null,"高礼宾","花度-娇俏凝香露/醉花因腹活元素/臻美润肤露","5ml","喷头","5ml",null,null,0,0,0,"PCS"]
["曾小根",null,"高礼宾","花度-娇俏凝香露/醉花因腹活元素/臻美润肤露","5ml","吸管","5ml",null,null,0,0,0,"PCS"]
["曾小根",null,"高礼宾","花度-娇俏凝香霜","10g","折断瓶","10g",null,null,20,820,800,"PCS",null,null,null,null,null,null,null,null,null,null,null,null,null,null,null,null,null,null,null,null,null,null,null,null,null,null,null,null,null,null,null,null,null,null,null,null,null,null,null,null,null,null,null,null,null,null,null,null,null,null,null,null,null,null,null,null,null,null,null,null,null,null,null,null,null,null,"0002938",820,null,null,null,null,null,null,null,null,"0003649",800]
["曾小根",null,"高礼宾","花度-娇俏凝香霜","10g","胶塞","10g",null,null,0,0,0,"PCS"]
["曾小根",null,"高礼宾","花度-娇俏凝香霜","10g","钉子","10g",null,null,0,0,0,"PCS"]
["曾小根",null,"高礼宾","花度-娇俏凝香霜","/","塑料瓶","/",null,null,0,0,0,"PCS"]
["曾小根",null,"高礼宾","花度-娇俏嫣红素","2ml","折断瓶","2ml",null,null,0,820,820,"PCS",null,null,null,null,null,null,null,null,null,null,null,null,null,null,null,null,null,null,null,null,null,null,null,null,null,null,null,null,null,null,null,null,null,null,null,null,null,null,null,null,null,null,null,null,null,null,null,null,null,null,null,null,null,null,null,null,null,null,null,null,null,null,null,null,null,null,"0002938",820,null,null,null,null,null,null,null,null,"003649",820]
["曾小根",null,"高礼宾","花度-娇俏嫣红素","2ml","胶塞","2ml",null,null,0,0,0,"PCS"]
["曾小根",null,"高礼宾","花度-娇俏嫣红素","2ml","钉子","2ml",null,null,0,0,0,"PCS"]
["曾小根",null,"高礼宾","花度-紧致如初","/","不干胶","/",null,null,0,0,0,"PCS"]
["曾小根",null,"高礼宾","花度-紧致如初套","12件/套","套盒","12件/套",null,null,0,0,0,"PCS"]
["曾小根",null,"高礼宾","花度-紧致如初套","12件/套","套盒标","12件/套",null,null,0,0,0,"PCS"]
["曾小根",null,"高礼宾","花度-紧致如初套","12件/套","塑封膜","23*32cm",null,null,0,0,0,"PCS"]
["曾小根",null,"高礼宾","花度-美丝柔肤贴膜","10ml","铝箔袋（润羞-美丝膜）","10ml",null,null,0,0,0,"PCS"]
["曾小根",null,"高礼宾","花度-美丝柔肤贴膜、花库-美丝柔肤贴膜","10ml","唇膜+珠光膜","10ml",null,null,0,0,0,"PCS"]
["曾小根",null,"高礼宾","花度-蒙娜丽莎","/","不干胶","/",null,null,0,0,0,"PCS"]
["曾小根",null,"高礼宾","花度-蒙娜丽莎之吻套","32件/套","套盒","40件/套",null,null,0,0,0,"PCS"]
["曾小根",null,"高礼宾","花度-蒙娜丽莎之吻套","32件/套","套盒标","40件/套",null,null,0,0,0,"PCS"]
["曾小根",null,"高礼宾","花度-蒙娜丽莎之吻套","32件/套","塑封膜","29.5*47cm",null,null,0,0,0,"PCS"]
["曾小根",null,"高礼宾","花度-蒙娜丽莎之吻套、花库-欢沁花语、花库-凤御媚妍、花库-蒙娜丽莎之吻套",null,"175分印花",null,null,null,0,0,0,"PCS"]
["曾小根",null,"高礼宾","花度-慕思润泽乳","50ml","塑瓶","50ml",null,null,0,0,0,"PCS"]
["曾小根",null,"高礼宾","花度-慕思润泽乳","50ml","套盒","50ml",null,null,0,0,0,"PCS"]
["曾小根",null,"高礼宾","花度-慕思润泽乳、花库-慕思润泽乳、润羞-慕思润泽乳","50ml","13分印花","50ml",null,null,0,0,0,"PCS"]
["曾小根",null,"高礼宾","花度-慕思润泽乳","50ml","塑瓶","50ml",null,null,0,0,0,"PCS"]
["曾小根",null,"高礼宾","花度-慕思润泽乳、花库-慕思润泽乳、润羞-慕思润泽乳","50ml","外盖","50ml",null,null,0,0,0,"PCS"]
["曾小根",null,"高礼宾","花度-慕思润泽乳","50ml","名称标","50ml",null,null,0,0,0,"PCS"]
["曾小根",null,"高礼宾","花度-慕思润泽乳、花库-慕思润泽乳、润羞-慕思润泽乳","50ml","塑封膜","17*30cm",null,null,0,0,0,"PCS"]
["曾小根",null,"高礼宾","花度-慕思润泽乳、花库-慕思润泽乳、润羞-慕思润泽乳","50ml","喷雾泵头","50ml",null,null,0,0,0,"PCS"]
["曾小根",null,"高礼宾","花度-凝香露套","30ml","套盒","30ml",null,null,0,0,0,"PCS"]
["曾小根",null,"高礼宾","花度-凝香露套","30ml","10分印花","30ml",null,null,0,0,0,"PCS"]
["曾小根",null,"高礼宾","花度-凝香露套","30ml","塑瓶","30ml",null,null,0,0,0,"PCS"]
[]
["曾小根",null,"高礼宾","花度-凝香露套","30ml","名称标","30ml",null,null,0,0,0,"PCS"]
["曾小根",null,"高礼宾","花度-凝香露套","30ml","塑封膜","17*30cm",null,null,0,0,0,"PCS"]
[]
[]
[]
["曾小根",null,"高礼宾","花度-尊宠精华素","5ml","折断瓶","2g",null,null,0,0,0,"PCS"]
["曾小根",null,"高礼宾","花度-尊宠精华素","5ml","胶塞","2g",null,null,0,0,0,"PCS"]
["曾小根",null,"高礼宾","花度-尊宠精华素","5ml","塞钉","2g",null,null,0,0,0,"PCS"]
["曾小根",null,"高礼宾","花度-尊宠精华肽","2g","白色安瓶","2g",null,null,0,0,0,"PCS"]
["曾小根",null,"高礼宾","花度-尊宠精华肽","2g","开口内塞","2g",null,null,0,0,0,"PCS"]
["曾小根",null,"高礼宾","花度-尊宠精华肽","2g","亮金铝盖","2g",null,null,{"$f":"O229+K229-L229","v":0},{"$f":"Q229+U229+Y229+AC229+AG229+AK229+AO229+AS229+AW229+BA229+BE229+BI229+BM229+BQ229+BU229+BY229+CC229+CG229+CK229+CO229+CS229+CW229+DA229+DE229+DI229+DM229+DQ229+DU229+DY229+EC229+EG229","v":0},{"$f":"S229+W229+AA229+AE229+AI229+AM229+AQ229+AU229+AY229+BC229+BG229+BK229+BO229+BS229+BW229+CA229+CE229+CI229+CM229+CQ229+CU229+CY229+DC229+DG229+DK229+DO229+DS229+DW229+EA229+EE229+EI229","v":0},"PCS"]
["曾小根",null,"高礼宾","花库-风韵爱洛蒙霜","10ml",null,null,null,null,0,0,0,"PCS"]
["曾小根",null,"高礼宾","花库-风韵爱洛蒙霜 ","30g","亚克力瓶","30g",null,null,0,0,0,"PCS"]
["曾小根",null,"高礼宾","花库-风韵柔情霜","2g","折断瓶","2g",null,null,0,0,0,"PCS"]
["曾小根",null,"高礼宾","花库-凤御媚妍","36件/套","套盒","36件/套",null,null,0,0,0,"PCS"]
["曾小根",null,"高礼宾","花库-凤御媚妍","36件/套","套盒标","36件/套",null,null,0,0,0,"PCS"]
["曾小根",null,"高礼宾","花库-凤御媚妍","36件/套","塑封膜","36*64cm",null,null,0,0,0,"PCS"]
["曾小根",null,"高礼宾","花库-凤御媚妍","36件/套","助推棒",null,null,null,0,0,0,"PCS"]
["曾小根",null,"高礼宾","花库-凤韵爱洛蒙霜","10g","折断瓶","10g",null,null,0,0,0,"PCS"]
["曾小根",null,"高礼宾","花库-凤韵爱洛蒙霜","10g","胶塞","10g",null,null,0,0,0,"PCS"]
["曾小根",null,"高礼宾","花库-凤韵爱洛蒙霜","10g","塞钉","10g",null,null,0,0,0,"PCS"]
["曾小根",null,"高礼宾","花库-凤韵爱洛蒙霜","30g","亚克力瓶","30g",null,null,0,0,0,"PCS"]
["曾小根",null,"高礼宾","花库-凤韵爱洛蒙霜","30g","手拉内垫","30g",null,null,0,0,0,"PCS"]
["曾小根",null,"高礼宾","花库-凤韵爱洛蒙霜","30g","外盖","30g",null,null,0,0,0,"PCS"]
["曾小根",null,"高礼宾","花库-凤韵柔情霜","10g","折断瓶","10g",null,null,0,0,0,"PCS"]
["曾小根",null,"高礼宾","花库-凤韵柔情霜","10g","胶塞","10g",null,null,0,0,0,"PCS"]
["曾小根",null,"高礼宾","花库-凤韵柔情霜","10g","塞钉","10g",null,null,0,0,0,"PCS"]
["曾小根",null,"高礼宾","花库-花韵红颜","24件/套","套盒","24件/套",null,null,0,0,0,"PCS"]
["曾小根",null,"高礼宾","花库-花韵红颜","/","不干胶","/",null,null,100,100,0,"PCS",null,null,null,null,null,null,null,null,null,null,null,null,null,null,null,null,null,null,null,null,null,null,null,null,null,null,null,null,null,null,null,null,null,null,null,null,null,null,null,null,null,null,null,null,null,null,null,null,null,null,null,null,null,null,null,null,null,null,null,null,null,null,null,null,null,null,"0002938",100]
["曾小根",null,"高礼宾","花库-花韵红颜","24件/套","套盒标","24件/套",null,null,0,0,0,"PCS"]
["曾小根",null,"高礼宾","花库-花韵红颜","24件/套","塑封膜","36*64cm",null,null,0,0,0,"PCS"]
["曾小根",null,"高礼宾","花库-花韵红颜、花度-粉嫩娇颜套",null,"100分印花",null,null,null,0,0,0,"PCS"]
["曾小根",null,"高礼宾","花库-欢沁花语","40件/套","套盒","40件/套",null,null,0,0,0,"PCS"]
["曾小根",null,"高礼宾","花库-欢沁花语","40件/套","套盒标","40件/套",null,null,0,0,0,"PCS"]
["曾小根",null,"高礼宾","花库-欢沁花语","40件/套","助推棒","40件/套",null,null,0,0,0,"PCS"]
["曾小根",null,"高礼宾","花库-欢沁花语","40件/套","塑封膜","36*64cm",null,null,0,0,0,"PCS"]
["曾小根",null,"高礼宾","花库-欢沁花语",null,"套盒",null,null,null,0,0,0,"PCS"]
["曾小根",null,"高礼宾","花库-紧致如初套","12件/套","套盒","12件/套",null,null,0,0,0,"PCS"]
["曾小根",null,"高礼宾","花库-紧致如初套","12件/套","套盒标","12件/套",null,null,0,0,0,"PCS"]
["曾小根",null,"高礼宾","花库-紧致如初套","12件/套","塑封膜","23*32cm",null,null,0,0,0,"PCS"]
["曾小根",null,"高礼宾","花库-美丝柔肤贴膜","10ml","铝箔袋（花库-美丝膜）","10ml",null,null,0,0,0,"PCS"]
["曾小根",null,"高礼宾","花库-蒙娜丽莎之吻套","32件/套","套盒","32件/套",null,null,0,0,0,"PCS"]
["曾小根",null,"高礼宾","花库-蒙娜丽莎之吻套","32件/套","套盒标","32件/套",null,null,0,0,0,"PCS"]
["曾小根",null,"高礼宾","花库-蒙娜丽莎之吻套","32件/套","塑封膜","29.5*47cm",null,null,0,0,0,"PCS"]
["曾小根",null,"高礼宾","花库-慕思润泽乳","50ml","塑瓶","50ml",0,0,0,0,0,"PCS"]
["曾小根",null,"高礼宾","花库-凝润精华素","5ml","折断瓶","5ml",null,null,0,0,0,"PCS"]
["曾小根",null,"高礼宾","花库-凝润精华素","5ml","胶塞","5ml",null,null,0,0,0,"PCS"]
["曾小根",null,"高礼宾","花库-凝润精华素","5ml","塞钉","5ml",null,null,0,0,0,"PCS"]
["曾小根",null,"高礼宾","花库-凝润精华肽","2g","白色安瓶","2g",null,null,0,0,0,"PCS"]
["曾小根",null,"高礼宾","花库-凝润精华肽","2g","灰塞","2g",null,null,0,0,0,"PCS"]
["曾小根",null,"高礼宾","花库-凝润精华肽","2g","金色铝盖","2g",null,null,0,0,0,"PCS"]
["曾小根",null,"高礼宾","花库-卿本佳人","65件/套","套盒","65件/套",null,null,0,0,0,"PCS"]
["曾小根",null,"高礼宾","花库-卿本佳人","65件/套","套盒标","65件/套",null,null,0,0,0,"PCS"]
["曾小根",null,"高礼宾","花库-卿本佳人","65件/套","助推棒",null,null,null,0,0,0,"PCS"]
["曾小根",null,"高礼宾","花库-卿本佳人","65件/套","素女经",null,null,null,-200,0,200,"PCS",null,null,null,null,null,null,null,null,null,null,null,null,null,null,null,null,null,null,null,null,null,null,null,null,null,null,null,null,null,null,null,null,null,null,null,null,null,null,null,null,null,null,null,null,null,null,null,null,null,null,null,null,null,null,null,null,null,null,null,null,null,null,null,null,null,null,null,null,"0003638",200]
["曾小根",null,"高礼宾","花库-卿本佳人","65件/套","塑封膜","51.5*66cm",null,null,0,0,0,"PCS"]
["曾小根",null,"高礼宾","花库-卿本佳人","/","不干胶","/",null,null,0,0,0,"PCS"]
["曾小根",null,"高礼宾","花库-性香原液","10ml","套盒","10ml",null,null,0,0,0,"PCS"]
["曾小根",null,"高礼宾","花库-性香原液","10ml","套盒标","10ml",null,null,0,0,0,"PCS"]
["曾小根",null,"高礼宾","花库-性香原液","10ml","玻璃瓶","10ml",null,null,0,0,0,"PCS"]
["曾小根",null,"高礼宾","花库-臻美按摩霜","10g","折断瓶","10g",null,null,0,820,820,"PCS",null,null,null,null,null,null,null,null,null,null,null,null,null,null,null,null,null,null,null,null,null,null,null,null,null,null,null,null,null,null,null,null,null,null,null,null,null,null,null,null,null,null,null,null,null,null,null,null,null,null,null,null,null,null,null,null,null,null,null,null,null,null,null,null,null,null,"0002938",820,null,null,null,null,null,null,null,null,"0003649",820]
["曾小根",null,"高礼宾","花库-臻美按摩霜","10g","胶塞","10g",null,null,0,0,0,"PCS"]
["曾小根",null,"高礼宾","花库-臻美按摩霜","10g","塞钉","10g",null,null,0,0,0,"PCS"]
["曾小根",null,"高礼宾","花库-臻美按摩霜","/","塑料瓶","/",null,null,0,0,0,"PCS"]
["曾小根",null,"高礼宾","花库-臻美活力素","2ml","折断瓶","2ml",null,null,-820,0,820,"PCS",null,null,null,null,null,null,null,null,null,null,null,null,null,null,null,null,null,null,null,null,null,null,null,null,null,null,null,null,null,null,null,null,null,null,null,null,null,null,null,null,null,null,null,null,null,null,null,null,null,null,null,null,null,null,null,null,null,null,null,null,null,null,null,null,null,null,null,null,null,null,null,null,null,null,null,null,"0003649",820]
["曾小根",null,"高礼宾","花库-臻美活力素","2ml","胶塞","2ml",null,null,0,0,0,"PCS"]
["曾小根",null,"高礼宾","花库-臻美活力素","2ml","塞钉","2ml",null,null,0,0,0,"PCS"]
["曾小根",null,"高礼宾","花库-臻美活力素","2ml","折断瓶","2ml",null,null,0,0,0,"PCS"]
["曾小根",null,"高礼宾","花库-臻美润肤露","5ml","玻璃瓶","5ml",null,null,3076,3076,0,"PCS"]
["曾小根",null,"高礼宾","花库-臻美润肤露","5ml","喷雾泵头","5ml",null,null,0,0,0,"PCS"]
["曾小根",null,"高礼宾","花库-臻美润肤露","5ml","外罩","5ml",null,null,0,0,0,"PCS"]
["曾小根",null,"高礼宾","花库-臻美润肤露","5ml","玻璃瓶","5ml",null,null,0,0,0,"PCS"]
["曾小根",null,"高礼宾","焕彩霜肤露/腹活元素/....玻璃瓶","5ml","喷雾喷头","5ml",null,null,{"$f":"O291+K291-L291","v":0},{"$f":"Q291+U291+Y291+AC291+AG291+AK291+AO291+AS291+AW291+BA291+BE291+BI291+BM291+BQ291+BU291+BY291+CC291+CG291+CK291+CO291+CS291+CW291+DA291+DE291+DI291+DM291+DQ291+DU291+DY291+EC291+EG291","v":0},{"$f":"S291+W291+AA291+AE291+AI291+AM291+AQ291+AU291+AY291+BC291+BG291+BK291+BO291+BS291+BW291+CA291+CE291+CI291+CM291+CQ291+CU291+CY291+DC291+DG291+DK291+DO291+DS291+DW291+EA291+EE291+EI291","v":0},"PCS"]
["曾小根",null,"高礼宾","润羞vs柔情霜","2g","折断瓶","2g",null,null,0,0,0,"PCS"]
["曾小根",null,"高礼宾","润羞-粉红诱惑","26件/套","套盒","26件/套",null,null,0,0,0,"PCS"]
["曾小根",null,"高礼宾","润羞-粉红诱惑","26件/套","套盒标","26件/套",null,null,0,0,0,"PCS"]
["曾小根",null,"高礼宾","润羞-粉红诱惑","26件/套","塑封膜",null,null,null,0,0,0,"PCS"]
["曾小根",null,"高礼宾","润羞-粉红诱惑","26件/套","纸箱","26件/套",null,null,0,0,0,"PCS"]
["曾小根",null,"高礼宾","润羞风情爱洛蒙霜","10ml","折断瓶","10ml",null,null,0,0,0,"PCS"]
["曾小根",null,"高礼宾","润羞-风尚柔情套盒","61件/套","套盒","61件/套",null,null,0,0,0,"PCS"]
["曾小根",null,"高礼宾","润羞-风尚柔情套盒","61件/套","套盒标","61件/套",null,null,0,0,0,"PCS"]
["曾小根",null,"高礼宾","润羞-风尚柔情套盒","61件/套","塑封膜",null,null,null,0,0,0,"PCS"]
["曾小根",null,"高礼宾","润羞-紧致如初","12件/套","套盒","12件/套",null,null,0,0,0,"PCS"]
["曾小根",null,"高礼宾","润羞-紧致如初","12件/套","套盒标","12件/套",null,null,0,0,0,"PCS"]
["曾小根",null,"高礼宾","润羞-紧致如初","12件/套","塑封膜",null,null,null,0,0,0,"PCS"]
["曾小根",null,"高礼宾","润羞-紧致如初","/","不干胶","/",null,null,0,0,0,"PCS"]
[]
[]
["曾小根",null,"高礼宾","润羞-妙泉润香霜","10g ","折断瓶","10g",null,null,0,0,0,"PCS"]
[]
[]
[]
["曾小根",null,"高礼宾","润羞-妙泉润香霜","10g ","折断瓶","10g ",null,null,0,820,820,"PCS",null,null,null,null,null,null,null,null,null,null,null,null,null,null,null,null,null,null,null,null,null,null,null,null,null,null,null,null,null,null,null,null,null,null,null,null,null,null,null,null,null,null,null,null,null,null,null,null,null,null,null,null,null,null,null,null,null,null,null,null,null,null,null,null,null,null,"0002938",820,null,null,null,null,null,null,null,null,"0003649",820]
["曾小根",null,"高礼宾","润羞-妙泉润香霜","/","塑料瓶","/",null,null,0,0,0,"PCS"]
[]
[]
[]
["曾小根",null,"高礼宾","润羞-性香原液","10ml","套盒标","10ml",null,null,0,0,0,"PCS"]
["曾小根",null,"高礼宾","润羞-性香原液","10ml","玻璃瓶","10ml",null,null,0,0,0,"PCS"]
[]
[]
[]
["曾小根",null,"高礼宾","润羞-慕思润泽乳","50ml","塑瓶","50ml",null,null,0,0,0,"PCS"]
["曾小根",null,"高礼宾","润羞-慕思润泽乳","50ml","名称标","50ml",null,null,0,0,0,"PCS"]
["曾小根",null,"高礼宾","润羞-臻金精华素","5ml","折断瓶","5ml",null,null,0,0,0,"PCS"]
["曾小根",null,"高礼宾","收缩膜34*59",null,"收缩膜34*59",null,null,null,0,0,0,"PCS"]
["曾小根",null,"高礼宾","收缩膜36*64",null,"收缩膜36*64",null,null,null,0,0,0,"PCS"]
["曾小根",null,"高礼宾","通用慕思","2ml","折断瓶","2ml",null,null,11880,11880,0,"PCS",null,null,null,null,null,null,null,null,null,null,null,null,null,null,null,null,null,null,null,null,null,null,null,null,null,null,null,null,null,null,null,null,null,null,null,null,null,null,null,null,null,null,null,null,null,null,null,null,null,null,null,null,null,null,"0002929",{"$f":"2376*5","v":11880}]
["曾小根",null,"高礼宾","通用慕思","2ml","顶针（塞丁）","2ml",null,null,10000,10000,0,"PCS",null,null,null,null,null,null,null,null,null,null,null,null,null,null,null,null,null,null,null,null,null,null,null,null,null,null,null,null,null,null,null,null,null,null,null,null,null,null,null,null,null,null,null,null,null,null,null,null,null,null,null,null,null,null,"0002929",10000]
["曾小根",null,"高礼宾","通用慕思","2ml","内塞","2ml ",null,null,10000,10000,0,"PCS",null,null,null,null,null,null,null,null,null,null,null,null,null,null,null,null,null,null,null,null,null,null,null,null,null,null,null,null,null,null,null,null,null,null,null,null,null,null,null,null,null,null,null,null,null,null,null,null,null,null,null,null,null,null,"0002929",{"$f":"10000","v":10000}]
[]
["曾小根",null,"高礼宾","润羞-性香原液、醉花因-性香原液、花库-性香原液、花度-性香原液","10ml","外罩","10ml",null,null,0,0,0,"PCS"]
["曾小根",null,"高礼宾","印花","/","175分印花","/",null,null,0,0,0,"PCS"]
["曾小根",null,"高礼宾","折断瓶","5ml/10ml","5ml/10ml共用钉子","5ml/10ml",null,null,0,0,0,"PCS"]
["曾小根",null,"高礼宾","折断瓶","2ml","2ml钉子","2ml",null,null,0,0,0,"PCS"]
["曾小根",null,"高礼宾","折断瓶","5ml","5ml胶塞","5ml",null,null,0,0,0,"PCS"]
["曾小根",null,"高礼宾","折断瓶","2ml","2ml胶塞","2ml",null,null,0,0,0,"PCS"]
["曾小根",null,"高礼宾","折断瓶","10ml","10ml胶塞","10ml",null,null,0,0,0,"PCS"]
["曾小根",null,"高礼宾","珍珠棉",null,"珍珠棉",null,null,null,0,0,0,"PCS"]
["曾小根",null,"高礼宾","珍珠棉","33.5*28.5*1.5","珍珠棉","33.5*28.5*1.5",null,null,0,0,0,"PCS"]
["曾小根",null,"高礼宾","珍珠棉","40*34*1.5","珍珠棉","33.5*28.5*1.5",null,null,0,0,0,"PCS"]
["曾小根",null,"高礼宾","珠光膜+唇膜","/","珠光膜+唇膜","/",null,null,0,0,0,"PCS"]
["曾小根",null,"高礼宾","醉花因-风姿爱洛蒙霜","30g","亚克力瓶","30g",null,null,0,0,0,"PCS"]
["曾小根",null,"高礼宾","醉花因-腹活能量SPA套盒","15件/套","套盒","15件/套",null,null,0,0,0,"PCS"]
["曾小根",null,"高礼宾","醉花因-腹活能量SPA套盒","15件/套","套盒标","15件/套",null,null,0,0,0,"PCS"]
["曾小根",null,"高礼宾","醉花因-腹活能量SPA套盒","15件/套","塑封膜",null,null,null,0,0,0,"PCS"]
["曾小根",null,"高礼宾","醉花因-腹活元素","5ml","玻璃瓶","5ml",null,null,0,0,0,"PCS"]
["曾小根",null,"高礼宾","醉花因-换彩按摩膏","10ml","折断瓶","10ml",null,null,0,0,0,"PCS"]
["曾小根",null,"高礼宾","醉花因-焕彩活力素","2ml","折断瓶","2ml",null,null,0,0,0,"PCS"]
["曾小根",null,"高礼宾","醉花因-焕彩活力素","/","塑料瓶","/",null,null,0,0,0,"PCS"]
["曾小根",null,"高礼宾","醉花因-焕彩霜肤露","5ml","玻璃瓶","5ml",null,null,0,0,0,"PCS"]
["曾小根",null,"高礼宾","醉花因-金纯精华素","5ml","折断瓶","5ml",null,null,0,0,0,"PCS"]
["曾小根",null,"高礼宾","醉花因-紧致如初","/","不干胶","/",null,null,0,0,0,"PCS"]
["曾小根",null,"高礼宾","醉花因-蒙娜丽莎","32件/套","套盒","32件/套",null,null,0,0,0,"PCS"]
["曾小根",null,"高礼宾","醉花因-蒙娜丽莎","32件/套","收缩膜","32件/套",null,null,0,0,0,"PCS"]
["曾小根",null,"高礼宾","醉花因-蒙娜丽莎","32件/套","名称标","32件/套",null,null,0,0,0,"PCS"]
["曾小根",null,"高礼宾","醉花因-蒙娜丽莎之吻","/","不干胶","/",null,null,{"$f":"O355+K355-L355","v":0},{"$f":"Q355+U355+Y355+AC355+AG355+AK355+AO355+AS355+AW355+BA355+BE355+BI355+BM355+BQ355+BU355+BY355+CC355+CG355+CK355+CO355+CS355+CW355+DA355+DE355+DI355+DM355+DQ355+DU355+DY355+EC355+EG355","v":0},{"$f":"S355+W355+AA355+AE355+AI355+AM355+AQ355+AU355+AY355+BC355+BG355+BK355+BO355+BS355+BW355+CA355+CE355+CI355+CM355+CQ355+CU355+CY355+DC355+DG355+DK355+DO355+DS355+DW355+EA355+EE355+EI355","v":0},"PCS"]
["曾小根",null,"高礼宾","醉花因-慕思润泽乳瓶","50ml","塑料瓶","50ml",null,null,0,0,0,"PCS"]
["曾小根",null,"高礼宾","醉花因-性香原液","10ml","套盒","10ml",null,null,0,0,0,"PCS"]
["曾小根",null,"高礼宾","醉花因-性香原液","10ml","套盒标","10ml",null,null,0,0,0,"PCS"]
["曾小根",null,"高礼宾","醉花因-性香原液","10ml","玻璃瓶","10ml",null,null,0,0,0,"PCS"]
["曾小根",null,"高礼宾",null,null,"50分印花",null,null,null,0,0,0,"PCS"]
["黄细娇",null,"工厂","1kg大白桶","1kg","塑料瓶","1kg",null,null,1000,0,0,"PCS",null,1000]
["黄细娇",null,"工厂","1kg大白桶","1kg","塑料盖","1kg",null,null,1000,0,0,"PCS",null,1000]
["黄细娇",null,"工厂","透明瓶","500g","塑料瓶","500g",null,null,5125,0,0,"PCS",null,5125]
["黄细娇",null,"工厂","透明瓶","500g","外盖","500g",null,null,5125,0,0,"PCS",null,5125]
[]
[]
[]
["曾小根",null,"郭建峰","活氧启动精华水","20ml","玻璃瓶","20ml",null,null,5130,0,0,"PCS",null,5130]
["曾小根",null,"郭建峰","活氧启动精华水","20ml","内塞","20ml",null,null,5130,0,0,"PCS",null,5130]
["曾小根",null,"郭建峰","活氧启动精华水","20ml","金盖","20ml",null,null,5130,0,0,"PCS",null,5130]
["曾小根",null,"郭建峰","蓝铜胜肽原液","3ml","推瓶","3ml",null,null,0,0,0,"PCS",null,0]
["曾小根",null,"郭建峰","蓝铜胜肽原液","3ml","胶塞","3ml",null,null,0,0,0,"PCS",null,0]
["曾小根",null,"郭建峰","蓝铜胜肽原液","3ml","塞丁","3ml",null,null,0,0,0,"PCS",null,0]
["曾小根",null,"郭建峰","水娃娃富氧术套","40件/套","套盒",null,null,null,500,0,0,"PCS",null,500]
["曾小根",null,"郭建峰","水娃娃富氧术套","40件/套","说明书",null,null,null,0,0,0,"PCS",null,0]
["曾小根",null,"郭建峰","水娃娃富氧术套","40件/套","积分卡",null,null,null,0,0,0,"PCS",null,0]
["曾小根",null,"郭建峰","水娃娃富氧术套","40件/套","纸箱",null,null,null,0,0,0,"PCS",null,0]
["曾小根",null,"郭建峰","水娃娃富氧术套","40件/套","套盒","40件/套",null,null,0,0,0,"PCS",null,0]
["曾小根",null,"郭建峰","水娃娃富氧术套","40件/套","说明书",null,null,null,0,0,0,"PCS",null,0]
["曾小根",null,"郭建峰","水娃娃富氧术套","40件/套","积分卡",null,null,null,0,0,0,"PCS",null,0]
["曾小根",null,"郭建峰","水娃娃富氧术套","40件/套","纸箱",null,null,null,0,0,0,"PCS",null,0]
["曾小根",null,"郭建峰","碳酸富氧膜A","10g","推瓶","10g",null,null,0,0,0,"PCS",null,0]
["曾小根",null,"郭建峰","碳酸富氧膜A","10g","胶塞","10g",null,null,0,0,0,"PCS",null,0]
["曾小根",null,"郭建峰","碳酸富氧膜A","10g","塞丁","10g",null,null,0,0,0,"PCS",null,0]
["曾小根",null,"郭建峰","碳酸富氧膜B","10g","推瓶","10g",null,null,0,0,0,"PCS",null,0]
["曾小根",null,"郭建峰","碳酸富氧膜B","10g","胶塞","10g",null,null,0,0,0,"PCS",null,0]
["曾小根",null,"郭建峰","碳酸富氧膜B","10g","塞丁","10g",null,null,0,0,0,"PCS",null,0]
["左林青",null,"何凡","A384+3.5C珠光膜","/","A384+3.5C珠光膜","/",null,null,0,0,0,"PCS",null,0]
["左林青",null,"何凡","保加利亚洗发汁","450ml","透明四方瓶","450ml",null,null,19950,0,0,"PCS",null,19950]
["左林青",null,"何凡","保加利亚洗发汁","450ml","压嘴式泵头","450ml",null,null,10000,0,0,"PCS",null,10000]
["左林青",null,"何凡","保加利亚洗发汁","450ml","彩盒","450ml",null,null,21120,0,0,"PCS",null,21120]
["左林青",null,"何凡","保加利亚洗发汁","450ml","内托","450ml",null,null,21200,0,0,"PCS",null,21200]
["左林青",null,"何凡","保加利亚洗发汁","450ml","标贴【正】","450ml",null,null,12990,0,0,"PCS",null,12990]
["左林青",null,"何凡","保加利亚洗发汁","450ml","标贴【反】","450ml",null,null,0,0,0,"PCS",null,0]
["林静",null,"何凡","调肤修护精华","10ml","折断瓶","10ml",null,null,0,0,0,"PCS",null,0]
["林静",null,"何凡","调肤修护精华","10ml","内塞","10ml",null,null,0,0,0,"PCS",null,0]
["林静",null,"何凡","调肤修护精华","10ml","塞丁","10ml",null,null,0,0,0,"PCS",null,0]
["左林青",null,"何凡","对策面膜纸箱",null,"纸箱",null,null,null,0,0,0,"PCS",null,0]
["左林青",null,"何凡","海蓝之水","120ml","彩盒","120ml",null,null,0,0,0,"PCS",null,0]
["左林青",null,"何凡","海蓝之水","120ml","内托","120ml",null,null,0,0,0,"PCS",null,0]
["林青",null,"何凡","海蓝之水","120ml","瓶子","120ml",null,null,4804,0,0,"PCS",null,4804]
["林青",null,"何凡","海蓝之水","120ml","泵头","120ml",null,null,1800,2160,561,"PCS",null,201,null,null,null,null,null,null,null,null,null,null,null,null,null,null,null,null,null,null,null,null,null,null,null,null,null,null,null,null,null,null,null,null,null,null,null,null,null,null,null,null,null,null,null,null,5173165,{"$f":"3*624+288","v":2160},4,null,null,null,null,null,null,null,null,null,null,null,"0002966",561]
["左林青",null,"何凡","亮颜对策面膜","25g","收缩膜","25g",null,null,0,0,0,"PCS",null,0]
["左林青",null,"何凡","亮颜对策面膜彩盒","25g","彩盒","25g",null,null,0,0,0,"PCS",null,0]
["左林青",null,"何凡","亮颜对策面膜袋子","25g","袋子","25g",null,null,-1000,0,1000,"PCS",null,0,null,null,null,null,null,null,null,null,null,null,null,null,null,null,null,null,null,null,null,null,null,null,null,null,null,null,null,null,null,null,null,null,null,null,null,null,null,null,null,null,null,null,null,null,null,null,null,null,null,null,null,null,null,null,null,null,null,null,null,null,null,null,"0003627",1000]
["左林青",null,"何凡","亮颜对策面膜内托","25g","内托","25g",null,null,100,0,0,"PCS",null,100]
["林静",null,"何凡","玫瑰焕颜水滢霜","50ml","玻璃瓶","50ml",null,null,0,0,0,"PCS",null,0]
["林静",null,"何凡","玫瑰焕颜水滢霜","50ml","手拉垫片","50ml",null,null,0,0,0,"PCS",null,0]
["林静",null,"何凡","玫瑰焕颜水滢霜","50ml","外盖（含盖内垫）","50ml",null,null,0,0,0,"PCS",null,0]
["林静",null,"何凡","玫瑰精灵焕颜","4件/套","套盒","4件/套",null,null,0,0,0,"PCS",null,0]
["林静",null,"何凡","玫瑰精灵焕颜","4件/套","说明书",null,null,null,0,0,0,"PCS",null,0]
["林静",null,"何凡","玫瑰精灵焕颜","4件/套","防伪标",null,null,null,0,0,0,"PCS",null,0]
["林静",null,"何凡","玫瑰水精灵精华乳","60ml","塑料瓶","60ml",null,null,0,0,0,"PCS",null,0]
["林静",null,"何凡","玫瑰水精灵精华乳","60ml","压嘴泵头","60ml",null,null,0,0,0,"PCS",null,0]
["林静",null,"何凡","玫瑰水精灵精华乳","60ml","外盖","60ml",null,null,0,0,0,"PCS",null,0]
["林静",null,"何凡","玫瑰水精灵喷雾","120ml","塑料瓶","120ml",null,null,0,0,0,"PCS",null,0]
["林静",null,"何凡","玫瑰水精灵喷雾","120ml","喷雾泵头","120ml",null,null,0,0,0,"PCS",null,0]
["林静",null,"何凡","玫瑰水精灵喷雾","120ml","外盖","120ml",null,null,0,0,0,"PCS",null,0]
["林静",null,"黄仲祥","*6共用内托","5ml ","礼盒","5ml",null,null,{"$f":"O419+K419-L419","v":754},{"$f":"Q419+U419+Y419+AC419+AG419+AK419+AO419+AS419+AW419+BA419+BE419+BI419+BM419+BQ419+BU419+BY419+CC419+CG419+CK419+CO419+CS419+CW419+DA419+DE419+DI419+DM419+DQ419+DU419+DY419+EC419+EG419","v":754},{"$f":"S419+W419+AA419+AE419+AI419+AM419+AQ419+AU419+AY419+BC419+BG419+BK419+BO419+BS419+BW419+CA419+CE419+CI419+CM419+CQ419+CU419+CY419+DC419+DG419+DK419+DO419+DS419+DW419+EA419+EE419+EI419","v":0},"PCS","已盘点",null,null,null,null,null,null,null,null,null,null,null,null,null,null,null,null,null,null,null,null,null,null,null,null,null,null,null,null,null,null,null,null,null,null,null,null,null,null,null,null,null,null,null,null,null,null,null,null,null,"盘点",754]
["林静",null,"黄仲祥","100g软管共用外盖","100g","外盖","100g",null,null,15540,0,0,"PCS",null,15540]
["林静",null,"黄仲祥","3D塑型胶原蛋白凝胶瓶","5ml",null,"5ml",null,null,0,0,0,"PCS","已盘点",null,null,null,null,null,null,null,null,null,null,null,null,null,null,null,null,null,null,null,null,null,null,null,null,null,null,null,null,null,null,null,null,null,null,null,null,null,null,null,null,null,null,null,null,null,null,null,null,null,"盘点",0]
["林静",null,"黄仲祥","4款方方程组合共用","28件套","花盒","28件套",null,null,84,84,0,"PCS","己盘点",null,null,null,null,null,null,null,null,null,null,null,null,null,null,null,null,null,null,null,null,null,null,null,null,null,null,null,null,null,null,null,null,null,null,null,null,null,null,null,null,null,null,null,null,null,null,null,null,null,"盘点",84]
["林静",null,"黄仲祥","6*-蕴能增效赋活原液","5ml ","礼盒","5ml",null,null,357,357,0,"PCS","已盘点",null,null,null,null,null,null,null,null,null,null,null,null,null,null,null,null,null,null,null,null,null,null,null,null,null,null,null,null,null,null,null,null,null,null,null,null,null,null,null,null,null,null,null,null,null,null,null,null,null,"盘点",357]
["林静",null,"黄仲祥","6*-蕴能增效菁原液","5ML","礼盒","5ml",null,null,397,397,0,"PCS","己盘点",null,null,null,null,null,null,null,null,null,null,null,null,null,null,null,null,null,null,null,null,null,null,null,null,null,null,null,null,null,null,null,null,null,null,null,null,null,null,null,null,null,null,null,null,null,null,null,null,null,"盘点",397]
["林静",null,"黄仲祥","氨基酸多效洁肤乳","250ml","塑瓶","250ml",null,null,140,140,0,"PCS","已盘点",0,null,null,null,null,null,null,null,null,null,null,null,null,null,null,null,null,null,null,null,null,null,null,null,null,null,null,null,null,null,null,null,null,null,null,null,null,null,null,null,null,null,null,null,null,null,null,null,null,"盘点",140]
["林静",null,"黄仲祥","氨基酸多效洁肤乳","100g","花盒","100g ",null,null,2780,2780,0,"PCS","已盘点",null,null,null,null,null,null,null,null,null,null,null,null,null,null,null,null,null,null,null,null,null,null,null,null,null,null,null,null,null,null,null,null,null,null,null,null,null,null,null,null,null,null,null,null,null,null,null,null,null,"盘点",2780]
["林静",null,"黄仲祥","氨基酸多效洁肤乳","100G","软管","100G",null,null,5510,0,2190,"PCS","已盘点",7700,null,null,null,null,null,null,null,null,null,null,null,null,null,null,null,null,null,null,null,null,null,null,null,null,null,null,null,null,null,null,null,null,null,null,null,null,null,null,null,null,null,null,null,null,null,null,null,null,null,null,"盘亏",2190]
["林静",null,"黄仲祥","氨基酸多效洁肤乳","100G","封口贴","100G",null,null,0,0,0,"PCS",null,0]
["林静",null,"黄仲祥","氨基酸多效洁肤乳","100G","亚克力盖子","100G",null,null,0,0,0,"PCS",null,0]
["林静",null,"黄仲祥","氨基酸多效洁肤乳","10G","软管","10G",null,null,6300,6300,0,"PCS","已盘点",0,null,null,null,null,null,null,null,null,null,null,null,null,null,null,null,null,null,null,null,null,null,null,null,null,null,null,null,null,null,null,null,null,null,null,null,null,null,null,null,null,null,null,null,null,null,null,null,null,"盘点",6300]
["林静",null,"黄仲祥","氨基酸多效洁肤乳","10G","封口贴","10G",null,null,0,0,0,"PCS",null,0]
["林静",null,"黄仲祥","氨基酸多效洁肤乳","10G","拧盖","10G",null,null,0,0,0,"PCS",null,0]
["林静",null,"黄仲祥","按摩膏","250ml","塑料瓶","250ml",null,null,439,0,0,"PCS",null,439]
["林静",null,"黄仲祥","瓷白美肌靓丽霜","30G","玻璃瓶","30G",null,null,0,0,0,"PCS",null,0]
["林静",null,"黄仲祥","瓷白美肌靓丽霜","30G","手拉垫片","30G",null,null,0,0,0,"PCS",null,0]
["林静",null,"黄仲祥","瓷白美肌靓丽霜","30G","外盖","30G",null,null,0,0,0,"PCS",null,0]
["林静",null,"黄仲祥","瓷白美肌靓丽霜","30G","盖垫片","30G",null,null,0,0,0,"PCS",null,0]
["林静",null,"黄仲祥","滴管瓶共用滴管","5ML","滴管瓶","5ML",null,null,24600,24600,0,"PCS","已盘点",null,null,null,null,null,null,null,null,null,null,null,null,null,null,null,null,null,null,null,null,null,null,null,null,null,null,null,null,null,null,null,null,null,null,null,null,null,null,null,null,null,null,null,null,null,null,null,null,null,"盘点",24600]
["林静",null,"黄仲祥","滴管瓶共用肩套","20ml","滴管瓶","20ml",null,null,10729,10729,0,"PCS","已盘点",null,null,null,null,null,null,null,null,null,null,null,null,null,null,null,null,null,null,null,null,null,null,null,null,null,null,null,null,null,null,null,null,null,null,null,null,null,null,null,null,null,null,null,null,null,null,null,null,null,"盘点",10729]
["林静",null,"黄仲祥","滴管瓶共用内塞","20ml","滴管瓶","20ml",null,null,13001,13001,0,"PCS","已盘点",null,null,null,null,null,null,null,null,null,null,null,null,null,null,null,null,null,null,null,null,null,null,null,null,null,null,null,null,null,null,null,null,null,null,null,null,null,null,null,null,null,null,null,null,null,null,null,null,null,"盘点",13001]
["林静",null,"黄仲祥","滴管瓶共用瓶盖","5ML","滴管瓶","5ML",null,null,21728,21728,0,"PCS","已盘点",null,null,null,null,null,null,null,null,null,null,null,null,null,null,null,null,null,null,null,null,null,null,null,null,null,null,null,null,null,null,null,null,null,null,null,null,null,null,null,null,null,null,null,null,null,null,null,null,null,"盘点",21728]
["林静",null,"黄仲祥","滴管瓶共用瓶盖","20ML","滴管瓶","20ml",null,null,10123,10123,0,"PCS","已盘点",null,null,null,null,null,null,null,null,null,null,null,null,null,null,null,null,null,null,null,null,null,null,null,null,null,null,null,null,null,null,null,null,null,null,null,null,null,null,null,null,null,null,null,null,null,null,null,null,null,"盘点",10123]
["林静",null,"黄仲祥","滴管瓶共用瓶盖管头","20ml","滴管瓶","20ml",null,null,12016,12016,0,"PCS","已盘点",null,null,null,null,null,null,null,null,null,null,null,null,null,null,null,null,null,null,null,null,null,null,null,null,null,null,null,null,null,null,null,null,null,null,null,null,null,null,null,null,null,null,null,null,null,null,null,null,null,"盘点",12016]
["林静",null,"黄仲祥","滴管瓶共用瓶盖管头","5ml","滴管瓶","5ml",null,null,24600,24600,0,"PCS","已盘点",null,null,null,null,null,null,null,null,null,null,null,null,null,null,null,null,null,null,null,null,null,null,null,null,null,null,null,null,null,null,null,null,null,null,null,null,null,null,null,null,null,null,null,null,null,null,null,null,null,"盘点",24600]
["林静",null,"黄仲祥","方程组水光嫩肤尊享组合","/","礼盒","/",null,null,0,0,0,"PCS","己盘点",null,null,null,null,null,null,null,null,null,null,null,null,null,null,null,null,null,null,null,null,null,null,null,null,null,null,null,null,null,null,null,null,null,null,null,null,null,null,null,null,null,null,null,null,null,null,null,null,null,"盘点",0]
["林静",null,"黄仲祥","方程组水光嫩肤尊享组合内衬","/","礼盒","/",null,null,0,0,0,"PCS","己盘点",null,null,null,null,null,null,null,null,null,null,null,null,null,null,null,null,null,null,null,null,null,null,null,null,null,null,null,null,null,null,null,null,null,null,null,null,null,null,null,null,null,null,null,null,null,null,null,null,null,"盘点",0]
["林静",null,"黄仲祥","共用盖子","10g","软管","10g",null,null,27770,27770,0,"PCS","己盘点",null,null,null,null,null,null,null,null,null,null,null,null,null,null,null,null,null,null,null,null,null,null,null,null,null,null,null,null,null,null,null,null,null,null,null,null,null,null,null,null,null,null,null,null,null,null,null,null,null,"盘点",27770]
["林静",null,"黄仲祥","共用亚克盖","100g","软管","100g",null,null,18143,18143,0,"PCS","己盘点",null,null,null,null,null,null,null,null,null,null,null,null,null,null,null,null,null,null,null,null,null,null,null,null,null,null,null,null,null,null,null,null,null,null,null,null,null,null,null,null,null,null,null,null,null,null,null,null,null,"盘点",18143]
["林静",null,"黄仲祥","光感防护隔离霜","40g ","花盒","40g ",null,null,4177,4177,0,"PCS","己盘点",null,null,null,null,null,null,null,null,null,null,null,null,null,null,null,null,null,null,null,null,null,null,null,null,null,null,null,null,null,null,null,null,null,null,null,null,null,null,null,null,null,null,null,null,null,null,null,null,null,"盘点",4177]
["林静",null,"黄仲祥","光感防护隔离霜","40g ","软管","40g ",null,null,3890,3890,0,"PCS","己盘点",null,null,null,null,null,null,null,null,null,null,null,null,null,null,null,null,null,null,null,null,null,null,null,null,null,null,null,null,null,null,null,null,null,null,null,null,null,null,null,null,null,null,null,null,null,null,null,null,null,"盘点",3890]
["林静",null,"黄仲祥","光感防护隔离霜","10g ","软管","10g ",null,null,4015,4015,0,"PCS","己盘点",null,null,null,null,null,null,null,null,null,null,null,null,null,null,null,null,null,null,null,null,null,null,null,null,null,null,null,null,null,null,null,null,null,null,null,null,null,null,null,null,null,null,null,null,null,null,null,null,null,"盘点",4015]
["林静",null,"黄仲祥","海洋深层共用泵罩","120ml","塑瓶","120ml",null,null,6210,6210,0,"PCS","已盘点",null,null,null,null,null,null,null,null,null,null,null,null,null,null,null,null,null,null,null,null,null,null,null,null,null,null,null,null,null,null,null,null,null,null,null,null,null,null,null,null,null,null,null,null,null,null,null,null,null,"盘点",6210]
["林静",null,"黄仲祥","海洋深层水—共用外罩","30ml","塑料","30ml",null,null,0,0,0,"PCS","已盘点",null,null,null,null,null,null,null,null,null,null,null,null,null,null,null,null,null,null,null,null,null,null,null,null,null,null,null,null,null,null,null,null,null,null,null,null,null,null,null,null,null,null,null,null,null,null,null,null,null,"盘点"]
["林静",null,"黄仲祥","海洋深层水—矿物质均衡型","120ml","花盒","120ml",null,null,3910,3910,0,"PCS","已盘点",null,null,null,null,null,null,null,null,null,null,null,null,null,null,null,null,null,null,null,null,null,null,null,null,null,null,null,null,null,null,null,null,null,null,null,null,null,null,null,null,null,null,null,null,null,null,null,null,null,"盘点",3910]
["林静",null,"黄仲祥","海洋深层水—矿物质均衡型","30ml","塑料","30ml",null,null,3981,3981,0,"PCS","已盘点",null,null,null,null,null,null,null,null,null,null,null,null,null,null,null,null,null,null,null,null,null,null,null,null,null,null,null,null,null,null,null,null,null,null,null,null,null,null,null,null,null,null,null,null,null,null,null,null,null,"盘点",3981]
["林静",null,"黄仲祥","海洋深层水——矿物质均衡型","120ml","塑料","120ml",null,null,3136,3136,0,"PCS","已盘点",null,null,null,null,null,null,null,null,null,null,null,null,null,null,null,null,null,null,null,null,null,null,null,null,null,null,null,null,null,null,null,null,null,null,null,null,null,null,null,null,null,null,null,null,null,null,null,null,null,"盘点",3136]
["林静",null,"黄仲祥","海洋深层水—矿物质均衡型压泵","30ml","塑料","30ml",null,null,4862,4862,0,"PCS","已盘点",null,null,null,null,null,null,null,null,null,null,null,null,null,null,null,null,null,null,null,null,null,null,null,null,null,null,null,null,null,null,null,null,null,null,null,null,null,null,null,null,null,null,null,null,null,null,null,null,null,"盘点",4862]
["林静",null,"黄仲祥","海洋深层水——矿物质型压泵型","120ml","塑料","120ml",null,null,3236,3236,0,"PCS","已盘点",null,null,null,null,null,null,null,null,null,null,null,null,null,null,null,null,null,null,null,null,null,null,null,null,null,null,null,null,null,null,null,null,null,null,null,null,null,null,null,null,null,null,null,null,null,null,null,null,null,"盘点",3236]
["林静",null,"黄仲祥","海洋深层水—氢离子还原型","30ml","塑料瓶","30ml",null,null,5235,5235,0,"PCS","已盘点",null,null,null,null,null,null,null,null,null,null,null,null,null,null,null,null,null,null,null,null,null,null,null,null,null,null,null,null,null,null,null,null,null,null,null,null,null,null,null,null,null,null,null,null,null,null,null,null,null,"盘点",5235]
["林静",null,"黄仲祥","海洋深层水——氢离子还原型","120ML","塑料瓶","120ML",null,null,2944,3044,0,"PCS","已盘点",-100,null,null,null,null,null,null,null,null,null,null,null,null,null,null,null,null,null,null,null,null,null,null,null,null,null,null,null,null,null,null,null,null,null,null,null,null,null,null,null,null,null,null,null,null,null,null,null,null,"盘盈",3044]
["林静",null,"黄仲祥","海洋深层水——氢离子还原型","120ML","花盒","120ml",null,null,4032,4032,0,"PCS","已盘点",null,null,null,null,null,null,null,null,null,null,null,null,null,null,null,null,null,null,null,null,null,null,null,null,null,null,null,null,null,null,null,null,null,null,null,null,null,null,null,null,null,null,null,null,null,null,null,null,null,"盘点",4032]
["林静",null,"黄仲祥","海洋深层水——氢离子还原型","120ML","喷雾泵头","120ML",null,null,-100,0,0,"PCS",null,-100]
["林静",null,"黄仲祥","海洋深层水——氢离子还原型","120ML","外盖","120ML",null,null,2974,3074,0,"PCS","已盘点",-100,null,null,null,null,null,null,null,null,null,null,null,null,null,null,null,null,null,null,null,null,null,null,null,null,null,null,null,null,null,null,null,null,null,null,null,null,null,null,null,null,null,null,null,null,null,null,null,null,"盘盈",3074]
["林静",null,"黄仲祥","海洋深层水—氢离子还原型压泵","30ml","塑料瓶","30ml",null,null,4520,4520,0,"PCS","已盘点",null,null,null,null,null,null,null,null,null,null,null,null,null,null,null,null,null,null,null,null,null,null,null,null,null,null,null,null,null,null,null,null,null,null,null,null,null,null,null,null,null,null,null,null,null,null,null,null,null,"盘点",4520]
["林静",null,"黄仲祥","海洋优氧呼吸面膜","10g ","软管","10g ",null,null,3100,3100,0,"PCS","己盘点",null,null,null,null,null,null,null,null,null,null,null,null,null,null,null,null,null,null,null,null,null,null,null,null,null,null,null,null,null,null,null,null,null,null,null,null,null,null,null,null,null,null,null,null,null,null,null,null,null,"盘点",3100]
["林静",null,"黄仲祥","海洋蕴能热力原液","5ML","原液瓶","5ML",null,null,12859,12859,0,"PCS","己盘点",null,null,null,null,null,null,null,null,null,null,null,null,null,null,null,null,null,null,null,null,null,null,null,null,null,null,null,null,null,null,null,null,null,null,null,null,null,null,null,null,null,null,null,null,null,null,null,null,null,"盘点",12859]
["林静",null,"黄仲祥","花萃多酚睡眠面膜","100g","花盒","100g",null,null,4690,4690,0,"PCS","己盘点",null,null,null,null,null,null,null,null,null,null,null,null,null,null,null,null,null,null,null,null,null,null,null,null,null,null,null,null,null,null,null,null,null,null,null,null,null,null,null,null,null,null,null,null,null,null,null,null,null,"盘点",4690]
["林静",null,"黄仲祥","花萃多酚睡眠面膜","250ml","塑料","250ml ",null,null,298,298,0,"PCS","己盘点",null,null,null,null,null,null,null,null,null,null,null,null,null,null,null,null,null,null,null,null,null,null,null,null,null,null,null,null,null,null,null,null,null,null,null,null,null,null,null,null,null,null,null,null,null,null,null,null,null,"盘点",298]
["林静",null,"黄仲祥","花萃多酚睡眠面膜","100g","软管","100g ",null,null,1507,1507,0,"PCS","己盘点",null,null,null,null,null,null,null,null,null,null,null,null,null,null,null,null,null,null,null,null,null,null,null,null,null,null,null,null,null,null,null,null,null,null,null,null,null,null,null,null,null,null,null,null,null,null,null,null,null,"盘点",1507]
["林静",null,"黄仲祥","花萃焕颜雪肌霜","20G","三角瓶","20G",null,null,5294,5294,0,"PCS","已盘点",0,null,null,null,null,null,null,null,null,null,null,null,null,null,null,null,null,null,null,null,null,null,null,null,null,null,null,null,null,null,null,null,null,null,null,null,null,null,null,null,null,null,null,null,null,null,null,null,null,"盘点",{"$f":"24+5270","v":5294}]
["林静",null,"黄仲祥","花萃焕颜雪肌霜","20G","手拉垫片","20G",null,null,0,0,0,"PCS",null,0]
["林静",null,"黄仲祥","花萃焕颜雪肌霜","20G","盖子内垫","20G",null,null,0,0,0,"PCS",null,0]
["林静",null,"黄仲祥","花萃焕颜雪肌霜","20G","外盖","20G",null,null,0,0,0,"PCS",null,0]
["林静",null,"黄仲祥","花萃焕颜雪肌霜","20G","花盒","20G",null,null,3109,3109,0,"PCS","已盘点",null,null,null,null,null,null,null,null,null,null,null,null,null,null,null,null,null,null,null,null,null,null,null,null,null,null,null,null,null,null,null,null,null,null,null,null,null,null,null,null,null,null,null,null,null,null,null,null,null,"盘点",3109]
["林静",null,"黄仲祥","花萃焕颜雪肌霜","20G","玻璃瓶","20G",null,null,0,0,0,"PCS",null,0]
["林静",null,"黄仲祥","花萃焕颜雪肌霜","20G","手拉垫片","20G",null,null,0,0,0,"PCS",null,0]
["林静",null,"黄仲祥","花萃焕颜雪肌霜","20G","外盖(含内垫）","20G",null,null,0,0,0,"PCS",null,0]
["林静",null,"黄仲祥","花萃焕颜雪肌霜","20G","内托","20G",null,null,0,0,0,"PCS",null,0]
["林静",null,"黄仲祥","花萃焕颜雪肌霜","20G","花盒","20G",null,null,4027,4027,0,"PCS","已盘点",0,null,null,null,null,null,null,null,null,null,null,null,null,null,null,null,null,null,null,null,null,null,null,null,null,null,null,null,null,null,null,null,null,null,null,null,null,null,null,null,null,null,null,null,null,null,null,null,null,"盘点",4027]
["林静",null,"黄仲祥","花萃焕颜雪肌霜","20G","收缩膜","20G",null,null,0,0,0,"PCS",null,0]
["林静",null,"黄仲祥","花萃焕颜雪肌霜","8G","塑料瓶","8G",null,null,0,0,0,"PCS",null,0]
["林静",null,"黄仲祥","花萃焕颜雪肌霜","8G","外盖","8G",null,null,0,0,0,"PCS",null,0]
["林静",null,"黄仲祥","花萃焕颜雪肌霜","8G","盖子内垫","8G",null,null,{"$f":"O483+K483-L483","v":0},{"$f":"Q483+U483+Y483+AC483+AG483+AK483+AO483+AS483+AW483+BA483+BE483+BI483+BM483+BQ483+BU483+BY483+CC483+CG483+CK483+CO483+CS483+CW483+DA483+DE483+DI483+DM483+DQ483+DU483+DY483+EC483+EG483","v":0},{"$f":"S483+W483+AA483+AE483+AI483+AM483+AQ483+AU483+AY483+BC483+BG483+BK483+BO483+BS483+BW483+CA483+CE483+CI483+CM483+CQ483+CU483+CY483+DC483+DG483+DK483+DO483+DS483+DW483+EA483+EE483+EI483","v":0},"PCS",null,0]
["林静",null,"黄仲祥","花萃焕颜雪肌霜","8g","塑料瓶","8G",null,null,5586,5586,0,"PCS","已盘点",0,null,null,null,null,null,null,null,null,null,null,null,null,null,null,null,null,null,null,null,null,null,null,null,null,null,null,null,null,null,null,null,null,null,null,null,null,null,null,null,null,null,null,null,null,null,null,null,null,"盘点",5586]
["林静",null,"黄仲祥","花萃舒悦修护霜","20G","三角瓶","20G",null,null,5141,5141,0,"PCS","已盘点",0,null,null,null,null,null,null,null,null,null,null,null,null,null,null,null,null,null,null,null,null,null,null,null,null,null,null,null,null,null,null,null,null,null,null,null,null,null,null,null,null,null,null,null,null,null,null,null,null,"盘点",5141]
["林静",null,"黄仲祥","花萃舒悦修护霜","20G","外盖(含内垫）","20G",null,null,0,0,0,"PCS",null,0]
["林静",null,"黄仲祥","花萃舒悦修护霜","20G","内托","20G",null,null,0,0,0,"PCS",null,0]
["林静",null,"黄仲祥","花萃舒悦修护霜","20G","花盒","20G",null,null,0,0,0,"PCS",null,0]
["林静",null,"黄仲祥","花萃舒悦修护霜","20G","收缩膜","20G",null,null,8000,0,0,"PCS",null,8000]
["林静",null,"黄仲祥","花萃舒悦修护霜","8G","塑料瓶","8G",null,null,0,0,0,"PCS"]
["林静",null,"黄仲祥","花萃舒悦修护霜","8G","外盖","8G",null,null,0,0,0,"PCS"]
["林静",null,"黄仲祥","花萃舒悦修护霜","8G","盖子内垫","8G",null,null,0,0,0,"PCS"]
["林静",null,"黄仲祥","花萃舒悦修护霜","8g","塑料瓶","8G",null,null,5500,5500,0,"PCS","已盘点",0,null,null,null,null,null,null,null,null,null,null,null,null,null,null,null,null,null,null,null,null,null,null,null,null,null,null,null,null,null,null,null,null,null,null,null,null,null,null,null,null,null,null,null,null,null,null,null,null,"盘点",5500]
["林静",null,"黄仲祥","花萃舒悦修护霜/花萃焕颜雪肌霜/","8g","共用外盖","8G",null,null,0,0,0,"PCS",null,0]
["林静",null,"黄仲祥","花萃舒悦修护霜/花萃焕颜雪肌霜/","8g","共用垫片","8G",null,null,0,0,0,"PCS",null,0]
["林静",null,"黄仲祥","花萃霜","20G","手拉垫片","20G",null,null,0,0,0,"PCS",null,0]
["林静",null,"黄仲祥","花萃雪肌精华液","20ML","玻璃瓶","20ML",null,null,0,0,0,"PCS",null,0]
["林静",null,"黄仲祥","花萃雪肌精华液","20ML","肩套","20ML",null,null,10000,0,0,"PCS",null,10000]
["林静",null,"黄仲祥","花萃雪肌精华液","20ML","内塞","20ML",null,null,10000,0,0,"PCS",null,10000]
["林静",null,"黄仲祥","花萃雪肌精华液","20ML","共用滴管","20ML",null,null,10733,733,0,"PCS","已盘点",10000,null,null,null,null,null,null,null,null,null,null,null,null,null,null,null,null,null,null,null,null,null,null,null,null,null,null,null,null,null,null,null,null,null,null,null,null,null,null,null,null,null,null,null,null,null,null,null,null,"盘亏",733]
["林静",null,"黄仲祥","花萃雪肌精华液","20ML","滴管瓶","20ML",null,null,4890,0,5110,"PCS","已盘点",10000,null,null,null,null,null,null,null,null,null,null,null,null,null,null,null,null,null,null,null,null,null,null,null,null,null,null,null,null,null,null,null,null,null,null,null,null,null,null,null,null,null,null,null,null,null,null,null,null,null,null,"盘亏",5110]
["林静",null,"黄仲祥","花萃雪肌精华液","20ML","金圈","20ML",null,null,10000,0,0,"PCS",null,10000]
["林静",null,"黄仲祥","花萃雪肌精华液","20ML","内卡","20ML",null,null,0,0,0,"PCS",null,0]
["林静",null,"黄仲祥","花萃雪肌精华液","20ML","花盒","20ML",null,null,3294,3294,0,"PCS","已盘点",0,null,null,null,null,null,null,null,null,null,null,null,null,null,null,null,null,null,null,null,null,null,null,null,null,null,null,null,null,null,null,null,null,null,null,null,null,null,null,null,null,null,null,null,null,null,null,null,null,"盘点",3294]
["林静",null,"黄仲祥","花萃雪肌精华液","20ML","收缩膜","20ML",null,null,3500,0,0,"PCS",null,3500]
["林静",null,"黄仲祥","花萃雪肌精华液","5ML","滴管瓶","5ML",null,null,6108,7108,0,"PCS","已盘点",-1000,null,null,null,null,null,null,null,null,null,null,null,null,null,null,null,null,null,null,null,null,null,null,null,null,null,null,null,null,null,null,null,null,null,null,null,null,null,null,null,null,null,null,null,null,null,null,null,null,"盘盈",7108]
["林静",null,"黄仲祥","花萃雪肌精华液","5ML",null,"5ML",null,null,0,0,0,"PCS"]
["林静",null,"黄仲祥","花萃雪肌精华液","5ML","奶嘴","5ML",null,null,0,0,0,"PCS"]
["林静",null,"黄仲祥","花萃雪肌精华液","5ML","金圈","5ML",null,null,0,0,0,"PCS"]
["林静",null,"黄仲祥","花萃雪肌精华液、花萃舒悦修护霜、花萃焕颜雪肌霜","20ML","代金券","20ML",null,null,1250,0,0,"PCS",null,1250]
["林静",null,"黄仲祥","花盒共用内托","20ml","花盒","20ml",null,null,23028,23028,0,"PCS","已盘点",null,null,null,null,null,null,null,null,null,null,null,null,null,null,null,null,null,null,null,null,null,null,null,null,null,null,null,null,null,null,null,null,null,null,null,null,null,null,null,null,null,null,null,null,null,null,null,null,null,"盘点",23028]
["林静",null,"黄仲祥","花盒共用内托","20g","花盒","20g",null,null,17224,17224,0,"PCS","已盘点",null,null,null,null,null,null,null,null,null,null,null,null,null,null,null,null,null,null,null,null,null,null,null,null,null,null,null,null,null,null,null,null,null,null,null,null,null,null,null,null,null,null,null,null,null,null,null,null,null,"盘点",17224]
["林静",null,"黄仲祥","花盒共用内托","100ml","花盒",null,null,null,21554,21554,0,"PCS","已盘点",null,null,null,null,null,null,null,null,null,null,null,null,null,null,null,null,null,null,null,null,null,null,null,null,null,null,null,null,null,null,null,null,null,null,null,null,null,null,null,null,null,null,null,null,null,null,null,null,null,"盘点",21554]
["林静",null,"黄仲祥","花盒共用内托","50g ","花盒","50g",null,null,9728,10090,362,"PCS","已盘点",null,null,null,null,null,null,null,null,null,null,null,null,null,null,null,null,null,null,null,null,null,null,null,null,null,null,null,null,null,null,null,null,null,null,null,null,null,null,null,null,null,null,null,null,null,null,null,null,null,"盘点",10090,null,null,null,null,null,null,null,null,"0002963",362]
["林静",null,"黄仲祥","花盒共用内托","40g ","花盒","40g ",null,null,17790,17790,0,"PCS","己盘点",null,null,null,null,null,null,null,null,null,null,null,null,null,null,null,null,null,null,null,null,null,null,null,null,null,null,null,null,null,null,null,null,null,null,null,null,null,null,null,null,null,null,null,null,null,null,null,null,null,"盘点",17790]
["林静",null,"黄仲祥","花盒共用内托","30ml","花盒","30ml",null,null,5686,5686,0,"PCS","已盘点",null,null,null,null,null,null,null,null,null,null,null,null,null,null,null,null,null,null,null,null,null,null,null,null,null,null,null,null,null,null,null,null,null,null,null,null,null,null,null,null,null,null,null,null,null,null,null,null,null,"盘点",5686]
["林静",null,"黄仲祥","花盒共用内托","120ml","花盒","120ml",null,null,7315,7315,0,"PCS","已盘点",null,null,null,null,null,null,null,null,null,null,null,null,null,null,null,null,null,null,null,null,null,null,null,null,null,null,null,null,null,null,null,null,null,null,null,null,null,null,null,null,null,null,null,null,null,null,null,null,null,"盘点",7315]
["林静",null,"黄仲祥","花颜定格弹力精华素 ","30ml","花盒","30ml",null,null,4030,4030,0,"PCS","已盘点",null,null,null,null,null,null,null,null,null,null,null,null,null,null,null,null,null,null,null,null,null,null,null,null,null,null,null,null,null,null,null,null,null,null,null,null,null,null,null,null,null,null,null,null,null,null,null,null,null,"盘点",4030]
["林静",null,"黄仲祥","花颜定格弹力精华素 ","30ML","三角瓶","30ml",null,null,4178,4178,0,"PCS","已盘点",null,null,null,null,null,null,null,null,null,null,null,null,null,null,null,null,null,null,null,null,null,null,null,null,null,null,null,null,null,null,null,null,null,null,null,null,null,null,null,null,null,null,null,null,null,null,null,null,null,"盘点",{"$f":"2162+2016","v":4178}]
["林静",null,"黄仲祥","花颜定格赋活弹力乳","100ml","花盒","100ml",null,null,4315,4315,0,"PCS","已盘点",null,null,null,null,null,null,null,null,null,null,null,null,null,null,null,null,null,null,null,null,null,null,null,null,null,null,null,null,null,null,null,null,null,null,null,null,null,null,null,null,null,null,null,null,null,null,null,null,null,"盘点",4315]
["林静",null,"黄仲祥","花颜定格赋活弹力乳","100ml","三角瓶","100ml",null,null,2599,2599,0,"PCS","已盘点",null,null,null,null,null,null,null,null,null,null,null,null,null,null,null,null,null,null,null,null,null,null,null,null,null,null,null,null,null,null,null,null,null,null,null,null,null,null,null,null,null,null,null,null,null,null,null,null,null,"盘点",2599]
["林静",null,"黄仲祥","花颜定格赋活霜","50g","花盒","50g ",null,null,3710,3710,0,"PCS","已盘点",null,null,null,null,null,null,null,null,null,null,null,null,null,null,null,null,null,null,null,null,null,null,null,null,null,null,null,null,null,null,null,null,null,null,null,null,null,null,null,null,null,null,null,null,null,null,null,null,null,"盘点",3710]
["林静",null,"黄仲祥","花颜定格赋活霜","50g","三角瓶","50g",null,null,0,0,0,"PCS","已盘点",null,null,null,null,null,null,null,null,null,null,null,null,null,null,null,null,null,null,null,null,null,null,null,null,null,null,null,null,null,null,null,null,null,null,null,null,null,null,null,null,null,null,null,null,null,null,null,null,null,"盘点",0]
["林静",null,"黄仲祥","花颜定格赋活水","100ml","三角瓶","100ml",null,null,2623,2623,0,"PCS","已盘点",null,null,null,null,null,null,null,null,null,null,null,null,null,null,null,null,null,null,null,null,null,null,null,null,null,null,null,null,null,null,null,null,null,null,null,null,null,null,null,null,null,null,null,null,null,null,null,null,null,"盘点",2623]
["林静",null,"黄仲祥","花颜定格赋活水","100ml","花盒","100ml",null,null,4315,4315,0,"PCS","已盘点",null,null,null,null,null,null,null,null,null,null,null,null,null,null,null,null,null,null,null,null,null,null,null,null,null,null,null,null,null,null,null,null,null,null,null,null,null,null,null,null,null,null,null,null,null,null,null,null,null,"盘点",4315]
["林静",null,"黄仲祥","花颜定格紧致V脸膜","25g*6",null,"25g*6",null,null,0,0,0,"PCS","已盘点",null,null,null,null,null,null,null,null,null,null,null,null,null,null,null,null,null,null,null,null,null,null,null,null,null,null,null,null,null,null,null,null,null,null,null,null,null,null,null,null,null,null,null,null,null,null,null,null,null,"盘点",0]
["林静",null,"黄仲祥","花颜定格紧致V脸膜","25g ",null,"25g",null,null,0,0,0,"PCS","已盘点",null,null,null,null,null,null,null,null,null,null,null,null,null,null,null,null,null,null,null,null,null,null,null,null,null,null,null,null,null,null,null,null,null,null,null,null,null,null,null,null,null,null,null,null,null,null,null,null,null,"盘点",0]
["林静",null,"黄仲祥","花漾沁透倍润霜-滋润型","250ml","塑瓶","250ml ",null,null,264,264,0,"PCS","已盘点",null,null,null,null,null,null,null,null,null,null,null,null,null,null,null,null,null,null,null,null,null,null,null,null,null,null,null,null,null,null,null,null,null,null,null,null,null,null,null,null,null,null,null,null,null,null,null,null,null,"盘点",264]
["林静",null,"黄仲祥","花漾沁透倍润霜-滋润型","50g","花盒","50g ",null,null,3493,3493,0,"PCS","已盘点",null,null,null,null,null,null,null,null,null,null,null,null,null,null,null,null,null,null,null,null,null,null,null,null,null,null,null,null,null,null,null,null,null,null,null,null,null,null,null,null,null,null,null,null,null,null,null,null,null,"盘点",3493]
["林静",null,"黄仲祥","花漾沁透倍润霜-滋润型","50g","三角瓶","50g",null,null,849,849,0,"PCS","已盘点",null,null,null,null,null,null,null,null,null,null,null,null,null,null,null,null,null,null,null,null,null,null,null,null,null,null,null,null,null,null,null,null,null,null,null,null,null,null,null,null,null,null,null,null,null,null,null,null,null,"盘点",849]
["林静",null,"黄仲祥","花漾沁透倍润霜-滋润型","8g","塑瓶","8g",null,null,3958,3958,0,"PCS","已盘点",null,null,null,null,null,null,null,null,null,null,null,null,null,null,null,null,null,null,null,null,null,null,null,null,null,null,null,null,null,null,null,null,null,null,null,null,null,null,null,null,null,null,null,null,null,null,null,null,null,"盘点",3958]
["林静",null,"黄仲祥","花漾沁透补水面膜","25g*6",null,"25g*6",null,null,0,0,0,"PCS","已盘点",null,null,null,null,null,null,null,null,null,null,null,null,null,null,null,null,null,null,null,null,null,null,null,null,null,null,null,null,null,null,null,null,null,null,null,null,null,null,null,null,null,null,null,null,null,null,null,null,null,"盘点",0]
["林静",null,"黄仲祥","花漾沁透补水面膜","25g ",null,"25g ",null,null,0,0,0,"PCS","已盘点",null,null,null,null,null,null,null,null,null,null,null,null,null,null,null,null,null,null,null,null,null,null,null,null,null,null,null,null,null,null,null,null,null,null,null,null,null,null,null,null,null,null,null,null,null,null,null,null,null,"盘点"]
["林静",null,"黄仲祥","花漾沁透菁纯乳","100ml","花盒","100ml",null,null,5106,5106,0,"PCS","已盘点",null,null,null,null,null,null,null,null,null,null,null,null,null,null,null,null,null,null,null,null,null,null,null,null,null,null,null,null,null,null,null,null,null,null,null,null,null,null,null,null,null,null,null,null,null,null,null,null,null,"盘点",5106]
["林静",null,"黄仲祥","花漾沁透菁纯乳","100ml","三角形","100ml",null,null,3587,3587,0,"PCS","已盘点",null,null,null,null,null,null,null,null,null,null,null,null,null,null,null,null,null,null,null,null,null,null,null,null,null,null,null,null,null,null,null,null,null,null,null,null,null,null,null,null,null,null,null,null,null,null,null,null,null,"盘点",3587]
["林静",null,"黄仲祥","花漾沁透菁润霜-清爽型","50g","花盒","50g",null,null,3430,3895,465,"PCS","已盘点",null,null,null,null,null,null,null,null,null,null,null,null,null,null,null,null,null,null,null,null,null,null,null,null,null,null,null,null,null,null,null,null,null,null,null,null,null,null,null,null,null,null,null,null,null,null,null,null,null,"盘点",3895,null,null,null,null,"0002962",103,null,null,"0002963",362]
["林静",null,"黄仲祥","花漾沁透菁润霜-清爽型","50g","三角瓶","50g ",null,null,385,488,103,"PCS","已盘点",null,null,null,null,null,null,null,null,null,null,null,null,null,null,null,null,null,null,null,null,null,null,null,null,null,null,null,null,null,null,null,null,null,null,null,null,null,null,null,null,null,null,null,null,null,null,null,null,null,"盘点",488,null,null,null,null,"0002962",103]
["林静",null,"黄仲祥","花漾沁透精华素","30ml","花盒","30ml",null,null,3615,3615,0,"PCS","已盘点",null,null,null,null,null,null,null,null,null,null,null,null,null,null,null,null,null,null,null,null,null,null,null,null,null,null,null,null,null,null,null,null,null,null,null,null,null,null,null,null,null,null,null,null,null,null,null,null,null,"盘点",3615]
["林静",null,"黄仲祥","花漾沁透精华素","30ml","三角瓶","30ml",null,null,4433,4433,0,"PCS","已盘点",null,null,null,null,null,null,null,null,null,null,null,null,null,null,null,null,null,null,null,null,null,null,null,null,null,null,null,null,null,null,null,null,null,null,null,null,null,null,null,null,null,null,null,null,null,null,null,null,null,"盘点",4433]
["林静",null,"黄仲祥","花漾沁透亲肤水","250ml","塑瓶","250ml",null,null,638,638,0,"PCS","已盘点",null,null,null,null,null,null,null,null,null,null,null,null,null,null,null,null,null,null,null,null,null,null,null,null,null,null,null,null,null,null,null,null,null,null,null,null,null,null,null,null,null,null,null,null,null,null,null,null,null,"盘点",638]
["林静",null,"黄仲祥","花漾沁透亲肤水","100ml","彩盒","100ml",null,null,5920,0,1280,"PCS","已盘点",7200,null,null,null,null,null,null,null,null,null,null,null,null,null,null,null,null,null,null,null,null,null,null,null,null,null,null,null,null,null,null,null,null,null,null,null,null,null,null,null,null,null,null,null,null,null,null,null,null,null,null,"盘亏",1280]
["林静",null,"黄仲祥","花漾沁透亲肤水","100ml","内托","100ml",null,null,7200,0,0,"PCS",null,7200]
["林静",null,"黄仲祥","花漾沁透亲肤水","100ml","三角形","100ml",null,null,5483,5483,0,"PCS","已盘点",null,null,null,null,null,null,null,null,null,null,null,null,null,null,null,null,null,null,null,null,null,null,null,null,null,null,null,null,null,null,null,null,null,null,null,null,null,null,null,null,null,null,null,null,null,null,null,null,null,"盘点",5483]
["林静",null,"黄仲祥","活力角质更新素","250ml","塑瓶","250ml",null,null,298,298,0,"PCS","已盘点",null,null,null,null,null,null,null,null,null,null,null,null,null,null,null,null,null,null,null,null,null,null,null,null,null,null,null,null,null,null,null,null,null,null,null,null,null,null,null,null,null,null,null,null,null,null,null,null,null,"盘点",298]
["林静",null,"黄仲祥","活力醒肤按摩膏","250ml","塑瓶","250ml",null,null,314,314,0,"PCS","已盘点",null,null,null,null,null,null,null,null,null,null,null,null,null,null,null,null,null,null,null,null,null,null,null,null,null,null,null,null,null,null,null,null,null,null,null,null,null,null,null,null,null,null,null,null,null,null,null,null,null,"盘点",314]
["林静",null,"黄仲祥","活力醒肤按摩膏","100g","花盒","100g",null,null,3422,3422,0,"PCS","已盘点",null,null,null,null,null,null,null,null,null,null,null,null,null,null,null,null,null,null,null,null,null,null,null,null,null,null,null,null,null,null,null,null,null,null,null,null,null,null,null,null,null,null,null,null,null,null,null,null,null,"盘点",3422]
["林静",null,"黄仲祥","活力醒肤按摩膏","100g","软管","100g",null,null,{"$f":"O547+K547-L547","v":5800},{"$f":"Q547+U547+Y547+AC547+AG547+AK547+AO547+AS547+AW547+BA547+BE547+BI547+BM547+BQ547+BU547+BY547+CC547+CG547+CK547+CO547+CS547+CW547+DA547+DE547+DI547+DM547+DQ547+DU547+DY547+EC547+EG547","v":2500},{"$f":"S547+W547+AA547+AE547+AI547+AM547+AQ547+AU547+AY547+BC547+BG547+BK547+BO547+BS547+BW547+CA547+CE547+CI547+CM547+CQ547+CU547+CY547+DC547+DG547+DK547+DO547+DS547+DW547+EA547+EE547+EI547","v":0},"PCS","已盘点",3300,null,null,null,null,null,null,null,null,null,null,null,null,null,null,null,null,null,null,null,null,null,null,null,null,null,null,null,null,null,null,null,null,null,null,null,null,null,null,null,null,null,null,null,null,null,null,null,null,"盘盈",2500]
["林静",null,"黄仲祥","洁肤乳","250ml","塑料瓶","250ml",null,null,473,0,0,"PCS",null,473]
["林静",null,"黄仲祥","洁肤水","250ml","塑料瓶","250ml",null,null,718,0,0,"PCS",null,718]
["林静",null,"黄仲祥","理肌美雕肤油","5ml","原液瓶","5ml",null,null,713,713,0,"PCS","己盘点",null,null,null,null,null,null,null,null,null,null,null,null,null,null,null,null,null,null,null,null,null,null,null,null,null,null,null,null,null,null,null,null,null,null,null,null,null,null,null,null,null,null,null,null,null,null,null,null,null,"盘点",713]
["林静",null,"黄仲祥","密集焕颜肤如雪泥膜","100g","花盒共用内托","100g ",null,null,17585,17585,0,"PCS","已盘点",null,null,null,null,null,null,null,null,null,null,null,null,null,null,null,null,null,null,null,null,null,null,null,null,null,null,null,null,null,null,null,null,null,null,null,null,null,null,null,null,null,null,null,null,null,null,null,null,null,"盘点",17585]
["林静",null,"黄仲祥","密集焕颜肤如雪泥膜","100g","花盒","100g ",null,null,3999,3999,0,"PCS","已盘点",null,null,null,null,null,null,null,null,null,null,null,null,null,null,null,null,null,null,null,null,null,null,null,null,null,null,null,null,null,null,null,null,null,null,null,null,null,null,null,null,null,null,null,null,null,null,null,null,null,"盘点",3999]
["林静",null,"黄仲祥","密集焕颜肤如雪泥膜","100G","软管","100G",null,null,5862,0,738,"PCS","己盘点",6600,null,null,null,null,null,null,null,null,null,null,null,null,null,null,null,null,null,null,null,null,null,null,null,null,null,null,null,null,null,null,null,null,null,null,null,null,null,null,null,null,null,null,null,null,null,null,null,null,null,null,"盘亏",738]
["林静",null,"黄仲祥","密集焕颜肤如雪泥膜","100G","封口贴","100G",null,null,0,0,0,"PCS",null,0]
["林静",null,"黄仲祥","密集焕颜肤如雪泥膜","100G","外盖","100G",null,null,0,0,0,"PCS",null,0]
["林静",null,"黄仲祥","密集焕颜肤如雪泥膜","10G","软管","10G",null,null,12820,12820,0,"PCS","已盘点",0,null,null,null,null,null,null,null,null,null,null,null,null,null,null,null,null,null,null,null,null,null,null,null,null,null,null,null,null,null,null,null,null,null,null,null,null,null,null,null,null,null,null,null,null,null,null,null,null,"盘点",12820]
["林静",null,"黄仲祥","密集焕颜肤如雪泥膜","10G","封口贴","10G",null,null,0,0,0,"PCS",null,0]
["林静",null,"黄仲祥","密集焕颜肤如雪泥膜","10G","外盖","10G",null,null,0,0,0,"PCS",null,0]
["林静",null,"黄仲祥","密集焕颜排导精华","20ml","花盒","20ml",null,null,2140,2140,0,"PCS","已盘点",null,null,null,null,null,null,null,null,null,null,null,null,null,null,null,null,null,null,null,null,null,null,null,null,null,null,null,null,null,null,null,null,null,null,null,null,null,null,null,null,null,null,null,null,null,null,null,null,null,"盘点",2140]
["林静",null,"黄仲祥","密集焕颜排导精华","20ML","玻璃瓶","20ML",null,null,0,0,0,"PCS",null,0]
["林静",null,"黄仲祥","密集焕颜排导精华","20ML","瓶肩","20ML",null,null,0,0,0,"PCS",null,0]
["林静",null,"黄仲祥","密集焕颜排导精华","20ML","内塞","20ML",null,null,0,0,0,"PCS",null,0]
["林静",null,"黄仲祥","密集焕颜排导精华","20ML","玻璃滴管","20ML",null,null,0,0,0,"PCS",null,0]
["林静",null,"黄仲祥","密集焕颜排导精华","20ML","奶嘴","20ML",null,null,0,0,0,"PCS",null,0]
["林静",null,"黄仲祥","密集焕颜排导精华","20ML","滴管瓶","20ML",null,null,4829,4829,0,"PCS","已盘点",0,null,null,null,null,null,null,null,null,null,null,null,null,null,null,null,null,null,null,null,null,null,null,null,null,null,null,null,null,null,null,null,null,null,null,null,null,null,null,null,null,null,null,null,null,null,null,null,null,"盘点",4829]
["林静",null,"黄仲祥","密集焕颜排导精华","5ML","滴管瓶","5ML",null,null,7365,7365,0,"PCS","已盘点",0,null,null,null,null,null,null,null,null,null,null,null,null,null,null,null,null,null,null,null,null,null,null,null,null,null,null,null,null,null,null,null,null,null,null,null,null,null,null,null,null,null,null,null,null,null,null,null,null,"盘点",7365]
["林静",null,"黄仲祥","密集焕颜排导精华","5ML","玻璃滴管","5ML",null,null,0,0,0,"PCS",null,0]
["林静",null,"黄仲祥","密集焕颜排导精华","5ML","奶嘴","5ML",null,null,0,0,0,"PCS",null,0]
["林静",null,"黄仲祥","密集焕颜排导精华","5ML","金圈","5ML",null,null,0,0,0,"PCS",null,0]
["林静",null,"黄仲祥","明眸致护幻彩按摩油","2ml","原液瓶","2ml ",null,null,12083,12083,0,"PCS","已盘点",null,null,null,null,null,null,null,null,null,null,null,null,null,null,null,null,null,null,null,null,null,null,null,null,null,null,null,null,null,null,null,null,null,null,null,null,null,null,null,null,null,null,null,null,null,null,null,null,null,"盘点",12083]
["林静",null,"黄仲祥","明眸致护凝时眼精华","20ml","花盒","20ML",null,null,4697,4697,0,"PCS","己盘点",null,null,null,null,null,null,null,null,null,null,null,null,null,null,null,null,null,null,null,null,null,null,null,null,null,null,null,null,null,null,null,null,null,null,null,null,null,null,null,null,null,null,null,null,null,null,null,null,null,"盘点",4697]
["林静",null,"黄仲祥","明眸致护凝时眼精华","20ml","滴管瓶","20ml",null,null,121,121,0,"PCS","己盘点",null,null,null,null,null,null,null,null,null,null,null,null,null,null,null,null,null,null,null,null,null,null,null,null,null,null,null,null,null,null,null,null,null,null,null,null,null,null,null,null,null,null,null,null,null,null,null,null,null,"盘点",121]
["林静",null,"黄仲祥","明眸致护凝时眼霜","20g","花盒","20g",null,null,4000,4000,0,"PCS","已盘点",null,null,null,null,null,null,null,null,null,null,null,null,null,null,null,null,null,null,null,null,null,null,null,null,null,null,null,null,null,null,null,null,null,null,null,null,null,null,null,null,null,null,null,null,null,null,null,null,null,"盘点",4000]
["林静",null,"黄仲祥","明眸致护凝时眼霜","8g","塑料瓶","8g",null,null,4580,4580,0,"PCS","已盘点",null,null,null,null,null,null,null,null,null,null,null,null,null,null,null,null,null,null,null,null,null,null,null,null,null,null,null,null,null,null,null,null,null,null,null,null,null,null,null,null,null,null,null,null,null,null,null,null,null,"盘点",4580]
["林静",null,"黄仲祥","明眸致护凝时眼霜","20g","三角瓶","20g",null,null,3559,3559,0,"PCS","己盘点",null,null,null,null,null,null,null,null,null,null,null,null,null,null,null,null,null,null,null,null,null,null,null,null,null,null,null,null,null,null,null,null,null,null,null,null,null,null,null,null,null,null,null,null,null,null,null,null,null,"盘点",{"$f":"180+3379","v":3559}]
["林静",null,"黄仲祥","明眸致护新活眼胶","20g","花盒",null,null,null,3618,3618,0,"PCS","己盘点",null,null,null,null,null,null,null,null,null,null,null,null,null,null,null,null,null,null,null,null,null,null,null,null,null,null,null,null,null,null,null,null,null,null,null,null,null,null,null,null,null,null,null,null,null,null,null,null,null,"盘点",3618]
["林静",null,"黄仲祥","明眸致护新活眼胶","20g","三角瓶","20g",null,null,0,0,0,"PCS","己盘点",null,null,null,null,null,null,null,null,null,null,null,null,null,null,null,null,null,null,null,null,null,null,null,null,null,null,null,null,null,null,null,null,null,null,null,null,null,null,null,null,null,null,null,null,null,null,null,null,null,"盘点",0]
["林静",null,"黄仲祥","明眸致护眼部凝时方程内衬","28件套","礼盒","28件套",null,null,84,84,0,"PCS","己盘点",null,null,null,null,null,null,null,null,null,null,null,null,null,null,null,null,null,null,null,null,null,null,null,null,null,null,null,null,null,null,null,null,null,null,null,null,null,null,null,null,null,null,null,null,null,null,null,null,null,"盘点",84]
["林静",null,"黄仲祥","眼部理肌美雕组合套","26件/套","按摩油2Ml","26件/套",null,null,0,0,0,"PCS"]
["林静",null,"黄仲祥","眼部理肌美雕","2ml","塑瓶","2ml ",null,null,0,0,0,"PCS"]
["林静",null,"黄仲祥","眼部理肌美雕","5ml","塑瓶","5ml",null,null,0,0,0,"PCS"]
[]
["林静",null,"黄仲祥","明眸致护眼部凝时方程组合","28件套","礼盒","28件套",null,null,84,84,0,"PCS","己盘点",null,null,null,null,null,null,null,null,null,null,null,null,null,null,null,null,null,null,null,null,null,null,null,null,null,null,null,null,null,null,null,null,null,null,null,null,null,null,null,null,null,null,null,null,null,null,null,null,null,"盘点",84]
["林静",null,"黄仲祥","清莲净澈黑头膜","40g ","花盒","40g ",null,null,5417,5417,0,"PCS","己盘点",null,null,null,null,null,null,null,null,null,null,null,null,null,null,null,null,null,null,null,null,null,null,null,null,null,null,null,null,null,null,null,null,null,null,null,null,null,null,null,null,null,null,null,null,null,null,null,null,null,"盘点",5417]
["林静",null,"黄仲祥","清莲净澈黑头膜","40g ","软管","40g ",null,null,4305,4305,0,"PCS","己盘点",null,null,null,null,null,null,null,null,null,null,null,null,null,null,null,null,null,null,null,null,null,null,null,null,null,null,null,null,null,null,null,null,null,null,null,null,null,null,null,null,null,null,null,null,null,null,null,null,null,"盘点",4305]
["林静",null,"黄仲祥","清莲净澈黑头液","20ml","花盒","20ml",null,null,5153,5153,0,"PCS","己盘点",null,null,null,null,null,null,null,null,null,null,null,null,null,null,null,null,null,null,null,null,null,null,null,null,null,null,null,null,null,null,null,null,null,null,null,null,null,null,null,null,null,null,null,null,null,null,null,null,null,"盘点",5153]
["林静",null,"黄仲祥","清莲净澈黑头液","20ml","滴管瓶","20ml",null,null,934,934,0,"PCS","己盘点",null,null,null,null,null,null,null,null,null,null,null,null,null,null,null,null,null,null,null,null,null,null,null,null,null,null,null,null,null,null,null,null,null,null,null,null,null,null,null,null,null,null,null,null,null,null,null,null,null,"盘点",934]
["林静",null,"黄仲祥","清莲净澈洁面者哩","100g","花盒","100g",null,null,4750,4750,0,"PCS","己盘点",null,null,null,null,null,null,null,null,null,null,null,null,null,null,null,null,null,null,null,null,null,null,null,null,null,null,null,null,null,null,null,null,null,null,null,null,null,null,null,null,null,null,null,null,null,null,null,null,null,"盘点",4750]
["林静",null,"黄仲祥","清莲净澈洁面者哩","100g","软管","100g ",null,null,1609,1609,0,"PCS","己盘点",null,null,null,null,null,null,null,null,null,null,null,null,null,null,null,null,null,null,null,null,null,null,null,null,null,null,null,null,null,null,null,null,null,null,null,null,null,null,null,null,null,null,null,null,null,null,null,null,null,"盘点",1609]
["林静",null,"黄仲祥","清莲净澈洁面者哩","10g","软管","10g ",null,null,4440,4440,0,"PCS","已盘点",null,null,null,null,null,null,null,null,null,null,null,null,null,null,null,null,null,null,null,null,null,null,null,null,null,null,null,null,null,null,null,null,null,null,null,null,null,null,null,null,null,null,null,null,null,null,null,null,null,"盘点",4440]
["林静",null,"黄仲祥","清莲净澈细致精华","5ml ","滴管瓶","5ml",null,null,1016,1016,0,"PCS","己盘点",null,null,null,null,null,null,null,null,null,null,null,null,null,null,null,null,null,null,null,null,null,null,null,null,null,null,null,null,null,null,null,null,null,null,null,null,null,null,null,null,null,null,null,null,null,null,null,null,null,"盘点",4080]
["林静",null,"黄仲祥","清莲净澈细致精华","20ml","花盒","20ml",null,null,{"$f":"O592+K592-L592","v":5130},{"$f":"Q592+U592+Y592+AC592+AG592+AK592+AO592+AS592+AW592+BA592+BE592+BI592+BM592+BQ592+BU592+BY592+CC592+CG592+CK592+CO592+CS592+CW592+DA592+DE592+DI592+DM592+DQ592+DU592+DY592+EC592+EG592","v":5130},{"$f":"S592+W592+AA592+AE592+AI592+AM592+AQ592+AU592+AY592+BC592+BG592+BK592+BO592+BS592+BW592+CA592+CE592+CI592+CM592+CQ592+CU592+CY592+DC592+DG592+DK592+DO592+DS592+DW592+EA592+EE592+EI592","v":0},"PCS","己盘点",null,null,null,null,null,null,null,null,null,null,null,null,null,null,null,null,null,null,null,null,null,null,null,null,null,null,null,null,null,null,null,null,null,null,null,null,null,null,null,null,null,null,null,null,null,null,null,null,null,"盘点",5130]
["林静",null,"黄仲祥","清莲净澈细致精华","20ml","滴管瓶","20ml",null,null,1016,1016,0,"PCS","己盘点",null,null,null,null,null,null,null,null,null,null,null,null,null,null,null,null,null,null,null,null,null,null,null,null,null,null,null,null,null,null,null,null,null,null,null,null,null,null,null,null,null,null,null,null,null,null,null,null,null,"盘点",1016]
["林静",null,"黄仲祥","清莲战痘精华液","20ml","花盒","20ml",null,null,4850,4850,0,"PCS","己盘点",null,null,null,null,null,null,null,null,null,null,null,null,null,null,null,null,null,null,null,null,null,null,null,null,null,null,null,null,null,null,null,null,null,null,null,null,null,null,null,null,null,null,null,null,null,null,null,null,null,"盘点",4850]
["林静",null,"黄仲祥","清莲战痘精华液","5ml","滴管瓶","5ML",null,null,4080,4080,0,"PCS","己盘点",null,null,null,null,null,null,null,null,null,null,null,null,null,null,null,null,null,null,null,null,null,null,null,null,null,null,null,null,null,null,null,null,null,null,null,null,null,null,null,null,null,null,null,null,null,null,null,null,null,"盘点",4080]
["林静",null,"黄仲祥","清莲战痘精华液","20ml","滴管瓶","20ml",null,null,934,934,0,"PCS","己盘点",null,null,null,null,null,null,null,null,null,null,null,null,null,null,null,null,null,null,null,null,null,null,null,null,null,null,null,null,null,null,null,null,null,null,null,null,null,null,null,null,null,null,null,null,null,null,null,null,null,"盘点",934]
["林静",null,"黄仲祥","清莲战痘均衡霜","20g","花盒","20g",null,null,4792,4792,0,"PCS","己盘点",null,null,null,null,null,null,null,null,null,null,null,null,null,null,null,null,null,null,null,null,null,null,null,null,null,null,null,null,null,null,null,null,null,null,null,null,null,null,null,null,null,null,null,null,null,null,null,null,null,"盘点",4792]
["林静",null,"黄仲祥","清莲战痘均衡霜","20g","三角瓶","20g",null,null,6363,6363,0,"PCS","己盘点",null,null,null,null,null,null,null,null,null,null,null,null,null,null,null,null,null,null,null,null,null,null,null,null,null,null,null,null,null,null,null,null,null,null,null,null,null,null,null,null,null,null,null,null,null,null,null,null,null,"盘点",{"$f":"649+5714","v":6363}]
["林静",null,"黄仲祥","清莲战痘均衡霜","8g","塑料","8g",null,null,4058,4058,0,"PCS","己盘点",null,null,null,null,null,null,null,null,null,null,null,null,null,null,null,null,null,null,null,null,null,null,null,null,null,null,null,null,null,null,null,null,null,null,null,null,null,null,null,null,null,null,null,null,null,null,null,null,null,"盘点",4058]
["林静",null,"黄仲祥","软管共用内塞","40g ","软管","40g ",null,null,{"$error":"#VALUE!"},5400,{"$error":"#VALUE!"},"PCS","己盘点",null,null,null,null,null,null,null,null,null,null,null,null,null,null,null,null,null,null,null,null,null,null,null,null,null,null,null,null,null,null,null,null,null,null,null,null,null,null,null,null,null,null,null,null,null,null,null,null,null,"盘点",5400,null,null,null,null,null,null,null,null,null,null,null,null,null,null,null,null,null," "]
["林静",null,"黄仲祥","软管共用亚克力盖","40g ","软管","40g ",null,null,6101,6101,0,"PCS","己盘点",null,null,null,null,null,null,null,null,null,null,null,null,null,null,null,null,null,null,null,null,null,null,null,null,null,null,null,null,null,null,null,null,null,null,null,null,null,null,null,null,null,null,null,null,null,null,null,null,null,"盘点",6101]
["林静",null,"黄仲祥","三角瓶粉色共用盖带垫片","50g","三角瓶","50g",null,null,1366,1366,0,"PCS","已盘点",null,null,null,null,null,null,null,null,null,null,null,null,null,null,null,null,null,null,null,null,null,null,null,null,null,null,null,null,null,null,null,null,null,null,null,null,null,null,null,null,null,null,null,null,null,null,null,null,null,"盘点",1366]
["林静",null,"黄仲祥","三角瓶粉色瓶盖","30ml","三角瓶","30ml",null,null,7021,7021,0,"PCS","已盘点",null,null,null,null,null,null,null,null,null,null,null,null,null,null,null,null,null,null,null,null,null,null,null,null,null,null,null,null,null,null,null,null,null,null,null,null,null,null,null,null,null,null,null,null,null,null,null,null,null,"盘点",{"$f":"614+6407","v":7021}]
["林静",null,"黄仲祥","三角瓶共用肩套","100ml ","三角瓶","100ml",null,null,16189,16189,0,"PCS","已盘点",null,null,null,null,null,null,null,null,null,null,null,null,null,null,null,null,null,null,null,null,null,null,null,null,null,null,null,null,null,null,null,null,null,null,null,null,null,null,null,null,null,null,null,null,null,null,null,null,null,"盘点",{"$f":"630+15559","v":16189}]
["林静",null,"黄仲祥","三角瓶共用肩套","30ML","三角瓶","30ML",null,null,19591,19591,0,"PCS","已盘点",null,null,null,null,null,null,null,null,null,null,null,null,null,null,null,null,null,null,null,null,null,null,null,null,null,null,null,null,null,null,null,null,null,null,null,null,null,null,null,null,null,null,null,null,null,null,null,null,null,"盘点",{"$f":"3790+15801","v":19591}]
["林静",null,"黄仲祥","三角瓶共用肩压泵","100ml ","三角瓶","100ml",null,null,14904,14904,0,"PCS","已盘点",null,null,null,null,null,null,null,null,null,null,null,null,null,null,null,null,null,null,null,null,null,null,null,null,null,null,null,null,null,null,null,null,null,null,null,null,null,null,null,null,null,null,null,null,null,null,null,null,null,"盘点",{"$f":"5505+9399","v":14904}]
["林静",null,"黄仲祥","三角瓶共用手拉片","20g","三角瓶","20g",null,null,10500,10500,0,"PCS","已盘点",null,null,null,null,null,null,null,null,null,null,null,null,null,null,null,null,null,null,null,null,null,null,null,null,null,null,null,null,null,null,null,null,null,null,null,null,null,null,null,null,null,null,null,null,null,null,null,null,null,"盘点",10500]
["林静",null,"黄仲祥","三角瓶共用手拉片","50g","三角瓶","50g",null,null,3181,3646,465,"PCS","已盘点",null,null,null,null,null,null,null,null,null,null,null,null,null,null,null,null,null,null,null,null,null,null,null,null,null,null,null,null,null,null,null,null,null,null,null,null,null,null,null,null,null,null,null,null,null,null,null,null,null,"盘点",3646,null,null,null,null,"0002962",103,null,null,"0002963",362]
["林静",null,"黄仲祥","三角瓶共用压泵","30ML","三角瓶","30ml",null,null,15543,15543,0,"PCS","已盘点",null,null,null,null,null,null,null,null,null,null,null,null,null,null,null,null,null,null,null,null,null,null,null,null,null,null,null,null,null,null,null,null,null,null,null,null,null,null,null,null,null,null,null,null,null,null,null,null,null,"盘点",15543]
["林静",null,"黄仲祥","三角瓶绿色瓶盖带垫片","20g","三角瓶","20g",null,null,8385,8385,0,"PCS","已盘点",null,null,null,null,null,null,null,null,null,null,null,null,null,null,null,null,null,null,null,null,null,null,null,null,null,null,null,null,null,null,null,null,null,null,null,null,null,null,null,null,null,null,null,null,null,null,null,null,null,"盘点",8385]
["林静",null,"黄仲祥","三角瓶紫色共用盖带垫片","20g","三角形","20g",null,null,10941,10941,0,"PCS","已盘点",null,null,null,null,null,null,null,null,null,null,null,null,null,null,null,null,null,null,null,null,null,null,null,null,null,null,null,null,null,null,null,null,null,null,null,null,null,null,null,null,null,null,null,null,null,null,null,null,null,"盘点",{"$f":"24+10917","v":10941}]
["林静",null,"黄仲祥","三角瓶紫色瓶盖","30ml","三角瓶","30ml",null,null,15078,15078,0,"PCS","已盘点",null,null,null,null,null,null,null,null,null,null,null,null,null,null,null,null,null,null,null,null,null,null,null,null,null,null,null,null,null,null,null,null,null,null,null,null,null,null,null,null,null,null,null,null,null,null,null,null,null,"盘点",{"$f":"2472+12606","v":15078}]
["林静",null,"黄仲祥","三角瓶紫色瓶盖/带垫片","50g","三角瓶","50g",null,null,0,0,0,"PCS","已盘点",null,null,null,null,null,null,null,null,null,null,null,null,null,null,null,null,null,null,null,null,null,null,null,null,null,null,null,null,null,null,null,null,null,null,null,null,null,null,null,null,null,null,null,null,null,null,null,null,null,"盘点",0]
["林静",null,"黄仲祥","三角形粉色瓶罩","100ml ","三角瓶","100ml",null,null,9821,9821,0,"PCS","已盘点",null,null,null,null,null,null,null,null,null,null,null,null,null,null,null,null,null,null,null,null,null,null,null,null,null,null,null,null,null,null,null,null,null,null,null,null,null,null,null,null,null,null,null,null,null,null,null,null,null,"盘点",9821]
["林静",null,"黄仲祥","三角形紫色瓶罩","100ml ","三角瓶","100ml",null,null,5974,5974,0,"PCS","已盘点",null,null,null,null,null,null,null,null,null,null,null,null,null,null,null,null,null,null,null,null,null,null,null,null,null,null,null,null,null,null,null,null,null,null,null,null,null,null,null,null,null,null,null,null,null,null,null,null,null,"盘点",5974]
["林静",null,"黄仲祥","善朵百花原生霜","50g","皇冠瓶","50g",null,null,955,955,0,"PCS","已盘点",null,null,null,null,null,null,null,null,null,null,null,null,null,null,null,null,null,null,null,null,null,null,null,null,null,null,null,null,null,null,null,null,null,null,null,null,null,null,null,null,null,null,null,null,null,null,null,null,null,"盘点",955]
["林静",null,"黄仲祥","善朵百花原生霜瓶盖带垫片","50g ","皇冠瓶","50g ",null,null,955,955,0,"PCS","已盘点",null,null,null,null,null,null,null,null,null,null,null,null,null,null,null,null,null,null,null,null,null,null,null,null,null,null,null,null,null,null,null,null,null,null,null,null,null,null,null,null,null,null,null,null,null,null,null,null,null,"盘点",955]
["林静",null,"黄仲祥","善朵百花原生霜手拉片","50g ","皇冠瓶","50g ",null,null,955,955,0,"PCS","已盘点",null,null,null,null,null,null,null,null,null,null,null,null,null,null,null,null,null,null,null,null,null,null,null,null,null,null,null,null,null,null,null,null,null,null,null,null,null,null,null,null,null,null,null,null,null,null,null,null,null,"盘点",955]
["林静",null,"黄仲祥","双阶合壁蕴能增效惠客装","18件套","礼盒","18件套",null,null,960,960,0,"PCS","己盘点",null,null,null,null,null,null,null,null,null,null,null,null,null,null,null,null,null,null,null,null,null,null,null,null,null,null,null,null,null,null,null,null,null,null,null,null,null,null,null,null,null,null,null,null,null,null,null,null,null,"盘点",960]
["林静",null,"黄仲祥","双阶合壁蕴能增效惠客装内衬","18件套","礼盒","18件套",null,null,960,960,0,"PCS","己盘点",null,null,null,null,null,null,null,null,null,null,null,null,null,null,null,null,null,null,null,null,null,null,null,null,null,null,null,null,null,null,null,null,null,null,null,null,null,null,null,null,null,null,null,null,null,null,null,null,null,"盘点",960]
["林静",null,"黄仲祥","水感新肌cc霜-像然色","40g ","花盒","40g ",null,null,3800,3800,0,"PCS","己盘点",null,null,null,null,null,null,null,null,null,null,null,null,null,null,null,null,null,null,null,null,null,null,null,null,null,null,null,null,null,null,null,null,null,null,null,null,null,null,null,null,null,null,null,null,null,null,null,null,null,"盘点",3800]
["林静",null,"黄仲祥","水感新肌cc霜-像然色","40g ","软管","40g ",null,null,3782,3782,0,"PCS","己盘点",null,null,null,null,null,null,null,null,null,null,null,null,null,null,null,null,null,null,null,null,null,null,null,null,null,null,null,null,null,null,null,null,null,null,null,null,null,null,null,null,null,null,null,null,null,null,null,null,null,"盘点",3782]
["林静",null,"黄仲祥","水感新肌cc霜-自然色","40g ","花盒","40g ",null,null,4038,4038,0,"PCS","己盘点",null,null,null,null,null,null,null,null,null,null,null,null,null,null,null,null,null,null,null,null,null,null,null,null,null,null,null,null,null,null,null,null,null,null,null,null,null,null,null,null,null,null,null,null,null,null,null,null,null,"盘点",4038]
["林静",null,"黄仲祥","水感新肌cc霜-自然色","40g ","软管","40g ",null,null,4480,4480,0,"PCS","己盘点",null,null,null,null,null,null,null,null,null,null,null,null,null,null,null,null,null,null,null,null,null,null,null,null,null,null,null,null,null,null,null,null,null,null,null,null,null,null,null,null,null,null,null,null,null,null,null,null,null,"盘点",4480]
["林静",null,"黄仲祥","水光嫩肤微整膜",null,"面膜纸",null,null,null,100,100,0,"PCS","已盘点",null,null,null,null,null,null,null,null,null,null,null,null,null,null,null,null,null,null,null,null,null,null,null,null,null,null,null,null,null,null,null,null,null,null,null,null,null,null,null,null,null,null,null,null,null,null,null,null,null,"盘点",100]
["林静",null,"黄仲祥","水光微雕霜盖子","30g","四方瓶","30g",null,null,0,0,0,"PCS","已盘点"]
["林静",null,"黄仲祥","水光微雕霜瓶子","30g","四方瓶","30g",null,null,0,0,0,"PCS","已盘点"]
["林静",null,"黄仲祥","水光嫩肤尊享套","21件套","套盒","21件/套",null,null,1000,1000,0,"PCS",null,null,null,null,null,null,null,null,null,null,null,null,null,null,null,null,null,null,null,null,null,null,null,null,null,null,null,null,null,null,null,null,null,null,null,null,null,null,null,null,null,null,null,null,null,null,null,null,null,null,null,null,null,null,"0002931",{"$f":"125*8","v":1000}]
[]
[]
[]
["林静",null,"黄仲祥","水光微整膜","25ml","瓶子","25ml",null,null,10192,0,{"$f":"S632+W632+AA632+AE632+AI632+AM632+AQ632+AU632+AY632+BC632+BG632+BK632+BO632+BS632+BW632+CA632+CE632+CI632+CM632+CQ632+CU632+CY632+DC629+DG632+DK632+DO632+DS632+DW632+EA632+EE632+EI632","v":0},"PCS",null,10192]
["林静",null,"黄仲祥","水光微整膜","25ml","铝盖","25ml",null,null,9786,0,{"$f":"S633+W633+AA633+AE633+AI633+AM633+AQ633+AU633+AY633+BC633+BG633+BK633+BO633+BS633+BW633+CA633+CE633+CI633+CM633+CQ633+CU633+CY633+DC633+DG633+DK633+DO633+DS633+DW633+EA633+EE633+EI633","v":414},"PCS",null,10200,null,null,null,null,null,null,null,null,null,null,null,null,null,null,null,null,null,null,null,null,null,null,null,null,null,null,null,null,null,null,null,null,null,null,null,null,null,null,null,null,null,null,null,null,null,null,null,null,null,null,null,null,null,null,null,null,null,null,null,null,null,null,null,null,null,null,"0003631",414]
["林静",null,"黄仲祥","水光微整膜","25ml","垫片","25ml",null,null,10200,0,0,"PCS",null,10200,null,null,null,null,null,null,null,null,null,null,null,null,null,null,null,null,null,null,null,null,null,null,null,null,null,null,null,null,null,null,null,null,null,null,null,null,null,null,null,null,null,{"$f":"+AZ822","v":0}]
["林静",null,"黄仲祥","水光微整膜","25ml","封口贴","25ml",null,null,10320,0,0,"PCS",null,10320]
["林静",null,"黄仲祥","水光微整膜试管","25ml","试管瓶","25ml",null,null,239,239,0,"PCS","已盘点",null,null,null,null,null,null,null,null,null,null,null,null,null,null,null,null,null,null,null,null,null,null,null,null,null,null,null,null,null,null,null,null,null,null,null,null,null,null,null,null,null,null,null,null,null,null,null,null,null,"盘点",239]
["林静",null,"黄仲祥","水光针","5ml ","推杆","5ml",null,null,10100,10100,0,"PCS",null,null,null,null,null,null,null,null,null,null,null,null,null,null,null,null,null,null,null,null,null,null,null,null,null,null,null,null,null,null,null,null,null,null,null,null,null,null,null,null,null,null,null,null,null,null,null,null,null,null,"0002928",{"$f":"4000*2+2100","v":10100}]
["林静",null,"黄仲祥","水光针","5ml","管瓶","5ML",null,null,10100,10100,0,"PCS","已盘点",null,null,null,null,null,null,null,null,null,null,null,null,null,null,null,null,null,null,null,null,null,null,null,null,null,null,null,null,null,null,null,null,null,null,null,null,null,null,null,null,null,null,null,null,null,null,null,null,null,"0002928",{"$f":"1800*5+1100","v":10100}]
["林静",null,"黄仲祥","水光针套盒","22件套盒","套盒","22套盒",null,null,1000,1000,0,"PCS",null,null,null,null,null,null,null,null,null,null,null,null,null,null,null,null,null,null,null,null,null,null,null,null,null,null,null,null,null,null,null,null,null,null,null,null,null,null,null,null,null,null,null,null,null,null,null,null,null,null,null,null,null,null,"0002931",{"$f":"125*8","v":1000}]
["林静",null,"黄仲祥","水光整膜试管盖子","25ml","试管瓶","25ml",null,null,414,414,0,"PCS","已盘点",null,null,null,null,null,null,null,null,null,null,null,null,null,null,null,null,null,null,null,null,null,null,null,null,null,null,null,null,null,null,null,null,null,null,null,null,null,null,null,null,null,null,null,null,null,null,null,null,null,"盘点",414]
["林静",null,"黄仲祥","塑料瓶共用瓶盖","8g","塑料瓶","8g",null,null,24318,24318,0,"PCS","己盘点",null,null,null,null,null,null,null,null,null,null,null,null,null,null,null,null,null,null,null,null,null,null,null,null,null,null,null,null,null,null,null,null,null,null,null,null,null,null,null,null,null,null,null,null,null,null,null,null,null,"盘点",24318]
["林静",null,"黄仲祥","塑料瓶共用瓶罩","250ml","塑料","250ml ",null,null,1390,1390,0,"PCS","己盘点",null,null,null,null,null,null,null,null,null,null,null,null,null,null,null,null,null,null,null,null,null,null,null,null,null,null,null,null,null,null,null,null,null,null,null,null,null,null,null,null,null,null,null,null,null,null,null,null,null,"盘点",1390]
["林静",null,"黄仲祥","塑料瓶共用压泵","250ml","塑料","250ml ",null,null,2500,2500,0,"PCS","己盘点",null,null,null,null,null,null,null,null,null,null,null,null,null,null,null,null,null,null,null,null,null,null,null,null,null,null,null,null,null,null,null,null,null,null,null,null,null,null,null,null,null,null,null,null,null,null,null,null,null,"盘点",2500]
["林静",null,"黄仲祥","效原蚕丝白眼膜贴","10g*12",null,"10g*12",null,null,0,0,0,"PCS","已盘点",null,null,null,null,null,null,null,null,null,null,null,null,null,null,null,null,null,null,null,null,null,null,null,null,null,null,null,null,null,null,null,null,null,null,null,null,null,null,null,null,null,null,null,null,null,null,null,null,null,"盘点",0]
["林静",null,"黄仲祥","一代梦妆霜瓶子","30g","瓶子","30g",null,null,184,184,0,"PCS","已盘点",null,null,null,null,null,null,null,null,null,null,null,null,null,null,null,null,null,null,null,null,null,null,null,null,null,null,null,null,null,null,null,null,null,null,null,null,null,null,null,null,null,null,null,null,null,null,null,null,null,"盘点",184]
["林静",null,"黄仲祥","一代梦妆霜瓶子","50g","瓶子","50g",null,null,32,32,0,"PCS","已盘点",null,null,null,null,null,null,null,null,null,null,null,null,null,null,null,null,null,null,null,null,null,null,null,null,null,null,null,null,null,null,null,null,null,null,null,null,null,null,null,null,null,null,null,null,null,null,null,null,null,"盘点",32]
["林静",null,"黄仲祥","一代梦妆霜瓶子共用盖子","30g","瓶子","30g",null,null,249,249,0,"PCS","已盘点",null,null,null,null,null,null,null,null,null,null,null,null,null,null,null,null,null,null,null,null,null,null,null,null,null,null,null,null,null,null,null,null,null,null,null,null,null,null,null,null,null,null,null,null,null,null,null,null,null,"盘点",249]
["林静",null,"黄仲祥","一代梦妆霜瓶子共用盖子","50g ","瓶子","50g",null,null,250,250,0,"PCS","已盘点",null,null,null,null,null,null,null,null,null,null,null,null,null,null,null,null,null,null,null,null,null,null,null,null,null,null,null,null,null,null,null,null,null,null,null,null,null,null,null,null,null,null,null,null,null,null,null,null,null,"盘点",250]
["林静",null,"黄仲祥","一代梦妆霜瓶子共用手拉片","50g","瓶子","50g",null,null,259,259,0,"PCS","已盘点",null,null,null,null,null,null,null,null,null,null,null,null,null,null,null,null,null,null,null,null,null,null,null,null,null,null,null,null,null,null,null,null,null,null,null,null,null,null,null,null,null,null,null,null,null,null,null,null,null,"盘点",259]
["林静",null,"黄仲祥","一代梦妆霜瓶子共用手拉片","30g","瓶子","30g",null,null,249,249,0,"PCS","已盘点",null,null,null,null,null,null,null,null,null,null,null,null,null,null,null,null,null,null,null,null,null,null,null,null,null,null,null,null,null,null,null,null,null,null,null,null,null,null,null,null,null,null,null,null,null,null,null,null,null,"盘点",249]
["林静",null,"黄仲祥","原液瓶共用盖子","5ml","原液瓶","5ml",null,null,26202,26202,0,"PCS","己盘点",null,null,null,null,null,null,null,null,null,null,null,null,null,null,null,null,null,null,null,null,null,null,null,null,null,null,null,null,null,null,null,null,null,null,null,null,null,null,null,null,null,null,null,null,null,null,null,null,null,"盘点",26202]
["林静",null,"黄仲祥","原液瓶共用内塞","5ml","原液瓶","5ml",null,null,28850,28850,0,"PCS","己盘点",null,null,null,null,null,null,null,null,null,null,null,null,null,null,null,null,null,null,null,null,null,null,null,null,null,null,null,null,null,null,null,null,null,null,null,null,null,null,null,null,null,null,null,null,null,null,null,null,null,"盘点",28850]
["林静",null,"黄仲祥","蕴能增效-3D微雕项目组合","50件套","皮盒","50件套",null,null,5,5,0,"PCS","己盘点",null,null,null,null,null,null,null,null,null,null,null,null,null,null,null,null,null,null,null,null,null,null,null,null,null,null,null,null,null,null,null,null,null,null,null,null,null,null,null,null,null,null,null,null,null,null,null,null,null,"盘点",5]
["林静",null,"黄仲祥","蕴能增效赋活原液","5ml ","原液瓶","5ML",null,null,1070,1070,0,"PCS","已盘点",null,null,null,null,null,null,null,null,null,null,null,null,null,null,null,null,null,null,null,null,null,null,null,null,null,null,null,null,null,null,null,null,null,null,null,null,null,null,null,null,null,null,null,null,null,null,null,null,null,"盘点",1070]
["林静",null,"黄仲祥","蕴能增效菁原液","5ml ","原液瓶","5ml",null,null,3650,3650,0,"PCS","己盘点",null,null,null,null,null,null,null,null,null,null,null,null,null,null,null,null,null,null,null,null,null,null,null,null,null,null,null,null,null,null,null,null,null,null,null,null,null,null,null,null,null,null,null,null,null,null,null,null,null,"盘点",3650]
["林静",null,"黄仲祥","蕴能增效-俩款皮盒共用硫酸纸","倆款共用","皮盒","倆款共用",null,null,{"$f":"O656+K656-L656","v":0},{"$f":"Q656+U656+Y656+AC656+AG656+AK656+AO656+AS656+AW656+BA656+BE656+BI656+BM656+BQ656+BU656+BY656+CC656+CG656+CK656+CO656+CS656+CW656+DA656+DE656+DI656+DM656+DQ656+DU656+DY656+EC656+EG656","v":0},0,"PCS","己盘点",null,null,null,null,null,null,null,null,null,null,null,null,null,null,null,null,null,null,null,null,null,null,null,null,null,null,null,null,null,null,null,null,null,null,null,null,null,null,null,null,null,null,null,null,null,null,null,null,null,"盘点",0]
["林静",null,"黄仲祥","蕴能增效-俩款皮盒共用内衬","50件套","皮盒","50件套",null,null,{"$f":"O657+K657-L657","v":5},{"$f":"Q657+U657+Y657+AC657+AG657+AK657+AO657+AS657+AW657+BA657+BE657+BI657+BM657+BQ657+BU657+BY657+CC657+CG657+CK657+CO657+CS657+CW657+DA657+DE657+DI657+DM657+DQ657+DU657+DY657+EC657+EG657","v":5},0,"PCS","己盘点",null,null,null,null,null,null,null,null,null,null,null,null,null,null,null,null,null,null,null,null,null,null,null,null,null,null,null,null,null,null,null,null,null,null,null,null,null,null,null,null,null,null,null,null,null,null,null,null,null,"盘点",5]
["林静",null,"黄仲祥","蕴能增效-优氧瑜伽项目组合","50件套","皮盒","50件套",null,null,{"$f":"O658+K658-L658","v":0},{"$f":"Q658+U658+Y658+AC658+AG658+AK658+AO658+AS658+AW658+BA658+BE658+BI658+BM658+BQ658+BU658+BY658+CC658+CG658+CK658+CO658+CS658+CW658+DA658+DE658+DI658+DM658+DQ658+DU658+DY658+EC658+EG658","v":0},0,"PCS","己盘点",null,null,null,null,null,null,null,null,null,null,null,null,null,null,null,null,null,null,null,null,null,null,null,null,null,null,null,null,null,null,null,null,null,null,null,null,null,null,null,null,null,null,null,null,null,null,null,null,null,"盘点",0]
["林静",null,"黄仲祥",null,"120ml","三角形"]
["左林青",null,"纪传龙","青豆青颜",null,"净黑透祛黑头套",null,null,null,{"$f":"O660+K660-L660","v":500},{"$f":"Q660+U660+Y660+AC660+AG660+AK660+AO660+AS660+AW660+BA660+BE660+BI660+BM660+BQ660+BU660+BY660+CC660+CG660+CK660+CO660+CS660+CW660+DA660+DE660+DI660+DM660+DQ660+DU660+DY660+EC660+EG660","v":0},{"$f":"S660+W660+AA660+AE660+AI660+AM660+AQ660+AU660+AY660+BC660+BG660+BK660+BO660+BS660+BW660+CA660+CE660+CI660+CM660+CQ660+CU660+CY660+DC660+DG660+DK660+DO660+DS660+DW660+EA660+EE660+EI660","v":0},"PCS",null,500]
["林静",null,"纪传龙","青豆原液","3ml","安瓶","3ml",null,null,0,0,0,"PCS",null,0]
["林静",null,"纪传龙","青豆原液","3ml","内塞","3ml",null,null,0,0,0,"PCS",null,0]
["林静",null,"纪传龙","青豆原液","3ml","铝盖","3ml",null,null,0,0,0,"PCS",null,0]
["林静",null,"纪传龙","青豆原液套","10件/套","套盒","10件/套",null,null,501,0,0,"PCS",null,501]
["林静",null,"纪传龙","青豆原液套","10件/套","喇叭头","10件/套",null,null,0,0,0,"PCS",null,0]
["林静",null,"纪传龙","青豆原液套","10件/套","塑封膜",null,null,null,0,0,0,"PCS",null,0]
[null,null,"锦盛集团","生产加工铝袋","/","生产加工铝袋","/",null,null,22600,0,0,"PCS",null,22600]
["杨克江",null,"柯海水","山茶油氨基酸水 ","120ml","塑瓶","120ml",null,null,400,0,0,"PCS",null,400]
["杨克江",null,"柯海水","山茶油氨基酸水 ","120ml","喷雾喷头","120ml",null,null,400,0,0,"PCS",null,400]
["杨克江",null,"柯海水","山茶油氨基酸水 ","120ml","透明外盖","120ml",null,null,400,0,0,"PCS",null,400]
["杨克江",null,"柯海水","山茶油隔离霜","30ml","真空瓶","30ml",null,null,315,0,0,"PCS",null,315]
["杨克江",null,"柯海水","山茶油隔离霜","30ml","压嘴喷头","30ml",null,null,315,0,0,"PCS",null,315]
["杨克江",null,"柯海水","山茶油隔离霜","30ml","白色外盖","30ml",null,null,315,0,0,"PCS",null,315]
["杨克江",null,"柯海水","山茶油洁面泡","100ml","塑料瓶","100ml",null,null,316,0,0,"PCS",null,316]
["杨克江",null,"柯海水","山茶油洁面泡","100ml","带刷子喷头","100ml",null,null,316,0,0,"PCS",null,316]
["杨克江",null,"柯海水","山茶油洁面泡","100ml","透明外盖","100ml",null,null,316,0,0,"PCS",null,316]
["杨克江",null,"柯海水","山茶油润肤乳","100ml","塑瓶","100ml",null,null,308,0,0,"PCS",null,308]
["杨克江",null,"柯海水","山茶油润肤乳","100ml","压嘴喷头","100ml",null,null,308,0,0,"PCS",null,308]
["杨克江",null,"柯海水","山茶油润肤乳","100ml","透明外盖","100ml",null,null,308,0,0,"PCS",null,308]
["黄细娇",null,"李良炳","多效修复面膜","28G","铝箔袋","28G",null,null,19000,0,0,"PCS","已盘点",19000]
["黄细娇",null,"李良炳","七宝草贝贝面膜","28G","花盒","28G",null,null,1526,0,0,"PCS","已盘点",1526]
["黄细娇",null,"李良炳","七宝草贝贝面膜","28G","内托","28G",null,null,1466,0,0,"PCS","已盘点",1466]
["黄细娇",null,"李良炳","七宝草贝贝面膜","28G","收缩膜","28G",null,null,0,0,0,"PCS","已盘点",0]
["黄细娇",null,"李良炳","七宝草贝贝面膜、七宝草玻尿酸密集补水蚕丝面膜","28G","A384面膜布","28G",null,null,0,0,0,"PCS","已盘点",0]
["黄细娇",null,"李良炳","七宝草贝贝面膜、七宝草玻尿酸密集补水蚕丝面膜","28G","纸箱",null,null,null,164,0,0,"PCS",null,164]
["黄细娇",null,"李良炳","七宝草贝贝面膜膜","28G","铝箔袋","28G",null,null,11603,0,0,"PCS","已盘点",11603]
["黄细娇",null,"李良炳","七宝草玻尿酸密集补水蚕丝面膜","28G","铝箔袋","28G",null,null,99200,63200,0,"PCS","已盘点",36000,null,null,null,null,null,null,null,null,null,null,null,null,null,null,null,null,null,null,null,null,null,null,null,null,null,null,null,null,null,null,null,null,null,null,null,null,null,null,null,null,null,null,null,null,null,null,null,null,null,null,null,null,null,null,null,null,null,null,null,null,null,null,null,null,null,null,null,null,"0002979",63200]
["黄细娇",null,"李良炳","七宝草玻尿酸密集补水蚕丝面膜","28G","花盒","28G",null,null,3318,0,0,"PCS","已盘点",3318]
["黄细娇",null,"李良炳","七宝草玻尿酸密集补水蚕丝面膜","28G","内托","28G",null,null,3599,0,0,"PCS","已盘点",3599]
["黄细娇",null,"李良炳","七宝草玻尿酸密集补水蚕丝面膜","28G","收缩膜","28G",0,0,0,0,0,"PCS","已盘点",0]
["左林青",null,"李伟","鸸鹋精华膏","50g","玻璃瓶","50g",null,null,5061,0,0,"PCS",null,5061]
["左林青",null,"李伟","鸸鹋精华膏","50g","银外盖","50g",null,null,10000,0,0,"PCS",null,10000]
["左林青",null,"李伟","鸸鹋精华膏","50g","手拉垫片","50g",null,null,4970,0,0,"PCS",null,4970]
["谭敏芳",null,"李伟","靓肤粉底液","/","收缩膜","/",null,null,1000,0,0,"PCS",null,1000]
["谭敏芳",null,"李伟","立体塑颜紧致眼霜","/","收缩膜","/",null,null,1000,0,0,"PCS",null,1000]
["谭敏芳",null,"李伟","梦幻睡眠面膜","/","收缩膜","/",null,null,1000,0,0,"PCS",null,1000]
["林静",null,"李伟（诗秀雅）","调理精华1号","4ML","安瓶","4ML",null,null,51,0,0,"PCS",null,51]
["林静",null,"李伟（诗秀雅）","调理精华1号","4ML","金色瓶盖","4ML",null,null,-200,0,0,"PCS",null,-200]
["林静",null,"李伟（诗秀雅）","调理精华1号、调理精华2号","4ML","内塞","4ML",null,null,0,0,0,"PCS",null,0]
["林静",null,"李伟（诗秀雅）","调理精华2号","4ML","安瓶","4ML",null,null,134,0,0,"PCS",null,134]
["林静",null,"李伟（诗秀雅）","鸸鹋油精华膏","50G","玻璃瓶","50G",null,null,0,0,0,"PCS",null,0]
["林静",null,"李伟（诗秀雅）","鸸鹋油精华膏","50G","手拉垫片","50G",null,null,0,0,0,"PCS",null,0]
["林静",null,"李伟（诗秀雅）","鸸鹋油精华膏","50G","亮银盖（含盖内垫）","50G",null,null,0,0,0,"PCS",null,0]
["林静",null,"李伟（诗秀雅）","鸸鹋油精华膏","50G","内托","50G",null,null,0,0,0,"PCS",null,0]
["林静",null,"李伟（诗秀雅）","鸸鹋油精华膏","50G","说明书","50G",null,null,0,0,0,"PCS",null,0]
["林静",null,"李伟（诗秀雅）","鸸鹋油精华膏","50G","花盒","50G",null,null,0,0,0,"PCS",null,0]
["林静",null,"李伟（诗秀雅）","鸸鹋油精华膏","50G","塑封膜","50G",null,null,0,0,0,"PCS",null,0]
["谭敏芳",null,"李伟（诗秀雅）","鸸鹋油精华膏","50g","玻璃瓶","50g",null,null,5000,0,0,"PCS",null,5000]
["谭敏芳",null,"李伟（诗秀雅）","鸸鹋油精华膏","50g","外盖","50g",null,null,5000,0,0,"PCS",null,5000]
["谭敏芳",null,"李伟（诗秀雅）","鸸鹋油精华膏","50g","手拉垫片","50g",null,null,5000,0,0,"PCS",null,5000]
["林静",null,"李伟（诗秀雅）","妃品私密套","12小包/套","套盒","12小包/套",null,null,0,0,0,"PCS",null,0]
["林静",null,"李伟（诗秀雅）","妃品私密套","12小包/套","说明书",null,null,null,0,0,0,"PCS",null,0]
["林静",null,"李伟（诗秀雅）","妃品私密套","12小包/套","塑封膜",null,null,null,0,0,0,"PCS",null,0]
["林静",null,"李伟（诗秀雅）","根源能量精华膏","5ML","折断瓶","5ML",null,null,-2922,0,0,"PCS",null,-2922]
["林静",null,"李伟（诗秀雅）","根源能量精华膏","5ML","白色内塞","5ML",null,null,0,0,0,"PCS",null,0]
["林静",null,"李伟（诗秀雅）","根源能量精华膏","5ML","塞丁","5ML",null,null,0,0,0,"PCS",null,0]
["林静",null,"李伟（诗秀雅）","根源能量精华膏","50G","玻璃瓶","50G",null,null,0,0,0,"PCS",null,0]
["林静",null,"李伟（诗秀雅）","根源能量精华膏","50G","手拉垫片","50G",null,null,0,0,0,"PCS",null,0]
["林静",null,"李伟（诗秀雅）","根源能量精华膏","50G","银色盖","50G",null,null,0,0,0,"PCS",null,0]
["林静",null,"李伟（诗秀雅）","根源能量精华膏","50G","说明书","50G",null,null,0,0,0,"PCS",null,0]
["林静",null,"李伟（诗秀雅）","根源能量精华膏","50G","内卡","50G",null,null,0,0,0,"PCS",null,0]
["林静",null,"李伟（诗秀雅）","根源能量精华膏","50G","彩盒","50G",null,null,0,0,0,"PCS",null,0]
["林静",null,"李伟（诗秀雅）","根源能量精华膏","50G","塑封膜","50G",null,null,0,0,0,"PCS",null,0]
["林静",null,"李伟（诗秀雅）","护养草本膏","5G","折断瓶","5G",null,null,{"$f":"O724+K724-L724","v":0},{"$f":"Q724+U724+Y724+AC724+AG724+AK724+AO724+AS724+AW724+BA724+BE724+BI724+BM724+BQ724+BU724+BY724+CC724+CG724+CK724+CO724+CS724+CW724+DA724+DE724+DI724+DM724+DQ724+DU724+DY724+EC724+EG724","v":0},{"$f":"S724+W724+AA724+AE724+AI724+AM724+AQ724+AU724+AY724+BC724+BG724+BK724+BO724+BS724+BW724+CA724+CE724+CI724+CM724+CQ724+CU724+CY724+DC724+DG724+DK724+DO724+DS724+DW724+EA724+EE724+EI724","v":0},"PCS",null,0]
["林静",null,"李伟（诗秀雅）","护养草本膏","5G","白色内塞","5G",null,null,0,0,0,"PCS",null,0]
["林静",null,"李伟（诗秀雅）","护养草本膏","50g","瓶子","50g",null,null,5000,5000,0,"PCS",null,null,null,null,null,null,null,null,null,null,null,null,null,null,null,null,null,null,null,null,null,null,null,null,null,null,null,null,null,null,null,null,null,null,null,null,null,null,null,null,null,null,null,null,null,null,null,null,null,null,null,null,null,null,null,null,null,null,null,null,null,null,"0002933",{"$f":"315*15+275","v":5000}]
["林静",null,"李伟（诗秀雅）","护养草本膏","50g ","盖子","50g",null,null,5000,5000,0,"PCS",null,null,null,null,null,null,null,null,null,null,null,null,null,null,null,null,null,null,null,null,null,null,null,null,null,null,null,null,null,null,null,null,null,null,null,null,null,null,null,null,null,null,null,null,null,null,null,null,null,null,null,null,null,null,null,null,null,null,null,null,null,null,"0002933",{"$f":"756*6+464","v":5000}]
["林静",null,"李伟（诗秀雅）","护养草本膏","50g ","手拉垫片","50g",null,null,5000,5000,0,"PCS",null,null,null,null,null,null,null,null,null,null,null,null,null,null,null,null,null,null,null,null,null,null,null,null,null,null,null,null,null,null,null,null,null,null,null,null,null,null,null,null,null,null,null,null,null,null,null,null,null,null,null,null,null,null,null,null,null,null,null,null,null,null,"0002933",5000]
["林静",null,"李伟（诗秀雅）","护养草本膏","50g ","盖内垫","50g",null,null,5000,5000,0,"PCS",null,null,null,null,null,null,null,null,null,null,null,null,null,null,null,null,null,null,null,null,null,null,null,null,null,null,null,null,null,null,null,null,null,null,null,null,null,null,null,null,null,null,null,null,null,null,null,null,null,null,null,null,null,null,null,null,null,null,null,null,null,null,"0002933",5000]
["林静",null,"李伟（诗秀雅）","护养草本膏","5G","小钉子","5G",null,null,0,0,0,"PCS",null,0]
["林静",null,"李伟（诗秀雅）","护养草本膏","100G","塑料瓶","100G",null,null,5160,0,0,"PCS",null,5160]
["林静",null,"李伟（诗秀雅）","护养草本膏","100G","外盖（含盖内垫）","100G",null,null,5000,0,0,"PCS",null,5000]
["林静",null,"李伟（诗秀雅）","护养草本膏","100G","手拉垫片","100G",null,null,5040,0,0,"PCS",null,5040]
["林静",null,"李伟（诗秀雅）","护养草本膏","100G","收缩膜",null,null,null,0,0,0,"PCS",null,0]
["林静",null,"李伟（诗秀雅）","矫情魅动私护液","50ML","金色玻璃瓶","50ML",null,null,0,0,0,"PCS",null,0]
["林静",null,"李伟（诗秀雅）","矫情魅动私护液","50ML","泵头","50ML",null,null,0,0,0,"PCS",null,0]
["林静",null,"李伟（诗秀雅）","矫情魅动私护液","50ML","盖子","50ML",null,null,0,0,0,"PCS",null,0]
["林静",null,"李伟（诗秀雅）","矫情魅动私护液","50ML","花盒","50ML",null,null,0,0,0,"PCS",null,0]
["林静",null,"李伟（诗秀雅）","矫情魅动私护液","50ML","内托","50ML",null,null,0,0,0,"PCS",null,0]
["林静",null,"李伟（诗秀雅）","矫情魅动私护液","50ML","收缩膜",null,null,null,0,0,0,"PCS",null,0]
["林静",null,"李伟（诗秀雅）","逆时空还原霜","30G","红色膏霜瓶","30G",null,null,0,0,0,"PCS",null,0]
["林静",null,"李伟（诗秀雅）","逆时空还原霜","30G","手拉垫片","30G",null,null,0,0,0,"PCS",null,0]
["林静",null,"李伟（诗秀雅）","逆时空还原霜","30G","外盖","30G",null,null,0,0,0,"PCS",null,0]
["林静",null,"李伟（诗秀雅）","逆时空抗衰精华","30ML","玻璃瓶","30ML",null,null,0,0,0,"PCS",null,0]
["林静",null,"李伟（诗秀雅）","逆时空抗衰精华","30ML","压嘴式泵头","30ML",null,null,0,0,0,"PCS",null,0]
["林静",null,"李伟（诗秀雅）","逆时空抗衰精华","30ML","盖子","30ML",null,null,0,0,0,"PCS",null,0]
["林静",null,"李伟（诗秀雅）","逆时空抗衰组合","14件/套","金色套盒","14件/套",null,null,0,0,0,"PCS",null,0]
["林静",null,"李伟（诗秀雅）","逆时空抗衰组合","14件/套","品名标",null,null,null,0,0,0,"PCS",null,0]
["林静",null,"李伟（诗秀雅）","逆时空抗衰组合","14件/套","收缩膜",null,null,null,0,0,0,"PCS",null,0]
["林静",null,"李伟（诗秀雅）","普心缘","4ML","粉色瓶盖","4ML",null,null,-100,0,0,"PCS",null,-100]
["林静",null,"李伟（诗秀雅）","清洁护理慕斯","60ML","粉色塑料瓶","60ML",null,null,0,0,0,"PCS",null,0]
["林静",null,"李伟（诗秀雅）","清洁护理慕斯","60ML","泵头","60ML",null,null,0,0,0,"PCS",null,0]
["林静",null,"李伟（诗秀雅）","清洁护理慕斯","60ML","外盖","60ML",null,null,0,0,0,"PCS",null,0]
["林静",null,"李伟（诗秀雅）","清洁护理慕斯","60ML","花盒","60ML",null,null,0,0,0,"PCS",null,0]
["林静",null,"李伟（诗秀雅）","清洁护理慕斯","60ML","内托","60ML",null,null,0,0,0,"PCS",null,0]
["林静",null,"李伟（诗秀雅）","清洁护理慕斯","60ML","塑封膜",null,null,null,2000,0,0,"PCS",null,2000]
["林静",null,"李伟（诗秀雅）","润之胸部套","30件/套","套盒","30件/套",null,null,0,0,0,"PCS",null,0]
["林静",null,"李伟（诗秀雅）","润之胸部套","30件/套","收缩膜",null,null,null,0,0,0,"PCS",null,0]
["林静",null,"李伟（诗秀雅）","舒畅净化精华液","40ML","玻璃瓶","40ML",null,null,0,0,0,"PCS",null,0]
["林静",null,"李伟（诗秀雅）","舒畅净化精华液","40ML","喷头","40ML",null,null,0,0,0,"PCS",null,0]
["林静",null,"李伟（诗秀雅）","舒畅净化精华液","40ML","外盖","40ML",null,null,0,0,0,"PCS",null,0]
["林静",null,"李伟（诗秀雅）","舒畅净化套","3件/套","套盒","3件/套",null,null,0,0,0,"PCS",null,0]
["林静",null,"李伟（诗秀雅）","舒畅净化套","3件/套","收缩膜","   ",null,null,0,0,0,"PCS",null,0]
["林静",null,"李伟（诗秀雅）","丝滑净爽洁面乳","100g","软管","100g",null,null,0,0,0,"PCS",null,0]
["林静",null,"李伟（诗秀雅）","丝滑净爽洁面乳","100g","封口贴","100g",null,null,0,0,0,"PCS",null,0]
["林静",null,"李伟（诗秀雅）","丝滑净爽洁面乳","100g","外盖","100g",null,null,0,0,0,"PCS",null,0]
["林静",null,"李伟（诗秀雅）","丝滑净爽洁面乳","100g","内托","100g",null,null,0,0,0,"PCS",null,0]
["林静",null,"李伟（诗秀雅）","丝滑净爽洁面乳","100g","说明书","100g",null,null,0,0,0,"PCS",null,0]
["林静",null,"李伟（诗秀雅）","丝滑净爽洁面乳","100g","彩盒","100g",null,null,0,0,0,"PCS",null,0]
["林静",null,"李伟（诗秀雅）","丝滑净爽洁面乳","100g","塑封膜","100g",null,null,0,0,0,"PCS",null,0]
["林静",null,"李伟（诗秀雅）","丝柔复活养肤液","100ML","玻璃瓶","100ML",null,null,-1000,0,0,"PCS",null,-1000]
["林静",null,"李伟（诗秀雅）","丝柔复活养肤液","100ML","喷雾泵头","100ML",null,null,-800,0,0,"PCS",null,-800]
["林静",null,"李伟（诗秀雅）","丝柔复活养肤液","100ML","外盖","100ML",null,null,-1000,0,0,"PCS",null,-1000]
["林静",null,"李伟（诗秀雅）","丝柔复活养肤液","100ML","贴标","100ML",null,null,0,0,0,"PCS",null,0]
["林静",null,"李伟（诗秀雅）","丝柔复活养肤液","100ML","彩盒","100ML",null,null,0,0,0,"PCS",null,0]
["林静",null,"李伟（诗秀雅）","丝柔复活养肤液","100ML","内托","100ML",null,null,0,0,0,"PCS",null,0]
["林静",null,"李伟（诗秀雅）","丝柔复活养肤液","100ML","塑封膜",null,null,null,1000,0,0,"PCS",null,1000]
["林静",null,"李伟（诗秀雅）","丝柔净爽洁面乳","100ML","软管","100ML",null,null,-1000,0,0,"PCS",null,-1000]
["林静",null,"李伟（诗秀雅）","丝柔净爽洁面乳","100ML","封口贴","100ML",null,null,-1000,0,0,"PCS",null,-1000]
["林静",null,"李伟（诗秀雅）","丝柔净爽洁面乳","100ML","外盖","100ML",null,null,-1000,0,0,"PCS",null,-1000]
["林静",null,"李伟（诗秀雅）","丝柔净爽洁面乳","100ML","内托","100ML",null,null,-1000,0,0,"PCS",null,-1000]
["林静",null,"李伟（诗秀雅）","丝柔净爽洁面乳","100ML","说明书","100ML",null,null,-1000,0,0,"PCS",null,-1000]
["林静",null,"李伟（诗秀雅）","丝柔净爽洁面乳","100ML","彩盒","100ML",null,null,-1000,0,0,"PCS",null,-1000]
["林静",null,"李伟（诗秀雅）","丝柔净爽洁面乳","100ML","塑封膜","100ML",null,null,0,0,0,"PCS",null,0]
["林静",null,"李伟（诗秀雅）","丝柔醒肤滋养乳","100ML","红色玻璃瓶","100ML",null,null,0,0,0,"PCS",null,0]
["林静",null,"李伟（诗秀雅）","丝柔醒肤滋养乳","100ML","压嘴式泵头","100ML",null,null,0,0,0,"PCS",null,0]
["林静",null,"李伟（诗秀雅）","丝柔醒肤滋养乳","100ML","外盖","100ML",null,null,0,0,0,"PCS",null,0]
["林静",null,"李伟（诗秀雅）","塑颜修护泥膜","100G","软管","100G",null,null,{"$f":"O788+K788-L788","v":0},{"$f":"Q788+U788+Y788+AC788+AG788+AK788+AO788+AS788+AW788+BA788+BE788+BI788+BM788+BQ788+BU788+BY788+CC788+CG788+CK788+CO788+CS788+CW788+DA788+DE788+DI788+DM788+DQ788+DU788+DY788+EC788+EG788","v":0},{"$f":"S788+W788+AA788+AE788+AI788+AM788+AQ788+AU788+AY788+BC788+BG788+BK788+BO788+BS788+BW788+CA788+CE788+CI788+CM788+CQ788+CU788+CY788+DC788+DG788+DK788+DO788+DS788+DW788+EA788+EE788+EI788","v":0},"PCS",null,0]
["林静",null,"李伟（诗秀雅）","塑颜修护泥膜","100G","黄色外盖","100G",null,null,0,0,0,"PCS",null,0]
["林静",null,"李伟（诗秀雅）","塑颜修护泥膜","100G","封口贴","100G",null,null,0,0,0,"PCS",null,0]
["林静",null,"李伟（诗秀雅）","塑颜修护泥膜","100G","品名标","100G",null,null,0,0,0,"PCS",null,0]
["林静",null,"李伟（诗秀雅）","提升美臀疗养套","30件/套","套盒","30件/套",null,null,0,0,0,"PCS",null,0]
["林静",null,"李伟（诗秀雅）","提升美臀疗养套","30件/套","收缩膜",null,null,null,0,0,0,"PCS",null,0]
["林静",null,"李伟（诗秀雅）","温蕊调理美颜套","30件/套","银色套盒","30件/套",null,null,0,0,0,"PCS",null,0]
["林静",null,"李伟（诗秀雅）","温蕊调理美颜套","30件/套","品名标",null,null,null,0,0,0,"PCS",null,0]
["林静",null,"李伟（诗秀雅）","纤细腿足美颜","31件/套","银色套盒","31件/套",null,null,0,0,0,"PCS",null,0]
["林静",null,"李伟（诗秀雅）","纤细腿足美颜","31件/套","品名标",null,null,null,0,0,0,"PCS",null,0]
["林静",null,"李伟（诗秀雅）","香肩玉脊美颜组合","30件/套","银色套盒","30件/套",null,null,1000,0,0,"PCS",null,1000]
["林静",null,"李伟（诗秀雅）","香肩玉脊美颜组合","30件/套","品名标",null,null,null,0,0,0,"PCS",null,0]
["林静",null,"李伟（诗秀雅）","修护原液","5ML","折断瓶","5ML",null,null,0,0,0,"PCS",null,0]
["林静",null,"李伟（诗秀雅）","修护原液","5ML","白色内塞","5ML",null,null,0,0,0,"PCS",null,0]
["林静",null,"李伟（诗秀雅）","修护原液","5ML","塞钉","5ML",null,null,0,0,0,"PCS",null,0]
["林静",null,"李伟（诗秀雅）","洋淋之美",null,"套盒",null,null,null,0,0,0,"PCS",null,0]
["曾小根",null,"林雪","A384+3.5C珠光膜","/","A384+3.5C珠光膜","/",null,null,8000,0,0,"PCS",null,8000]
["曾小根",null,"林雪","青春弹力面膜","/","收缩膜","/",null,null,1000,0,0,"PCS",null,1000]
["林静",null,"刘成（匀慕）","氨基酸净透洁面乳（匀慕）","120g","软管","120g",null,null,0,0,0,"PCS",null,0]
["林静",null,"刘成（匀慕）","氨基酸净透洁面乳（匀慕）","120g","封口标","120g",null,null,0,0,0,"PCS",null,0]
["林静",null,"刘成（匀慕）","氨基酸净透洁面乳（匀慕）","120g","平边亚克力亮金盖","120g",null,null,0,0,0,"PCS",null,0]
["林静",null,"刘成（匀慕）","氨基酸净透洁面乳（匀慕）","120g","彩盒","120g",null,null,0,0,0,"PCS",null,0]
["林静",null,"刘成（匀慕）","氨基酸净透洁面乳（匀慕）","120g","内托","120g",null,null,0,0,0,"PCS",null,0]
["林静",null,"刘成（匀慕）","氨基酸净透洁面乳（匀慕）","120g","塑封膜","120g",null,null,0,0,0,"PCS",null,0]
["林静",null,"刘成（匀慕）","冰泉沐妍补水套","4件/套","套盒","4件/套",null,null,0,0,0,"PCS",null,0]
["林静",null,"刘成（匀慕）","玻尿酸溶媒精华液","3ML","专用安瓶","3ML",null,null,10158,0,0,"PCS",null,10158]
["林静",null,"刘成（匀慕）","玻尿酸溶媒精华液、舒缓养护冻干粉","3ML","白色揭开盖","3ML",null,null,20800,0,0,"PCS",null,20800]
["林静",null,"刘成（匀慕）","多肽修护精华","2ML","折断瓶","2ML",null,null,0,0,0,"PCS",null,0]
["林静",null,"刘成（匀慕）","多肽修护精华","2ML","内塞","2ML",null,null,0,0,0,"PCS",null,0]
["林静",null,"刘成（匀慕）","多肽修护精华","2ML","塞丁","2ML",null,null,0,0,0,"PCS",null,0]
["林静",null,"刘成（匀慕）","多肽修护乳液","8ML","折断瓶","2ML",null,null,-1000,0,0,"PCS",null,-1000]
["林静",null,"刘成（匀慕）","多肽修护乳液","8ML","内塞","2ML",null,null,-1000,0,0,"PCS",null,-1000]
["林静",null,"刘成（匀慕）","多肽修护乳液","8ML","塞丁","2ML",null,null,-1000,0,0,"PCS",null,-1000]
["林静",null,"刘成（匀慕）","肤质改善精华乳","10ML","折断瓶","10ML",null,null,0,0,0,"PCS",null,0]
["林静",null,"刘成（匀慕）","肤质改善精华乳","10ML","内塞","10ML",null,null,0,0,0,"PCS",null,0]
["林静",null,"刘成（匀慕）","肤质改善精华乳","10ML","塞丁","10ML",null,null,0,0,0,"PCS",null,0]
["林静",null,"刘成（匀慕）","肤质改善精华液","2ML","折断瓶","2ML",null,null,0,0,0,"PCS",null,0]
["林静",null,"刘成（匀慕）","肤质改善精华液","2ML","内塞","2ML",null,null,0,0,0,"PCS",null,0]
["林静",null,"刘成（匀慕）","肤质改善精华液","2ML","塞丁","2ML",null,null,0,0,0,"PCS",null,0]
["林静",null,"刘成（匀慕）","肤质改善原液","2ML","折断瓶","2ML",null,null,-15000,0,0,"PCS",null,-15000]
["林静",null,"刘成（匀慕）","肤质改善原液","2ML","内塞","2ML",null,null,-15000,0,0,"PCS",null,-15000]
["林静",null,"刘成（匀慕）","肤质改善原液","2ML","塞丁","2ML",null,null,-15000,0,0,"PCS",null,-15000]
["林静",null,"刘成（匀慕）","净透黑头导出液（匀慕）","30ml","玻璃瓶","30ml",null,null,2110,0,0,"PCS",null,2110]
["林静",null,"刘成（匀慕）","净透黑头导出液（匀慕）","30ml","外盖","30ml",null,null,2110,0,0,"PCS",null,2110]
["林静",null,"刘成（匀慕）","净透黑头导出液（匀慕）","30ml","瓶肩","30ml",null,null,2110,0,0,"PCS",null,2110]
["林静",null,"刘成（匀慕）","净透黑头导出液（匀慕）","30ml","滴管","30ml",null,null,2168,0,0,"PCS",null,2168]
["林静",null,"刘成（匀慕）","净透黑头膜","10ML","软管","10ML",null,null,-300,0,0,"PCS",null,-300]
["林静",null,"刘成（匀慕）","净透黑头膜","10ML","内塞","10ML",null,null,-300,0,0,"PCS",null,-300]
["林静",null,"刘成（匀慕）","净透黑头膜","10ML","盖子","10ML",null,null,-300,0,0,"PCS",null,-300]
["林静",null,"刘成（匀慕）","净透毛孔细致露","80ml","玻璃瓶","80ml",null,null,0,0,0,"PCS",null,0]
["林静",null,"刘成（匀慕）","净透毛孔细致露","80ml","压嘴泵头","80ml",null,null,0,0,0,"PCS",null,0]
["林静",null,"刘成（匀慕）","净透毛孔细致露","80ml","外盖","80ml",null,null,0,0,0,"PCS",null,0]
["林静",null,"刘成（匀慕）","净透毛孔细致露（匀慕）"," 80ml","玻璃瓶"," 80ml",null,null,2030,0,0,"PCS",null,2030]
["林静",null,"刘成（匀慕）","沐妍保湿乳","50ML","亚克力瓶","50ML",null,null,0,0,0,"PCS",null,0]
["林静",null,"刘成（匀慕）","沐妍保湿乳","50ML","压嘴泵头","50ML",null,null,0,0,0,"PCS",null,0]
["林静",null,"刘成（匀慕）","沐妍保湿乳","50ML","外盖","50ML",null,null,0,0,0,"PCS",null,0]
["林静",null,"刘成（匀慕）","沐妍保湿霜","30g","亚克力瓶","30g",null,null,0,0,0,"PCS",null,0]
["林静",null,"刘成（匀慕）","沐妍保湿霜","30g","手拉垫片","30g",null,null,0,0,0,"PCS",null,0]
["林静",null,"刘成（匀慕）","沐妍保湿霜","30g","外盖","30g",null,null,0,0,0,"PCS",null,0]
["林静",null,"刘成（匀慕）","沐妍保湿水（匀慕）","100ml","亚克力瓶","100ml",null,null,0,0,0,"PCS",null,0]
["林静",null,"刘成（匀慕）","沐妍保湿水（匀慕）","100ml","压嘴泵头","100ml",null,null,0,0,0,"PCS",null,0]
["林静",null,"刘成（匀慕）","沐妍保湿水（匀慕）","100ml","外盖","100ml",null,null,0,0,0,"PCS",null,0]
["林静",null,"刘成（匀慕）","沐妍保湿水（匀慕）","100ml","彩盒","100ml",null,null,500,0,0,"PCS",null,500]
["林静",null,"刘成（匀慕）","沐妍保湿水（匀慕）","100ml","内托","100ml",null,null,500,0,0,"PCS",null,500]
["林静",null,"刘成（匀慕）","沐妍保湿水（匀慕）","100ml","塑封膜","100ml",null,null,{"$f":"O852+K852-L852","v":0},{"$f":"Q852+U852+Y852+AC852+AG852+AK852+AO852+AS852+AW852+BA852+BE852+BI852+BM852+BQ852+BU852+BY852+CC852+CG852+CK852+CO852+CS852+CW852+DA852+DE852+DI852+DM852+DQ852+DU852+DY852+EC852+EG852","v":0},{"$f":"S852+W852+AA852+AE852+AI852+AM852+AQ852+AU852+AY852+BC852+BG852+BK852+BO852+BS852+BW852+CA852+CE852+CI852+CM852+CQ852+CU852+CY852+DC852+DG852+DK852+DO852+DS852+DW852+EA852+EE852+EI852","v":0},"PCS",null,0]
["林静",null,"刘成（匀慕）","沐妍锁水精华液","30ML","亚克力瓶","30ML",null,null,-5,0,0,"PCS",null,-5]
["林静",null,"刘成（匀慕）","沐妍锁水精华液","30ML","压嘴泵头","30ML",null,null,-5,0,0,"PCS",null,-5]
["林静",null,"刘成（匀慕）","沐妍锁水精华液","30ML","盖子","30ML",null,null,-10,0,0,"PCS",null,-10]
["林静",null,"刘成（匀慕）","青豆青颜EGF多肽修护精华","2ML","折断瓶","2ML",null,null,-5000,0,0,"PCS",null,-5000]
["林静",null,"刘成（匀慕）","青豆青颜EGF多肽修护精华","2ML","内塞","2ML",null,null,-5000,0,0,"PCS",null,-5000]
["林静",null,"刘成（匀慕）","青豆青颜EGF多肽修护精华","2ML","塞丁","2ML",null,null,-5000,0,0,"PCS",null,-5000]
["林静",null,"刘成（匀慕）","青豆青颜EGF多肽修护乳液","8ML","折断瓶","8ML",null,null,-1000,0,0,"PCS",null,-1000]
["林静",null,"刘成（匀慕）","青豆青颜EGF多肽修护乳液","8ML","内塞","8ML",null,null,-1000,0,0,"PCS",null,-1000]
["林静",null,"刘成（匀慕）","青豆青颜EGF多肽修护乳液","8ML","塞丁","8ML",null,null,-1000,0,0,"PCS",null,-1000]
["林静",null,"刘成（匀慕）","青豆青颜EGF多肽修护套","12件/套","套盒",null,null,null,4,0,0,"PCS",null,4]
["林静",null,"刘成（匀慕）","青豆青颜EGF多肽修护套","12件/套","收缩膜",null,null,null,0,0,0,"PCS",null,0]
["林静",null,"刘成（匀慕）","青豆青颜EGF多肽修护套","12件/套","纸箱",null,null,null,0,0,0,"PCS",null,0]
["林静",null,"刘成（匀慕）","舒缓调理软膜粉","1kg","印刷铝箔袋","1kg",null,null,4700,0,0,"PCS",null,4700]
["林静",null,"刘成（匀慕）","舒缓养护冻干粉","3ML","专用安瓶","3ML",null,null,10332,0,0,"PCS",null,10332]
["林静",null,"刘成（匀慕）","舒柔喷雾（匀慕）","120ML","玻璃瓶","120ML",null,null,498,0,0,"PCS",null,498]
["林静",null,"刘成（匀慕）","舒柔喷雾（匀慕）","120ML","外盖","120ML",null,null,498,0,0,"PCS",null,498]
["林静",null,"刘成（匀慕）","舒柔喷雾（匀慕）","120ML","喷雾泵头","120ML",null,null,489,0,0,"PCS",null,489]
["林静",null,"刘成（匀慕）","舒柔丝滑补水面膜","25g","A384面膜纸","25G",null,null,0,0,0,"PCS",null,0]
["林静",null,"刘成（匀慕）","舒柔丝滑补水面膜","25g","印刷铝箔袋","25G",null,null,12900,0,0,"PCS",null,12900]
["林静",null,"刘成（匀慕）","舒柔丝滑补水面膜","25g","彩盒","25G",null,null,2110,0,0,"PCS",null,2110]
["林静",null,"刘成（匀慕）","舒柔丝滑补水面膜","25g","内托","25G",null,null,2000,0,0,"PCS",null,2000]
["林静",null,"刘成（匀慕）","无暇舒柔水（匀慕）","120ML","玻璃瓶","120ML",null,null,551,0,0,"PCS",null,551]
["林静",null,"刘成（匀慕）","莹润保湿乳（匀慕）","80ML","玻璃瓶","80ML",null,null,1992,0,0,"PCS",null,1992]
["林静",null,"刘成（匀慕）","莹润保湿乳（匀慕）、净透毛孔细致露（匀慕）","80ML","外盖","80ML",null,null,4022,0,0,"PCS",null,4022]
["林静",null,"刘成（匀慕）","莹润保湿乳（匀慕）、净透毛孔细致露（匀慕）","80ML","压嘴","80ML",null,null,4022,0,0,"PCS",null,4022]
["林静",null,"刘成（匀慕）","莹润保湿水（匀慕）","120ML","玻璃瓶","120ML",null,null,960,0,0,"PCS",null,960]
["林静",null,"刘成（匀慕）","莹润保湿水（匀慕）、无暇舒柔水（匀慕）","120ML","外盖","120ML",null,null,1906,0,0,"PCS",null,1906]
["林静",null,"刘成（匀慕）","莹润保湿水（匀慕）、无暇舒柔水（匀慕）","120ML","钉子","120ML",null,null,50,0,0,"PCS",null,50]
["林静",null,"刘成（匀慕）","莹润保湿水（匀慕）、无暇舒柔水（匀慕）","120ML","内塞","120ML",null,null,50,0,0,"PCS",null,50]
["林静",null,"刘成（匀慕）","莹润补水套","2件/套","套盒","2件/套",null,null,2,0,0,"PCS",null,2]
["林静",null,"刘成（匀慕）","匀慕多肽修护套","12件/套","套盒","12件/套",null,null,5,0,0,"PCS",null,5]
["林静",null,"刘成（匀慕）","匀慕肤质改善精华尊享套","22件/套","套盒","22件/套",null,null,21,0,0,"PCS",null,21]
["林静",null,"刘成（匀慕）","匀慕肤质改善精华尊享套","12件/套","收缩膜","12件/套",null,null,0,0,0,"PCS",null,0]
["林静",null,"刘成（匀慕）","匀慕肤质改善原液奢华套","30件/套","套盒","30件/套",null,null,3,0,0,"PCS",null,3]
["林静",null,"刘成（匀慕）","匀慕净透祛黑头套","5件/套","套盒","5件/套",null,null,-40,0,0,"PCS",null,-40]
["林静",null,"刘成（匀慕）","匀慕净透祛黑头套","5件/套","收缩膜","5件/套",null,null,0,0,0,"PCS",null,0]
["林静",null,"刘成（匀慕）","匀慕青颜原液","5ML","安瓶","5ML",null,null,243,0,0,"PCS",null,243]
["林静",null,"刘成（匀慕）","匀慕青颜原液","5ML","外盖","5ML",null,null,300,0,0,"PCS",null,300]
["林静",null,"刘成（匀慕）","匀慕青颜原液","5ML","内塞","5ML",null,null,300,0,0,"PCS",null,300]
["林静",null,"刘成（匀慕）","匀慕青颜原液套","6件/套","套盒","6件/套",null,null,15,0,0,"PCS",null,15]
["林静",null,"刘成（匀慕）","匀慕青颜原液套","6件/套","喇叭头","6件/套",null,null,-1500,0,0,"PCS",null,-1500]
["林静",null,"刘成（匀慕）","匀慕青颜原液套","6件/套","塑封膜","6件/套",null,null,0,0,0,"PCS",null,0]
["林静",null,"刘成（匀慕）","匀慕臻护无暇套","121件/套","套盒",null,null,null,9,0,0,"PCS",null,9]
["林静",null,"刘成（匀慕）","匀慕臻护无暇套","121件/套","收缩膜",null,null,null,500,0,0,"PCS",null,500]
["林静",null,"刘成（匀慕）","臻护舒缓调理套","20件/套","套盒","20件/套",null,null,-500,0,0,"PCS",null,-500]
["林静",null,"刘成（匀慕）","臻护舒缓调理套","20件/套","收缩膜",null,null,null,0,0,0,"PCS",null,0]
["林静",null,"刘成（匀慕）","臻护无暇精华液","1ML","折断瓶","1ML",null,null,-15000,0,0,"PCS",null,-15000]
["林静",null,"刘成（匀慕）","臻护无暇精华液","1ML","内塞","1ML",null,null,-14750,0,0,"PCS",null,-14750]
["林静",null,"刘成（匀慕）","臻护无暇精华液","1ML","塞丁","1ML",null,null,-15000,0,0,"PCS",null,-15000]
["林静",null,"刘成（匀慕）","臻护无暇乳液","2ML","折断瓶","2ML",null,null,-10000,0,0,"PCS",null,-10000]
["林静",null,"刘成（匀慕）","臻护无暇乳液、臻护无暇营养液","2ML","内塞","2ML",null,null,-30000,0,0,"PCS",null,-30000]
["林静",null,"刘成（匀慕）","臻护无暇乳液、臻护无暇营养液","2ML","塞丁","2ML",null,null,0,0,0,"PCS",null,0]
["林静",null,"刘成（匀慕）","臻护无暇软膜粉","25G","套盒","20包/盒",null,null,-504,0,0,"PCS",null,-504]
["林静",null,"刘成（匀慕）","臻护无暇软膜粉","25G","印刷铝箔袋","25G",null,null,14600,0,0,"PCS",null,14600]
["林静",null,"刘成（匀慕）","臻护无暇营养液","2ML","折断瓶","2ML",null,null,-10000,0,0,"PCS",null,-10000]
["曾小根",null,"刘海平","逆时原生液",null,"收缩膜",null,null,null,10500,0,0,"PCS",null,10500]
["曾小根",null,"刘海平","逆时源生液","100ml","玻璃瓶","100ml",null,null,9940,0,0,"PCS",null,9940]
["曾小根",null,"刘海平","逆时源生液","100ml","外罩","100ml",null,null,9940,0,0,"PCS",null,9940]
["曾小根",null,"刘海平","逆时源生液","100ml","喷头","100ml",null,null,9940,0,0,"PCS",null,9940]
[]
[]
[]
["曾小根",null,"刘铁成（朗顿）","幻彩按摩霜","10g","折断瓶","10g",null,null,948,948,0,"PCS",null,null,"盘点",948]
["曾小根",null,"刘铁成（朗顿）","幻彩按摩霜","10g","推瓶","10g",null,null,{"$f":"O916+K916-L916","v":3984},{"$f":"Q916+U916+Y916+AC916+AG916+AK916+AO916+AS916+AW916+BA916+BE916+BI916+BM916+BQ916+BU916+BY916+CC916+CG916+CK916+CO916+CS916+CW916+DA916+DE916+DI916+DM916+DQ916+DU916+DY916+EC916+EG916","v":3984},{"$f":"S916+W916+AA916+AE916+AI916+AM916+AQ916+AU916+AY916+BC916+BG916+BK916+BO916+BS916+BW916+CA916+CE916+CI916+CM916+CQ916+CU916+CY916+DC916+DG916+DK916+DO916+DS916+DW916+EA916+EE916+EI916","v":0},"PCS",null,null,"盘点",3984]
["曾小根",null,"刘铁成（朗顿）","幻彩活力素","2g","折断瓶","2g",null,null,38,38,0,"PCS",null,null,"盘点",38]
["曾小根",null,"刘铁成（朗顿）","幻彩活力素","2ml","推瓶","2ml",null,null,1652,1652,0,"PCS",null,null,"盘点",1652]
["曾小根",null,"刘铁成（朗顿）","幻彩爽柔露","5ml","喷雾瓶","5ml",null,null,2009,2009,0,"PCS",null,null,"盘点",2009]
["曾小根",null,"刘铁成（朗顿）","幻彩爽柔露","5ml","喷雾喷头","5ml",null,null,2000,2000,0,"PCS",null,null,"盘点",2000]
["曾小根",null,"刘铁成（朗顿）","唤醒精华素","5ml","折断瓶","5ml",null,null,36,36,0,"PCS",null,null,"盘点",36]
["曾小根",null,"刘铁成（朗顿）","唤醒精华素","5ml","推瓶","5ml",null,null,900,900,0,"PCS",null,null,"盘点",900]
["曾小根",null,"刘铁成（朗顿）","唤醒精华素","5ml","内塞+顶针","5ml",null,null,900,900,0,"PCS",null,null,"盘点",900]
["曾小根",null,"刘铁成（朗顿）","唤醒精华肽","2g","折断瓶","2g",null,null,96,96,0,"PCS",null,null,"盘点",96]
["曾小根",null,"刘铁成（朗顿）","唤醒精华肽","2g","玻璃瓶","2g",null,null,1734,1734,0,"PCS",null,null,"盘点",1734]
["曾小根",null,"刘铁成（朗顿）","唤醒精华肽","2g","开口塞","2g",null,null,1700,1700,0,"PCS",null,null,"盘点",1700]
["曾小根",null,"刘铁成（朗顿）","唤醒精华肽","2g","金黄盖","2g",null,null,1700,1700,0,"PCS",null,null,"盘点",1700]
["曾小根",null,"刘铁成（朗顿）","焕彩爽柔露","5ml","喷雾瓶","5ml",null,null,1669,1669,0,"PCS",null,null,"盘点",1669]
["曾小根",null,"刘铁成（朗顿）","梦幻爱洛蒙霜","10g","折断瓶","10g",null,null,36,36,0,"PCS",null,null,"盘点",36]
["曾小根",null,"刘铁成（朗顿）","梦幻爱洛蒙霜","10g","推瓶","10g",null,null,1026,1026,0,"PCS",null,null,"盘点",1026]
[]
["曾小根",null,"刘铁成（朗顿）","梦幻柔情霜","2g","折断瓶","2g",null,null,65,65,0,"PCS",null,null,"盘点",65]
["曾小根",null,"刘铁成（朗顿）","梦幻柔情霜","2ml","推瓶","2ml",null,null,1158,1158,0,"PCS",null,null,"盘点",1158]
["曾小根",null,"刘铁成（朗顿）","梦幻柔情霜/幻彩活力素","2ml","内塞+顶针","2ml",null,null,2700,2700,0,"PCS",null,null,"盘点",2700]
[]
["曾小根",null,"刘铁成（朗顿）","泡沫喷头","50ml","泡沫喷头","50ml",null,null,1300,1300,0,"PCS",null,null,"盘点",1300]
["曾小根",null,"刘铁成（朗顿）","泡沫瓶","50ml","泡沫瓶","50ml",null,null,1148,1148,0,"PCS",null,null,"盘点",1148]
["曾小根",null,"刘铁成（朗顿）","泡沫瓶","50ml","泡沫喷头","50ml",null,null,1148,1148,0,"PCS",null,null,"盘点",1148]
["曾小根",null,"刘铁成（朗顿）","维斯密语-春之恋",null,"不干胶",null,null,null,331,331,0,"PCS",null,null,"盘点",331]
["曾小根",null,"刘铁成（朗顿）","维斯密语-贵妃醉",null,"不干胶",null,null,null,336,336,0,"PCS",null,null,"盘点",336]
["曾小根",null,"刘铁成（朗顿）","维斯密语-精致如初",null,"不干胶",null,null,null,1048,1048,0,"PCS",null,null,"盘点",1048]
["曾小根",null,"刘铁成（朗顿）","维斯密语-凝香露","30ml","套盒标","30ml",null,null,1000,1000,0,"PCS",null,null,"盘点",1000]
["曾小根",null,"刘铁成（朗顿）","维斯密语-凝香露","30ml","塑封膜","21*31cm",null,null,0,0,0,"PCS"]
["曾小根",null,"刘铁成（朗顿）","维斯密语-凝香露","30ml",null,"30ml",null,null,609,609,0,"PCS",null,null,"盘点",609]
["曾小根",null,"刘铁成（朗顿）","维斯密语-凝香露","30ml","塑料瓶","30ml",null,null,118,118,0,"PCS",null,null,"盘点",118]
["曾小根",null,"刘铁成（朗顿）","维斯密语-凝香露","30ml","喷头","30ml",null,null,849,849,0,"PCS",null,null,"盘点",849]
["曾小根",null,"刘铁成（朗顿）","维斯密语-凝香露","30ml","外罩","30ml",null,null,972,972,0,"PCS",null,null,"盘点",972]
[]
[]
[]
["曾小根",null,"刘铁成（朗顿）","维斯密语-维纳斯之吻","50ml","不干胶",null,null,null,547,547,0,"PCS",null,null,"盘点",547]
[]
["曾小根",null,"刘铁成（朗顿）","维斯润泽乳 ","50ml","塑料瓶","50ml",null,null,0,0,0,"PCS"]
["曾小根",null,"刘铁成（朗顿）","维斯润泽乳 ","50ml","泵头","50ml",null,null,0,0,0,"PCS"]
["曾小根",null,"刘铁成（朗顿）","维斯润泽乳 ","50ml","外罩","50ml",null,null,0,0,0,"PCS"]
[]
[]
["曾小根",null,"刘铁成（朗顿）","维斯润泽乳","50ml","塑封膜","21*31cm",null,null,0,0,0,"PCS"]
["曾小根",null,"刘铁成（朗顿）","维斯密语-醉红颜",null,"不干胶《小》",null,null,null,327,327,0,"PCS",null,null,"盘点",327]
["曾小根",null,"刘铁成（朗顿）","维斯密语-醉红颜",null,"不干胶《大》",null,null,null,51,51,0,"PCS",null,null,"盘点",51]
["曾小根",null,"马文英","10ml风姿卓越",null,"玻璃瓶",null,null,null,1062,0,0,"PCS",null,1062]
["曾小根",null,"马文英","纯银铝袋","7*10","纯银铝袋","7*10",null,null,200,0,0,"PCS",null,200]
["曾小根",null,"马文英","纯银铝袋","9*13","纯银铝袋","9*13",null,null,2600,0,0,"PCS",null,2600]
["曾小根",null,"马文英","风姿卓越魅力纤腿套",null,"说明书",null,null,null,1250,0,0,"PCS",null,1250]
["曾小根",null,"马文英","风姿卓越水玲珑媚眼膜",null,"标贴",null,null,null,0,0,0,"PCS",null,0]
["曾小根",null,"马文英","风姿卓越水润养眼膜",null,"标贴",null,null,null,0,0,0,"PCS",null,0]
["曾小根",null,"马文英","风姿卓越套盒【1】",null,"风姿卓越套盒【1】",null,null,null,199,0,0,"PCS",null,199]
["曾小根",null,"马文英","风姿卓越套盒【2】",null,"风姿卓越套盒【2】",null,null,null,99,0,0,"PCS",null,99]
["曾小根",null,"马文英","灰内塞","5ml","灰内塞","5ml",null,null,7200,0,0,"PCS",null,7200]
["曾小根",null,"马文英","空白纸箱56*44.5*38",null,"空白纸箱56*44.5*38",null,null,null,83,0,0,"PCS",null,83]
["曾小根",null,"马文英","玲珑精油",null,"标贴",null,null,null,2500,0,0,"PCS",null,2500]
[]
[]
[]
[]
[]
[]
[]
[]
[]
[]
[]
["曾小根",null,"马文英","魅惑丰韵套","80件/套","正面标","80件/套",null,null,{"$f":"O983+K983-L983","v":0},{"$f":"Q983+U983+Y983+AC983+AG983+AK983+AO983+AS983+AW983+BA983+BE983+BI983+BM983+BQ983+BU983+BY983+CC983+CG983+CK983+CO983+CS983+CW983+DA983+DE983+DI983+DM983+DQ983+DU983+DY983+EC983+EG983","v":0},{"$f":"S983+W983+AA983+AE983+AI983+AM983+AQ983+AU983+AY983+BC983+BG983+BK983+BO983+BS983+BW983+CA983+CE983+CI983+CM983+CQ983+CU983+CY983+DC983+DG983+DK983+DO983+DS983+DW983+EA983+EE983+EI983","v":0},"PCS"]
["曾小根",null,"马文英","魅惑丰韵套","80件/套","背面标","80件/套",null,null,0,0,0,"PCS"]
["曾小根",null,"马文英","魅惑丰韵套","80件/套","说明书","80件/套",null,null,0,0,0,"PCS"]
["曾小根",null,"马文英","魅惑丰韵套","80件/套","塑封膜","80件/套",null,null,0,0,0,"PCS"]
["曾小根",null,"马文英","魅惑丰韵套","80件/套","客供纸箱","80件/套",null,null,0,0,0,"PCS"]
[]
["曾小根",null,"马文英","魅惑纤腰套","68件/套","正面标","68件/套",null,null,0,0,0,"PCS"]
["曾小根",null,"马文英","魅惑纤腰套","68件/套","背面标","68件/套",null,null,0,0,0,"PCS"]
["曾小根",null,"马文英","魅惑纤腰套","68件/套","说明书","68件/套",null,null,0,0,0,"PCS"]
["曾小根",null,"马文英","魅惑纤腰套","68件/套","塑封膜","68件/套",null,null,0,0,0,"PCS"]
["曾小根",null,"马文英","魅惑纤腰套","68件/套","客供纸箱","68件/套",null,null,0,0,0,"PCS"]
["曾小根",null,"马文英","魅力调理发霜","5ml/10ml","玻瓶",9000,null,null,6000,0,0,"PCS",null,6000]
["曾小根",null,"马文英","魅力调理霜","5g","折断瓶（烫银）","5g",null,null,6780,0,0,"PCS",null,6780]
["曾小根",null,"马文英","魅力调理霜","5g","内塞","5g",null,null,0,0,0,"PCS"]
["曾小根",null,"马文英","魅力调理霜","5g","钉子","5g",null,null,0,0,0,"PCS"]
["曾小根",null,"马文英","魅力丰韵套",null,"标贴",null,null,null,1000,0,0,"PCS",null,1000]
["曾小根",null,"马文英","魅力丰韵套","38件/套","套盒","38件/套",null,null,0,0,0,"PCS"]
["曾小根",null,"马文英","魅力丰韵套","38件/套","正面标","38件/套",null,null,0,0,0,"PCS"]
["曾小根",null,"马文英","魅力丰韵套","38件/套","背面标","38件/套",null,null,0,0,0,"PCS"]
["曾小根",null,"马文英","魅力丰韵套","38件/套","说明书","38件/套",null,null,0,0,0,"PCS"]
["曾小根",null,"马文英","魅力丰韵套","38件/套","塑封膜","38件/套",null,null,0,0,0,"PCS"]
["曾小根",null,"马文英","魅力丰韵套","38件/套","客供纸箱","38件/套",null,null,0,0,0,"PCS"]
["曾小根",null,"马文英","魅力提臀套",null,"标贴",null,null,null,1000,0,0,"PCS",null,1000]
["曾小根",null,"马文英","魅力提臀套",null,"标贴",null,null,null,1000,0,0,"PCS",null,1000]
["曾小根",null,"马文英","魅力纤背套",null,"标贴",null,null,null,1000,0,0,"PCS",null,1000]
["曾小根",null,"马文英","魅力纤背套",null,"标贴",null,null,null,1000,0,0,"PCS",null,1000]
["曾小根",null,"马文英","魅力纤臂套",null,"标贴",null,null,null,1000,0,0,"PCS",null,1000]
["曾小根",null,"马文英","魅力纤臂套",null,"标贴",null,null,null,1000,0,0,"PCS",null,1000]
["曾小根",null,"马文英","魅力纤腿套",null,"标贴",null,null,null,999,0,0,"PCS",null,999]
["曾小根",null,"马文英","魅力纤退套",null,"标贴",null,null,null,1000,0,0,"PCS",null,1000]
["曾小根",null,"马文英","魅力纤腰套","24件/套","套盒","24件/套",null,null,0,0,0,"PCS"]
["曾小根",null,"马文英","魅力纤腰套","24件/套","正面标","24件/套",null,null,0,0,0,"PCS"]
["曾小根",null,"马文英","魅力纤腰套","24件/套","背面标","24件/套",null,null,0,0,0,"PCS"]
["曾小根",null,"马文英","魅力纤腰套","24件/套","说明书","24件/套",null,null,0,0,0,"PCS"]
["曾小根",null,"马文英","魅力纤腰套","24件/套","塑封膜",null,null,null,0,0,0,"PCS"]
["曾小根",null,"马文英","魅力纤腰套","24件/套","客供纸箱","10套/箱",null,null,0,0,0,"PCS"]
["曾小根",null,"马文英","内塞+钉子","5ml","内塞+钉子","5ml",null,null,20000,0,0,"PCS",null,20000]
["曾小根",null,"马文英","青春原液","5ml","玻璃瓶","5ml",null,null,3610,0,0,"PCS",null,3610]
["曾小根",null,"马文英","青春原液","5g","折断瓶（烫金）","5g",null,null,0,0,0,"PCS"]
["曾小根",null,"马文英","青春原液","5g","内塞","5g",null,null,0,0,0,"PCS"]
["曾小根",null,"马文英","青春原液","5g","钉子","5g",null,null,0,0,0,"PCS"]
["曾小根",null,"马文英","水玲珑媚眼精华","2ml","折断瓶","2ml",null,null,4800,0,0,"PCS",null,4800]
["曾小根",null,"马文英","水玲珑媚眼套",null,"标贴",null,null,null,500,0,0,"PCS",null,500]
["曾小根",null,"马文英","水玲珑媚眼套",null,"标贴",null,null,null,1000,0,0,"PCS",null,1000]
["曾小根",null,"马文英","水玲珑媚眼套何标 反","/","标贴【反】","/",null,null,500,0,0,"PCS",null,500]
["曾小根",null,"马文英","水润滋养舒缓水",null,"标贴",null,null,null,800,0,0,"PCS",null,800]
["曾小根",null,"马文英","水润滋养卸妆液",null,"标贴",null,null,null,800,0,0,"PCS",null,800]
["曾小根",null,"马文英","水润滋养眼部套",null,"标贴",null,null,null,500,0,0,"PCS",null,500]
["曾小根",null,"马文英","水润滋养眼部套",null,"标贴",null,null,null,1000,0,0,"PCS",null,1000]
["曾小根",null,"马文英","水润滋养眼部套盒标 反","/","标贴【反】","/",null,null,500,0,0,"PCS",null,500]
["曾小根",null,"马文英","水润滋养眼精华",null,"标贴",null,null,null,800,0,0,"PCS",null,800]
["曾小根",null,"马文英","水润滋养眼霜",null,"标贴",null,null,null,800,0,0,"PCS",null,800]
["曾小根",null,"马文英","体雕精油","8ml","茶色安瓶（烫金）","8ml",null,null,3600,0,0,"PCS",null,3600]
["曾小根",null,"马文英","体雕精油","8ml","茶色安瓶（烫银）","8ml",null,null,3600,0,0,"PCS",null,3600]
["曾小根",null,"马文英","体雕精油","8ml","灰塞","8ml",null,null,0,0,0,"PCS"]
["曾小根",null,"马文英","体雕精油","8ml","亚金盖","8ml",null,null,0,0,0,"PCS"]
["曾小根",null,"马文英","亚金盖","5ml","亚金盖","5ml",null,null,3600,0,0,"PCS",null,3600]
["曾小根",null,"马文英","眼部套",null,"说明书",null,null,null,1200,0,0,"PCS",null,1200]
["曾小根",null,"马文英","眼膜",null,"珠光膜+膜布",null,null,null,0,0,0,"PCS",null,0]
["曾小根",null,"马文英","银盖","5ml","银盖","5ml",null,null,3600,0,0,"PCS",null,3600]
["曾小根",null,"马文英","蕴能姜油",null,"标贴",null,null,null,1000,0,0,"PCS",null,1000]
[]
[]
[]
[]
[]
[]
[]
[]
[]
[]
[]
[]
["左林青",null,"马野星","大美人精华","套","套盒","套",null,null,{"$f":"O1056+K1056-L1056","v":0},{"$f":"Q1056+U1056+Y1056+AC1056+AG1056+AK1056+AO1056+AS1056+AW1056+BA1056+BE1056+BI1056+BM1056+BQ1056+BU1056+BY1056+CC1056+CG1056+CK1056+CO1056+CS1056+CW1056+DA1056+DE1056+DI1056+DM1056+DQ1056+DU1056+DY1056+EC1056+EG1056","v":126},{"$f":"S1056+W1056+AA1056+AE1056+AI1056+AM1056+AQ1056+AU1056+AY1056+BC1056+BG1056+BK1056+BO1056+BS1056+BW1056+CA1056+CE1056+CI1056+CM1056+CQ1056+CU1056+CY1056+DC1056+DG1056+DK1056+DO1056+DS1056+DW1056+EA1056+EE1056+EI1056","v":126},"PCS",null,null,null,null,null,null,null,null,null,null,null,null,null,null,null,null,null,null,null,null,null,null,null,null,null,null,null,null,null,null,null,null,null,null,null,null,null,null,null,null,null,null,null,null,null,null,null,null,null,null,null,null,null,null,null,null,null,null,null,null,null,null,null,null,null,null,null,null,null,null,"0003647",126,"0003647",126]
["左林青",null,"马野星","大美人精华","套","封膜","套",null,null,0,126,126,"PCS",null,null,null,null,null,null,null,null,null,null,null,null,null,null,null,null,null,null,null,null,null,null,null,null,null,null,null,null,null,null,null,null,null,null,null,null,null,null,null,null,null,null,null,null,null,null,null,null,null,null,null,null,null,null,null,null,null,null,null,null,null,null,null,null,null,null,null,null,null,null,"0003647",126,"0003647",126]
["左林青",null,"马野星","肌底细胞激活精华","15ml","玻璃瓶","15ml",null,null,3091,3091,0,"PCS",null,null,null,3091]
["左林青",null,"马野星","肌底细胞能量精华","30ml","玻璃瓶","30ml",null,null,3033,3033,0,"PCS",null,null,null,3033]
["杨克江",null,"莫歌（施曼丽）","清颜计划套","26件/套","套盒",null,null,null,1999,0,0,"PCS",null,1999]
["杨克江",null,"莫歌（施曼丽）","清颜计划套","26件/套","说明书",null,null,null,3020,0,0,"PCS",null,3020]
["杨克江",null,"莫歌（施曼丽）","清颜计划套","26件/套","塑封膜（全封的）",null,null,null,0,0,0,"PCS",null,0]
["左林青",null,"潘亚芳","玫澜堡活化能喷雾","80ml","玫澜堡喷雾瓶","80ml",null,null,486,0,0,"PCS",null,486]
["左林青",null,"潘亚芳","玫澜堡活化能喷雾","80ml","喷雾泵头","80ml",null,null,486,0,0,"PCS",null,486]
["左林青",null,"潘亚芳","玫澜堡活化能喷雾","80ml","玫澜堡彩盒","80ml",null,null,20660,0,0,"PCS",null,20660]
["林静",null,"潘亚芳","瑞尔瑞纳活化能喷雾","60ml","白色喷雾瓶","60ml",null,null,17700,0,0,"PCS",null,17700]
["林静",null,"潘亚芳","瑞尔瑞纳活化能喷雾","60ml","喷雾泵头","60ml",null,null,18050,0,0,"PCS",null,18050]
["林静",null,"潘亚芳","瑞尔瑞纳活化能喷雾","60ml","透明盖子","60ml",null,null,18050,0,0,"PCS",null,18050]
["林静",null,"潘亚芳","瑞尔瑞纳活化能喷雾","60ml","彩盒","60ml",null,null,51390,0,0,"PCS",null,51390]
["林静",null,"潘亚芳","瑞尔瑞纳活化能喷雾","60ml","内托","60ml",null,null,19400,0,0,"PCS",null,19400]
["林静",null,"潘亚芳","瑞尔瑞纳活化能喷雾","60ml","彩盒内带内托","60ml",null,null,32250,0,0,"PCS",null,32250]
["林静",null,"潘亚芳","瑞尔瑞纳活化能喷雾","60ml","防伪标",null,null,null,12152,0,0,"PCS",null,12152]
["林静",null,"潘亚芳","瑞尔瑞纳活化能喷雾","60ml","收缩膜",null,null,null,22223,0,0,"PCS",null,22223]
["左林青",null,"潘亚芳","瑞尔瑞纳活化能喷雾","60ml","瑞尔瑞纳活化能喷雾瓶","60ml",null,null,17700,0,0,"PCS",null,17700]
["左林青",null,"潘亚芳","瑞尔瑞纳活化能喷雾","60ml","瑞尔瑞纳带内托彩盒","60ml",null,null,32250,0,0,"PCS",null,32250]
["左林青",null,"潘亚芳","瑞尔瑞纳活化能喷雾","60ml","瑞尔瑞纳不带内托彩盒","60ml",null,null,51397,0,0,"PCS",null,51397]
["左林青",null,"潘亚芳","瑞尔瑞纳活化能喷雾","60ml","瑞尔瑞纳内托","60ml",null,null,19400,0,0,"PCS",null,19400]
["左林青",null,"潘亚芳","瑞尔瑞纳活化能喷雾","60ml","瑞尔瑞纳活化能喷雾喷头","60ml",null,null,18000,0,0,"PCS",null,18000]
["左林青",null,"潘亚芳","臻贝尔活化能喷雾","80Ml","臻贝尔喷雾瓶","80Ml",null,null,83655,0,0,"PCS",null,83655]
["左林青",null,"潘亚芳","臻贝尔活化能喷雾","80Ml","喷雾泵头","80Ml",null,null,73920,0,0,"PCS",null,73920]
["左林青",null,"潘亚芳","臻贝尔活化能喷雾","80Ml","透明外盖","80Ml",null,null,98748,0,0,"PCS",null,98748]
["左林青",null,"潘亚芳","臻贝尔活化能喷雾","80Ml","彩盒","80Ml",null,null,59050,0,0,"PCS",null,59050]
["左林青",null,"潘亚芳","臻贝尔活化能喷雾","80Ml","防伪标","80Ml",null,null,415692,0,0,"PCS",null,415692]
["左林青",null,"潘亚芳","臻贝尔活化能喷雾","80Ml","塑封膜","80Ml",null,null,15125,0,0,"PCS",null,15125]
["黄细娇",null,"飘美怡人","DIY不干胶",null,"标贴",null,null,null,0,0,0,"PCS",null,0]
["黄细娇",null,"飘美怡人","空白瓶","250g","收缩膜","250g",null,null,10000,0,0,"PCS",null,10000]
["黄细娇",null,"飘美怡人","烫金标",null,"标贴",null,null,null,0,0,0,"PCS",null,0]
["林静",null,"菩心缘","薰衣草无患子洗衣液袋装","1KG","复合袋","1KG",null,null,0,0,0,"PCS"]
["林静",null,"菩心缘","薰衣草无患子洗衣液袋装","1KG","纸箱","12袋/箱",null,null,0,0,0,"PCS"]
["林静",null,"菩心缘","薰衣草无患子洗衣液瓶装","3KG","塑料瓶（新模）","3KG",null,null,1188,1188,0,"PCS",null,null,null,null,null,null,null,null,null,null,null,null,null,null,null,null,null,null,null,null,null,null,null,null,null,null,null,null,null,null,null,null,null,null,null,null,null,null,null,null,null,null,null,null,null,null,null,null,null,null,null,null,null,null,null,null,null,null,"盘点",188,null,null,null,null,null,null,null,null,null,null,"0002980",1000]
["林静",null,"菩心缘","薰衣草无患子洗衣液瓶装","3KG","正面标",null,null,null,0,0,0,"PCS"]
["林静",null,"菩心缘","薰衣草无患子洗衣液瓶装","3KG","反面标",null,null,null,0,0,0,"PCS"]
["林静",null,"菩心缘","薰衣草无患子洗衣液瓶装","3KG","纸箱","4瓶/箱",null,null,3773,3773,0,"PCS",null,null,null,null,null,null,null,null,null,null,null,null,null,null,null,null,null,null,null,null,null,null,null,null,null,null,null,null,null,null,null,null,null,null,null,null,null,null,null,null,null,null,null,null,null,null,null,null,null,null,null,null,null,null,null,null,null,null,"盘点",3773]
["林静",null,"菩心缘","薰衣草无患子洗衣液瓶装","1kg","正面标",null,null,null,0,0,{"$f":"S1094+W1094","v":0},"PCS"]
["林静",null,"菩心缘","薰衣草无患子洗衣液瓶装","1kg","反面标",null,null,null,{"$f":"O1095+K1095-L1095","v":0},0,{"$f":"S1095+W1095","v":0},"PCS"]
["林静",null,"菩心缘","薰衣草无患子洗衣液瓶装","1kg","纸箱","12瓶/箱",null,null,0,0,{"$f":"S1096+W1096+AA1096+AE1096+AI1096+AM1096+AQ1096+AU1096+AY1096+BC1096+BG1096+BK1096+BO1096+BS1096+BW1096+CA1096+CE1096+CI1096+CM1096+CQ1096+CU1096+CY1096+DC1096+DG1096+DK1096+DO1096+DS1096+DW1096+EA1096+EE1096+EI1096","v":0},"PCS"]
["林静",null,"菩心缘","薰衣草无患子洗衣液瓶装、自然清新无患子洗衣液瓶装","1kg","压嘴泵头","1kg",null,null,0,0,{"$f":"S1097+W1097","v":0},"PCS"]
["林静",null,"菩心缘","薰衣草无患子洗衣液瓶装、自然清新无患子洗衣液瓶装","1KG","刀卡【长】","12瓶/箱",null,null,0,0,0,"PCS"]
["林静",null,"菩心缘","薰衣草无患子洗衣液瓶装、自然清新无患子洗衣液瓶装、皂液薰衣草、皂液自然清香","3KG","外盖(含透明上盖）","3KG",null,null,9900,9900,0,"PCS",null,null,null,null,null,null,null,null,null,null,null,null,null,null,null,null,null,null,null,null,null,null,null,null,null,null,null,null,null,null,null,null,null,null,null,null,null,null,null,null,null,null,null,null,null,null,null,null,null,null,null,null,null,null,null,null,null,null,"盘点",9900]
["林静",null,"菩心缘","薰衣草无患子洗衣液瓶装、自然清新无患子皂液瓶装、薰衣草无患子皂液瓶装、自然清新无患子洗衣液瓶装","1KG","刀卡【长】","12袋/箱",null,null,0,0,0,"PCS"]
["林静",null,"菩心缘","薰衣草无患子洗衣液瓶装、自然清新无患子皂液瓶装、薰衣草无患子皂液瓶装、自然清新无患子洗衣液瓶装","1KG","刀卡【正】","12袋/箱",null,null,0,0,0,"PCS"]
["林静",null,"菩心缘","薰衣草无患子洗衣液瓶装/自然清新无患子洗衣液瓶装","1kg","塑料瓶","1kg",null,null,0,0,{"$f":"S1102+W1102","v":0},"PCS"]
["林静",null,"菩心缘","薰衣草无患子皂液袋装","1KG","复合袋","1KG",null,null,1500,0,{"$f":"S1103+W1103+AA1103+AE1103+AI1103+AM1103+AQ1103+AU1103+AY1103+BC1103+BG1103+BK1103+BO1103+BS1103+BW1103+CA1103+CE1103+CI1103+CM1103+CQ1103+CU1103+CY1103+DC1103+DG1103+DK1103+DO1103+DS1103+DW1103+EA1103+EE1103+EI1103","v":0},"PCS"]
["林静",null,"菩心缘","薰衣草无患子皂液袋装","1KG","纸箱","12袋/箱",null,null,{"$f":"O1104+K1104-L1104","v":0},0,0,"PCS"]
["林静",null,"菩心缘","薰衣草无患子皂液瓶装","3KG","塑料瓶","3KG",null,null,4876,5224,348,"PCS",null,null,null,null,null,null,null,null,null,null,null,null,null,null,null,null,null,null,null,null,null,null,null,null,null,null,null,null,null,null,null,null,null,null,null,null,null,null,null,null,null,null,null,null,null,null,null,null,null,null,null,null,null,null,null,null,null,null,"盘点",3014,"0002877",348,null,null,null,null,null,null,null,null,"0002980",2210]
["林静",null,"菩心缘","薰衣草无患子皂液瓶装","3KG","正面标",null,null,null,0,0,0,"PCS"]
["林静",null,"菩心缘","薰衣草无患子皂液瓶装","3KG","反面标",null,null,null,0,0,0,"PCS"]
["林静",null,"菩心缘","薰衣草无患子皂液瓶装","3KG","纸箱","4瓶/箱",null,null,0,{"$f":"Q1108+U1108+Y1108+AC1108+AG1108+AK1108+AO1108+AS1108+AW1108+BA1108+BE1108+BI1108+BM1108+BQ1108+BU1108+BY1108+CC1108+CG1108+CK1108+CO1108+CS1108+CW1108+DA1108+DE1108+DI1108+DM1108+DQ1108+DU1108+DY1108+EC1108+EG1108","v":0},0,"PCS"]
["林静",null,"菩心缘","自然清新无患子洗衣液袋装","1KG","复合袋","1KG",null,null,0,0,0,"PCS"]
["林静",null,"菩心缘","自然清新无患子洗衣液袋装","1KG","纸箱","12袋/箱",null,null,0,0,0,"PCS"]
["林静",null,"菩心缘","自然清新无患子洗衣液瓶装","3KG","塑料瓶（新模）","3KG",null,null,1526,1526,0,"PCS",null,null,null,null,null,null,null,null,null,null,null,null,null,null,null,null,null,null,null,null,null,null,null,null,null,null,null,null,null,null,null,null,null,null,null,null,null,null,null,null,null,null,null,null,null,null,null,null,null,null,null,null,null,null,null,null,null,null,"盘点",526,null,null,null,null,null,null,null,null,null,null,"0002980",1000]
["林静",null,"菩心缘","自然清新无患子洗衣液瓶装","3KG","正面标",null,null,null,0,0,0,"PCS"]
["林静",null,"菩心缘","自然清新无患子洗衣液瓶装","3KG","反面标",null,null,null,0,0,0,"PCS"]
["林静",null,"菩心缘","自然清新无患子洗衣液瓶装","3KG","纸箱","4瓶/箱",null,null,165,165,0,"PCS",null,null,null,null,null,null,null,null,null,null,null,null,null,null,null,null,null,null,null,null,null,null,null,null,null,null,null,null,null,null,null,null,null,null,null,null,null,null,null,null,null,null,null,null,null,null,null,null,null,null,null,null,null,null,null,null,null,null,"盘点",165]
["林静",null,"菩心缘","自然清新无患子洗衣液瓶装","1kg","正面标",null,null,null,0,0,0,"PCS"]
["林静",null,"菩心缘","自然清新无患子洗衣液瓶装","1kg","反面标",null,null,null,0,0,0,"PCS"]
["林静",null,"菩心缘","自然清新无患子洗衣液瓶装","1kg","纸箱","12瓶/箱",null,null,0,0,0,"PCS"]
["林静",null,"菩心缘","自然清新无患子皂液袋装","1KG","复合袋","1KG",null,null,0,0,0,"PCS"]
["林静",null,"菩心缘","自然清新无患子皂液袋装","1KG","纸箱","12袋/箱",null,null,0,0,0,"PCS"]
["林静",null,"菩心缘","自然清新无患子皂液袋装、薰衣草无患子皂液袋装、薰衣草无患子洗衣液袋装、自然清新无患子洗衣液袋装","1KG","外盖","1KG",null,null,0,0,0,"PCS"]
["林静",null,"菩心缘","自然清新无患子皂液瓶装","3KG","塑料瓶","3KG",null,null,1000,1000,0,"PCS",null,null,null,null,null,null,null,null,null,null,null,null,null,null,null,null,null,null,null,null,null,null,null,null,null,null,null,null,null,null,null,null,null,null,null,null,null,null,null,null,null,null,null,null,null,null,null,null,null,null,null,null,null,null,null,null,null,null,null,null,null,null,null,null,null,null,null,null,null,null,"0002980",1000]
["林静",null,"菩心缘","自然清新无患子皂液瓶装","3KG","正面标",null,null,null,0,0,0,"PCS"]
["林静",null,"菩心缘","自然清新无患子皂液瓶装","3KG","反面标",null,null,null,0,0,0,"PCS"]
["林静",null,"菩心缘","自然清新无患子皂液瓶装","3KG","纸箱","4瓶/箱",null,null,0,0,0,"PCS"]
["林静",null,"菩心缘",null,null,"专用胶纸",null,null,null,0,0,0,"PCS"]
["曾小根",null,"诗姿","冰雪姿鸸鹋油膏","50g","玻璃瓶","50g",null,null,0,0,0,"PCS",null,0]
["曾小根",null,"诗姿","冰雪姿鸸鹋油膏","50g","外盖","50g",null,null,0,0,0,"PCS",null,0]
["曾小根",null,"诗姿","冰雪姿鸸鹋油膏","50g","垫片","50g",null,null,0,0,0,"PCS",null,0]
["曾小根",null,"诗姿","冰雪姿鸸鹋油膏","50g","内托","50g",null,null,60,0,0,"PCS",null,60]
["曾小根",null,"诗姿","冰雪姿鸸鹋油膏","50g","说明书","50g",null,null,1000,0,0,"PCS",null,1000]
["曾小根",null,"诗姿","冰雪姿鸸鹋油膏","50g","彩盒","50g",null,null,27,0,0,"PCS",null,27]
["曾小根",null,"诗姿","冰雪姿鸸鹋油膏","50g","收缩膜","50g",null,null,1100,0,0,"PCS",null,1100]
["林静",null,"舒凯","次品空瓶","个",null,"/",null,null,14,14,0,null,null,null,null,null,null,null,null,null,null,null,null,null,null,null,null,null,null,null,null,null,null,null,null,null,null,null,null,null,null,null,null,null,null,null,null,null,null,null,null,null,null,null,null,null,null,null,null,14]
["林静",null,"舒凯","洁牙粒","/","收缩膜","/",null,null,14500,20000,5500,"PCS",null,null,null,null,null,null,null,null,null,null,null,null,null,null,null,null,null,null,null,null,null,null,null,null,null,null,null,null,null,null,null,null,null,null,null,null,null,null,null,null,null,null,null,null,null,null,"0005990",20000,null,null,null,null,null,null,null,null,"0002955",5500]
["林静",null,"舒凯","洁牙粒","/","封箱胶","卷",null,null,368,368,0,"PCS",null,null,null,null,null,null,null,null,null,null,null,null,null,null,null,null,null,null,null,null,null,null,null,null,null,null,null,null,null,null,null,null,null,null,null,null,null,null,null,null,null,null,null,null,null,null,"0005990",368]
["林静",null,"舒凯","洁牙粒","/","印刷封箱胶钢板","支",null,null,1,1,0,"PCS",null,null,null,null,null,null,null,null,null,null,null,null,null,null,null,null,null,null,null,null,null,null,null,null,null,null,null,null,null,null,null,null,null,null,null,null,null,null,null,null,null,null,null,null,null,null,"0005990",1]
["林静",null,"舒凯","洁牙粒红色","0.4g","塑料盒","0.4g",null,null,-10,0,10,"PCS",null,null,null,null,null,null,null,null,null,null,null,null,null,null,null,null,null,null,null,null,null,null,null,null,null,null,null,null,null,null,null,null,null,null,null,null,null,null,null,null,null,null,null,null,null,null,null,null,null,null,null,null,null,null,null,null,null,null,null,null,"0003539",10]
["林静",null,"舒凯","洁牙粒黄色","0.4g","塑料盒","0.4g",null,null,0,0,0,"PCS"]
["林静",null,"舒凯","洁牙粒蓝色","0.4g","塑料盒","0.4g",null,null,0,0,0,"PCS"]
["林静",null,"舒凯","洁牙粒绿色","0.4g","塑料盒","0.4g",null,null,-43,0,43,"PCS",null,null,null,null,null,null,null,null,null,null,null,null,null,null,null,null,null,null,null,null,null,null,null,null,null,null,null,null,null,null,null,null,null,null,null,null,null,null,null,null,null,null,null,null,null,null,null,null,null,null,null,null,null,null,null,null,"0002930",2,null,null,"0003539",41]
[]
[]
[]
[]
[]
["林静",null,"舒凯","洁牙片试用装","/","底瓶标",null,null,null,null,null,null,null,null,3000]
["林静",null,"舒凯","维斯密语冻干粉","支",null,"/",null,null,{"$f":"O1147+K1147-L1147","v":1592},{"$f":"Q1147+U1147+Y1147+AC1147+AG1147+AK1147+AO1147+AS1147+AW1147+BA1147+BE1147+BI1147+BM1147+BQ1147+BU1147+BY1147+CC1147+CG1147+CK1147+CO1147+CS1147+CW1147+DA1147+DE1147+DI1147+DM1147+DQ1147+DU1147+DY1147+EC1147+EG1147","v":1592},{"$f":"S1147+W1147+AA1147+AE1147+AI1147+AM1147+AQ1147+AU1147+AY1147+BC1147+BG1147+BK1147+BO1147+BS1147+BW1147+CA1147+CE1147+CI1147+CM1147+CQ1147+CU1147+CY1147+DC1147+DG1147+DK1147+DO1147+DS1147+DW1147+EA1147+EE1147+EI1147","v":0},"PCS",null,null,null,null,null,null,null,null,null,null,null,null,null,null,null,null,null,null,null,null,null,null,null,null,null,null,null,null,null,null,null,null,null,null,null,null,null,null,null,null,null,null,null,null,null,null,null,1592]
["林静",null,"舒凯","橡皮筋","/",null,"/",null,null,2500,2500,0,"PCS",null,null,null,null,null,null,null,null,null,null,null,null,null,null,null,null,null,null,null,null,null,null,null,null,null,null,null,null,null,null,null,null,null,null,null,null,null,null,null,null,null,null,null,null,null,null,null,2500]
["曾小根",null,"苏眉","轻悦活氧美肤精华<A>","10g","铝袋","10g",null,null,33300,0,0,"PCS",null,33300]
["曾小根",null,"苏眉","轻悦活氧美肤精华<B>","10g","铝袋","10g",null,null,33100,0,0,"PCS",null,33100]
["曾小根",null,"苏眉","贴身衣物专用洗衣液卷膜","10g","卷膜","10g",null,null,70000,0,0,"PCS",null,70000]
["曾小根",null,"苏眉","透明瓶","500ml","透明瓶","500ml",null,null,11385,11385,0,"PCS",null,null,null,null,null,null,null,null,null,null,null,null,null,null,null,null,null,null,null,null,null,null,null,null,null,null,null,null,null,null,null,null,null,null,null,null,null,null,null,null,null,null,"0002905",11385,null,null,null,null,null,null,null,null,null,null,null,null,null,null,null,null," "]
["曾小根",null,"苏眉","透明瓶",null,"喷头",null,null,null,24100,24100,0,"PCS",null,null,null,null,null,null,null,null,null,null,null,null,null,null,null,null,null,null,null,null,null,null,null,null,null,null,null,null,null,null,null,null,null,null,null,null,null,null,null,null,null,null,"0002905",24100]
["曾小根",null,"苏眉","透明瓶","500ml","盖子","500ml",null,null,26400,26400,0,"PCS",null,null,null,null,null,null,null,null,null,null,null,null,null,null,null,null,null,null,null,null,null,null,null,null,null,null,null,null,null,null,null,null,null,null,null,null,null,null,null,null,null,null,"0002905",26400]
["左林青",null,"苏育","大马士玫瑰面膜","25ml","铝袋","25ml",null,null,20600,0,0,"PCS","已盘点",20600,null,null,null,null,null,null,null,null,null,null,null,null,null,null,null,null,null,null,null,null,null,null,null,null,null,null,null,null,null,null,null,null,null,null,null,null,null,null,null,null,null,null,null,null,null,null,null,null,null,null,null,null,null,null,null,null,null,null,null,null,null,null,null,null,null,null,null,null,null,null,null,null,"盘点"]
["左林青",null,"苏育","大马士玫瑰面膜","25ml","彩盒","25ml",null,null,3140,0,0,"PCS","已盘点",3140,null,null,null,null,null,null,null,null,null,null,null,null,null,null,null,null,null,null,null,null,null,null,null,null,null,null,null,null,null,null,null,null,null,null,null,null,null,null,null,null,null,null,null,null,null,null,null,null,null,null,null,null,null,null,null,null,null,null,null,null,null,null,null,null,null,null,null,null,null,null,null,null,"盘点"]
["左林青",null,"苏育","大马士玫瑰面膜","25ml","内托","25ml",null,null,3100,0,0,"PCS","已盘点",3100,null,null,null,null,null,null,null,null,null,null,null,null,null,null,null,null,null,null,null,null,null,null,null,null,null,null,null,null,null,null,null,null,null,null,null,null,null,null,null,null,null,null,null,null,null,null,null,null,null,null,null,null,null,null,null,null,null,null,null,null,null,null,null,null,null,null,null,null,null,null,null,null,"盘点"]
["左林青",null,"苏育","大马士玫瑰面膜","23.5*32.5","收缩膜","23.5*32.5",null,null,2500,0,0,"PCS","已盘点",2500,null,null,null,null,null,null,null,null,null,null,null,null,null,null,null,null,null,null,null,null,null,null,null,null,null,null,null,null,null,null,null,null,null,null,null,null,null,null,null,null,null,null,null,null,null,null,null,null,null,null,null,null,null,null,null,null,null,null,null,null,null,null,null,null,null,null,null,null,null,null,null,null,"盘点"]
["左林青",null,"苏育","靓颜霜彩盒","50g","彩盒","50g",null,null,7700,0,0,"PCS","已盘点",7700,null,null,null,null,null,null,null,null,null,null,null,null,null,null,null,null,null,null,null,null,null,null,null,null,null,null,null,null,null,null,null,null,null,null,null,null,null,null,null,null,null,null,null,null,null,null,null,null,null,null,null,null,null,null,null,null,null,null,null,null,null,null,null,null,null,null,null,null,null,null,null,null,"盘点"]
["左林青",null,"苏育","靓颜霜彩盒","50g","内托","50g",null,null,6000,0,0,"PCS","已盘点",6000,null,null,null,null,null,null,null,null,null,null,null,null,null,null,null,null,null,null,null,null,null,null,null,null,null,null,null,null,null,null,null,null,null,null,null,null,null,null,null,null,null,null,null,null,null,null,null,null,null,null,null,null,null,null,null,null,null,null,null,null,null,null,null,null,null,null,null,null,null,null,null,null,"盘点"]
["左林青",null,"苏育","靓颜霜瓶子","50g","50g白色瓶","50g",null,null,700,0,0,"PCS","已盘点",700,null,null,null,null,null,null,null,null,null,null,null,null,null,null,null,null,null,null,null,null,null,null,null,null,null,null,null,null,null,null,null,null,null,null,null,null,null,null,null,null,null,null,null,null,null,null,null,null,null,null,null,null,null,null,null,null,null,null,null,null,null,null,null,null,null,null,null,null,null,null,null,null,"盘点"]
["左林青",null,"苏育","靓颜霜瓶子","50g","50g外盖","50g",null,null,700,0,0,"PCS","已盘点",700,null,null,null,null,null,null,null,null,null,null,null,null,null,null,null,null,null,null,null,null,null,null,null,null,null,null,null,null,null,null,null,null,null,null,null,null,null,null,null,null,null,null,null,null,null,null,null,null,null,null,null,null,null,null,null,null,null,null,null,null,null,null,null,null,null,null,null,null,null,null,null,null,"盘点"]
["左林青",null,"苏育","面膜试管","25ml","透明瓶","25ml",null,null,14155,0,0,"PCS","已盘点",14155,null,null,null,null,null,null,null,null,null,null,null,null,null,null,null,null,null,null,null,null,null,null,null,null,null,null,null,null,null,null,null,null,null,null,null,null,null,null,null,null,null,null,null,null,null,null,null,null,null,null,null,null,null,null,null,null,null,null,null,null,null,null,null,null,null,null,null,null,null,null,null,null,"盘点"]
["左林青",null,"苏育","面膜试管","25ml","封口贴","25ml",null,null,14000,0,0,"PCS","已盘点",14000,null,null,null,null,null,null,null,null,null,null,null,null,null,null,null,null,null,null,null,null,null,null,null,null,null,null,null,null,null,null,null,null,null,null,null,null,null,null,null,null,null,null,null,null,null,null,null,null,null,null,null,null,null,null,null,null,null,null,null,null,null,null,null,null,null,null,null,null,null,null,null,null,"盘点"]
["左林青",null,"苏育","面膜试管","25ml","亚外盖","25ml",null,null,14155,0,0,"PCS","已盘点",14155,null,null,null,null,null,null,null,null,null,null,null,null,null,null,null,null,null,null,null,null,null,null,null,null,null,null,null,null,null,null,null,null,null,null,null,null,null,null,null,null,null,null,null,null,null,null,null,null,null,null,null,null,null,null,null,null,null,null,null,null,null,null,null,null,null,null,null,null,null,null,null,null,"盘点"]
["杨克江",null,"汤海飞","120ml红色膏霜瓶","120ml","玻璃瓶","30g",null,null,360,0,0,"PCS",null,360]
["杨克江",null,"汤海飞","120ml红色膏霜瓶","120ml","压嘴喷头","120ml",null,null,260,0,0,"PCS",null,260]
["杨克江",null,"汤海飞","120ml红色膏霜瓶","120ml","外罩","120ml",null,null,260,0,0,"PCS",null,260]
["杨克江",null,"汤海飞","120内托","120ml","内托","120ml",null,null,-130,0,130,"PCS",null,null,null,null,null,null,null,null,null,null,null,null,null,null,null,null,null,null,null,null,null,null,null,null,null,null,null,null,null,null,null,null,null,null,null,null,null,null,null,null,null,null,null,null,null,null,null,null,null,null,null,null,null,null,null,null,null,null,null,null,null,null,null,null,null,null,null,null,null,null,null,null,null,null,null,null,"0002977",130]
["杨克江",null,"汤海飞","30g共用垫片","30g","30g共用垫片","30g",null,null,6200,0,0,"PCS",null,6200]
["杨克江",null,"汤海飞","30g共用内托","30g","30g共用内托","30g",null,null,5900,0,0,"PCS",null,5900]
["杨克江",null,"汤海飞","30g蓝色膏霜瓶","30g","玻璃瓶","30g",null,null,1220,0,0,"PCS",null,1220]
["杨克江",null,"汤海飞","30g蓝色膏霜瓶","30g","外盖","30g",null,null,1300,0,0,"PCS",null,1300]
["杨克江",null,"汤海飞","30g蓝色膏霜瓶","30g","彩盒","30g",null,null,1900,0,0,"PCS",null,1900]
["杨克江",null,"汤海飞","30g蓝色膏霜瓶","30g","内托","30g",null,null,0,0,0,"PCS",null,0]
["杨克江",null,"汤海飞","30g绿色膏霜瓶","30g","玻璃瓶","30g",null,null,3000,0,0,"PCS",null,3000]
["杨克江",null,"汤海飞","30g绿色膏霜瓶","30g","外盖","30g",null,null,2900,0,0,"PCS",null,2900]
["杨克江",null,"汤海飞","40ml红色彩盒","40ml","彩盒","40ml",null,null,300,0,0,"PCS",null,300]
["杨克江",null,"汤海飞","40ml红色内托","40ml","内托","40ml",null,null,{"$f":"O1436+K1436-#REF!","v":{"$error":"#REF!"}},0,0,"PCS",null,4500]
["杨克江",null,"汤海飞","50g红色彩盒","50g","彩盒","50g",null,null,{"$f":"O1180+K1180-L1180","v":125},0,0,"PCS",null,125]
["杨克江",null,"汤海飞","50g红色膏霜瓶","50g","玻璃瓶","50g",null,null,145,0,0,"PCS",null,145]
["杨克江",null,"汤海飞","50g红色膏霜瓶","50g","外盖","50g",null,null,0,0,0,"PCS",null,0]
["杨克江",null,"汤海飞","冬露玫瑰花补水精泥膜","160g","彩盒","160g",null,null,-3,0,3,"PCS",null,null,null,null,null,null,null,null,null,null,null,null,null,null,null,null,null,null,null,null,null,null,null,null,null,null,null,null,null,null,null,null,null,null,null,null,null,null,null,null,null,null,null,null,null,null,null,null,null,null,null,null,null,null,null,null,null,null,null,null,null,null,null,null,null,null,null,null,null,null,null,null,"0003006",3]
["杨克江",null,"汤海飞","冬露玫瑰花补水精泥膜","160g","瓶子","160g",null,null,0,0,0,"PCS"]
["杨克江",null,"汤海飞","冬露玫瑰花补水精泥膜","160g","产品标","160g",null,null,-3,0,3,"PCS",null,null,null,null,null,null,null,null,null,null,null,null,null,null,null,null,null,null,null,null,null,null,null,null,null,null,null,null,null,null,null,null,null,null,null,null,null,null,null,null,null,null,null,null,null,null,null,null,null,null,null,null,null,null,null,null,null,null,null,null,null,null,null,null,null,null,null,null,null,null,null,null,"0003006",3]
["杨克江",null,"汤海飞","冬露玫瑰花补水精泥膜","160g","成分标","160g",null,null,-3,0,3,"PCS",null,null,null,null,null,null,null,null,null,null,null,null,null,null,null,null,null,null,null,null,null,null,null,null,null,null,null,null,null,null,null,null,null,null,null,null,null,null,null,null,null,null,null,null,null,null,null,null,null,null,null,null,null,null,null,null,null,null,null,null,null,null,null,null,null,null,null,null,null,null,null,null,"0003006",3]
["杨克江",null,"汤海飞","多肽雪肌霜","50g","标签","50g",null,null,2000,2000,0,"PCS",null,null,null,null,null,null,null,null,null,null,null,null,null,null,null,null,null,null,null,null,null,null,null,null,null,null,null,null,null,null,null,null,null,null,null,null,null,null,null,null,null,null,null,null,null,null,null,null,null,null,"0002930",2000]
["杨克江",null,"汤海飞","红色彩盒","120ml","收缩膜","120ml",null,null,0,3500,3500,"PCS",null,null,null,3500,null,3500]
["杨克江",null,"汤海飞","红色彩盒","40ml","收缩膜","40ml",null,null,3000,3000,0,"PCS",null,null,null,3000]
["杨克江",null,"汤海飞","红色彩盒","50g","收缩膜","50g",null,null,2000,2000,0,"PCS",null,null,null,2000]
["杨克江",null,"汤海飞","黄金水果周转箱","50g*90","纸箱","50g*90",null,null,174,174,0,"PCS",null,null,null,null,null,null,null,null,null,null,null,null,null,null,null,null,null,null,null,null,null,null,null,null,null,null,null,null,null,null,null,null,null,null,null,null,null,null,null,null,null,null,null,null,null,null,null,null,null,null,null,null,null,null,null,null,null,null,null,null,null,null,"0002952",174]
["杨克江",null,"汤海飞","黄金水果周转箱","330g*120","纸箱","330g*120",null,null,0,0,0,"PCS"]
["杨克江",null,"汤海飞","黄金水果周转箱","40g*100","纸箱","40g*100",null,null,0,0,0,"PCS"]
["杨克江",null,"汤海飞","黄金水果周转箱","50g*90","垫板","50g*90",null,null,200,200,0,"PCS",null,null,null,null,null,null,null,null,null,null,null,null,null,null,null,null,null,null,null,null,null,null,null,null,null,null,null,null,null,null,null,null,null,null,null,null,null,null,null,null,null,null,null,null,null,null,null,null,null,null,null,null,null,null,null,null,null,null,null,null,null,null,"0002952",200]
["杨克江",null,"汤海飞","黄金水果周转箱","330g*120","垫板","330g*120",null,null,200,200,0,"PCS",null,null,null,null,null,null,null,null,null,null,null,null,null,null,null,null,null,null,null,null,null,null,null,null,null,null,null,null,null,null,null,null,null,null,null,null,null,null,null,null,null,null,null,null,null,null,null,null,null,null,null,null,null,null,null,null,null,null,null,null,null,null,"0002952",200]
["杨克江",null,"汤海飞","黄金水果周转箱","40g*100","垫板","40g*100",null,null,200,200,0,"PCS",null,null,null,null,null,null,null,null,null,null,null,null,null,null,null,null,null,null,null,null,null,null,null,null,null,null,null,null,null,null,null,null,null,null,null,null,null,null,null,null,null,null,null,null,null,null,null,null,null,null,null,null,null,null,null,null,null,null,null,null,null,null,"0002952",200]
["杨克江",null,"汤海飞","柳橙节亮颜皮膜液",null,"标签",null,null,null,2000,2000,0,"PCS",null,null,null,null,null,null,null,null,null,null,null,null,null,null,null,null,null,null,null,null,null,null,null,null,null,null,null,null,null,null,null,null,null,null,null,null,null,null,null,null,null,null,null,null,null,null,null,null,null,null,"0002930",2000]
["杨克江",null,"汤海飞","柳橙节亮颜日间胶","120ML","品名标","120ML",null,null,2000,0,0,"PCS","已盘点",2000]
["杨克江",null,"汤海飞","柳橙节亮颜日间胶","120ML","成份标","120ML",null,null,2000,0,0,"PCS","已盘点",2000]
["杨克江",null,"汤海飞","绿色彩盒","30g","收缩膜","30g",null,null,1600,1600,0,"PCS",null,null,null,1600]
["杨克江",null,"汤海飞","芒果节补水日夜胶","120ML","品名标","120ML",null,null,1900,0,0,"PCS","已盘点",1900]
["杨克江",null,"汤海飞","芒果节补水日夜胶","120ML","成份标","120ML",null,null,1900,0,0,"PCS","已盘点",1900]
["杨克江",null,"汤海飞","芒果节舒缓日夜胶","120ML","品名标","120ML",null,null,2000,0,0,"PCS","已盘点",2000]
["杨克江",null,"汤海飞","芒果节舒缓日夜胶","120ML","成份标","120ML",null,null,2000,0,0,"PCS","已盘点",2000]
["杨克江",null,"汤海飞","苹果节活性肽皮膜液",null,"标签",null,null,null,2000,2000,0,"PCS",null,null,null,null,null,null,null,null,null,null,null,null,null,null,null,null,null,null,null,null,null,null,null,null,null,null,null,null,null,null,null,null,null,null,null,null,null,null,null,null,null,null,null,null,null,null,null,null,null,null,"0002930",2000]
["杨克江",null,"汤海飞","苹果节活性肽皮膜液",null,"标签",null,null,null,2000,2000,0,"PCS",null,null,null,null,null,null,null,null,null,null,null,null,null,null,null,null,null,null,null,null,null,null,null,null,null,null,null,null,null,null,null,null,null,null,null,null,null,null,null,null,null,null,null,null,null,null,null,null,null,null,"0002930",2000]
["杨克江",null,"汤海飞","苹果节驻颜紧致日间胶","120ML","品名标","120ML",null,null,2200,0,0,"PCS","已盘点",2200]
["杨克江",null,"汤海飞","苹果节驻颜紧致日间胶","120ML","成份标","120ML",null,null,2200,0,0,"PCS","已盘点",2200]
["杨克江",null,"汤海飞","苹果节驻颜紧致日间胶、葡萄节多肽日间修护胶、芒果节舒缓日夜胶、芒果节补水日夜胶、柳橙节亮颜日间胶","120ML","红色玻璃瓶","120ML",null,null,360,0,0,"PCS","已盘点",360]
["杨克江",null,"汤海飞","苹果节驻颜紧致日间胶、葡萄节多肽日间修护胶、芒果节舒缓日夜胶、芒果节补水日夜胶、柳橙节亮颜日间胶","120ML","压嘴喷头","120ML",null,null,0,0,0,"PCS","已盘点",0]
["杨克江",null,"汤海飞","苹果节驻颜紧致日间胶、葡萄节多肽日间修护胶、芒果节舒缓日夜胶、芒果节补水日夜胶、柳橙节亮颜日间胶","120ML","外罩盖","120ML",null,null,0,{"$f":"Q1211+U1211+Y1211+AC1211+AG1211+AK1211+AO1211+AS1211+AW1211+BA1211+BE1211+BI1211+BM1211+BQ1211+BU1211+BY1211+CC1211+CG1211+CK1211+CO1211+CS1211+CW1211+DA1211+DE1211+DI1211+DM1211+DQ1211+DU1211+DY1211+EC1211+EG1211","v":0},{"$f":"S1211+W1211+AA1211+AE1211+AI1211+AM1211+AQ1211+AU1211+AY1211+BC1211+BG1211+BK1211+BO1211+BS1211+BW1211+CA1211+CE1211+CI1211+CM1211+CQ1211+CU1211+CY1211+DC1211+DG1211+DK1211+DO1211+DS1211+DW1211+EA1211+EE1211+EI1211","v":0},"PCS","已盘点",0]
["杨克江",null,"汤海飞","苹果节驻颜紧致日间胶、葡萄节多肽日间修护胶、芒果节舒缓日夜胶、芒果节补水日夜胶、柳橙节亮颜日间胶","120ML","内托","120ML",null,null,180,0,0,"PCS","已盘点",180]
["杨克江",null,"汤海飞","苹果节驻颜紧致日间胶、葡萄节多肽日间修护胶、芒果节舒缓日夜胶、芒果节补水日夜胶、柳橙节亮颜日间胶","120ML","彩盒","120ML",null,null,170,0,0,"PCS","已盘点",170]
["杨克江",null,"汤海飞","苹果节驻颜紧致日间胶、葡萄节多肽日间修护胶、芒果节舒缓日夜胶、芒果节补水日夜胶、柳橙节亮颜日间胶","120ML","收缩膜（全封的）","120ML",null,null,0,0,0,"PCS","已盘点",0]
["杨克江",null,"汤海飞","葡萄节多肽皮膜液",null,"标签",null,null,null,2000,2000,0,"PCS",null,null,null,null,null,null,null,null,null,null,null,null,null,null,null,null,null,null,null,null,null,null,null,null,null,null,null,null,null,null,null,null,null,null,null,null,null,null,null,null,null,null,null,null,null,null,null,null,null,null,"0002930",2000]
["杨克江",null,"汤海飞","葡萄节多肽日间修护胶","120ML","品名标","120ML",null,null,2000,0,0,"PCS","已盘点",2000]
["杨克江",null,"汤海飞","葡萄节多肽日间修护胶","120ML","成份标","120ML",null,null,2000,0,0,"PCS","已盘点",2000]
["杨克江",null,"汤海飞","葡萄节多肽日夜修护",null,"标签",null,null,null,2000,2000,0,"PCS",null,null,null,null,null,null,null,null,null,null,null,null,null,null,null,null,null,null,null,null,null,null,null,null,null,null,null,null,null,null,null,null,null,null,null,null,null,null,null,null,null,null,null,null,null,null,null,null,null,null,"0002930",2000]
["杨克江",null,"汤海飞","葡萄节多肽日夜修护乳",null,"品名标",null,null,null,-400,0,400,"PCS",null,null,null,null,null,null,null,null,null,null,null,null,null,null,null,null,null,null,null,null,null,null,null,null,null,null,null,null,null,null,null,null,null,null,null,null,null,null,null,null,null,null,null,null,null,null,null,null,null,null,null,null,null,null,null,null,null,null,null,null,null,null,null,null,"0003626",400]
["杨克江",null,"汤海飞","葡萄节多肽日夜修护乳",null,"成份标",null,null,null,-400,0,400,"PCS",null,null,null,null,null,null,null,null,null,null,null,null,null,null,null,null,null,null,null,null,null,null,null,null,null,null,null,null,null,null,null,null,null,null,null,null,null,null,null,null,null,null,null,null,null,null,null,null,null,null,null,null,null,null,null,null,null,null,null,null,null,null,null,null,"0003626",400]
["杨克江",null,"汤海飞","葡萄节多肽日夜修护霜",null,"品名标",null,null,null,-300,0,300,"PCS",null,null,null,null,null,null,null,null,null,null,null,null,null,null,null,null,null,null,null,null,null,null,null,null,null,null,null,null,null,null,null,null,null,null,null,null,null,null,null,null,null,null,null,null,null,null,null,null,null,null,null,null,null,null,null,null,null,null,null,null,null,null,null,null,"0003626",300]
["杨克江",null,"汤海飞","葡萄节多肽日夜修护霜",null,"成份标",null,null,null,1700,2000,300,"PCS",null,null,null,null,null,null,null,null,null,null,null,null,null,null,null,null,null,null,null,null,null,null,null,null,null,null,null,null,null,null,null,null,null,null,null,null,null,null,null,null,null,null,null,null,null,null,null,null,null,null,"0002930",2000,null,null,null,null,null,null,null,null,null,null,null,null,"0003626",300]
["杨克江",null,"汤海飞","葡萄节多肽惜质修护霜",null,"标签",null,null,null,2000,2000,0,"PCS",null,null,null,null,null,null,null,null,null,null,null,null,null,null,null,null,null,null,null,null,null,null,null,null,null,null,null,null,null,null,null,null,null,null,null,null,null,null,null,null,null,null,null,null,null,null,null,null,null,null,"0002930",2000]
["杨克江",null,"汤海飞","优拉","50g ","收缩膜","50g ",null,null,1000,1000,0,"PCS",null,null,null,null,null,null,null,null,null,null,null,null,null,null,null,null,null,null,null,null,null,null,null,null,null,null,null,null,null,null,null,null,null,null,null,null,null,null,null,null,null,null,null,null,null,null,null,null,null,null,null,null,null,null,null,null,null,null,null,null,null,null,null,null,null,null,"0002903",1000]
["杨克江",null,"汤海飞","优拉","40ml","收缩膜","40ml",null,null,1000,1000,0,"PCS",null,null,null,null,null,null,null,null,null,null,null,null,null,null,null,null,null,null,null,null,null,null,null,null,null,null,null,null,null,null,null,null,null,null,null,null,null,null,null,null,null,null,null,null,null,null,null,null,null,null,null,null,null,null,null,null,null,null,null,null,null,null,null,null,null,null,"0002903",1000]
[]
["曾小根",null,"王凤昌","GII水分平衡保","25g","面膜盒","25g ",null,null,-100,0,100,"PCS",null,null,null,null,null,null,null,null,null,null,null,null,null,null,null,null,null,null,null,null,null,null,null,null,null,null,null,null,null,null,null,null,null,null,null,null,null,null,null,null,null,null,null,null,null,null,null,null,null,null,null,null,null,null,null,null,null,null,null,null,null,null,null,null,"0003629",100]
["曾小根",null,"王凤昌","GII水分平衡保","25g","内托","25g ",null,null,-100,0,100,"PCS",null,null,null,null,null,null,null,null,null,null,null,null,null,null,null,null,null,null,null,null,null,null,null,null,null,null,null,null,null,null,null,null,null,null,null,null,null,null,null,null,null,null,null,null,null,null,null,null,null,null,null,null,null,null,null,null,null,null,null,null,null,null,null,null,"0003629",100]
[]
["曾小根",null,"王丽","共用白布袋","/","袋子","/",null,null,2387,2387,0,"PCS",null,null,null,null,null,null,null,null,null,null,null,null,null,null,null,null,null,null,null,null,null,null,null,null,null,null,null,null,null,null,null,null,null,null,null,null,null,null,null,null,null,null,null,null,null,null,null,null,null,null,null,null,null,null,null,null,null,null,null,null,null,null,null,null,null,null,null,null,null,null,null,null,null,null,"0002942",2387]
["曾小根",null,"王丽","合济堂泡浴养护粉（I号）","100g","品名标","100g",null,null,0,0,0,"PCS",null,null,null,null,null,null,null,null,null,null,null,null,null,null,null,null,null,null,null,null,null,null,null,null,null,null,null,null,null,null,null,null,null,null,null,null,null,null,null,null,null,null,null,null,null,null,null,null,null,null,null,null,null,null,null,null,null,null,null,null,null,null,null,null,null,null,null,null,null,null,null,null,null,null,null,null,null,null,null,null,null,null,null,null,null,null,null,null,null,null,null,null,null,null,null,null,null,null,null,null,"0003544"]
["曾小根",null,"王丽","合济堂泡浴养护粉（I号）","100g","专用纸箱","100g",null,null,0,0,0,"PCS"]
[]
[]
["曾小根",null,"王丽","合济堂泡浴养护粉（II号）","100g","专用纸箱","100g",null,null,0,0,0,"PCS"]
["曾小根",null,"王丽","合济堂泡浴养护粉（III号）","100g","品名标","100g ",null,null,0,0,0,"PCS"]
["曾小根",null,"王丽","合济堂泡浴养护粉（III号）","100g","专用纸箱","100g ",null,null,0,0,0,"PCS"]
[]
["曾小根",null,"王丽","合济堂泡浴养护粉（IV号）","100g","品名标","100g",null,null,0,0,0,"PCS"]
["曾小根",null,"王敏","空白铝袋","5*12","专用纸箱","5*12",null,null,6000,0,0,"PCS",null,6000]
["曾小根",null,"王敏","热封袋","8*10","封胶膜","8*10",null,null,6000,0,0,"PCS",null,6000]
["曾小根",null,"王琦","艾护赋活油","10ml","茶色玻璃瓶","10ml",null,null,0,0,0,"PCS",null,0]
["曾小根",null,"王琦","艾护赋活油","10ml","“水”字标",null,null,null,0,0,0,"PCS",null,0]
["曾小根",null,"王琦","艾护膜粉",null,"上壳+下壳（白色）","1粒/对",null,null,{"$f":"O1244+K1244-L1244","v":0},0,0,"PCS",null,0]
["曾小根",null,"王琦","艾护膜粉",null,"茶叶袋",null,null,null,0,0,0,"PCS",null,0]
["曾小根",null,"王琦","艾润养护-水","24件/套","套盒","24件/套",null,null,0,0,0,"PCS",null,0]
["曾小根",null,"王琦","艾润养护-水","24件/套","套盒标",null,null,null,0,0,0,"PCS",null,0]
["曾小根",null,"王琦","艾润养护-水","24件/套","封口贴",null,null,null,0,0,0,"PCS",null,0]
["曾小根",null,"王琦","艾润养护-水","24件/套","收缩膜",null,null,null,0,0,0,"PCS",null,0]
["曾小根",null,"王琦","花雨草本油","5ml","玻璃瓶","5ml",null,null,5000,0,0,"PCS",null,5000]
["曾小根",null,"王琦","灰内塞","5ml","胶塞","5ml",null,null,13200,0,0,"PCS",null,13200]
["曾小根",null,"王琦","活力草本油","5ml","玻璃瓶","5ml",null,null,3000,0,0,"PCS",null,3000]
["曾小根",null,"王琦","健脾祛黄油","5ml","茶色瓶","5ml",null,null,104,0,0,"PCS",null,104]
["曾小根",null,"王琦","君竹丽人私密珠帘香——净润","30件/套","套盒","30件/套",null,null,490,0,0,"PCS",null,490]
["曾小根",null,"王琦","君竹丽人私密珠帘香——净润","30件/套","套盒名称标","30件/套",null,null,1048,0,0,"PCS",null,1048]
["曾小根",null,"王琦","君竹丽人私密珠帘香——净润","30件/套","封口红色贴（私密珠帘香-净润）","30件/套",null,null,0,0,0,"PCS",null,0]
["曾小根",null,"王琦","君竹丽人私密珠帘香——净润","30件/套","塑封膜","30件/套",null,null,550,0,0,"PCS",null,550]
["曾小根",null,"王琦","君竹丽人私密珠帘香——消炎","43件/套","套盒","43件/套",null,null,-150,0,0,"PCS",null,-150]
["曾小根",null,"王琦","君竹丽人私密珠帘香——消炎","43件/套","套盒标",null,null,null,-150,0,0,"PCS",null,-150]
["曾小根",null,"王琦","君竹丽人私密珠帘香——消炎","43件/套","封口贴",null,null,null,-600,0,0,"PCS",null,-600]
["曾小根",null,"王琦","君竹丽人私密珠帘香——消炎","43件/套","私密净炎膜组装用腰带",null,null,null,-300,0,0,"PCS",null,-300]
["曾小根",null,"王琦","君竹丽人私密珠帘香——消炎","43件/套","收缩膜",null,null,null,0,0,0,"PCS",null,0]
["曾小根",null,"王琦","君竹丽人私密珠帘香——消炎、君竹丽人私密珠帘香——净润","43件/套","护阴裤",null,null,null,-150,0,0,"PCS",null,-150]
["曾小根",null,"王琦","暖阳草本油","5ml","玻璃瓶","5ml",null,null,5000,0,0,"PCS",null,5000]
["曾小根",null,"王琦","双凤艾粉","180粒/盒","彩盒（围歼盒)","180粒/盒",null,null,320,0,0,"PCS",null,320]
["曾小根",null,"王琦","双凤艾粉","180粒/盒","黑色小艾条","180粒/盒",null,null,4828,0,0,"PCS",null,4828]
["曾小根",null,"王琦","双凤草本膏","5G","君竹丽人圆标",null,null,null,4500,0,0,"PCS",null,4500]
["曾小根",null,"王琦","双凤草本膏","5G","双凤本草膏圆标",null,null,null,4500,0,0,"PCS",null,4500]
["曾小根",null,"王琦","双凤草本膏","5G","双凤本草膏5g圆标",null,null,null,6000,0,0,"PCS",null,6000]
["曾小根",null,"王琦","双凤草本液","10ML","茶色瓶",null,null,null,0,0,0,"PCS",null,0]
["曾小根",null,"王琦","双凤草本液","10ML","灰内塞",null,null,null,0,0,0,"PCS",null,0]
["曾小根",null,"王琦","双凤草本液","10ML","亮金盖",null,null,null,0,0,0,"PCS",null,0]
["曾小根",null,"王琦","私密艾香套","25件/套","套盒","25件/套",null,null,1010,0,0,"PCS",null,1010]
["曾小根",null,"王琦","私密艾香套","25件/套","套盒标","25件/套",null,null,1568,0,0,"PCS",null,1568]
["曾小根",null,"王琦","私密艾香套","25件/套","封口红色标（私密艾香）","25件/套",null,null,0,{"$f":"Q1275+U1275+Y1275+AC1275+AG1275+AK1275+AO1275+AS1275+AW1275+BA1275+BE1275+BI1275+BM1275+BQ1275+BU1275+BY1275+CC1275+CG1275+CK1275+CO1275+CS1275+CW1275+DA1275+DE1275+DI1275+DM1275+DQ1275+DU1275+DY1275+EC1275+EG1275","v":0},{"$f":"S1275+W1275+AA1275+AE1275+AI1275+AM1275+AQ1275+AU1275+AY1275+BC1275+BG1275+BK1275+BO1275+BS1275+BW1275+CA1275+CE1275+CI1275+CM1275+CQ1275+CU1275+CY1275+DC1275+DG1275+DK1275+DO1275+DS1275+DW1275+EA1275+EE1275+EI1275","v":0},"PCS",null,0]
["曾小根",null,"王琦","私密艾香套","25件/套","塑封膜",null,null,null,0,0,0,"PCS",null,0]
["曾小根",null,"王琦","私密净润膜",null,"带脉围腰宝（封套）",null,null,null,200,0,0,"PCS",null,200]
["曾小根",null,"王琦","私密净炎膜","15g","红色小套卡",null,null,null,-200,0,0,"PCS",null,-200]
["曾小根",null,"王琦","私密温煦液","5ml","茶色玻璃瓶","5ml",null,null,3500,0,0,"PCS",null,3500]
["曾小根",null,"王琦","私密温煦液","5ml","亚金盖","5ml",null,null,3500,0,0,"PCS",null,3500]
["曾小根",null,"王琦","私密温煦液","5ml","灰内塞","5ml",null,null,3500,0,0,"PCS",null,3500]
["曾小根",null,"王琦","私密温煦液、艾护赋活油","5ml","灰塞","5ml",null,null,3797,0,0,"PCS",null,3797]
["曾小根",null,"王琦","私密温煦液、艾护赋活油","5ml","金色外盖","5ml",null,null,4297,0,0,"PCS",null,4297]
["曾小根",null,"王琦","私密养阴散-药粉","6g","自封袋","6g",null,null,0,0,0,"PCS",null,0]
["曾小根",null,"王琦","私密养阴散-药粉","6g","锦囊袋","10小袋/袋",null,null,-150,0,0,"PCS",null,-150]
["曾小根",null,"王琦","松筋疗痛油","5ml","茶色瓶","5ml",null,null,0,0,0,"PCS",null,0]
["曾小根",null,"王琦","松筋疗痛油、健脾祛黄油","5ml","灰塞","5ml",null,null,0,0,0,"PCS",null,0]
["曾小根",null,"王琦","松筋疗痛油、健脾祛黄油","5ml","金色铝盖","5ml",null,null,0,0,0,"PCS",null,0]
["曾小根",null,"王琦","亚金盖","5ml","外盖","5ml",null,null,13200,0,0,"PCS",null,13200]
["杨克江",null,"王晓芳","觅密皮盒","12件/套","觅密皮盒","12件/套",null,null,270,0,300,"PCS","已盘点",570,null,null,null,null,null,null,null,null,null,null,null,null,null,null,null,null,null,null,null,null,null,null,null,null,null,null,null,null,null,null,null,null,null,null,null,null,null,null,null,null,null,null,null,null,null,null,null,null,null,null,null,null,null,null,null,null,null,null,null,null,null,null,null,null,null,null,null,null,null,null,"0003645",{"$f":"10*20+10*10","v":300}]
["杨克江",null,"王晓芳","修美冰箱",null,"修美冰箱",null,null,null,48,0,0,"PCS","已盘点",48]
["杨克江",null,"王晓芳","秀美凝胶","3ML","粉色推杆","3ML",null,null,40992,45092,4100,"PCS","已盘点",0,null,null,null,null,null,null,null,null,null,null,null,null,null,null,null,null,null,null,null,null,null,null,null,null,null,null,null,null,null,null,null,null,null,null,null,null,null,null,null,null,null,null,null,null,null,null,null,null,null,null,null,null,null,null,null,null,null,null,null,null,"盘点",45092,null,null,null,null,null,null,null,null,"003640",4100]
["杨克江",null,"王晓芳","秀美凝胶","3ML","铝箔袋","3ML",null,null,90900,95000,4100,"PCS","已盘点",null,null,null,null,null,null,null,null,null,null,null,null,null,null,null,null,null,null,null,null,null,null,null,null,null,null,null,null,null,null,null,null,null,null,null,null,null,null,null,null,null,null,null,null,null,null,null,null,null,null,null,null,null,null,null,null,null,null,null,null,null,"盘点",95000,null,null,null,null,null,null,null,null,"003640",4100]
["杨克江",null,"王晓芳","秀美凝胶","3ML","针管","3ML",null,null,41813,45913,4100,"PCS","已盘点",null,null,null,null,null,null,null,null,null,null,null,null,null,null,null,null,null,null,null,null,null,null,null,null,null,null,null,null,null,null,null,null,null,null,null,null,null,null,null,null,null,null,null,null,null,null,null,null,null,null,null,null,null,null,null,null,null,null,null,null,null,"盘点",45913,null,null,null,null,null,null,null,null,"003640",4100]
["杨克江",null,"王晓芳","秀美凝胶","3ML","盖子","3ML",null,null,28130,32230,4100,"PCS","已盘点",null,null,null,null,null,null,null,null,null,null,null,null,null,null,null,null,null,null,null,null,null,null,null,null,null,null,null,null,null,null,null,null,null,null,null,null,null,null,null,null,null,null,null,null,null,null,null,null,null,null,null,null,null,null,null,null,null,null,null,null,null,"盘点",32230,null,null,null,null,null,null,null,null,"003640",4100]
["杨克江",null,"王晓芳","秀美凝胶","3ML","内塞","3ML",null,null,29840,33940,4100,"PCS","已盘点",null,null,null,null,null,null,null,null,null,null,null,null,null,null,null,null,null,null,null,null,null,null,null,null,null,null,null,null,null,null,null,null,null,null,null,null,null,null,null,null,null,null,null,null,null,null,null,null,null,null,null,null,null,null,null,null,null,null,null,null,null,"盘点",33940,null,null,null,null,null,null,null,null,"003640",4100]
[null,null,null,null,null,null,null,null,null,0,0,0,"PCS"]
["杨克江",null,"王晓君","活性蛋白修护敷膜","盒","塑料瓶","盒",null,null,0,0,0,"PCS"]
["杨克江",null,"王晓君","活性蛋白修护敷膜","盒","蓝色标","盒",null,null,-2000,0,2000,"PCS",null,null,null,null,null,null,null,null,null,null,null,null,null,null,null,null,null,null,null,null,null,null,null,null,null,null,null,null,null,null,null,null,null,null,null,null,null,null,null,null,null,null,null,null,null,null,null,null,null,null,null,null,null,null,null,null,null,null,null,null,"0002974",2000]
["杨克江",null,"王晓君","活性蛋白修护敷膜","盒","彩盒","盒",null,null,-55,0,55,"PCS",null,null,null,null,null,null,null,null,null,null,null,null,null,null,null,null,null,null,null,null,null,null,null,null,null,null,null,null,null,null,null,null,null,null,null,null,null,null,null,null,null,null,null,null,null,null,null,null,null,null,null,null,null,null,null,null,null,null,null,null,"0002974",55]
["杨克江",null,"王晓君","活性蛋白修护敷膜","盒","内托","盒",null,null,-41,0,41,"PCS",null,null,null,null,null,null,null,null,null,null,null,null,null,null,null,null,null,null,null,null,null,null,null,null,null,null,null,null,null,null,null,null,null,null,null,null,null,null,null,null,null,null,null,null,null,null,null,null,null,null,null,null,null,null,null,null,null,null,null,null,"0002974",41]
["杨克江",null,"王晓君","薇诺美活性蛋白修护",null,"收缩膜",null,null,null,2000,2000,0,"PCS",null,null,null,null,null,null,null,null,null,null,null,null,null,null,null,null,null,null,null,null,null,null,null,null,null,null,null,null,null,null,null,null,null,null,null,null,null,null,null,null,null,null,null,null,null,null,null,null,null,null,null,null,null,null,null,null,null,null,null,null,null,null,null,null,null,null,"0002902",2000]
[]
["杨克江",null,"维多利亚","极润滋养修护护发素","250ml","塑料瓶","250ml",null,null,4973,0,0,"PCS",null,4973]
["杨克江",null,"维多利亚","维多利亚BB霜袋子","/","袋子","/",null,null,33600,0,0,"PCS",null,33600]
["杨克江",null,"维多利亚","无硅丝柔洗发露","250ml","塑料瓶","250ml",null,null,4983,0,0,"PCS",null,4983]
["杨克江",null,"维多利亚","无硅丝柔洗发露/极润滋养修护护发素","250ml","泵头","250ml",null,null,10000,0,0,"PCS",null,10000]
["杨克江",null,"维多利亚","莹润修颜BB霜","/","收缩膜","/",null,null,{"$f":"O1308+K1308-L1308","v":3000},0,0,"PCS",null,3000]
["曾小根",null,"文奇嘉美"," 怡情套组",null,"正面标",null,null,null,330,0,0,"PCS",null,330]
["曾小根",null,"文奇嘉美","空白纸箱60*41.5*45",null,"空白纸箱60*41.5*45",null,null,null,100,0,0,"PCS",null,100]
["曾小根",null,"文奇嘉美","阳光安康《大》",null,"套盒",null,null,null,167,0,0,"PCS",null,167]
["曾小根",null,"文奇嘉美","阳光安康《小》",null,"套盒",null,null,null,510,0,0,"PCS",null,510]
["曾小根",null,"文奇嘉美","阳光安康说明书",null,"说明书",null,null,null,1395,0,0,"PCS",null,1395]
["曾小根",null,"文奇嘉美","阳光安康怡净",null,"背标",null,null,null,500,0,0,"PCS",null,500]
["曾小根",null,"文奇嘉美","阳光怡净背标",null,"标贴【背】",null,null,null,335,0,0,"PCS",null,335]
["曾小根",null,"文奇嘉美","阳光怡情背标",null,"标贴【背】",null,null,null,330,0,0,"PCS",null,330]
["曾小根",null,"文奇嘉美","阳光怡情体验套背标",null,"标贴【背】",null,null,null,330,0,0,"PCS",null,330]
["曾小根",null,"文奇嘉美","阳光怡情组",null,"背标",null,null,null,500,0,0,"PCS",null,500]
["曾小根",null,"文奇嘉美","阳光怡爽背标",null,"标贴【背】",null,null,null,335,0,0,"PCS",null,335]
["曾小根",null,"文奇嘉美","怡净霜","15ml","玻璃瓶","15ml",null,null,0,0,0,"PCS",null,0]
["曾小根",null,"文奇嘉美","怡净套组",null,"正面标",null,null,null,335,0,0,"PCS",null,335]
["曾小根",null,"文奇嘉美","怡爽",null,"正面标",null,null,null,335,0,0,"PCS",null,335]
["杨克江",null,"吴彩霞","极润滋养修护护发素","250ML","咖啡色塑料瓶","250ML",null,null,0,0,0,"PCS",null,0]
["杨克江",null,"吴彩霞","极润滋养修护护发素","250ML","白色压嘴喷头","250ML",null,null,0,0,0,"PCS",null,0]
["曾小根",null,"吴彩霞","美背套  底部无字","6件/套","套盒","6件/套",null,null,0,0,0,"PCS",null,0]
["曾小根",null,"吴彩霞","美背套  底部有字","6件/套","套盒","6件/套",null,null,0,0,0,"PCS",null,0]
["曾小根",null,"吴彩霞","身体套  底部无字","6件/套","套盒","6件/套",null,null,0,0,0,"PCS",null,0]
["曾小根",null,"吴彩霞","身体套  底部有字","6件/套","套盒","6件/套",null,null,0,0,0,"PCS",null,0]
["杨克江",null,"吴彩霞","无硅油丝柔洗发露","250ML","浅黄色塑料瓶","250ML",null,null,0,0,0,"PCS",null,0]
["杨克江",null,"吴彩霞","无硅油丝柔洗发露","250ML","白色压嘴喷头","250ML",null,null,0,0,0,"PCS",null,0]
["杨克江",null,"吴彩霞","无硅油丝柔洗发露","250ML","纸箱",null,null,null,0,0,0,"PCS",null,0]
["曾小根",null,"吴彩霞","腰腹套  底部无字","6件/套","套盒","6件/套",null,null,0,0,0,"PCS",null,0]
["曾小根",null,"吴彩霞","腰腹套  底部有字","6件/套","套盒","6件/套",null,null,0,0,0,"PCS",null,0]
["杨克江",null,"吴彩霞","莹润修颜BB霜","15g","彩盒","15g",null,null,3150,0,0,"PCS",null,3150]
["杨克江",null,"吴彩霞","莹润修颜BB霜","15g","内托","15g",null,null,3100,0,0,"PCS",null,3100]
["杨克江",null,"吴彩霞","紫色半圆小中包",null,"小中包",null,null,null,1000,0,0,"PCS",null,1000]
["左林青",null,"亚腾谨秀","胶原蛋白",null,"收缩膜",null,null,null,1000,0,0,"PCS",null,1000]
["左林青",null,"亚腾谨秀","美肌霜","50g","收缩膜","50g",null,null,2000,0,0,"PCS",null,2000]
["左林青",null,"亚腾谨秀","眼霜","15g","收缩膜","15g",null,null,2000,{"$f":"Q1339+U1339+Y1339+AC1339+AG1339+AK1339+AO1339+AS1339+AW1339+BA1339+BE1339+BI1339+BM1339+BQ1339+BU1339+BY1339+CC1339+CG1339+CK1339+CO1339+CS1339+CW1339+DA1339+DE1339+DI1339+DM1339+DQ1339+DU1339+DY1339+EC1339+EG1339","v":0},{"$f":"S1339+W1339+AA1339+AE1339+AI1339+AM1339+AQ1339+AU1339+AY1339+BC1339+BG1339+BK1339+BO1339+BS1339+BW1339+CA1339+CE1339+CI1339+CM1339+CQ1339+CU1339+CY1339+DC1339+DG1339+DK1339+DO1339+DS1339+DW1339+EA1339+EE1339+EI1339","v":0},"PCS",null,2000]
["左林青",null,"亚腾谨秀","脂质水","100g","收缩膜","100g",null,null,2000,0,0,"PCS",null,2000]
["左林青",null,"晏雪梅","人颜肤泉脂质水","100ml","塑料瓶","100ml",null,null,3108,0,0,"PCS",null,3108]
["左林青",null,"晏雪梅","人颜肤泉脂质水","100ml","卡口喷雾喷头","100ml",null,null,3109,0,0,"PCS",null,3109]
["左林青",null,"晏雪梅","人颜肤泉脂质水","100ml","外罩","100ml",null,null,3109,0,0,"PCS",null,3109]
[]
[]
[]
[]
[]
["曾小根",null,"姚国华","腹部精华膜","250ml","塑料瓶","250ml",null,null,0,0,0,"PCS",null,0]
["曾小根",null,"姚国华","腹部精华膜","250ml","外盖(含内垫）","250ml",null,null,0,0,0,"PCS",null,0]
["曾小根",null,"姚国华","腹部精华膜","250ml","纸箱","40瓶/箱",null,null,0,0,0,"PCS",null,0]
["曾小根",null,"尹倩","冰泉紧致眼膜","10片/盒","蓝色彩盒","10片/盒",null,null,0,0,0,"PCS"]
["曾小根",null,"尹倩","冰泉紧致眼膜","10片/盒","眼膜布","10片/盒",null,null,0,0,0,"PCS"]
["曾小根",null,"尹倩","冰泉紧致眼膜","10片/盒","塑封膜",null,null,null,0,0,0,"PCS"]
["曾小根",null,"尹倩","促渗贴-300","20片/包","铝箔袋","20片/包",null,null,0,0,0,"PCS"]
["曾小根",null,"尹倩","促渗贴-300","20片/包","促渗贴",null,null,null,0,0,0,"PCS"]
["曾小根",null,"尹倩","促渗贴-800","20片/瓶","白色瓶子","20片/瓶",null,null,0,0,0,"PCS"]
["曾小根",null,"尹倩","促渗贴-800","20片/瓶","外盖","20片/瓶",null,null,0,0,0,"PCS"]
["曾小根",null,"尹倩","促渗贴-800","20片/瓶","促渗贴-800",null,null,null,0,0,0,"PCS"]
["曾小根",null,"尹倩","蛋白滋养眼霜","15ml","真空瓶","15ml",null,null,0,0,0,"PCS"]
["曾小根",null,"尹倩","蛋白滋养眼霜","15ml","泵头","15ml",null,null,0,0,0,"PCS"]
["曾小根",null,"尹倩","蛋白滋养眼霜","15ml","透明外罩","15ml",null,null,0,0,0,"PCS"]
["曾小根",null,"尹倩","蛋白滋养眼霜","15ml","品名标",null,null,null,0,0,0,"PCS"]
["曾小根",null,"尹倩","蛋白滋养眼霜","15ml","彩盒","15ml",null,null,0,0,0,"PCS"]
["曾小根",null,"尹倩","蛋白滋养眼霜","15ml","塑封膜",null,null,null,0,0,0,"PCS"]
["曾小根",null,"尹倩","赋活晶体胶原素","5片+1包/盒、10片+1包/盒","赋活晶体胶原素（客供）",null,null,null,0,0,0,"对"]
["曾小根",null,"尹倩","赋活晶体胶原素","5片+1包/盒","蓝色彩盒","5片+1包/盒",null,null,0,0,0,"PCS"]
["曾小根",null,"尹倩","赋活晶体胶原素","10片+1包/盒","蓝色彩盒","10片+1包/盒",null,null,0,0,0,"PCS"]
["曾小根",null,"尹倩","赋活晶体胶原素","5片+1包/盒、10片+1包/盒","正面标",null,null,null,0,0,0,"PCS"]
["曾小根",null,"尹倩","赋活晶体胶原素","5片+1包/盒、10片+1包/盒","反面标",null,null,null,0,0,0,"PCS"]
["曾小根",null,"尹倩","赋活晶体胶原素","10片+1包/盒","10对品名标",null,null,null,0,0,0,"PCS"]
["曾小根",null,"尹倩","赋活晶体胶原素","5片+1包/盒","5对品名标",null,null,null,{"$f":"O1372+K1372-L1372","v":0},0,0,"PCS"]
["曾小根",null,"尹倩","赋活晶体胶原素","10片+1包/盒","塑封膜","10片+1包/盒",null,null,0,0,0,"PCS"]
["曾小根",null,"尹倩","赋活晶体胶原素","5片+1包/盒","塑封膜","5片+1包/盒",null,null,0,0,0,"PCS"]
["曾小根",null,"尹倩","活能精纯液—8000","10支/盒","彩盒","10支/盒",null,null,0,0,0,"PCS"]
["曾小根",null,"尹倩","活能精纯液—8000","10支/盒","内托","10支/盒",null,null,0,0,0,"PCS"]
["曾小根",null,"尹倩","活能精纯液—8000","10支/盒","铝箔袋",null,null,null,0,0,0,"PCS"]
["曾小根",null,"尹倩","活能精纯液—8000","10支/盒","塑封膜",null,null,null,0,0,0,"PCS"]
["曾小根",null,"尹倩","活能精华液-3000","15ml","塑料瓶","15ml",null,null,0,0,0,"PCS"]
["曾小根",null,"尹倩","活能精华液-3000","15ml","内胆","15ml",null,null,0,0,0,"PCS"]
["曾小根",null,"尹倩","活能精华液-3000","15ml","金属滚珠","15ml",null,null,0,0,0,"PCS"]
["曾小根",null,"尹倩","活能精华液-3000","15ml","底盖","15ml",null,null,0,0,0,"PCS"]
["曾小根",null,"尹倩","活能精华液-3000","15ml","外罩","15ml",null,null,0,0,0,"PCS"]
["曾小根",null,"尹倩","活能精华液-3000","15ml","彩盒","15ml",null,null,0,0,0,"PCS"]
["曾小根",null,"尹倩","活能精华液-3000","15ml","收缩膜（两头空）","15ml",null,null,0,0,0,"PCS"]
["曾小根",null,"尹倩","紧致闪释锭片",null,"彩盒",null,null,null,0,0,0,"PCS"]
["曾小根",null,"尹倩","紧致闪释锭片",null,"贴标",null,null,null,0,0,0,"PCS"]
["曾小根",null,"尹倩","紧致闪释锭片",null,"锭片",null,null,null,0,0,0,"PCS"]
["曾小根",null,"尹倩","紧致闪释锭片",null,"收缩膜",null,null,null,0,0,0,"PCS"]
["曾小根",null,"尹倩","矿能醒活精华液","15ml","半透明真空瓶","15ml",null,null,0,0,0,"PCS"]
["曾小根",null,"尹倩","矿能醒活精华液","15ml","银边外罩","15ml",null,null,0,0,0,"PCS"]
["曾小根",null,"尹倩","矿能醒活精华液","15ml","压嘴泵头","15ml",null,null,0,0,0,"PCS"]
["曾小根",null,"尹倩","纳米鱼子精华乳","1.5ml","折断瓶","1.5ml",null,null,0,0,0,"PCS"]
["曾小根",null,"尹倩","纳米鱼子精华乳","1.5ml","推杆","1.5ml",null,null,0,0,0,"PCS"]
["曾小根",null,"尹倩","纳米鱼子精华乳","1.5ml","胶塞","1.5ml",null,null,0,0,0,"PCS"]
["曾小根",null,"尹倩","纳米鱼子精华乳","1.5ml","外罩","1.5ml",null,null,0,0,0,"PCS"]
["曾小根",null,"尹倩","逆时空赋活套","14件/套","套盒","14件/套",null,null,0,0,0,"PCS"]
["曾小根",null,"尹倩","逆时空赋活套","14件/套","塑封膜",null,null,null,0,0,0,"PCS"]
["曾小根",null,"尹倩","逆时空赋活套","14件/套","助推棒",null,null,null,0,0,0,"PCS"]
["曾小根",null,"尹倩","逆时空赋活套","14件/套","眉夹",null,null,null,0,0,0,"PCS"]
["曾小根",null,"尹倩","深护魅眼套","9件套","套盒","9件套",null,null,0,0,0,"PCS"]
["曾小根",null,"尹倩","深护魅眼套","9件套","品名标",null,null,null,0,0,0,"PCS"]
["曾小根",null,"尹倩","深护魅眼套","9件套","专用纸箱","33*51.5*62.5",null,null,0,{"$f":"Q1403+U1403+Y1403+AC1403+AG1403+AK1403+AO1403+AS1403+AW1403+BA1403+BE1403+BI1403+BM1403+BQ1403+BU1403+BY1403+CC1403+CG1403+CK1403+CO1403+CS1403+CW1403+DA1403+DE1403+DI1403+DM1403+DQ1403+DU1403+DY1403+EC1403+EG1403","v":0},{"$f":"S1403+W1403+AA1403+AE1403+AI1403+AM1403+AQ1403+AU1403+AY1403+BC1403+BG1403+BK1403+BO1403+BS1403+BW1403+CA1403+CE1403+CI1403+CM1403+CQ1403+CU1403+CY1403+DC1403+DG1403+DK1403+DO1403+DS1403+DW1403+EA1403+EE1403+EI1403","v":0},"PCS"]
["曾小根",null,"尹倩","深护魅眼套","9件套","塑封膜",null,null,null,0,0,0,"PCS"]
["曾小根",null,"尹倩","深透晶体胶原素","10个/套","彩盒","10个/套",null,null,0,0,0,"PCS"]
["曾小根",null,"尹倩","深透晶体胶原素","10个/套","底盖","10个/套",null,null,0,0,0,"PCS"]
["曾小根",null,"尹倩","深透晶体胶原素","10个/套","上盖","10个/套",null,null,0,0,0,"PCS"]
["曾小根",null,"尹倩","深透晶体胶原素","10个/套","内托","10个/套",null,null,0,0,0,"PCS"]
["曾小根",null,"尹倩","深透晶体胶原素","10个/套","封口铝膜贴","10个/套",null,null,0,0,0,"PCS"]
["曾小根",null,"尹倩","深透晶体胶原素","10个/套","深透晶体胶原素（半成品）",null,null,null,0,0,0,"PCS"]
["曾小根",null,"尹倩","深透晶体胶原素","10个/套","塑封膜（两头空）",null,null,null,0,0,0,"PCS"]
["曾小根",null,"尹倩","水活润眼套","7件套","套盒","7件套",null,null,0,0,0,"PCS"]
["曾小根",null,"尹倩","水活润眼套","7件套","塑封膜",null,null,null,0,0,0,"PCS"]
["曾小根",null,"尹倩","水活润眼套、童龄美目套、逆时空赋活套","7件套","专用纸箱","43.5*33.5*62",null,null,0,0,0,"PCS"]
["曾小根",null,"尹倩","水活润眼套、童龄美目套、逆时空赋活套","7件套","刀卡（43.5*33.5*62）",null,null,null,0,0,0,"PCS"]
["曾小根",null,"尹倩","童龄美目套","11件/套","套盒","11件/套",null,null,0,0,0,"PCS"]
["曾小根",null,"尹倩","童龄美目套","11件/套","塑封膜",null,null,null,0,0,0,"PCS"]
["曾小根",null,"尹倩","童龄美目套、逆时空赋活",null,"喇叭头",null,null,null,0,0,0,"PCS"]
["曾小根",null,"尹倩","无痕修复原液","10Ml","玻璃瓶","10Ml",null,null,0,0,0,"PCS"]
["曾小根",null,"尹倩","无痕修复原液","10Ml","内塞","10Ml",null,null,0,0,0,"PCS"]
["曾小根",null,"尹倩","无痕修复原液","10Ml","外盖","10Ml",null,null,0,0,0,"PCS"]
["曾小根",null,"尹倩","无痕修复原液","10Ml","品名标",null,null,null,0,0,0,"PCS"]
["曾小根",null,"尹倩","震动按摩笔",null,"滚珠底",null,null,null,0,0,0,"PCS"]
["曾小根",null,"尹倩","震动按摩笔",null,"塑料瓶身",null,null,null,0,0,0,"PCS"]
["曾小根",null,"尹倩","震动按摩笔",null,"外盖",null,null,null,0,0,0,"PCS"]
["曾小根",null,"尹倩","震动按摩笔",null,"电池",null,null,null,0,0,0,"PCS"]
["曾小根",null,"尹倩","震动按摩笔",null,"按键",null,null,null,0,0,0,"PCS"]
["左林青",null,"与程国际","蝴结蝶","/","蝴结蝶","/",null,null,79800,0,0,"PCS",null,79800]
["左林青",null,"与程国际","净密内衣裤洗护精华","50ml","透明瓶","50ml",null,null,79765,0,0,"PCS",null,79765]
["左林青",null,"与程国际","净密内衣裤洗护精华","50ml","白内塞","50ml",null,null,80000,0,0,"PCS",null,80000]
["左林青",null,"与程国际","净密内衣裤洗护精华","50ml","白外盖","50ml",null,null,80000,0,0,"PCS",null,80000]
["左林青",null,"与程国际","净密内衣裤洗护精华","300ml","透明瓶","300ml",null,null,20000,0,0,"PCS",null,20000]
["左林青",null,"与程国际","净密内衣裤洗护精华","300ml","外盖","300ml",null,null,80200,0,0,"PCS",null,80200]
["林静",null,"与程国际","净密内衣裤洗护精华套","2件/套","套盒","2件/套",null,null,0,0,0,"PCS","次品276",0]
["林静",null,"与程国际","净密内衣裤洗护精华套","2件/套","吸塑内托","2件/套",null,null,0,0,0,"PCS","次品932",0]
["林静",null,"与程国际","净密内衣裤洗护精华套","2件/套","防伪标",null,null,null,{"$f":"O1436+K1436-L1436","v":0},0,0,"PCS",null,0]
["林静",null,"与程国际","净密内衣裤洗护精华套","2件/套","纸箱","30套/箱",null,null,93,0,0,"PCS",null,93]
[]
["林静",null,"与程国际","净密内衣清洗液","300ML","内塞","300ML",null,null,3900,0,0,"PCS",null,3900]
["林静",null,"与程国际","净密内衣清洗液","300ML","镀银外盖","300ML",null,null,850,0,0,"PCS","次品24",850]
["林静",null,"与程国际","净密内衣清洗液","300ML","蝴蝶结","玫瑰红",null,null,0,0,0,"PCS","次品544",0]
["林静",null,"与程国际","净密内衣清洗液","50ML","透明瓶","50ML",null,null,925,0,0,"PCS","次品30",925]
["林静",null,"与程国际","净密内衣清洗液","50ML","内塞","50ML",null,null,670,0,0,"PCS",null,670]
["林静",null,"与程国际","净密内衣清洗液","50ML","外盖","50ML",0,0,5989,0,0,"PCS","次品44",5989]
["林静",null,"与程国际","净密内衣清洗液","50ML","纸箱","60支/箱",0,0,370,0,0,"PCS",null,370]
["林静",null,"与程国际","净密内衣清洗液","50ML","纸箱垫片","2个/箱",null,null,0,0,0,"PCS",null,0]
["林静",null,"钰品汇","无硅油修护洗发露","500ML","塑料瓶","500ML",null,null,8095,0,0,"PCS",null,8095]
["林静",null,"钰品汇","无硅油滋养护发素","300ML","塑料瓶","300ML",null,null,1052,0,0,"PCS",null,1052]
["林静",null,"钰品汇","无硅油滋养护发素","300ML","外盖","300ML",null,null,1400,0,0,"PCS",null,1400]
["林静",null,"钰品汇","无硅油滋养护发素","300ML","压嘴喷头","300ML",null,null,0,0,0,"PCS",null,0]
["林静",null,"钰品汇","无硅油滋养护发素","300ML","纸箱","300ML",null,null,54,0,0,"PCS",null,54]
["林静",null,"钰品汇","无患子倍洁洗衣液",null,"纸箱（48*40*26）",null,null,null,0,0,0,"PCS",null,0]
["林静",null,"钰品汇","无患子倍洁洗衣液","1KG","空白四方塑料瓶","1KG",null,null,23792,0,0,"PCS",null,23792]
["林静",null,"钰品汇","无患子倍洁洗衣液","1KG","外盖","1KG",null,null,24850,0,0,"PCS",null,24850]
["林静",null,"钰品汇","无患子倍洁洗衣液","1KG","前标贴","1KG",null,null,20000,0,0,"PCS",null,20000]
["林静",null,"钰品汇","无患子倍洁洗衣液","1KG","后标贴","1KG",null,null,20000,0,0,"PCS",null,20000]
["林静",null,"钰品汇","无患子倍洁洗衣液","1KG","纸箱","30支/箱",null,null,0,0,0,"PCS",null,0]
["林静",null,"钰品汇","无患子倍润沐浴露","500ML","塑料瓶","500ML",null,null,8422,0,0,"PCS",null,8422]
["林静",null,"钰品汇","无患子倍润沐浴露、无硅油修护洗发露","500ML","外盖","500ML",null,null,16765,0,0,"PCS",null,16765]
["林静",null,"钰品汇","无患子倍润沐浴露、无硅油修护洗发露","500ML","压嘴喷头","500ML",null,null,0,0,0,"PCS",null,0]
["林静",null,"钰品汇","无患子倍润沐浴露、无硅油修护洗发露","500ML","纸箱","500ML",null,null,2,0,0,"PCS",null,2]
["林静",null,"曾晓艳","备长炭修护净肌黑米面膜","25G","一层备长炭面膜布","25G",null,null,7713,0,0,"PCS",null,7713]
["林静",null,"曾晓艳","备长炭修护净肌黑米面膜","25G","铝箔袋","25G",null,null,-1587,0,0,"PCS",null,-1587]
["林静",null,"曾晓艳","备长炭修护净肌黑米面膜","25G","彩盒","25G",null,null,-228,0,0,"PCS",null,-228]
["林静",null,"曾晓艳","备长炭修护净肌黑米面膜","25G","收缩膜","25G",null,null,-228,0,0,"PCS",null,-228]
["林静",null,"曾晓艳","备长炭修护净肌黑米面膜","25G","专用纸箱","25G",null,null,-40,0,0,"PCS",null,-40]
["杨克江",null,"翟兆云","慕思","60ml","泡沫瓶","60ml",null,null,-800,{"$f":"Q1467+U1467+Y1467+AC1467+AG1467+AK1467+AO1467+AS1467+AW1467+BA1467+BE1467+BI1467+BM1467+BQ1467+BU1467+BY1467+CC1467+CG1467+CK1467+CO1467+CS1467+CW1467+DA1467+DE1467+DI1467+DM1467+DQ1467+DU1467+DY1467+EC1467+EG1467","v":0},{"$f":"S1467+W1467+AA1467+AE1467+AI1467+AM1467+AQ1467+AU1467+AY1467+BC1467+BG1467+BK1467+BO1467+BS1467+BW1467+CA1467+CE1467+CI1467+CM1467+CQ1467+CU1467+CY1467+DC1467+DG1467+DK1467+DO1467+DS1467+DW1467+EA1467+EE1467+EI1467","v":800},"PCS",null,null,null,null,null,null,null,null,null,null,null,null,null,null,null,null,null,null,null,null,null,null,null,null,null,null,null,null,null,null,null,null,null,null,null,null,null,null,null,null,null,null,null,null,null,null,null,null,null,null,null,null,null,null,null,null,null,null,null,null,null,null,null,null,null,null,null,null,null,null,null,null,null,null,null,null,"0003648",{"$f":"798+2","v":800}]
["杨克江",null,"翟兆云","慕思","60ml","彩盒","60ml",null,null,-800,0,800,"PCS",null,null,null,null,null,null,null,null,null,null,null,null,null,null,null,null,null,null,null,null,null,null,null,null,null,null,null,null,null,null,null,null,null,null,null,null,null,null,null,null,null,null,null,null,null,null,null,null,null,null,null,null,null,null,null,null,null,null,null,null,null,null,null,null,null,null,null,null,null,null,null,null,null,null,null,null,"0003648",800]
["杨克江",null,"翟兆云","慕思","60ml","内托","60ml",null,null,-800,0,800,"PCS",null,null,null,null,null,null,null,null,null,null,null,null,null,null,null,null,null,null,null,null,null,null,null,null,null,null,null,null,null,null,null,null,null,null,null,null,null,null,null,null,null,null,null,null,null,null,null,null,null,null,null,null,null,null,null,null,null,null,null,null,null,null,null,null,null,null,null,null,null,null,null,null,null,null,null,null,"0003648",800]
["杨克江",null,"翟兆云","慕思","60ml","外盖","60ml",null,null,-800,0,800,"PCS",null,null,null,null,null,null,null,null,null,null,null,null,null,null,null,null,null,null,null,null,null,null,null,null,null,null,null,null,null,null,null,null,null,null,null,null,null,null,null,null,null,null,null,null,null,null,null,null,null,null,null,null,null,null,null,null,null,null,null,null,null,null,null,null,null,null,null,null,null,null,null,null,null,null,null,null,"0003648",800]
["杨克江",null,"翟兆云","慕思","60ml","喷头","60ml",null,null,-800,0,800,"PCS",null,null,null,null,null,null,null,null,null,null,null,null,null,null,null,null,null,null,null,null,null,null,null,null,null,null,null,null,null,null,null,null,null,null,null,null,null,null,null,null,null,null,null,null,null,null,null,null,null,null,null,null,null,null,null,null,null,null,null,null,null,null,null,null,null,null,null,null,null,null,null,null,null,null,null,null,"0003648",800]
["杨克江",null,"翟兆云","慕思","60ml","收缩膜","60ml",null,null,-800,0,800,"PCS",null,null,null,null,null,null,null,null,null,null,null,null,null,null,null,null,null,null,null,null,null,null,null,null,null,null,null,null,null,null,null,null,null,null,null,null,null,null,null,null,null,null,null,null,null,null,null,null,null,null,null,null,null,null,null,null,null,null,null,null,null,null,null,null,null,null,null,null,null,null,null,null,null,null,null,null,"0003648",800]
["杨克江",null,"翟兆云","泡沫瓶","80ml","瓶子","80ml",null,null,3836,3836,0,"PCS",null,null,null,null,null,null,null,null,null,null,null,null,null,null,null,null,null,null,null,null,null,null,null,null,null,null,null,null,null,null,null,null,null,null,null,null,null,null,null,null,null,null,null,null,null,null,null,null,null,null,null,null,null,null,null,null,null,null,null,null,null,null,null,null,null,null,"0002935",{"$f":"832*4+508","v":3836}]
["杨克江",null,"翟兆云","泡沫瓶","80ml","泵头","80ml",null,null,10,10,0,"PCS",null,null,null,null,null,null,null,null,null,null,null,null,null,null,null,null,null,null,null,null,null,null,null,null,null,null,null,null,null,null,null,null,null,null,null,null,null,null,null,null,null,null,null,null,null,null,null,null,null,null,null,null,null,null,null,null,null,null,null,null,null,null,null,null,null,null,"0002935",10]
[]
[]
["曾小根",null,"詹塔","去黑头导出液","30ml","彩盒","30ml",null,null,6400,6400,0,"PCS",null,null,null,null,null,null,null,null,null,null,null,null,null,null,null,null,null,null,null,null,null,null,null,null,null,null,null,null,null,null,null,null,null,null,null,null,null,null,null,null,null,null,null,null,null,null,"0000010",3200,null,null,null,null,null,null,null,null,null,null,"0002977",3200]
["曾小根",null,"詹塔","去黑头导出液","30ml","塑瓶","30ml",null,null,0,2976,2976,"PCS",null,null,null,null,null,null,null,null,null,null,null,null,null,null,null,null,null,null,null,null,null,null,null,null,null,null,null,null,null,null,null,null,null,null,null,null,null,null,null,null,null,null,null,null,null,null,null,null,null,null,null,null,null,null,null,null,null,null,"0002976",2976,"0002972",{"$f":"996+1980","v":2976}]
["曾小根",null,"詹塔","去黑头导出液","30ml","塑封膜","106mm*33mm*33mm",null,null,0,0,0,"PCS"]
[]
["曾小根",null,"詹塔","去黑头鼻膜","50ml","塑瓶","50ml",null,null,1798,4798,3000,"PCS",null,null,null,null,null,null,null,null,null,null,null,null,null,null,null,null,null,null,null,null,null,null,null,null,null,null,null,null,null,null,null,null,null,null,null,null,null,null,null,null,null,null,null,null,null,null,null,null,null,null,null,null,null,null,null,null,null,null,"0002976",4798,null,null,null,null,null,null,null,null,null,null,null,null,null,null,null,null,null,null,null,null,"0002978",3000]
["曾小根",null,"詹塔","去黑头鼻膜","50ml","内塞","50ml",null,null,2000,5000,3000,"PCS",null,null,null,null,null,null,null,null,null,null,null,null,null,null,null,null,null,null,null,null,null,null,null,null,null,null,null,null,null,null,null,null,null,null,null,null,null,null,null,null,null,null,null,null,null,null,null,null,null,null,null,null,null,null,null,null,null,null,"0002976",5000,null,null,null,null,null,null,null,null,null,null,null,null,null,null,null,null,null,null,null,null,"0002978",3000]
[]
["曾小根",null,"詹塔","去黑头鼻膜","50ml","塑封膜","113mm*48mm*30mm",null,null,0,0,0,"PCS"]
["曾小根",null,"詹塔","毛孔收缩液","30ml","彩盒","30ml",null,null,3440,6400,2960,"PCS",null,null,null,null,null,null,null,null,null,null,null,null,null,null,null,null,null,null,null,null,null,null,null,null,null,null,null,null,null,null,null,null,null,null,null,null,null,null,null,null,null,null,null,null,null,null,"0000010",3200,null,null,null,null,null,null,null,null,null,null,"0002977",3200,"0002972",2960]
["曾小根",null,"詹塔","毛孔收缩液","30ml","塑瓶","30ml",null,null,0,2960,2960,"PCS",null,null,null,null,null,null,null,null,null,null,null,null,null,null,null,null,null,null,null,null,null,null,null,null,null,null,null,null,null,null,null,null,null,null,null,null,null,null,null,null,null,null,null,null,null,null,null,null,null,null,null,null,null,null,null,null,null,null,"0002976",2960,"0002972",{"$f":"1650+1310","v":2960}]
["曾小根",null,"詹塔","毛孔收缩液","30ml","塑封膜","113mm*48mm*30mm",null,null,0,0,0,"PCS"]
[]
["曾小根",null,"张俊江","备长炭净颜焕彩黑面膜","25G*6","面膜纸（竹炭纤维+蚕丝）","25G*6",null,null,5500,0,0,"PCS",null,5500]
["曾小根",null,"张俊江","备长炭净颜焕彩黑面膜","25G*6","铝箔袋","25G*6",null,null,34300,0,0,"PCS",null,34300]
["曾小根",null,"张俊江","备长炭净颜焕彩黑面膜","25G*6","内托","25G*6",null,null,5180,0,0,"PCS",null,5180]
["曾小根",null,"张俊江","备长炭净颜焕彩黑面膜","25G*6","彩盒","25G*6",null,null,5350,0,0,"PCS",null,5350]
["曾小根",null,"张俊江","备长炭净颜焕彩黑面膜","25G*6","塑封膜","25G*6",null,null,5500,0,0,"PCS",null,5500]
["曾小根",null,"张俊江","备长炭净颜焕彩黑面膜","25G*6","专用纸箱","60盒/箱",null,null,100,0,0,"PCS",null,100]
["曾小根",null,"张俊江","备长炭面膜","/","黑色面膜","/",null,null,10064,0,0,"PCS",null,10064]
["林静",null,"张丽","白布袋","12*17",null,"12*17",null,null,19300,19300,0,"PCS",null,null,null,null,null,null,null,null,null,null,null,null,null,null,null,null,null,null,null,null,null,null,null,null,null,null,null,null,null,null,null,null,null,null,null,null,null,null,null,null,null,null,null,null,null,null,null,null,null,null,null,null,null,null,null,null,null,null,null,null,null,null,"0002932",9650,null,null,null,null,null,null,null,9650]
["左林青",null,"张学军","防晒霜（sunscreen)","100ML ","白色软管","100ML",null,null,5480,5480,0,"PCS",null,null,null,null,null,null,null,null,null,null,null,null,null,null,null,null,null,null,null,null,null,null,null,null,null,null,null,null,null,null,null,null,null,null,null,null,null,null,null,null,null,null,null,null,null,null,null,null,null,null,null,null,null,null,null,null,null,null,null,null,null,null,null,null,null,null,"0002934",{"$f":"7*700+580","v":5480}]
["左林青",null,"张学军","防晒霜（sunscreen)","100ML ","翻盖","100ML",null,null,5400,5400,0,"PCS",null,null,null,null,null,null,null,null,null,null,null,null,null,null,null,null,null,null,null,null,null,null,null,null,null,null,null,null,null,null,null,null,null,null,null,null,null,null,null,null,null,null,null,null,null,null,null,null,null,null,null,null,null,null,null,null,null,null,null,null,null,null,null,null,null,null,"0002934",{"$f":"2*2300+800","v":5400}]
["左林青",null,"张学军","芦荟胶（sunscreen)","150ML ","白色软管","150ML",null,null,5500,5500,0,"PCS",null,null,null,null,null,null,null,null,null,null,null,null,null,null,null,null,null,null,null,null,null,null,null,null,null,null,null,null,null,null,null,null,null,null,null,null,null,null,null,null,null,null,null,null,null,null,null,null,null,null,null,null,null,null,null,null,null,null,null,null,null,null,null,null,null,null,"0002934",{"$f":"13*400+300","v":5500}]
["左林青",null,"张学军","芦荟胶（sunscreen)","150ML ","翻盖","150ML",null,null,{"$f":"O1500+K1500-L1500","v":5500},5500,0,"PCS",null,null,null,null,null,null,null,null,null,null,null,null,null,null,null,null,null,null,null,null,null,null,null,null,null,null,null,null,null,null,null,null,null,null,null,null,null,null,null,null,null,null,null,null,null,null,null,null,null,null,null,null,null,null,null,null,null,null,null,null,null,null,null,null,null,null,"0002934",{"$f":"4*1200+700","v":5500}]
["左林青",null,"张学军","芦荟喷雾（spray）","100ML ","白色塑料瓶","100ML",null,null,0,0,0,"PCS"]
["左林青",null,"张学军","芦荟喷雾（spray）","100ML ","压咀泵头","100ML",null,null,0,0,0,"PCS"]
["左林青",null,"张学军","芦荟喷雾（spray）","100ML ","透明盖","100ML",null,null,0,0,0,"PCS"]
["左林青",null,"张学军","芦荟乳液（linimemt）","100ML ","白色塑料瓶","100ML",null,null,0,0,0,"PCS"]
["左林青",null,"张学军","芦荟乳液（linimemt）","100ML ","压咀泵头","100ML",null,null,0,0,0,"PCS"]
["左林青",null,"张学军","芦荟乳液（linimemt）","100ML ","透明盖","100ML",null,null,0,0,0,"PCS"]
["林静",null,"赵国民（古积）","红唇素玫瑰红（367）","18ml","彩盒","18ml",null,null,1100,0,0,"PCS",null,1100]
["林静",null,"赵国民（古积）","红唇素玫瑰红（367）","18ml","软管","18ml",null,null,0,0,0,"PCS",null,0]
["林静",null,"赵国民（古积）","红唇素茉莉（366）","18ml","软管","18ml",null,null,2700,0,0,"PCS",null,2700]
["林静",null,"赵国民（古积）","红唇素茉莉（366）","18ml","彩盒","18ml",null,null,1000,0,0,"PCS",null,1000]
["林静",null,"赵国民（古积）","红唇素浓粉（368）","18ml","软管","18ml",null,null,0,0,0,"PCS",null,0]
["林静",null,"赵国民（古积）","红唇素浓粉（368）","18ml","彩盒","18ml",null,null,1100,0,0,"PCS",null,1100]
["林静",null,"赵国民（古积）","红唇素浓粉（368）、红唇素玫瑰红（367）、红唇素茉莉（366）","18ml","品名标",null,null,null,0,0,0,"PCS",null,0]
["林静",null,"赵国民（古积）","红唇素浓粉（368）、红唇素玫瑰红（367）、红唇素茉莉（366）","18ml","内塞","18ml",null,null,0,0,0,"PCS",null,0]
["林静",null,"赵国民（古积）","红唇素浓粉（368）、红唇素玫瑰红（367）、红唇素茉莉（366）","18ml","外盖","18ml",null,null,0,0,0,"PCS",null,0]
["林静",null,"赵国民（古积）","红唇素浓粉（368）、红唇素玫瑰红（367）、红唇素茉莉（366）","18ml","说明书","18ml",null,null,0,0,0,"PCS",null,0]
["曾小根",null,"赵国民（古积）","收缩膜","5cm","卷 膜","5cm",null,null,3,3,0,"PCS",null,null,null,null,null,null,null,null,null,null,null,null,null,null,null,null,null,null,null,null,null,null,null,null,null,null,null,null,null,null,null,null,null,null,null,null,null,null,null,null,null,null,null,null,null,null,null,null,null,null,null,null,null,null,null,null,null,null,null,null,null,null,null,null,null,null,"0002902",3]
["曾小根",null,"赵国民（古积）","修复啫喱","10g","软管","10g",null,null,-10000,0,10000,"PCS",null,0,null,null,null,null,null,null,null,null,null,null,null,null,null,null,null,null,null,null,null,null,null,null,null,null,null,null,null,null,null,null,null,null,null,null,null,null,null,null,null,null,null,null,null,null,null,null,null,null,null,null,null,null,null,null,null,null,null,null,null,null,null,null,"0003628",10000]
["曾小根",null,"赵国民（古积）","修复啫喱","10g","内塞","10g",null,null,-10000,0,10000,"PCS",null,0,null,null,null,null,null,null,null,null,null,null,null,null,null,null,null,null,null,null,null,null,null,null,null,null,null,null,null,null,null,null,null,null,null,null,null,null,null,null,null,null,null,null,null,null,null,null,null,null,null,null,null,null,null,null,null,null,null,null,null,null,null,null,"0003628",10000]
["曾小根",null,"赵国民（古积）","修复啫喱","10g","外盖","10g",null,null,-10000,0,10000,"PCS",null,0,null,null,null,null,null,null,null,null,null,null,null,null,null,null,null,null,null,null,null,null,null,null,null,null,null,null,null,null,null,null,null,null,null,null,null,null,null,null,null,null,null,null,null,null,null,null,null,null,null,null,null,null,null,null,null,null,null,null,null,null,null,null,"0003628",10000]
["曾小根",null,"赵国民（古积）","修复啫喱","10g","说明书","10g",null,null,2000,0,0,"PCS",null,2000]
["曾小根",null,"赵国民（古积）","修复啫喱","10g","品名贴","10g",null,null,2000,0,0,"PCS",null,2000]
["曾小根",null,"赵国民（古积）","修复啫喱","10g","彩盒","10g",null,null,750,0,0,"PCS",null,750]
["曾小根",null,"赵国民（古积）","修复啫喱","10g","塑封膜（两头空）","10g",null,null,0,0,0,"PCS",null,0]
["曾小根",null,"赵国民（古积）","修复啫喱","10g","软管","10g",null,null,0,0,0,"PCS"]
["曾小根",null,"赵国民（古积）","修复啫喱","10g","盖子","10g",null,null,0,0,0,"PCS"]
["曾小根",null,"赵国民（古积）","修复啫喱","10g","内塞","10g",null,null,0,0,0,"PCS"]
["杨克江",null,"朱丽容","塞欧迪蔻红色","/","单支盒","/",null,null,670,670,0,"PCS",null,null,null,670]
["杨克江",null,"朱丽容","塞欧迪蔻红色","/","牛油纸","/",null,null,1020,1020,0,"PCS",null,null,null,1020]
["杨克江",null,"朱丽容","塞欧迪蔻红色<A>","/","套盒","/",null,null,400,400,0,"PCS",null,null,null,400]
["杨克江",null,"朱丽容","塞欧迪蔻红色<B>","/","套盒","/",null,null,600,{"$f":"Q1531+U1531+Y1531+AC1531+AG1531+AK1531+AO1531+AS1531+AW1531+BA1531+BE1531+BI1531+BM1531+BQ1531+BU1531+BY1531+CC1531+CG1531+CK1531+CO1531+CS1531+CW1531+DA1531+DE1531+DI1531+DM1531+DQ1531+DU1531+DY1531+EC1531+EG1531","v":600},{"$f":"S1531+W1531+AA1531+AE1531+AI1531+AM1531+AQ1531+AU1531+AY1531+BC1531+BG1531+BK1531+BO1531+BS1531+BW1531+CA1531+CE1531+CI1531+CM1531+CQ1531+CU1531+CY1531+DC1531+DG1531+DK1531+DO1531+DS1531+DW1531+EA1531+EE1531+EI1531","v":0},"PCS",null,null,null,600]
["杨克江",null,"朱丽容","水润女人套5s套","套",null,"/",null,null,500,{"$f":"Q1532+U1532+Y1532+AC1532+AG1532+AK1532+AO1532+AS1532+AW1532+BA1532+BE1532+BI1532+BM1532+BQ1532+BU1532+BY1532+CC1532+CG1532+CK1532+CO1532+CS1532+CW1532+DA1532+DE1532+DI1532+DM1532+DQ1532+DU1532+DY1532+EC1532+EG1532","v":500},{"$f":"S1532+W1532+AA1532+AE1532+AI1532+AM1532+AQ1532+AU1532+AY1532+BC1532+BG1532+BK1532+BO1532+BS1532+BW1532+CA1532+CE1532+CI1532+CM1532+CQ1532+CU1532+CY1532+DC1532+DG1532+DK1532+DO1532+DS1532+DW1532+EA1532+EE1532+EI1532","v":0},"PCS",null,null,null,null,null,null,null,null,null,null,null,null,null,null,null,null,null,null,null,null,null,null,null,null,null,null,null,null,null,null,null,null,null,null,null,null,null,null,null,null,null,null,null,null,null,null,null,null,null,null,null,null,null,null,null,null,null,null,"0002901",500]
["杨克江",null,"朱丽容","水润平衡乳","10g","折断瓶","10g",null,null,10075,{"$f":"Q1533+U1533+Y1533+AC1533+AG1533+AK1533+AO1533+AS1533+AW1533+BA1533+BE1533+BI1533+BM1533+BQ1533+BU1533+BY1533+CC1533+CG1533+CK1533+CO1533+CS1533+CW1533+DA1533+DE1533+DI1533+DM1533+DQ1533+DU1533+DY1533+EC1533+EG1533","v":0},{"$f":"S1533+W1533+AA1533+AE1533+AI1533+AM1533+AQ1533+AU1533+AY1533+BC1533+BG1533+BK1533+BO1533+BS1533+BW1533+CA1533+CE1533+CI1533+CM1533+CQ1533+CU1533+CY1533+DC1533+DG1533+DK1533+DO1533+DS1533+DW1533+EA1533+EE1533+EI1533","v":0},"PCS",null,10075]
["杨克江",null,"朱丽容","水润平衡乳","10g","塞子","10g",null,null,10075,{"$f":"Q1534+U1534+Y1534+AC1534+AG1534+AK1534+AO1534+AS1534+AW1534+BA1534+BE1534+BI1534+BM1534+BQ1534+BU1534+BY1534+CC1534+CG1534+CK1534+CO1534+CS1534+CW1534+DA1534+DE1534+DI1534+DM1534+DQ1534+DU1534+DY1534+EC1534+EG1534","v":0},{"$f":"S1534+W1534+AA1534+AE1534+AI1534+AM1534+AQ1534+AU1534+AY1534+BC1534+BG1534+BK1534+BO1534+BS1534+BW1534+CA1534+CE1534+CI1534+CM1534+CQ1534+CU1534+CY1534+DC1534+DG1534+DK1534+DO1534+DS1534+DW1534+EA1534+EE1534+EI1534","v":0},"PCS",null,10075]
["杨克江",null,"朱丽容","水润平衡乳","10g","钉子","10g",null,null,10075,{"$f":"Q1535+U1535+Y1535+AC1535+AG1535+AK1535+AO1535+AS1535+AW1535+BA1535+BE1535+BI1535+BM1535+BQ1535+BU1535+BY1535+CC1535+CG1535+CK1535+CO1535+CS1535+CW1535+DA1535+DE1535+DI1535+DM1535+DQ1535+DU1535+DY1535+EC1535+EG1535","v":0},{"$f":"S1535+W1535+AA1535+AE1535+AI1535+AM1535+AQ1535+AU1535+AY1535+BC1535+BG1535+BK1535+BO1535+BS1535+BW1535+CA1535+CE1535+CI1535+CM1535+CQ1535+CU1535+CY1535+DC1535+DG1535+DK1535+DO1535+DS1535+DW1535+EA1535+EE1535+EI1535","v":0},"PCS",null,10075]
["杨克江",null,"吉林瀚喆","生命能量套（白色）","12件/套","套","12件/套"]
["杨克江",null,"吉林瀚喆","生命能量","10ml","手拉垫片","10ml"]
["杨克江",null,"吉林瀚喆","生命能量","10ml","玻璃瓶子","10ml"]
["杨克江",null,"吉林瀚喆","生命能量","10ml","白色内塞","10ml"]
["杨克江",null,"吉林瀚喆","生命能量","10ml","钉子","10ml"]
["杨克江",null,"吉林瀚喆","生命能量","10ml","折断瓶","10ml"]
["杨克江",null,"吉林瀚喆","生命能量","10ml","牛油纸","10ml"]
["杨克江",null,"吉林瀚喆","生命能量","10ml","说明书","10ml"]
["杨克江",null,"吉林瀚喆","生命能量","10ml","亮银盖子","10ml"]
["杨克江",null,"朱丽容","推杆","10g","推杆","10g",null,null,{"$f":"O1545+K1545-L1545","v":1000},{"$f":"Q1545+U1545+Y1545+AC1545+AG1545+AK1545+AO1545+AS1545+AW1545+BA1545+BE1545+BI1545+BM1545+BQ1545+BU1545+BY1545+CC1545+CG1545+CK1545+CO1545+CS1545+CW1545+DA1545+DE1545+DI1545+DM1545+DQ1545+DU1545+DY1545+EC1545+EG1545","v":0},{"$f":"S1545+W1545+AA1545+AE1545+AI1545+AM1545+AQ1545+AU1545+AY1545+BC1545+BG1545+BK1545+BO1545+BS1545+BW1545+CA1545+CE1545+CI1545+CM1545+CQ1545+CU1545+CY1545+DC1545+DG1545+DK1545+DO1545+DS1545+DW1545+EA1545+EE1545+EI1545","v":0},"PCS",null,1000]
["杨克江",null,"姿蔓婷","清吻舒缓内衣洗液","120ML","金色玻璃瓶","120ML",null,null,0,0,0,"PCS",null,0]
["杨克江",null,"姿蔓婷","清吻舒缓内衣洗液","120ML","透明内塞","120ML",null,null,0,0,0,"PCS",null,0]
["杨克江",null,"姿蔓婷","清吻舒缓内衣洗液","120ML","旋外盖","120ML",null,null,0,0,0,"PCS",null,0]
["杨克江",null,"姿蔓婷","清吻舒爽内衣洗液","120ml","玻璃瓶","120ml",null,null,4971,0,0,"PCS",null,4971]
["杨克江",null,"姿蔓婷","御红颜","120ml","外罩","120ml",null,null,5005,0,0,"PCS",null,5005]
["杨克江",null,"姿蔓婷","御红颜","120ml","泵头","120ml",null,null,5005,0,0,"PCS",null,5005]
["林静",null,"资丽匙张丽","白布袋","/","袋","/",null,null,9650,9650,0,"PCS",null,null,null,null,null,null,null,null,null,null,null,null,null,null,null,null,null,null,null,null,null,null,null,null,null,null,null,null,null,null,null,null,null,null,null,null,null,null,null,null,null,null,null,null,null,null,null,null,null,null,null,null,null,null,null,null,null,null,null,null,null,null,"0002932",9650]
["林静",null,"资丽匙张丽","还原能量激活精华","5ml","玻璃瓶","5ml",null,null,0,0,0,"PCS",null,0]
["林静",null,"资丽匙张丽","还原能量激活精华","5ml","玻璃滴管","5ml",null,null,0,0,0,"PCS",null,0]
["林静",null,"资丽匙张丽","还原能量激活精华","5ml","奶嘴","5ml",null,null,0,0,0,"PCS",null,0]
["林静",null,"资丽匙张丽","还原能量激活精华","5ml","金圈","5ml",null,null,0,0,0,"PCS",null,0]
["林静",null,"资丽匙张丽","还原能量修护精华","5ml","安瓶","5ml",null,null,0,0,0,"PCS",null,0]
["林静",null,"资丽匙张丽","还原能量修护精华","5ml","白色内塞","5ml",null,null,0,0,0,"PCS",null,0]
["林静",null,"资丽匙张丽","还原能量修护精华","5ml","亮金外盖","5ml",null,null,0,0,0,"PCS",null,0]
["林静",null,"资丽匙张丽","激活再生精华","5ml","安瓶","5ml",null,null,0,0,0,"PCS",null,0]
["林静",null,"资丽匙张丽","激活再生精华","5ml","白色内塞","5ml",null,null,0,0,0,"PCS",null,0]
["林静",null,"资丽匙张丽","激活再生精华","5ml","亮金外盖","5ml",null,null,0,0,0,"PCS",null,0]
["林静",null,"资丽匙张丽","洁面精粹","3ml","安瓶","3ml",null,null,0,0,0,"PCS",null,0]
["林静",null,"资丽匙张丽","洁面精粹","3ml","白色内塞","3ml",null,null,0,0,0,"PCS",null,0]
["林静",null,"资丽匙张丽","洁面精粹","3ml","亮金外盖","3ml",null,null,0,0,0,"PCS",null,0]
["林静",null,"资丽匙张丽","纳米隔离乳","2ml","折断瓶","2ml",null,null,0,0,0,"PCS",null,0]
["林静",null,"资丽匙张丽","纳米隔离乳","2ml","内塞","2ml",null,null,0,0,0,"PCS",null,0]
["林静",null,"资丽匙张丽","纳米隔离乳","2ml","塞钉","2ml",null,null,0,0,0,"PCS",null,0]
["林静",null,"资丽匙张丽","平衡调理露","5ml","安瓶","5ml",null,null,0,0,0,"PCS",null,0]
["林静",null,"资丽匙张丽","平衡调理露","5ml","白色内塞","5ml",null,null,0,0,0,"PCS",null,0]
["林静",null,"资丽匙张丽","平衡调理露","5ml","亮金外盖","5ml",null,null,0,0,0,"PCS",null,0]
["林静",null,"资丽匙张丽","丝滑锁水修护面膜","25g","A353面膜纸","25g",null,null,13,0,0,"PCS",null,13]
["林静",null,"资丽匙张丽","丝滑锁水修护面膜","25g","印刷铝箔袋","25g",null,null,-1987,0,0,"PCS",null,-1987]
["林静",null,"资丽匙张丽","丝滑锁水修护面膜","25g","彩盒",null,null,null,-335,0,0,"PCS",null,-335]
["林静",null,"资丽匙张丽","丝滑锁水修护面膜","25g","内托",null,null,null,-335,0,0,"PCS",null,-335]
["林静",null,"资丽匙张丽","丝滑锁水修护面膜","25g","塑封膜",null,null,null,-335,0,0,"PCS",null,-335]
["林静",null,"资丽匙张丽","天使焕颜套","63件/套","套盒","63件/套",null,null,0,0,0,"PCS",null,0]
["林静",null,"资丽匙张丽","天使焕颜套","63件/套","小喇叭头",null,null,null,0,0,0,"PCS",null,0]
["林静",null,"资丽匙张丽","天使焕颜套","63件/套","大喇叭头",null,null,null,0,0,0,"PCS",null,0]
["林静",null,"资丽匙张丽","天使焕颜套","63件/套","珍珠棉",null,null,null,0,0,0,"PCS",null,0]
["林静",null,"资丽匙张丽","天使焕颜套","63件/套","塑封膜",null,null,null,0,0,0,"PCS",null,0]
["曾小根",null,"左晶晶","透明扁瓶","500ml","塑料瓶","500ml",null,null,20000,0,0,"PCS",null,20000]
["曾小根",null,"左晶晶","透明扁瓶","500ml","黑色千秋盖子","500ml",null,null,20000,0,0,"PCS",null,20000]
["曾小根",null,"左晶晶","透明圆肩瓶","60ml","塑料瓶","60ml",null,null,20000,0,0,"PCS",null,20000]
["曾小根",null,"左晶晶","透明圆肩瓶","60ml","黑色千秋盖子","60ml",null,null,20000,0,0,"PCS",null,20000]
["杨克江",null,"吉林瀚喆","生命能量套（白色）","12件/套","套盒","12件/套",null,null,0,0,0,"PCS"]
["杨克江",null,"吉林瀚喆","生命能量套（白色）","12件/套","牛油纸说明书","12件/套",null,null,0,0,0,"PCS"]
["杨克江",null,"吉林瀚喆","生命能量套（白色）","12件/套","套盒标","12件/套",null,null,0,0,0,"PCS"]
["杨克江",null,"吉林瀚喆","生命精华","10ml ","折断瓶","10ml ",null,null,0,0,0,"PCS"]
["杨克江",null,"吉林瀚喆","生命精华","10ml ","白色内塞","10ml ",null,null,0,0,0,"PCS"]
["杨克江",null,"吉林瀚喆","生命精华","10ml ","钉子","10ml ",null,null,0,0,0,"PCS"]
[]
[]
[]
["杨克江",null,"吉林瀚喆","纤体套（金黄色）","17件/套","套盒","17件/套",null,null,0,0,0,"PCS"]
["杨克江",null,"吉林瀚喆","纤体套（金黄色）","17件/套","牛油纸说明书","17件/套",null,null,0,0,0,"PCS"]
["杨克江",null,"吉林瀚喆","纤体套（金黄色）","17件/套","套盒标","17件/套",null,null,0,0,0,"PCS"]
[]
[]
[]
["杨克江",null,"吉林瀚喆","纤体S霜","50g","亮银盖子","50g",null,null,0,0,0,"PCS"]
["杨克江",null,"吉林瀚喆","纤体S霜","50g","手拉垫片","50g",null,null,0,0,0,"PCS"]
["杨克江",null,"吉林瀚喆","纤体S霜","50g","玻璃瓶子","50g",null,null,0,0,0,"PCS"]
["曾小根",null,"刘铁成（朗顿）","春之恋套","64件/套","套盒","64件/套",null,null,0,0,0,"PCS"]
[]
["曾小根",null,"刘铁成（朗顿）","春之恋套","64件/套","塑封膜","36*64cm",null,null,0,0,0,"PCS"]
[]
[]
[]
[]
["曾小根",null,"刘铁成（朗顿）","春之恋套","64件/套","档案表",null,null,null,{"$f":"O1611+K1611-L1611","v":0},{"$f":"Q1611+U1611+Y1611+AC1611+AG1611+AK1611+AO1611+AS1611+AW1611+BA1611+BE1611+BI1611+BM1611+BQ1611+BU1611+BY1611+CC1611+CG1611+CK1611+CO1611+CS1611+CW1611+DA1611+DE1611+DI1611+DM1611+DQ1611+DU1611+DY1611+EC1611+EG1611","v":0},{"$f":"S1611+W1611+AA1611+AE1611+AI1611+AM1611+AQ1611+AU1611+AY1611+BC1611+BG1611+BK1611+BO1611+BS1611+BW1611+CA1611+CE1611+CI1611+CM1611+CQ1611+CU1611+CY1611+DC1611+DG1611+DK1611+DO1611+DS1611+DW1611+EA1611+EE1611+EI1611","v":0},"PCS"]
["曾小根",null,"刘铁成（朗顿）","贵妃醉套","40件/套","套盒","40件/套",null,null,{"$f":"O1612+K1612-L1612","v":0},{"$f":"Q1612+U1612+Y1612+AC1612+AG1612+AK1612+AO1612+AS1612+AW1612+BA1612+BE1612+BI1612+BM1612+BQ1612+BU1612+BY1612+CC1612+CG1612+CK1612+CO1612+CS1612+CW1612+DA1612+DE1612+DI1612+DM1612+DQ1612+DU1612+DY1612+EC1612+EG1612","v":0},{"$f":"S1612+W1612+AA1612+AE1612+AI1612+AM1612+AQ1612+AU1612+AY1612+BC1612+BG1612+BK1612+BO1612+BS1612+BW1612+CA1612+CE1612+CI1612+CM1612+CQ1612+CU1612+CY1612+DC1612+DG1612+DK1612+DO1612+DS1612+DW1612+EA1612+EE1612+EI1612","v":0},"PCS"]
[]
["曾小根",null,"刘铁成（朗顿）","贵妃醉套","40件/套","塑封膜","36*64cm",null,null,{"$f":"O1614+K1614-L1614","v":0},{"$f":"Q1614+U1614+Y1614+AC1614+AG1614+AK1614+AO1614+AS1614+AW1614+BA1614+BE1614+BI1614+BM1614+BQ1614+BU1614+BY1614+CC1614+CG1614+CK1614+CO1614+CS1614+CW1614+DA1614+DE1614+DI1614+DM1614+DQ1614+DU1614+DY1614+EC1614+EG1614","v":0},{"$f":"S1614+W1614+AA1614+AE1614+AI1614+AM1614+AQ1614+AU1614+AY1614+BC1614+BG1614+BK1614+BO1614+BS1614+BW1614+CA1614+CE1614+CI1614+CM1614+CQ1614+CU1614+CY1614+DC1614+DG1614+DK1614+DO1614+DS1614+DW1614+EA1614+EE1614+EI1614","v":0},"PCS"]
["曾小根",null,"刘铁成（朗顿）","醉红颜套","24件/套","套盒","24件/套",null,null,{"$f":"O1615+K1615-L1615","v":0},{"$f":"Q1615+U1615+Y1615+AC1615+AG1615+AK1615+AO1615+AS1615+AW1615+BA1615+BE1615+BI1615+BM1615+BQ1615+BU1615+BY1615+CC1615+CG1615+CK1615+CO1615+CS1615+CW1615+DA1615+DE1615+DI1615+DM1615+DQ1615+DU1615+DY1615+EC1615+EG1615","v":0},{"$f":"S1615+W1615+AA1615+AE1615+AI1615+AM1615+AQ1615+AU1615+AY1615+BC1615+BG1615+BK1615+BO1615+BS1615+BW1615+CA1615+CE1615+CI1615+CM1615+CQ1615+CU1615+CY1615+DC1615+DG1615+DK1615+DO1615+DS1615+DW1615+EA1615+EE1615+EI1615","v":0},"PCS"]
[]
["曾小根",null,"刘铁成（朗顿）","醉红颜套","24件/套","塑封膜","38.5*52cm",null,null,{"$f":"O1617+K1617-L1617","v":0},{"$f":"Q1617+U1617+Y1617+AC1617+AG1617+AK1617+AO1617+AS1617+AW1617+BA1617+BE1617+BI1617+BM1617+BQ1617+BU1617+BY1617+CC1617+CG1617+CK1617+CO1617+CS1617+CW1617+DA1617+DE1617+DI1617+DM1617+DQ1617+DU1617+DY1617+EC1617+EG1617","v":0},{"$f":"S1617+W1617+AA1617+AE1617+AI1617+AM1617+AQ1617+AU1617+AY1617+BC1617+BG1617+BK1617+BO1617+BS1617+BW1617+CA1617+CE1617+CI1617+CM1617+CQ1617+CU1617+CY1617+DC1617+DG1617+DK1617+DO1617+DS1617+DW1617+EA1617+EE1617+EI1617","v":0},"PCS"]
[]
["林静",null,"创美","金箔逆时空套","3件/套","套盒","3件/套",null,null,0,0,0,"PCS"]
[]
["林静",null,"创美","金箔逆时空套","3件/套","塑封膜","3件/套",null,null,0,0,0,"PCS"]
["林静",null,"创美","金箔逆时空套","3件/套","专用纸箱","3件/套",null,null,0,0,0,"PCS"]
[]
[]
[]
[]
[]
[]
[]
[]
["林静",null,"舒凯","ONE COHCO洁牙粒甜橙味","7粒/瓶","透明瓶","7粒/瓶",null,null,{"$f":"O1631+K1631-L1631","v":0},{"$f":"Q1631+U1631+Y1631+AC1631+AG1631+AK1631+AO1631+AS1631+AW1631+BA1631+BE1631+BI1631+BM1631+BQ1631+BU1631+BY1631+CC1631+CG1631+CK1631+CO1631+CS1631+CW1631+DA1631+DE1631+DI1631+DM1631+DQ1631+DU1631+DY1631+EC1631+EG1631","v":0},{"$f":"S1631+W1631+AA1631+AE1631+AI1631+AM1631+AQ1631+AU1631+AY1631+BC1631+BG1631+BK1631+BO1631+BS1631+BW1631+CA1631+CE1631+CI1631+CM1631+CQ1631+CU1631+CY1631+DC1631+DG1631+DK1631+DO1631+DS1631+DW1631+EA1631+EE1631+EI1631","v":0},"PCS"]
["林静",null,"舒凯","ONE COHCO洁牙粒甜橙味","7粒/瓶","白色外盖","7粒/瓶",null,null,0,0,0,"PCS"]
["林静",null,"舒凯","ONE COHCO洁牙粒甜橙味","7粒/瓶","封口标","7粒/瓶",null,null,0,0,0,"PCS"]
["林静",null,"舒凯","ONE COHCO洁牙粒甜橙味","7粒/瓶","卡纸(绿色)","7粒/瓶",null,null,0,0,0,"PCS"]
["林静",null,"舒凯","ONE COHCO洁牙粒甜橙味","7粒/瓶","卡纸(卡其色)","7粒/瓶",null,null,0,0,0,"PCS"]
["林静",null,"舒凯","ONE COHCO洁牙粒甜橙味","7粒/瓶","彩色“米”字标","7粒/瓶",null,null,0,0,0,"PCS"]
["林静",null,"舒凯","ONE COHCO洁牙粒甜橙味","7粒/瓶","透明标","7粒/瓶",null,null,0,0,0,"PCS"]
["林静",null,"舒凯","ONE COHCO洁牙粒甜橙味","7粒/瓶","塑封膜","8*9CM",null,null,0,0,0,"PCS"]
["林静",null,"舒凯","ONE COHCO洁牙粒甜橙味","7粒/瓶","橡皮筋",null,null,null,0,0,0,"PCS"]
[]
[]
[]
[]
[]
[]
[]
[]
[]
[]
[]
[]
[]
[]
[]
[]
[]
["林静",null,"舒凯","ONE COHCO洁牙粒甜橙味","90粒/瓶","纸箱","50盒/箱",null,null,{"$f":"O1657+K1657-L1657","v":0},{"$f":"Q1657+U1657+Y1657+AC1657+AG1657+AK1657+AO1657+AS1657+AW1657+BA1657+BE1657+BI1657+BM1657+BQ1657+BU1657+BY1657+CC1657+CG1657+CK1657+CO1657+CS1657+CW1657+DA1657+DE1657+DI1657+DM1657+DQ1657+DU1657+DY1657+EC1657+EG1657","v":0},{"$f":"S1657+W1657+AA1657+AE1657+AI1657+AM1657+AQ1657+AU1657+AY1657+BC1657+BG1657+BK1657+BO1657+BS1657+BW1657+CA1657+CE1657+CI1657+CM1657+CQ1657+CU1657+CY1657+DC1657+DG1657+DK1657+DO1657+DS1657+DW1657+EA1657+EE1657+EI1657","v":0},"PCS"]
["林静",null,"舒凯","ONE COHCO洁牙粒甜橙味",null,"封箱胶","卷",null,null,0,0,0,"PCS"]
["曾小根",null,"王丽","合济堂泡浴养护粉（IV号）","100g","专用纸箱","100g",null,null,0,0,0,"PCS"]
["曾小根",null,"王丽","合济堂泡浴养护粉（V号）","100g","品名标","100g",null,null,0,0,0,"PCS"]
["曾小根",null,"王丽","合济堂泡浴养护粉（V号）","100g","专用纸箱","100g",null,null,0,0,0,"PCS"]
["曾小根",null,"王丽","合济堂妇科消炎泡浴套","10件/套","套盒","10件/套",null,null,0,0,0,"PCS"]
[]
["曾小根",null,"王丽","合济堂泡浴养护粉（VI号）","100g","专用纸箱","100g",null,null,{"$f":"O1664+K1664-L1664","v":0},{"$f":"Q1664+U1664+Y1664+AC1664+AG1664+AK1664+AO1664+AS1664+AW1664+BA1664+BE1664+BI1664+BM1664+BQ1664+BU1664+BY1664+CC1664+CG1664+CK1664+CO1664+CS1664+CW1664+DA1664+DE1664+DI1664+DM1664+DQ1664+DU1664+DY1664+EC1664+EG1664","v":0},{"$f":"S1664+W1664+AA1664+AE1664+AI1664+AM1664+AQ1664+AU1664+AY1664+BC1664+BG1664+BK1664+BO1664+BS1664+BW1664+CA1664+CE1664+CI1664+CM1664+CQ1664+CU1664+CY1664+DC1664+DG1664+DK1664+DO1664+DS1664+DW1664+EA1664+EE1664+EI1664","v":0},"PCS"]
[]
[]
[]
[]
[]
[]
[]
[]
[]
[]
[]
[]
[]
[]
[]
[]
[]
[]
[]
[]
[]
[]
[null,null,null,null,null,null,null,null,{"$f":"O1678+J1687-K1687","v":0}]
[]
[]
[]
[]
[]
[]
[]
[]
[]
[]
[]
[]
[]
[]
[]
[]
[]
[]
[]
["曾小根",null,"刘铁成（朗顿）","幻彩柔丝秘贴1","10ml ","塑料瓶","10ml",null,null,{"$f":"O1707+K1707-L1707","v":0},{"$f":"Q1707+U1707+Y1707+AC1707+AG1707+AK1707+AO1707+AS1707+AW1707+BA1707+BE1707+BI1707+BM1707+BQ1707+BU1707+BY1707+CC1707+CG1707+CK1707+CO1707+CS1707+CW1707+DA1707+DE1707+DI1707+DM1707+DQ1707+DU1707+DY1707+EC1707+EG1707","v":0},{"$f":"S1707+W1707+AA1707+AE1707+AI1707+AM1707+AQ1707+AU1707+AY1707+BC1707+BG1707+BK1707+BO1707+BS1707+BW1707+CA1707+CE1707+CI1707+CM1707+CQ1707+CU1707+CY1707+DC1707+DG1707+DK1707+DO1707+DS1707+DW1707+EA1707+EE1707+EI1707","v":0},"PCS"]
[]
[]
[]
[]
[]
[null,null,null,null,null,null,null,1036,1036]
[null,null,null,null,null,null,null,632,1041]
[null,null,null,null,null,null,null,632,1041]
[null,null,null,null,null,null,null,1016,1016]

{"sheet":"Sheet1","index":4,"n_rows":84,"n_cols":7,"rows_kept":84,"cut":false,"hidden":true,"merged":[[0,5,1,5],[0,6,1,6],[0,0,1,0],[0,1,1,1],[0,2,1,2],[0,3,1,3],[0,4,1,4]]}
["业 务","客户名称","产品名称","产品规格","物料名称","物料规格","本月结存"]
[]
["曾小根","高礼宾","花度-粉嫩娇颜套","24件/套","套盒","24件/套",-100]
["曾小根","高礼宾","花度-粉嫩娇颜套","24件/套","套盒名称标","24件/套",-100]
["曾小根","高礼宾","花度-粉嫩娇颜套","24件/套","塑封膜","38.5*52cm",-100]
["曾小根","高礼宾","花度-粉嫩娇颜套、花度-爱慕情缘套、花度-腹活能量SPA、醉花因-腹活能量SPA套盒、润羞-风尚柔情套盒、润羞-粉红诱惑、 花库-卿本佳人","24件/套","推杆",null,-200]
["曾小根","高礼宾","花度-凝香露套","30ml","喷雾泵头","30ml",-1000]
["曾小根","高礼宾","花度-性香原液","10ml","玻璃瓶","10ml",-1000]
["曾小根","高礼宾","花度-性香原液","10ml","名称标","10ml",-1000]
["曾小根","高礼宾","润羞-性香原液、醉花因-性香原液、花库-性香原液、花度-性香原液","10ml","13印花","10ml",-1000]
["曾小根","高礼宾","润羞-性香原液、醉花因-性香原液、花库-性香原液、花度-性香原液","10ml","塑缩膜","10ml",-1000]
["曾小根","高礼宾","润羞-性香原液、醉花因-性香原液、花库-性香原液、花度-性香原液","10ml","泵头","10ml",-1000]
["曾小根","王丽","合济堂泡浴养护粉（I号）/合济堂泡浴养护粉（II号）/合济堂泡浴养护粉（III号）/合济堂泡浴养护粉（IV号）/合济堂泡浴养护粉（V号）/合济堂泡浴养护粉（VI号）","100g","铝箔袋","100g",-200]
["曾小根","王丽","合济堂泡浴养护粉（VI号）","100g","品名标","100g",-251]
["杨克江","汤海飞","多肽雪肌霜","50g ","垫片","50g ",-11]
["杨克江","汤海飞","多肽雪肌霜","50g ","盖子","50g ",-9]
["杨克江","汤海飞","多肽雪肌霜","50g ","塑料瓶","50g ",-7]
["曾小根","刘铁成（朗顿）","幻彩柔丝秘贴1","10ml ","铝箔袋","10ml",-1600]
["曾小根","刘铁成（朗顿）","幻彩柔丝秘贴1","10ml ","唇膜","10ml",-1600]
["曾小根","刘铁成（朗顿）","幻彩柔丝秘贴1","10ml ","珠光膜","10ml",-1600]
["黄细娇","工厂","透明瓶","500ml","塑料瓶","500ml",-62]
["黄细娇","工厂","透明瓶","500ml","喷头","500ml",-62]
["黄细娇","工厂","透明袋","1kg","袋装","1kg",-100]
["林静","黄仲祥","水光嫩肤尊享套","21件套","镊子",null,-30]
["林静","黄仲祥","水光嫩肤尊享套","21件套","塑封膜",null,-35]
["林静","黄仲祥","水光嫩肤尊享套","21件套","垫片",null,-30]
["曾小根","马文英","玫瑰精油","10ml","茶色精油（烫金）","10ml",-100]
["曾小根","马文英","玫瑰精油","10ml","内塞","10ml",-100]
["曾小根","马文英","玫瑰精油","10ml","名称贴","10ml",-100]
["曾小根","马文英","玫瑰精油","10ml","垫片","10ml",-100]
["曾小根","马文英","玫瑰精油","10ml","螺纹金盖","10ml",-100]
["曾小根","马文英","玫瑰精油","10ml","标贴","10ml",-100]
["曾小根","马文英","玫瑰精油","10ml","茶色精油（烫银）","10ml",-100]
["曾小根","马文英","玫瑰精油","10ml","内塞","10ml",-100]
["曾小根","马文英","玫瑰精油","10ml","名称贴","10ml",-100]
["曾小根","马文英","玫瑰精油","10ml","垫片","10ml",-100]
["曾小根","马文英","蕴能精油","10ml ","茶色精油（烫银）","10ml ",-100]
["曾小根","马文英","蕴能精油","10ml ","内塞","10ml ",-100]
["曾小根","马文英","蕴能精油","10ml ","螺纹金盖","10ml ",-100]
["曾小根","马文英","蕴能精油","10ml ","垫片",null,-100]
["曾小根","马文英","蕴能精油","10ml ","名称标","10ml ",-100]
["曾小根","马文英","蕴能精油","10ml ","茶色精油（烫金）","10ml ",-100]
["曾小根","马文英","蕴能精油","10ml ","内塞","10ml ",-100]
["曾小根","马文英","蕴能精油","10ml ","垫片","10ml ",-100]
["曾小根","马文英","蕴能精油","10ml ","螺纹金盖","10ml ",-100]
["曾小根","马文英","蕴能精油","10ml ","名称标","10ml ",-100]
["曾小根","王丽","合济堂养颜美体药泡套","10件套","套盒","10件套",-480]
["曾小根","王丽","合济堂泡浴养护粉（II号）","100g","品名标","100g",-200]
["杨克江","王晓君","EGF生长因子复合液","5ML ","喇叭头+盖子","5ml",-100]
["曾小根","王丽","合济堂泡浴养护粉（VI号）","100g","品名标","100g",-251]
["曾小根","王丽","合济堂泡浴养护粉（V号）、合济堂泡浴养护粉（I号）、合济堂泡浴养护粉（II号）、合济堂泡浴养护粉（III号）、合济堂泡浴养护粉（VI号）","100g","说明书","100g",-1200]
["曾小根","王丽","合济堂泡浴养护粉（V号）、合济堂泡浴养护粉（I号）、合济堂泡浴养护粉（II号）、合济堂泡浴养护粉（III号）、合济堂泡浴养护粉（VI号）","100g","10积分卡","100g",-1200]
["杨克江","汤海飞","柳橙节亮颜皮膜液","40ml","红色玻璃瓶","40ml",-185]
["杨克江","汤海飞","柳橙节亮颜皮膜液","40ml","压嘴喷雾头","40ml",-185]
["杨克江","汤海飞","柳橙节亮颜皮膜液","40ml","外盖","40ml",-185]
["杨克江","汤海飞","柳橙节亮颜皮膜液","40ml","产品标贴","40ml",-185]
["杨克江","汤海飞","柳橙节亮颜皮膜液","40ml","成分标","40ml",-185]
["杨克江","汤海飞","柳橙节亮颜皮膜液","40ml","内托","40ml",-185]
["杨克江","汤海飞","柳橙节亮颜皮膜液","40ml","彩盒","40ml",-185]
["杨克江","汤海飞","柳橙节亮颜皮膜液","40ml","塑封膜","40ml",-185]
["杨克江","汤海飞","苹果节活性肽皮膜液","40ml","红色玻璃瓶","40ml",-185]
["杨克江","汤海飞","苹果节活性肽皮膜液","40ml","压嘴喷雾头","40ml",-185]
["杨克江","汤海飞","苹果节活性肽皮膜液","40ml","外盖","40ml",-185]
["杨克江","汤海飞","苹果节活性肽皮膜液","40ml","产品标贴","40ml",-185]
["杨克江","汤海飞","苹果节活性肽皮膜液","40ml","成分标","40ml",-185]
["杨克江","汤海飞","苹果节活性肽皮膜液","40ml","内托","40ml",-185]
["杨克江","汤海飞","苹果节活性肽皮膜液","40ml","彩盒","40ml",-185]
["杨克江","汤海飞","苹果节活性肽皮膜液","40ml","塑封膜","40ml",-185]
["杨克江","汤海飞","芒果节活性肽皮膜液","40ml","红色玻璃瓶","40ml",-185]
["杨克江","汤海飞","芒果节活性肽皮膜液","40ml","压嘴喷雾头","40ml",-185]
["杨克江","汤海飞","芒果节活性肽皮膜液","40ml","外盖","40ml",-185]
["杨克江","汤海飞","芒果节活性肽皮膜液","40ml","产品标贴","40ml",-185]
["杨克江","汤海飞","芒果节活性肽皮膜液","40ml","成分标","40ml",-185]
["杨克江","汤海飞","芒果节活性肽皮膜液","40ml","内托","40ml",-185]
["杨克江","汤海飞","芒果节活性肽皮膜液","40ml","彩盒","40ml",-185]
["杨克江","汤海飞","芒果节活性肽皮膜液","40ml","塑封膜","40ml",-195]
["杨克江","汤海飞","葡萄节多肽皮膜液","40ml","红色玻璃瓶","40ml",-195]
["杨克江","汤海飞","葡萄节多肽皮膜液","40ml","压嘴喷雾头","40ml",-195]
["杨克江","汤海飞","葡萄节多肽皮膜液","40ml","外盖","40ml",-195]
["杨克江","汤海飞","葡萄节多肽皮膜液","40ml","产品标贴","40ml",-195]
["杨克江","汤海飞","葡萄节多肽皮膜液","40ml","成分标","40ml",-195]
["杨克江","汤海飞","葡萄节多肽皮膜液","40ml","内托","40ml",-195]
["杨克江","汤海飞","葡萄节多肽皮膜液","40ml","彩盒","40ml",-195]
["杨克江","汤海飞","葡萄节多肽皮膜液","40ml","塑封膜","40ml",-195]

{"sheet":"问题记录","index":5,"n_rows":5,"n_cols":2,"rows_kept":5,"cut":false,"hidden":false,"merged":[]}
[null,"云南翘楚6688的单在哪？"]
[null,"云南翘楚的有疑问"]
[null,"马文英中间缺页"]
[null,"吴龙因在数据上只有四个货品，有单未录入"]
[null,"昇凰的泌爱凝香滋润53个喷头和52个外盖领料未有数据处理；"]

{"sheet":"统计","index":6,"n_rows":22,"n_cols":5,"rows_kept":22,"cut":false,"hidden":false,"merged":[]}
[]
[]
["行标签","计数项:产品名称"]
["洁士宝",15,null,"洁士宝",15]
["郎顿",58,null,"郎顿",58]
["刘海平",14,null,"刘海平",14]
["马文英",98,null,"马文英",98]
["昇凰",11,"有退单","昇凰",11]
["苏眉",14,null,"苏眉",14]
["隋新城",25,null,"隋新城",25]
["田惠",12,null,"田惠",12]
["王琦",101,null,"王琦",101]
["文奇嘉美",16,null,"文奇嘉美",16]
["吴斌",11,null,"吴斌",11]
["吴彩霞",4,null,"吴彩霞",4]
["吴刚",6,null,"吴刚",6]
["吴龙因",4,null,"吴龙因",4]
["云南翘楚",67,null,"云南翘楚",67]
["张俊江",40,null,"张俊江",40]
["赵国民",null,null,"赵国民"]
["(空白)"]
["总计",496]

{"sheet":"Sheet2","index":7,"n_rows":3,"n_cols":4,"rows_kept":3,"cut":false,"hidden":false,"merged":[]}
[null,"客户名称","物料名称","公式结存"]
[null,"洁士宝","*彩*",1000]
[null,"郎顿",null,">3000"]